Workbook

Sheet MENU
B2: AGENCIA DE REGULACIÓN Y CONTROL DE LAS TELECOMUNICACIONES - ARCOTEL
B5: FORMATOS TÉCNICOS OTH DE FRECUENCIAS DEL ESPECTRO RADIOELÉCTRICO
B6: SISTEMAS DE RADIOS DE DOS VIAS (RD,MA) HF - VHF - UHF
B9: 1 | D9: INFORMACIÓN DE LA ESTRUCTURA DEL SISTEMA DE RADIOCOMUNICACIONES | F9: FO-DRE-01
B11: 2 | D11: INFORMACIÓN DE ANTENAS | F11: FO-DRE-02
B13: 3 | D13: PATRONES DE RADIACIÓN DE ANTENAS | F13: FO-DRE-03
B15: 4 | D15: INFORMACIÓN DE EQUIPAMIENTO | F15: FO-DRE-04
B17: 5 | D17: SISTEMAS DE RADIOS DE DOS VIAS (RD,MA) HF - VHF - UHF | F17: FO-DRE-05
B19: 6 | D19: CÁLCULOS DE PROPAGACIÓN | F19: FO-DRE-15
B21: 7 | D21: ESTUDIO TÉCNICO DE EMISIONES DE RNI | F21: FO-DRE-16
B23: 8 | D23: CALCULO DE LA MAXIMA FRECUENCIA UTILIZABLE (MUF), MINIMA FRECUENCIA UTILIZABLE (LUF) Y FRECUENCIA OPTIMA DE TRABAJO (FOT) | F23: FO-DRE-17

Sheet RC-1A (hidden)
B2: SOLICITUD PARA LA OBTENCIÓN DEL TÍTULO HABILITANTE PARA LA OPERACIÓN DE FRECUENCIAS DEL ESPECTRO RADIOELÉCTRICO
D8: Fecha:
B10: Señor(a) DIRECTOR(A) EJECUTIVO(A) ARCOTEL Presente.-
B12: De mi consideración: | D12: SI
D13: NO
B14: Por medio del presente, me permito solicitarle el otorgamiento del título habilitante para la operación de Frecuencias Del Espectro Radioeléctrico, en tal virtud, adjunto sírvase encontrar el Proyecto Técnico, Estudio de Sostenibilidad Económica y demás requisitos legales establecidos en el Reglamento para Otorgar Títulos Habilitantes para Servicios del Régimen General de Telecomunicaciones y Frecuencias del Espectro Radioeléctrico, Reglamento para la Prestación de Servicios de Telecomunicaciones y Servicios de Radiodifusión por Suscripción.
B16: SERVICIO DE RADIOCOMUNICACION: | C16: Sistemas de radios de dos vías HF, VHF y UHF
B18: Uso de frecuencias esenciales: | D18: Uso de frecuencias no esenciales:
B19: SI | D19: SI
B21: 1. DATOS GENERALES DEL PETICIONARIO(A)
B23: TIPO DE SOLICITANTE:
B24: EMPRESA PÚBLICA O INSTUCIÓN DEL SECTOR PÚBLICO
B26: OBJETO DE LA SOLICITUD: | D26: ASOCIADA A: | F26: TIPO DE RED:
B27: Autorizaciones de uso reservado de frecuencias
B29: 1.1. DATOS GENERALES PERSONA NATURAL O REPRESENTANTE LEGAL
B31: NOMBRES
B32: APELLIDOS
B33: CEDULA DE CIUDADANÍA /PASAPORTE
B34: R.U.C.
B35: Nro. CERTIFICADO DE VOTACIÓN
B36: CARGO
B38: 1.2. DATOS GENERALES PERSONA JURÍDICA
B40: RAZÓN SOCIAL O DENOMINACIÓN OBJETIVA
B41: ACTIVIDAD DE LA EMPRESA
B42: R.U.C.
B44: 2. DIRECCIÓN DE CORRESPONDENCIA DEL PETICIONARIO(A)
B46: PROVINCIA
B47: CANTÓN
B48: PARROQUIA
B49: DIRECCIÓN
B50: CÓDIGO POSTAL
B51: TELÉFONOS FIJO
B52: TELÉFONOS CELULAR
B53: CORREO ELECTRÓNICO
B56: ________________________________________________________ FIRMA DEL PETICIONARIO(A) O REPRESENTANTE LEGAL
D57: SI
D58: NO
B59: INFORMACIÓN DEL PROFESIONAL TÉCNICO RESPONSABLE DEL PROYECTO TÉCNICO
B60: NOMBRE DEL PROFESIONAL
B62: NÚMERO DE REGISTO EN LA SENESCYT
B63: Nota: El Proyecto Técnico deberá elaborar un ingeniero en Electrónica y/o Telecomunicaciones
B64: Codigo :FO-RC-1A
B65: Versión: 01

Sheet FO-DRE-01
A1: Código: FO-DRE-01 Versión: 1.0 | C1: FORMULARIO PARA INFORMACION DE LA INFRAESTRUCTURA DEL SISTEMA DE RADIOCOMUNICACIONES
A3: 1 | B3: 2 | C3: 3 | D3: 4 | E3: 5 | F3: 6 | G3: 7 | H3: 8 | P3: 9 | R3: 10 | S3: 11 | T3: 12 | U3: 13
A4: CODIGO ESTRUCTURA | B4: NOMBRE DEL SITIO | C4: PROVINCIA | D4: CANTÓN | E4: CIUDAD | F4: PARROQUIA (RURAL/CABECERA CANTONAL) | G4: DIRECCIÓN ( Calle y No.) / LOCALIDAD | H4: COORDENADAS WGS84 | P4: ALTURA DE LA ESTRUCTURA | R4: TIPO DE ESTRUCTURA DE SOPORTE | S4: FUENTE DE ENERGIA | T4: ESTRUCTURA NUEVA / EXISTENTE | U4: PROPIETARIO DE LA ESTRUCTURA
H5: LATITUD | L5: LONGITUD
H6: GRADOS | I6: MINUTOS | J6: SEGUNDOS | K6: N/S | L6: GRADOS | M6: MINUTOS | N6: SEGUNDOS | O6: W | P6: S.N.M. [m] | Q6: BASE-CIMA [m]
A7: S1 | B7: NUEVA ESPERANZA | C7: ORELLANA | D7: ORELLANA | E7: NUEVA ESPERANZA | F7: TARACOA (CAB EN NUEVA ESPERANZA:YUCA) | G7: NUEVA ESPERANZA | H7: 0 | I7: 29 | J7: 11.83 | K7: S | L7: 76 | M7: 46 | N7: 20.85 | O7: W | P7: 252 | Q7: 12 | R7: TORRE NO AUTOSOPORTADA | T7: NO | U7: USUARIO
A8: S2 | B8: LOS REYES | C8: ORELLANA | D8: ORELLANA | E8: NUEVA ESPERANZA | F8: TARACOA (CAB EN NUEVA ESPERANZA:YUCA) | G8: LOS REYES | H8: 0 | I8: 29 | J8: 29.77 | K8: S | L8: 76 | M8: 46 | N8: 34.4 | O8: W | P8: 251 | Q8: 12 | R8: TORRE NO AUTOSOPORTADA | T8: SI | U8: USUARIO
A9: S3 | B9: YAWAPARE | C9: ORELLANA | D9: ORELLANA | E9: NUEVA ESPERANZA | F9: TARACOA (CAB EN NUEVA ESPERANZA:YUCA) | G9: YAWAPARE | H9: 0 | I9: 28 | J9: 9.03 | K9: S | L9: 76 | M9: 47 | N9: 8.27 | O9: W | P9: 286 | Q9: 12 | R9: TORRE NO AUTOSOPORTADA | T9: NO | U9: USUARIO
O10: W
O11: W
O12: W
O13: W
O14: W
O15: W
O16: W
O17: W
O18: W
O19: W
O20: W
O21: W
O22: W
O23: W
O24: W
O25: W
O26: W
O27: W
O28: W
O29: W
O30: W
O31: W
O32: W
O33: W
O34: W
O35: W
O36: W
O37: W
O38: W
O39: W
O40: W
O41: W
O42: W
O43: W
O44: W
O45: W
O46: W
O47: W
O48: W
O49: W
O50: W
O51: W
O52: W
O53: W
O54: W
O55: W
O56: W
O57: W
O58: W
O59: W
O60: W
O61: W
O62: W
O63: W
O64: W
O65: W
O66: W
O67: W
O68: W
O69: W
O70: W
O71: W
O72: W
O73: W
O74: W
O75: W
O76: W
O77: W
O78: W
O79: W
O80: W
O81: W
O82: W
O83: W
O84: W
O85: W
O86: W
O87: W
O88: W
O89: W
O90: W
O91: W
O92: W
O93: W
O94: W
O95: W
O96: W
O97: W
O98: W
O99: W
O100: W
O101: W

Sheet FO-DRE-02
A1: Código: FO-DRE-02 Versión: 1.0 | C1: FORMULARIO PARA INFORMACION DE ANTENAS
A3: 1 | B3: 2 | C3: 3 | D3: 4 | F3: 5 | G3: 6 | H3: 7 | I3: 8 | J3: 9 | K3: 10 | L3: 11 | M3: 12
A4: CODIGO DE ANTENA | B4: MARCA | C4: MODELO | D4: RANGO DE OPERACIÓN [MHz] | F4: TIPO | G4: POLARIZACION | H4: IMPEDANCIA [Ω] | I4: GANANCIA [dBd] | J4: DIAMETRO [m] | K4: AZIMUT DE RADIACION MAXIMA (°) | L4: ANGULO DE ELEVACION (°) | M4: ALTURA BASE-ANTENA (m)
D5: FREC. INICIAL | E5: FREC. FINAL
A6: A1 | B6: NACIONAL | C6: CASERO | D6: 1.6 | E6: 29.9 | F6: DIPOLO | G6: VERTICAL | H6: 50 | I6: 2.15 | K6: 12 | L6: 3 | M6: 5
A7: A2 | B7: NACIONAL | C7: CASERO | D7: 1.6 | E7: 29.9 | F7: DIPOLO | G7: HORIZONTAL | H7: 50 | I7: 2.15 | K7: 12 | L7: 3 | M7: 12
A8: A3 | B8: NACIONAL | C8: CASERO | D8: 1.6 | E8: 29.9 | F8: DIPOLO | G8: CIRCULAR | H8: 50 | I8: 2.15 | K8: 12 | L8: 3 | M8: 15

Sheet FO-DRE-03
B2: Código: FO-DRE-03 Versión: 1.0 | G2: FORMULARIO PARA PATRONES DE RADIACION DE ANTENAS | AB2: Código: FO-DRE-03 Versión: 01 | AG2: FORMULARIO PARA PATRONES DE RADIACION DE ANTENAS
B6: 1 | AB6: 1
B7: PATRONES DE RADIACION DE ANTENA | AB7: PATRONES DE RADIACION DE ANTENA
B8: MARCA: | D8: ='FO-DRE-02'!B6 -> NACIONAL | J8: MODELO: | L8: ='FO-DRE-02'!C6 -> CASERO | S8: TIPO: | U8: ='FO-DRE-02'!F6 -> DIPOLO | AB8: MARCA: | AD8: ='FO-DRE-02'!B7 -> NACIONAL | AJ8: MODELO: | AL8: ='FO-DRE-02'!C7 -> CASERO | AS8: TIPO: | AU8: ='FO-DRE-02'!F6 -> DIPOLO
B9: Ingrese los valores de ganancia ( dBd ) para cada radial. | AB9: Ingrese los valores de ganancia ( dBd ) para cada radial.
B10: RADIAL PLANO | D10: 0° | E10: 15° | F10: 30° | G10: 45° | H10: 60° | I10: 75° | J10: 90° | K10: 105° | L10: 120° | M10: 135° | N10: 150° | O10: 165° | P10: 180° | Q10: 195° | R10: 210° | S10: 225° | T10: 240° | U10: 255° | V10: 270° | W10: 285° | X10: 300° | Y10: 315° | Z10: 330° | AA10: 345° | AB10: RADIAL PLANO | AD10: 0° | AE10: 15° | AF10: 30° | AG10: 45° | AH10: 60° | AI10: 75° | AJ10: 90° | AK10: 105° | AL10: 120° | AM10: 135° | AN10: 150° | AO10: 165° | AP10: 180° | AQ10: 195° | AR10: 210° | AS10: 225° | AT10: 240° | AU10: 255° | AV10: 270° | AW10: 285° | AX10: 300° | AY10: 315° | AZ10: 330° | BA10: 345°
B12: HORIZONTAL | D12: 12 | E12: 11 | F12: 10.5 | G12: 10.3 | H12: 10 | I12: 9 | J12: 8.5 | K12: 7 | L12: 6.5 | M12: 5.2 | N12: 5 | O12: 5 | P12: 5 | Q12: 5 | R12: 5 | S12: 5.2 | T12: 6.5 | U12: 7 | V12: 8.5 | W12: 9 | X12: 10 | Y12: 10.3 | Z12: 10.5 | AA12: 11 | AB12: HORIZONTAL
B13: VERTICAL | D13: 12 | E13: 0 | F13: -12 | G13: -24 | H13: -12 | I13: -18 | J13: -25 | K13: -18 | L13: -24 | M13: -12 | N13: -12 | O13: 0 | P13: 12 | Q13: 0 | R13: -12 | S13: -12 | T13: -24 | U13: -18 | V13: -25 | W13: -18 | X13: -12 | Y13: -24 | Z13: -12 | AA13: 0 | AB13: VERTICAL
B14: PATRON DE RADIACION HORIZONTAL | O14: PATRON DE RADIACION VERTICAL | AB14: PATRON DE RADIACION HORIZONTAL | AO14: PATRON DE RADIACION VERTICAL
B33: 1 | AB33: 1
B34: PATRONES DE RADIACION DE ANTENA | AB34: PATRONES DE RADIACION DE ANTENA
B35: MARCA: | J35: MODELO: | S35: TIPO: | AB35: MARCA: | AJ35: MODELO: | AS35: TIPO:
B36: Ingrese los valores de ganancia ( dBd ) para cada radial. | AB36: Ingrese los valores de ganancia ( dBd ) para cada radial.
B37: RADIAL PLANO | D37: 0° | E37: 15° | F37: 30° | G37: 45° | H37: 60° | I37: 75° | J37: 90° | K37: 105° | L37: 120° | M37: 135° | N37: 150° | O37: 165° | P37: 180° | Q37: 195° | R37: 210° | S37: 225° | T37: 240° | U37: 255° | V37: 270° | W37: 285° | X37: 300° | Y37: 315° | Z37: 330° | AA37: 345° | AB37: RADIAL PLANO | AD37: 0° | AE37: 15° | AF37: 30° | AG37: 45° | AH37: 60° | AI37: 75° | AJ37: 90° | AK37: 105° | AL37: 120° | AM37: 135° | AN37: 150° | AO37: 165° | AP37: 180° | AQ37: 195° | AR37: 210° | AS37: 225° | AT37: 240° | AU37: 255° | AV37: 270° | AW37: 285° | AX37: 300° | AY37: 315° | AZ37: 330° | BA37: 345°
B39: HORIZONTAL | AB39: HORIZONTAL
B40: VERTICAL | AB40: VERTICAL
B41: PATRON DE RADIACION HORIZONTAL | O41: PATRON DE RADIACION VERTICAL | AB41: PATRON DE RADIACION HORIZONTAL | AO41: PATRON DE RADIACION VERTICAL
B60: 1 | AB60: 1
B61: PATRONES DE RADIACION DE ANTENA | AB61: PATRONES DE RADIACION DE ANTENA
B62: MARCA: | J62: MODELO: | S62: TIPO: | AB62: MARCA: | AJ62: MODELO: | AS62: TIPO:
B63: Ingrese los valores de ganancia ( dBd ) para cada radial. | AB63: Ingrese los valores de ganancia ( dBd ) para cada radial.
B64: RADIAL PLANO | D64: 0° | E64: 15° | F64: 30° | G64: 45° | H64: 60° | I64: 75° | J64: 90° | K64: 105° | L64: 120° | M64: 135° | N64: 150° | O64: 165° | P64: 180° | Q64: 195° | R64: 210° | S64: 225° | T64: 240° | U64: 255° | V64: 270° | W64: 285° | X64: 300° | Y64: 315° | Z64: 330° | AA64: 345° | AB64: RADIAL PLANO | AD64: 0° | AE64: 15° | AF64: 30° | AG64: 45° | AH64: 60° | AI64: 75° | AJ64: 90° | AK64: 105° | AL64: 120° | AM64: 135° | AN64: 150° | AO64: 165° | AP64: 180° | AQ64: 195° | AR64: 210° | AS64: 225° | AT64: 240° | AU64: 255° | AV64: 270° | AW64: 285° | AX64: 300° | AY64: 315° | AZ64: 330° | BA64: 345°
B66: HORIZONTAL | AB66: HORIZONTAL
B67: VERTICAL | AB67: VERTICAL
B68: PATRON DE RADIACION HORIZONTAL | O68: PATRON DE RADIACION VERTICAL | AB68: PATRON DE RADIACION HORIZONTAL | AO68: PATRON DE RADIACION VERTICAL
B87: 1 | AB87: 1
B88: PATRONES DE RADIACION DE ANTENA | AB88: PATRONES DE RADIACION DE ANTENA
B89: MARCA: | J89: MODELO: | S89: TIPO: | AB89: MARCA: | AJ89: MODELO: | AS89: TIPO:
B90: Ingrese los valores de ganancia ( dBd ) para cada radial. | AB90: Ingrese los valores de ganancia ( dBd ) para cada radial.
B91: RADIAL PLANO | D91: 0° | E91: 15° | F91: 30° | G91: 45° | H91: 60° | I91: 75° | J91: 90° | K91: 105° | L91: 120° | M91: 135° | N91: 150° | O91: 165° | P91: 180° | Q91: 195° | R91: 210° | S91: 225° | T91: 240° | U91: 255° | V91: 270° | W91: 285° | X91: 300° | Y91: 315° | Z91: 330° | AA91: 345° | AB91: RADIAL PLANO | AD91: 0° | AE91: 15° | AF91: 30° | AG91: 45° | AH91: 60° | AI91: 75° | AJ91: 90° | AK91: 105° | AL91: 120° | AM91: 135° | AN91: 150° | AO91: 165° | AP91: 180° | AQ91: 195° | AR91: 210° | AS91: 225° | AT91: 240° | AU91: 255° | AV91: 270° | AW91: 285° | AX91: 300° | AY91: 315° | AZ91: 330° | BA91: 345°
B93: HORIZONTAL | AB93: HORIZONTAL
B94: VERTICAL | AB94: VERTICAL
B95: PATRON DE RADIACION HORIZONTAL | O95: PATRON DE RADIACION VERTICAL | AB95: PATRON DE RADIACION HORIZONTAL | AO95: PATRON DE RADIACION VERTICAL
B114: 1 | AB114: 1
B115: PATRONES DE RADIACION DE ANTENA | AB115: PATRONES DE RADIACION DE ANTENA
B116: MARCA: | J116: MODELO: | S116: TIPO: | AB116: MARCA: | AJ116: MODELO: | AS116: TIPO:
B117: Ingrese los valores de ganancia ( dBd ) para cada radial. | AB117: Ingrese los valores de ganancia ( dBd ) para cada radial.
B118: RADIAL PLANO | D118: 0° | E118: 15° | F118: 30° | G118: 45° | H118: 60° | I118: 75° | J118: 90° | K118: 105° | L118: 120° | M118: 135° | N118: 150° | O118: 165° | P118: 180° | Q118: 195° | R118: 210° | S118: 225° | T118: 240° | U118: 255° | V118: 270° | W118: 285° | X118: 300° | Y118: 315° | Z118: 330° | AA118: 345° | AB118: RADIAL PLANO | AD118: 0° | AE118: 15° | AF118: 30° | AG118: 45° | AH118: 60° | AI118: 75° | AJ118: 90° | AK118: 105° | AL118: 120° | AM118: 135° | AN118: 150° | AO118: 165° | AP118: 180° | AQ118: 195° | AR118: 210° | AS118: 225° | AT118: 240° | AU118: 255° | AV118: 270° | AW118: 285° | AX118: 300° | AY118: 315° | AZ118: 330° | BA118: 345°
B120: HORIZONTAL | AB120: HORIZONTAL
B121: VERTICAL | AB121: VERTICAL
B122: PATRON DE RADIACION HORIZONTAL | O122: PATRON DE RADIACION VERTICAL | AB122: PATRON DE RADIACION HORIZONTAL | AO122: PATRON DE RADIACION VERTICAL
B141: 1 | AB141: 1
B142: PATRONES DE RADIACION DE ANTENA | AB142: PATRONES DE RADIACION DE ANTENA
B143: MARCA: | J143: MODELO: | S143: TIPO: | AB143: MARCA: | AJ143: MODELO: | AS143: TIPO:
B144: Ingrese los valores de ganancia ( dBd ) para cada radial. | AB144: Ingrese los valores de ganancia ( dBd ) para cada radial.
B145: RADIAL PLANO | D145: 0° | E145: 15° | F145: 30° | G145: 45° | H145: 60° | I145: 75° | J145: 90° | K145: 105° | L145: 120° | M145: 135° | N145: 150° | O145: 165° | P145: 180° | Q145: 195° | R145: 210° | S145: 225° | T145: 240° | U145: 255° | V145: 270° | W145: 285° | X145: 300° | Y145: 315° | Z145: 330° | AA145: 345° | AB145: RADIAL PLANO | AD145: 0° | AE145: 15° | AF145: 30° | AG145: 45° | AH145: 60° | AI145: 75° | AJ145: 90° | AK145: 105° | AL145: 120° | AM145: 135° | AN145: 150° | AO145: 165° | AP145: 180° | AQ145: 195° | AR145: 210° | AS145: 225° | AT145: 240° | AU145: 255° | AV145: 270° | AW145: 285° | AX145: 300° | AY145: 315° | AZ145: 330° | BA145: 345°
B147: HORIZONTAL | AB147: HORIZONTAL
B148: VERTICAL | AB148: VERTICAL
B149: PATRON DE RADIACION HORIZONTAL | O149: PATRON DE RADIACION VERTICAL | AB149: PATRON DE RADIACION HORIZONTAL | AO149: PATRON DE RADIACION VERTICAL

Sheet FO-DRE-04
B1: Código: FO-DRE-04 Versión: 1.0 | D1: FORMULARIO PARA INFORMACION DE EQUIPOS
B3: 1 | C3: 2 | D3: 3 | E3: 4 | F3: 5 | G3: 6 | I3: 7 | K3: 8 | L3: 9 | M3: 10
B4: CODIGO DEL EQUIPO | C4: TIPO DE ESTACION | D4: MARCA | E4: MODELO | F4: SEPARACION ENTRE Tx Y Rx [MHz] | G4: POTENCIA MAXIMA DE SALIDA | I4: RANGO DE FRECUENCIAS [MHz] | K4: TIPO DE MODULACION | L4: SENSIBILIDAD [dBm] | M4: MAXIMA DESVIACION DE FRECUENCIA [kHz]
G5: [W] | H5: [dBm] | I5: FREC. INICIAL | J5: FREC. FINAL
A6: =IF(B6="","",B6) -> E1 | B6: E1 | C6: FIJA | D6: ICOM | E6: IC-78 | F6: 0 | G6: 100 | H6: =IF(G6="","",10*LOG10(G6*1000)) -> 50 | I6: 0.5 | J6: 29.9 | K6: AM | L6: 10
A7: =IF(B7="","",B7) -> E2 | B7: E2 | C7: FIJA | D7: ICOM | E7: IC-78 | F7: 0 | G7: 40 | H7: =IF(G7="","",10*LOG10(G7*1000)) -> 46.02059991 | I7: 0.5 | J7: 29.9 | K7: AM | L7: 10
A8: E3 | B8: E3 | C8: FIJA | D8: ICOM | E8: IC-78 | F8: 0 | G8: 40 | H8: 46.02059991 | I8: 0.5 | J8: 29.9 | K8: AM | L8: 10
A71: =IF(B71="","",B71) ->  | H71: =IF(G71="","",10*LOG10(G71*1000)) -> 

Sheet FO-DRE-05
A1: Código: FO-DRE-05 Versión: 1.0 | C1: FORMULARIO PARA SERVICIO MOVIL TERRESTRE Y SERVICIO MOVIL AERONAUTICO | T1: FORMULARIO PARA INFORMACION DE LA INFRAESTRUCTURA DEL SISTEMA DE RADIOCOMUNICACIONES | AI1: FORMULARIO PARA INFORMACION DE EQUIPOS | AN1: FORMULARIO PARA INFORMACION DE ANTENAS | BH1: FORMULARIO PARA ESTUDIO TECNICO DE EMISIONES DE RNI (CALCULO DE LA DISTANCIA DE SEGURIDAD) RESOLUCION 01-01-CONATEL-2005 | BT1: RC-15A Elab: DRE Versión: 02
C3: (SISTEMAS DE RADIOS DE DOS VIAS (RD,MA)) HF - VHF - UHF
BH4: NOMBRE DE LA EMPRESA: | BT4: 1) Cod. Cont:
A5: CARACTERISTICAS DE OPERACION POR CIRCUITO | N5: CARACTERISTICAS DE LAS ESTACIONES | T5: CARACTERISTICAS DE LAS ESTRUCTURAS | AI5: CARACTERISTICAS DE LOS EQUIPOS | AN5: CARACTERISTICAS DE LAS ANTENAS | BD5: No | BE5: CODIGO DE ESTRUCTURA ASOCIADA | BF5: SOBREPASA LÍMITES POBLACIONAL | BG5: SOBREPASA LÍMITES OCUPACIONAL | BH5: ESTACION REPETIDORA / FIJA | BT5: =TODAY() -> 2016-08-18 | BX5: Las frecuencias bajo 10 MHz, no se puede determinar la distancia debido a que los valores de Slim no están determinados, por lo tanto, las zonas de exposición poblacional y ocupacional serán determinadas por la ARCOTEL durante el control. (Ver Anexo 3, Procedimiento de Mediciones). RESOLUCION 01-01-CONATEL-2005
A7: 1 | B7: 2 | C7: 3 | D7: 4 | E7: 5 | G7: 6 | H7: 7 | I7: 8 | J7: 9 | K7: 10 | L7: 11 | M7: 12 | N7: 13 | O7: 14 | P7: 15 | Q7: 16 | R7: 17 | S7: 18 | T7: 19 | U7: 20 | V7: 21 | W7: 22 | X7: 23 | Y7: 24 | Z7: 25 | AA7: 26 COORDENADAS WGS84 | AI7: 27 | AJ7: 28 | AK7: 29 | AL7: 30 | AM7: 31 | AN7: 32 | AO7: 33 | AP7: 34 | AQ7: 35 | AS7: 36 | AT7: 37 | AU7: 38 | AV7: 39 | AW7: 40 | AX7: 41 | BH7: Slím A CONSIDERAR | BJ7: CALCULO DE R2 | BO7: CÁLCULO DEL PIRE | BR7: Slím TEÓRICO (W/m2)
A8: NUMERO DE CONTRATO A MODIFICAR / RENOVAR | B8: No. CIRCUITO | C8: BANDA DE FRECUENCIAS (MHZ) | D8: MODO DE OPERACION: | E8: RANGO EN LA BANDA REQUERIDA: (MHZ) | G8: SEP. Tx / Rx (MHz): | H8: HORARIO DE OPERACION | I8: No. DE FRECUENCIAS POR CIRCUITO: | J8: POTENCIA DE OPERACIÓN (Watts): | K8: ANCHURA DE BANDA (kHz): | L8: CLASE DE EMISIÓN: | M8: AREAS DE OPERACIÓN PROVINCIA(S) / CIUDAD(ES): | N8: INDICATIVO | O8: AC. (A,M,I,E) | P8: CODIGO DE ESTRUCTURA ASOCIADA | Q8: CODIGO DE EQUIPO ASOCIADO | R8: CODIGO DE ANTENA ASOCIADA | S8: ALTURA EFECTIVA DE ANTENA (m) | T8: TIPO DE ESTRUCTURA DE SOPORTE | U8: ALTURA DE LA ESTRUCTURA s.n.m. (m): | V8: ALTURA DE LA ESTRUCTURA (BASE-CIMA) (m): | W8: PROVINCIA | X8: CANTÓN | Y8: CIUDAD | Z8: DIRECCIÓN (Localidad / Calle y No.) | AA8: LATITUD | AE8: LONGITUD | AI8: TIPO DE ESTACIÓN | AJ8: MARCA | AK8: MODELO | AL8: POTENCIA MAXIMA DEL EQUIPO (Watts) | AM8: SENSIBILIDAD (mV) o (dBm) | AN8: MARCA | AO8: MODELO | AP8: TIPO | AQ8: RANGO DE OPERACIÓN [MHz] | AS8: IMPEDANCIA (ohmios) | AT8: POLARIZACION | AU8: GANANCIA (dBd) | AV8: AZIMUT DE RADIACION MAXIMA (°) | AW8: ANGULO DE ELEVACION (°) | AX8: ALTURA BASE-ANTENA (m) | BR8: Distancia (m)
E9: TX | F9: RX | AA9: GRADOS | AB9: MINUTOS | AC9: SEGUNDOS | AD9: N/S | AE9: GRADOS | AF9: MINUTOS | AG9: SEGUNDOS | AH9: W | AQ9: FREC. INICIAL | AR9: FREC. FINAL | BF9: Estación de Tx | BG9: Estación de Tx | BH9: Slím OCUPACIONAL (W/m2) | BI9: Slím POBLACIONAL (W/m2) | BJ9: 2 | BK9: 5 | BL9: 10 | BM9: 20 | BN9: 50 | BO9: Pmax (W) | BP9: Gmax | BQ9: PIRE (W) | BR9: 2 | BS9: 5 | BT9: 10 | BU9: 20 | BV9: 50
B10: C1 | C10: HF | D10: SIM | E10: 5 | F10: 7 | H10: 6H00 - 18H00 | I10: =IF(D10="","",IF(D10="SIM",1,2)) -> 1 | J10: 100 | K10: 5 kHz | L10: 3K0OJ3EJN | M10: NIVEL NACIONAL | N10: F1 | O10: A | P10: S1 | Q10: E1 | R10: A1 | S10: 1541 | T10: =IF($P10="","",VLOOKUP($P10,'FO-DRE-01'!$A$7:$U$347,18,FALSE)) -> TORRE NO AUTOSOPORTADA | U10: =IF($P10="","",VLOOKUP($P10,'FO-DRE-01'!$A$7:$U$300,16,FALSE)) -> 252 | V10: =IF($P10="","",VLOOKUP($P10,'FO-DRE-01'!$A$7:$U$300,17,FALSE)) -> 12 | W10: =IF($P10="","",VLOOKUP($P10,'FO-DRE-01'!$A$7:$U$300,3,FALSE)) -> ORELLANA | X10: =IF($P10="","",VLOOKUP($P10,'FO-DRE-01'!$A$7:$U$300,4,FALSE)) -> ORELLANA | Y10: =IF($P10="","",VLOOKUP($P10,'FO-DRE-01'!$A$7:$U$300,5,FALSE)) -> NUEVA ESPERANZA | Z10: =IF($P10="","",VLOOKUP($P10,'FO-DRE-01'!$A$7:$U$300,7,FALSE)) -> NUEVA ESPERANZA | AA10: =IF($P10="","",VLOOKUP($P10,'FO-DRE-01'!$A$7:$U$300,8,FALSE)) -> 0 | AB10: =IF($P10="","",VLOOKUP($P10,'FO-DRE-01'!$A$7:$U$300,9,FALSE)) -> 29 | AC10: =IF($P10="","",VLOOKUP($P10,'FO-DRE-01'!$A$7:$U$300,10,FALSE)) -> 11.83 | AD10: =IF($P10="","",VLOOKUP($P10,'FO-DRE-01'!$A$7:$U$300,11,FALSE)) -> S | AE10: =IF($P10="","",VLOOKUP($P10,'FO-DRE-01'!$A$7:$U$300,12,FALSE)) -> 76 | AF10: =IF($P10="","",VLOOKUP($P10,'FO-DRE-01'!$A$7:$U$300,13,FALSE)) -> 46 | AG10: =IF($P10="","",VLOOKUP($P10,'FO-DRE-01'!$A$7:$U$300,14,FALSE)) -> 20.85 | AH10: W | AI10: =IF(Q10="","",VLOOKUP($Q10,'FO-DRE-04'!$A$6:$M$100,3,FALSE)) -> FIJA | AJ10: =IF(Q10="","",VLOOKUP($Q10,'FO-DRE-04'!$A$6:$M$100,4,FALSE)) -> ICOM | AK10: =IF(Q10="","",VLOOKUP($Q10,'FO-DRE-04'!$A$6:$M$100,5,FALSE)) -> IC-78 | AL10: =IF(Q10="","",VLOOKUP($Q10,'FO-DRE-04'!$A$6:$M$100,7,FALSE)) -> 100 | AM10: =IF(Q10="","",VLOOKUP($Q10,'FO-DRE-04'!$A$6:$M$100,11,FALSE)) -> AM | AN10: =IF($R10="","",VLOOKUP($R10,'FO-DRE-02'!$A$6:$N$100,2,FALSE)) -> NACIONAL | AO10: =IF($R10="","",VLOOKUP($R10,'FO-DRE-02'!$A$5:$J$100,3,FALSE)) -> CASERO | AP10: =IF($R10="","",VLOOKUP($R10,'FO-DRE-02'!$A$5:$J$100,6,FALSE)) -> DIPOLO | AQ10: =IF($R10="","",VLOOKUP($R10,'FO-DRE-02'!$A$5:$J$100,4,FALSE)) -> 1.6 | AR10: =IF($R10="","",VLOOKUP($R10,'FO-DRE-02'!$A$5:$J$100,5,FALSE)) -> 29.9 | AS10: =IF($R10="","",VLOOKUP($R10,'FO-DRE-02'!$A$5:$J$100,6,FALSE)) -> DIPOLO | AT10: =IF($R10="","",VLOOKUP($R10,'FO-DRE-02'!$A$5:$J$100,7,FALSE)) -> VERTICAL | AU10: =IF($R10="","",VLOOKUP($R10,'FO-DRE-02'!$A$5:$J$100,9,FALSE)) -> 2.15 | AV10: =IF($R10="","",VLOOKUP($R10,'FO-DRE-02'!$A$5:$M$100,11,FALSE)) -> 12 | AW10: =IF($R10="","",VLOOKUP($R10,'FO-DRE-02'!$A$5:$M$100,12,FALSE)) -> 3 | AX10: =IF($R10="","",VLOOKUP($R10,'FO-DRE-02'!$A$5:$M$100,13,FALSE)) -> 5 | AY10: =CONCATENATE("0",AA10,"°",IF(AB10<10,CONCATENATE("0",AB10),AB10),"'",IF(ROUND(AC10,0)=AC10,IF(AC10<10,CONCATENATE("0",AC10,".00"),CONCATENATE(AC10,".00")),IF(ROUND(AC10*10,0)=AC10*10,IF(AC10<10,CONCATENATE("0",AC10,"0"),CONCATENATE(AC10,"0")),IF(AC10<10,CONCATENATE("0",AC10),AC10))),"''",AD10) -> 00°29'11,83''S | AZ10: =CONCATENATE(AE10,"°",IF(AF10<10,CONCATENATE("0",AF10),AF10),"'",IF(ROUND(AG10,0)=AG10,IF(AG10<10,CONCATENATE("0",AG10,".00"),CONCATENATE(AG10,".00")),IF(ROUND(AG10*10,0)=AG10*10,IF(AG10<10,CONCATENATE("0",AG10,"0"),CONCATENATE(AG10,"0")),IF(AG10<10,CONCATENATE("0",AG10),AG10))),"''",AH10) -> 76°46'20,85''W | BA10: =IF(J10="902 - 928",900,IF(J10="2400 - 2483.5",2400,5000)) -> 5000 | BD10: 1 | BE10: =IF(P10="","",P10) -> S1 | BF10: =IF(OR($E10="",$AL10="",$AU10=""),"F/D",IF(BR10>BH10,"SI","")) -> SI | BG10: =IF(OR($E10="",$AL10="",$AU10=""),"F/D",IF(BR10>BI10,"SI","")) -> SI | BH10: =IF(D10="","",IF(AND(10<F10,F10<=400),10,IF(AND(400<F10,F10<=2000),(F10/40),IF(AND(2000<F10,F10<=300000),50,0)))) -> 0 | BI10: =IF(E10="","",IF(AND(10<F10,F10<=400),2,IF(AND(400<F10,F10<=2000),(F10/200),IF(AND(2000<F10,F10<=300000),10,0)))) -> 0 | BJ10: =IF(J10="","",SQRT(POWER($BJ$9,2)+POWER((AX10-1.5),2))) -> 4.031128874 | BK10: =IF(J10="","",SQRT(POWER($BK$9,2)+POWER((AX10-1.5),2))) -> 6.103277808 | BL10: =IF(J10="","",SQRT(POWER($BL$9,2)+POWER((AX10-1.5),2))) -> 10.59481005 | BM10: =IF(J10="","",SQRT(POWER($BM$9,2)+POWER((AX10-1.5),2))) -> 20.3039405 | BN10: =IF(J10="","",SQRT(POWER($BN$9,2)+POWER((AX10-1.5),2))) -> 50.1223503 | BO10: =IF(OR(AI10="MOVIL",AI10="PORTATIL"),"",IF(AL10="","",AL10)) -> 100 | BP10: =IF(J10="","",POWER(10,(AU10+2.15)/10)) -> 2.691534804 | BQ10: =IF(OR(BO10="",BP10=""),"",BP10*BO10) -> 269.1534804 | BR10: =IF(J10="","",$BQ10/(PI()*BJ10^2)) -> 5.272259305 | BS10: =IF(J10="","",$BQ10/(PI()*BK10^2)) -> 2.299978892 | BT10: =IF(J10="","",$BQ10/(PI()*BL10^2)) -> 0.7632446656 | BU10: =IF(J10="","",$BQ10/(PI()*BM10^2)) -> 0.2078210157 | BV10: =IF(J10="","",$BQ10/(PI()*BN10^2)) -> 0.03410258283
B11: C1 | C11: HF | D11: SIM | E11: 5 | F11: 7 | H11: 6H00 - 18H00 | I11: 1 | J11: 100 | K11: 5 kHz | L11: 3K0OJ3EJN | M11: NIVEL NACIONAL | N11: F2 | O11: A | P11: S2 | Q11: E1 | R11: A2 | T11: =IF($P11="","",VLOOKUP($P11,'FO-DRE-01'!$A$7:$U$347,18,FALSE)) -> TORRE NO AUTOSOPORTADA | U11: =IF($P11="","",VLOOKUP($P11,'FO-DRE-01'!$A$7:$U$300,16,FALSE)) -> 251 | V11: =IF($P11="","",VLOOKUP($P11,'FO-DRE-01'!$A$7:$U$300,17,FALSE)) -> 12 | W11: =IF($P11="","",VLOOKUP($P11,'FO-DRE-01'!$A$7:$U$300,3,FALSE)) -> ORELLANA | X11: =IF($P11="","",VLOOKUP($P11,'FO-DRE-01'!$A$7:$U$300,4,FALSE)) -> ORELLANA | Y11: =IF($P11="","",VLOOKUP($P11,'FO-DRE-01'!$A$7:$U$300,5,FALSE)) -> NUEVA ESPERANZA | Z11: =IF($P11="","",VLOOKUP($P11,'FO-DRE-01'!$A$7:$U$300,7,FALSE)) -> LOS REYES | AA11: =IF($P11="","",VLOOKUP($P11,'FO-DRE-01'!$A$7:$U$300,8,FALSE)) -> 0 | AB11: =IF($P11="","",VLOOKUP($P11,'FO-DRE-01'!$A$7:$U$300,9,FALSE)) -> 29 | AC11: =IF($P11="","",VLOOKUP($P11,'FO-DRE-01'!$A$7:$U$300,10,FALSE)) -> 29.77 | AD11: =IF($P11="","",VLOOKUP($P11,'FO-DRE-01'!$A$7:$U$300,11,FALSE)) -> S | AE11: =IF($P11="","",VLOOKUP($P11,'FO-DRE-01'!$A$7:$U$300,12,FALSE)) -> 76 | AF11: =IF($P11="","",VLOOKUP($P11,'FO-DRE-01'!$A$7:$U$300,13,FALSE)) -> 46 | AG11: =IF($P11="","",VLOOKUP($P11,'FO-DRE-01'!$A$7:$U$300,14,FALSE)) -> 34.4 | AH11: W | AI11: =IF(Q11="","",VLOOKUP($Q11,'FO-DRE-04'!$A$6:$M$100,3,FALSE)) -> FIJA | AJ11: =IF(Q11="","",VLOOKUP($Q11,'FO-DRE-04'!$A$6:$M$100,4,FALSE)) -> ICOM | AK11: =IF(Q11="","",VLOOKUP($Q11,'FO-DRE-04'!$A$6:$M$100,5,FALSE)) -> IC-78 | AL11: =IF(Q11="","",VLOOKUP($Q11,'FO-DRE-04'!$A$6:$M$100,7,FALSE)) -> 100 | AM11: =IF(Q11="","",VLOOKUP($Q11,'FO-DRE-04'!$A$6:$M$100,11,FALSE)) -> AM | AN11: =IF($R11="","",VLOOKUP($R11,'FO-DRE-02'!$A$6:$N$100,2,FALSE)) -> NACIONAL | AO11: =IF($R11="","",VLOOKUP($R11,'FO-DRE-02'!$A$5:$J$100,3,FALSE)) -> CASERO | AP11: =IF($R11="","",VLOOKUP($R11,'FO-DRE-02'!$A$5:$J$100,6,FALSE)) -> DIPOLO | AQ11: =IF($R11="","",VLOOKUP($R11,'FO-DRE-02'!$A$5:$J$100,4,FALSE)) -> 1.6 | AR11: =IF($R11="","",VLOOKUP($R11,'FO-DRE-02'!$A$5:$J$100,5,FALSE)) -> 29.9 | AS11: =IF($R11="","",VLOOKUP($R11,'FO-DRE-02'!$A$5:$J$100,6,FALSE)) -> DIPOLO | AT11: =IF($R11="","",VLOOKUP($R11,'FO-DRE-02'!$A$5:$J$100,7,FALSE)) -> HORIZONTAL | AU11: =IF($R11="","",VLOOKUP($R11,'FO-DRE-02'!$A$5:$J$100,9,FALSE)) -> 2.15 | AV11: =IF($R11="","",VLOOKUP($R11,'FO-DRE-02'!$A$5:$M$100,11,FALSE)) -> 12 | AW11: =IF($R11="","",VLOOKUP($R11,'FO-DRE-02'!$A$5:$M$100,12,FALSE)) -> 3 | AX11: =IF($R11="","",VLOOKUP($R11,'FO-DRE-02'!$A$5:$M$100,13,FALSE)) -> 12 | AY11: =CONCATENATE("0",#REF!,"°",IF(#REF!<10,CONCATENATE("0",#REF!),#REF!),"'",IF(ROUND(#REF!,0)=#REF!,IF(#REF!<10,CONCATENATE("0",#REF!,".00"),CONCATENATE(#REF!,".00")),IF(ROUND(#REF!*10,0)=#REF!*10,IF(#REF!<10,CONCATENATE("0",#REF!,"0"),CONCATENATE(#REF!,"0")),IF(#REF!<10,CONCATENATE("0",#REF!),#REF!))),"''",#REF!) ->  | AZ11: =CONCATENATE(#REF!,"°",IF(#REF!<10,CONCATENATE("0",#REF!),#REF!),"'",IF(ROUND(#REF!,0)=#REF!,IF(#REF!<10,CONCATENATE("0",#REF!,".00"),CONCATENATE(#REF!,".00")),IF(ROUND(#REF!*10,0)=#REF!*10,IF(#REF!<10,CONCATENATE("0",#REF!,"0"),CONCATENATE(#REF!,"0")),IF(#REF!<10,CONCATENATE("0",#REF!),#REF!))),"''",#REF!) ->  | BA11: =IF(#REF!="902 - 928",900,IF(#REF!="2400 - 2483.5",2400,5000)) ->  | BD11: 2 | BE11: =IF(P11="","",P11) -> S2 | BF11: =IF(OR($E11="",$AL11="",$AU11=""),"F/D",IF(BR11>BH11,"SI","")) -> SI | BG11: =IF(OR($E11="",$AL11="",$AU11=""),"F/D",IF(BR11>BI11,"SI","")) -> SI | BH11: 0 | BI11: 0 | BJ11: =IF(J11="","",SQRT(POWER($BJ$9,2)+POWER((AX11-1.5),2))) -> 10.68877916 | BK11: =IF(J11="","",SQRT(POWER($BK$9,2)+POWER((AX11-1.5),2))) -> 11.62970335 | BL11: =IF(J11="","",SQRT(POWER($BL$9,2)+POWER((AX11-1.5),2))) -> 14.5 | BM11: =IF(J11="","",SQRT(POWER($BM$9,2)+POWER((AX11-1.5),2))) -> 22.588714 | BN11: 51.09060579 | BO11: =IF(OR(AI11="MOVIL",AI11="PORTATIL"),"",IF(AL11="","",AL11)) -> 100 | BP11: =IF(J11="","",POWER(10,(AU11+2.15)/10)) -> 2.691534804 | BQ11: =IF(OR(BO11="",BP11=""),"",BP11*BO11) -> 269.1534804 | BR11: =IF(J11="","",$BQ11/(PI()*BJ11^2)) -> 0.7498837086 | BS11: =IF(J11="","",$BQ11/(PI()*BK11^2)) -> 0.6334507483 | BT11: =IF(J11="","",$BQ11/(PI()*BL11^2)) -> 0.4074873423 | BU11: =IF(J11="","",$BQ11/(PI()*BM11^2)) -> 0.1679063473 | BV11: =IF(J11="","",$BQ11/(PI()*BN11^2)) -> 0.03282222535
B12: C1 | C12: HF | D12: SIM | E12: 5 | F12: 7 | H12: 6H00 - 18H00 | I12: 1 | J12: 100 | K12: 5 kHz | L12: 3K0OJ3EJN | M12: NIVEL NACIONAL | N12: F3 | O12: A | P12: S3 | Q12: E1 | R12: A3 | T12: =IF($P12="","",VLOOKUP($P12,'FO-DRE-01'!$A$7:$U$347,18,FALSE)) -> TORRE NO AUTOSOPORTADA | U12: =IF($P12="","",VLOOKUP($P12,'FO-DRE-01'!$A$7:$U$300,16,FALSE)) -> 286 | V12: =IF($P12="","",VLOOKUP($P12,'FO-DRE-01'!$A$7:$U$300,17,FALSE)) -> 12 | W12: =IF($P12="","",VLOOKUP($P12,'FO-DRE-01'!$A$7:$U$300,3,FALSE)) -> ORELLANA | X12: =IF($P12="","",VLOOKUP($P12,'FO-DRE-01'!$A$7:$U$300,4,FALSE)) -> ORELLANA | Y12: =IF($P12="","",VLOOKUP($P12,'FO-DRE-01'!$A$7:$U$300,5,FALSE)) -> NUEVA ESPERANZA | Z12: =IF($P12="","",VLOOKUP($P12,'FO-DRE-01'!$A$7:$U$300,7,FALSE)) -> YAWAPARE | AA12: =IF($P12="","",VLOOKUP($P12,'FO-DRE-01'!$A$7:$U$300,8,FALSE)) -> 0 | AB12: =IF($P12="","",VLOOKUP($P12,'FO-DRE-01'!$A$7:$U$300,9,FALSE)) -> 28 | AC12: =IF($P12="","",VLOOKUP($P12,'FO-DRE-01'!$A$7:$U$300,10,FALSE)) -> 9.03 | AD12: =IF($P12="","",VLOOKUP($P12,'FO-DRE-01'!$A$7:$U$300,11,FALSE)) -> S | AE12: =IF($P12="","",VLOOKUP($P12,'FO-DRE-01'!$A$7:$U$300,12,FALSE)) -> 76 | AF12: =IF($P12="","",VLOOKUP($P12,'FO-DRE-01'!$A$7:$U$300,13,FALSE)) -> 47 | AG12: =IF($P12="","",VLOOKUP($P12,'FO-DRE-01'!$A$7:$U$300,14,FALSE)) -> 8.27 | AH12: W | AI12: =IF(Q12="","",VLOOKUP($Q12,'FO-DRE-04'!$A$6:$M$100,3,FALSE)) -> FIJA | AJ12: =IF(Q12="","",VLOOKUP($Q12,'FO-DRE-04'!$A$6:$M$100,4,FALSE)) -> ICOM | AK12: =IF(Q12="","",VLOOKUP($Q12,'FO-DRE-04'!$A$6:$M$100,5,FALSE)) -> IC-78 | AL12: =IF(Q12="","",VLOOKUP($Q12,'FO-DRE-04'!$A$6:$M$100,7,FALSE)) -> 100 | AM12: =IF(Q12="","",VLOOKUP($Q12,'FO-DRE-04'!$A$6:$M$100,11,FALSE)) -> AM | AN12: =IF($R12="","",VLOOKUP($R12,'FO-DRE-02'!$A$6:$N$100,2,FALSE)) -> NACIONAL | AO12: =IF($R12="","",VLOOKUP($R12,'FO-DRE-02'!$A$5:$J$100,3,FALSE)) -> CASERO | AP12: =IF($R12="","",VLOOKUP($R12,'FO-DRE-02'!$A$5:$J$100,6,FALSE)) -> DIPOLO | AQ12: =IF($R12="","",VLOOKUP($R12,'FO-DRE-02'!$A$5:$J$100,4,FALSE)) -> 1.6 | AR12: =IF($R12="","",VLOOKUP($R12,'FO-DRE-02'!$A$5:$J$100,5,FALSE)) -> 29.9 | AS12: =IF($R12="","",VLOOKUP($R12,'FO-DRE-02'!$A$5:$J$100,6,FALSE)) -> DIPOLO | AT12: =IF($R12="","",VLOOKUP($R12,'FO-DRE-02'!$A$5:$J$100,7,FALSE)) -> CIRCULAR | AU12: =IF($R12="","",VLOOKUP($R12,'FO-DRE-02'!$A$5:$J$100,9,FALSE)) -> 2.15 | AV12: =IF($R12="","",VLOOKUP($R12,'FO-DRE-02'!$A$5:$M$100,11,FALSE)) -> 12 | AW12: =IF($R12="","",VLOOKUP($R12,'FO-DRE-02'!$A$5:$M$100,12,FALSE)) -> 3 | AX12: =IF($R12="","",VLOOKUP($R12,'FO-DRE-02'!$A$5:$M$100,13,FALSE)) -> 15 | AY12: 00°28'09,03''S | AZ12: 76°47'08,27''W | BA12: =IF(#REF!="902 - 928",900,IF(#REF!="2400 - 2483.5",2400,5000)) ->  | BD12: 3 | BE12: S3 | BF12: SI | BG12: SI | BH12: 0 | BI12: 0 | BJ12: 13.64734406 | BK12: 14.39618005 | BL12: 16.80029762 | BM12: 24.12985702 | BN12: 51.79044313 | BO12: 100 | BP12: 2.691534804 | BQ12: 269.1534804 | BR12: 0.4599957783 | BS12: 0.4133858321 | BT12: 0.3035401726 | BU12: 0.1471433469 | BV12: 0.03194117391
T13: =IF($P13="","",VLOOKUP($P13,'FO-DRE-01'!$A$7:$U$347,18,FALSE)) ->  | U13: =IF($P13="","",VLOOKUP($P13,'FO-DRE-01'!$A$7:$U$300,16,FALSE)) ->  | V13: =IF($P13="","",VLOOKUP($P13,'FO-DRE-01'!$A$7:$U$300,17,FALSE)) ->  | W13: =IF($P13="","",VLOOKUP($P13,'FO-DRE-01'!$A$7:$U$300,3,FALSE)) ->  | X13: =IF($P13="","",VLOOKUP($P13,'FO-DRE-01'!$A$7:$U$300,4,FALSE)) ->  | Y13: =IF($P13="","",VLOOKUP($P13,'FO-DRE-01'!$A$7:$U$300,5,FALSE)) ->  | Z13: =IF($P13="","",VLOOKUP($P13,'FO-DRE-01'!$A$7:$U$300,7,FALSE)) ->  | AA13: =IF($P13="","",VLOOKUP($P13,'FO-DRE-01'!$A$7:$U$300,8,FALSE)) ->  | AB13: =IF($P13="","",VLOOKUP($P13,'FO-DRE-01'!$A$7:$U$300,9,FALSE)) ->  | AC13: =IF($P13="","",VLOOKUP($P13,'FO-DRE-01'!$A$7:$U$300,10,FALSE)) ->  | AD13: =IF($P13="","",VLOOKUP($P13,'FO-DRE-01'!$A$7:$U$300,11,FALSE)) ->  | AE13: =IF($P13="","",VLOOKUP($P13,'FO-DRE-01'!$A$7:$U$300,12,FALSE)) ->  | AF13: =IF($P13="","",VLOOKUP($P13,'FO-DRE-01'!$A$7:$U$300,13,FALSE)) ->  | AG13: =IF($P13="","",VLOOKUP($P13,'FO-DRE-01'!$A$7:$U$300,14,FALSE)) ->  | AH13: W | AI13: =IF(Q13="","",VLOOKUP($Q13,'FO-DRE-04'!$A$6:$M$100,3,FALSE)) ->  | AJ13: =IF(Q13="","",VLOOKUP($Q13,'FO-DRE-04'!$A$6:$M$100,4,FALSE)) ->  | AK13: =IF(Q13="","",VLOOKUP($Q13,'FO-DRE-04'!$A$6:$M$100,5,FALSE)) ->  | AL13: =IF(Q13="","",VLOOKUP($Q13,'FO-DRE-04'!$A$6:$M$100,7,FALSE)) ->  | AM13: =IF(Q13="","",VLOOKUP($Q13,'FO-DRE-04'!$A$6:$M$100,11,FALSE)) ->  | AN13: =IF($R13="","",VLOOKUP($R13,'FO-DRE-02'!$A$6:$N$100,2,FALSE)) ->  | AO13: =IF($R13="","",VLOOKUP($R13,'FO-DRE-02'!$A$5:$J$100,3,FALSE)) ->  | AP13: =IF($R13="","",VLOOKUP($R13,'FO-DRE-02'!$A$5:$J$100,6,FALSE)) ->  | AQ13: =IF($R13="","",VLOOKUP($R13,'FO-DRE-02'!$A$5:$J$100,4,FALSE)) ->  | AR13: =IF($R13="","",VLOOKUP($R13,'FO-DRE-02'!$A$5:$J$100,5,FALSE)) ->  | AS13: =IF($R13="","",VLOOKUP($R13,'FO-DRE-02'!$A$5:$J$100,6,FALSE)) ->  | AT13: =IF($R13="","",VLOOKUP($R13,'FO-DRE-02'!$A$5:$J$100,7,FALSE)) ->  | AU13: =IF($R13="","",VLOOKUP($R13,'FO-DRE-02'!$A$5:$J$100,9,FALSE)) ->  | AV13: =IF($R13="","",VLOOKUP($R13,'FO-DRE-02'!$A$5:$M$100,11,FALSE)) ->  | AW13: =IF($R13="","",VLOOKUP($R13,'FO-DRE-02'!$A$5:$M$100,12,FALSE)) ->  | AX13: =IF($R13="","",VLOOKUP($R13,'FO-DRE-02'!$A$5:$M$100,13,FALSE)) ->  | BA13: 5000 | BD13: 4 | BF13: F/D | BG13: F/D | BO13: =IF(OR(AI13="MOVIL",AI13="PORTATIL"),"",IF(AL13="","",AL13)) -> 
I14: =IF(D14="","",IF(D14="SIM",1,2)) ->  | T14: =IF($P14="","",VLOOKUP($P14,'FO-DRE-01'!$A$7:$U$347,18,FALSE)) ->  | U14: =IF($P14="","",VLOOKUP($P14,'FO-DRE-01'!$A$7:$U$300,16,FALSE)) ->  | V14: =IF($P14="","",VLOOKUP($P14,'FO-DRE-01'!$A$7:$U$300,17,FALSE)) ->  | W14: =IF($P14="","",VLOOKUP($P14,'FO-DRE-01'!$A$7:$U$300,3,FALSE)) ->  | X14: =IF($P14="","",VLOOKUP($P14,'FO-DRE-01'!$A$7:$U$300,4,FALSE)) ->  | Y14: =IF($P14="","",VLOOKUP($P14,'FO-DRE-01'!$A$7:$U$300,5,FALSE)) ->  | Z14: =IF($P14="","",VLOOKUP($P14,'FO-DRE-01'!$A$7:$U$300,7,FALSE)) ->  | AA14: =IF($P14="","",VLOOKUP($P14,'FO-DRE-01'!$A$7:$U$300,8,FALSE)) ->  | AB14: =IF($P14="","",VLOOKUP($P14,'FO-DRE-01'!$A$7:$U$300,9,FALSE)) ->  | AC14: =IF($P14="","",VLOOKUP($P14,'FO-DRE-01'!$A$7:$U$300,10,FALSE)) ->  | AD14: =IF($P14="","",VLOOKUP($P14,'FO-DRE-01'!$A$7:$U$300,11,FALSE)) ->  | AE14: =IF($P14="","",VLOOKUP($P14,'FO-DRE-01'!$A$7:$U$300,12,FALSE)) ->  | AF14: =IF($P14="","",VLOOKUP($P14,'FO-DRE-01'!$A$7:$U$300,13,FALSE)) ->  | AG14: =IF($P14="","",VLOOKUP($P14,'FO-DRE-01'!$A$7:$U$300,14,FALSE)) ->  | AH14: W | AI14: =IF(Q14="","",VLOOKUP($Q14,'FO-DRE-04'!$A$6:$M$100,3,FALSE)) ->  | AJ14: =IF(Q14="","",VLOOKUP($Q14,'FO-DRE-04'!$A$6:$M$100,4,FALSE)) ->  | AK14: =IF(Q14="","",VLOOKUP($Q14,'FO-DRE-04'!$A$6:$M$100,5,FALSE)) ->  | AL14: =IF(Q14="","",VLOOKUP($Q14,'FO-DRE-04'!$A$6:$M$100,7,FALSE)) ->  | AM14: =IF(Q14="","",VLOOKUP($Q14,'FO-DRE-04'!$A$6:$M$100,11,FALSE)) ->  | AN14: =IF($R14="","",VLOOKUP($R14,'FO-DRE-02'!$A$6:$N$100,2,FALSE)) ->  | AO14: =IF($R14="","",VLOOKUP($R14,'FO-DRE-02'!$A$5:$J$100,3,FALSE)) ->  | AP14: =IF($R14="","",VLOOKUP($R14,'FO-DRE-02'!$A$5:$J$100,6,FALSE)) ->  | AQ14: =IF($R14="","",VLOOKUP($R14,'FO-DRE-02'!$A$5:$J$100,4,FALSE)) ->  | AR14: =IF($R14="","",VLOOKUP($R14,'FO-DRE-02'!$A$5:$J$100,5,FALSE)) ->  | AS14: =IF($R14="","",VLOOKUP($R14,'FO-DRE-02'!$A$5:$J$100,6,FALSE)) ->  | AT14: =IF($R14="","",VLOOKUP($R14,'FO-DRE-02'!$A$5:$J$100,7,FALSE)) ->  | AU14: =IF($R14="","",VLOOKUP($R14,'FO-DRE-02'!$A$5:$J$100,9,FALSE)) ->  | AV14: =IF($R14="","",VLOOKUP($R14,'FO-DRE-02'!$A$5:$M$100,11,FALSE)) ->  | AW14: =IF($R14="","",VLOOKUP($R14,'FO-DRE-02'!$A$5:$M$100,12,FALSE)) ->  | AX14: =IF($R14="","",VLOOKUP($R14,'FO-DRE-02'!$A$5:$M$100,13,FALSE)) ->  | BA14: 5000 | BD14: 5 | BF14: F/D | BG14: F/D
T15: =IF($P15="","",VLOOKUP($P15,'FO-DRE-01'!$A$7:$U$347,18,FALSE)) ->  | U15: =IF($P15="","",VLOOKUP($P15,'FO-DRE-01'!$A$7:$U$300,16,FALSE)) ->  | V15: =IF($P15="","",VLOOKUP($P15,'FO-DRE-01'!$A$7:$U$300,17,FALSE)) ->  | W15: =IF($P15="","",VLOOKUP($P15,'FO-DRE-01'!$A$7:$U$300,3,FALSE)) ->  | X15: =IF($P15="","",VLOOKUP($P15,'FO-DRE-01'!$A$7:$U$300,4,FALSE)) ->  | Y15: =IF($P15="","",VLOOKUP($P15,'FO-DRE-01'!$A$7:$U$300,5,FALSE)) ->  | Z15: =IF($P15="","",VLOOKUP($P15,'FO-DRE-01'!$A$7:$U$300,7,FALSE)) ->  | AA15: =IF($P15="","",VLOOKUP($P15,'FO-DRE-01'!$A$7:$U$300,8,FALSE)) ->  | AB15: =IF($P15="","",VLOOKUP($P15,'FO-DRE-01'!$A$7:$U$300,9,FALSE)) ->  | AC15: =IF($P15="","",VLOOKUP($P15,'FO-DRE-01'!$A$7:$U$300,10,FALSE)) ->  | AD15: =IF($P15="","",VLOOKUP($P15,'FO-DRE-01'!$A$7:$U$300,11,FALSE)) ->  | AE15: =IF($P15="","",VLOOKUP($P15,'FO-DRE-01'!$A$7:$U$300,12,FALSE)) ->  | AF15: =IF($P15="","",VLOOKUP($P15,'FO-DRE-01'!$A$7:$U$300,13,FALSE)) ->  | AG15: =IF($P15="","",VLOOKUP($P15,'FO-DRE-01'!$A$7:$U$300,14,FALSE)) ->  | AH15: W | AI15: =IF(Q15="","",VLOOKUP($Q15,'FO-DRE-04'!$A$6:$M$100,3,FALSE)) ->  | AJ15: =IF(Q15="","",VLOOKUP($Q15,'FO-DRE-04'!$A$6:$M$100,4,FALSE)) ->  | AK15: =IF(Q15="","",VLOOKUP($Q15,'FO-DRE-04'!$A$6:$M$100,5,FALSE)) ->  | AL15: =IF(Q15="","",VLOOKUP($Q15,'FO-DRE-04'!$A$6:$M$100,7,FALSE)) ->  | AM15: =IF(Q15="","",VLOOKUP($Q15,'FO-DRE-04'!$A$6:$M$100,11,FALSE)) ->  | AN15: =IF($R15="","",VLOOKUP($R15,'FO-DRE-02'!$A$6:$N$100,2,FALSE)) ->  | AO15: =IF($R15="","",VLOOKUP($R15,'FO-DRE-02'!$A$5:$J$100,3,FALSE)) ->  | AP15: =IF($R15="","",VLOOKUP($R15,'FO-DRE-02'!$A$5:$J$100,6,FALSE)) ->  | AQ15: =IF($R15="","",VLOOKUP($R15,'FO-DRE-02'!$A$5:$J$100,4,FALSE)) ->  | AR15: =IF($R15="","",VLOOKUP($R15,'FO-DRE-02'!$A$5:$J$100,5,FALSE)) ->  | AS15: =IF($R15="","",VLOOKUP($R15,'FO-DRE-02'!$A$5:$J$100,6,FALSE)) ->  | AT15: =IF($R15="","",VLOOKUP($R15,'FO-DRE-02'!$A$5:$J$100,7,FALSE)) ->  | AU15: =IF($R15="","",VLOOKUP($R15,'FO-DRE-02'!$A$5:$J$100,9,FALSE)) ->  | AV15: =IF($R15="","",VLOOKUP($R15,'FO-DRE-02'!$A$5:$M$100,11,FALSE)) ->  | AW15: =IF($R15="","",VLOOKUP($R15,'FO-DRE-02'!$A$5:$M$100,12,FALSE)) ->  | AX15: =IF($R15="","",VLOOKUP($R15,'FO-DRE-02'!$A$5:$M$100,13,FALSE)) ->  | BA15: 5000 | BD15: 6 | BF15: F/D | BG15: F/D
T16: =IF($P16="","",VLOOKUP($P16,'FO-DRE-01'!$A$7:$U$347,18,FALSE)) ->  | U16: =IF($P16="","",VLOOKUP($P16,'FO-DRE-01'!$A$7:$U$300,16,FALSE)) ->  | V16: =IF($P16="","",VLOOKUP($P16,'FO-DRE-01'!$A$7:$U$300,17,FALSE)) ->  | W16: =IF($P16="","",VLOOKUP($P16,'FO-DRE-01'!$A$7:$U$300,3,FALSE)) ->  | X16: =IF($P16="","",VLOOKUP($P16,'FO-DRE-01'!$A$7:$U$300,4,FALSE)) ->  | Y16: =IF($P16="","",VLOOKUP($P16,'FO-DRE-01'!$A$7:$U$300,5,FALSE)) ->  | Z16: =IF($P16="","",VLOOKUP($P16,'FO-DRE-01'!$A$7:$U$300,7,FALSE)) ->  | AA16: =IF($P16="","",VLOOKUP($P16,'FO-DRE-01'!$A$7:$U$300,8,FALSE)) ->  | AB16: =IF($P16="","",VLOOKUP($P16,'FO-DRE-01'!$A$7:$U$300,9,FALSE)) ->  | AC16: =IF($P16="","",VLOOKUP($P16,'FO-DRE-01'!$A$7:$U$300,10,FALSE)) ->  | AD16: =IF($P16="","",VLOOKUP($P16,'FO-DRE-01'!$A$7:$U$300,11,FALSE)) ->  | AE16: =IF($P16="","",VLOOKUP($P16,'FO-DRE-01'!$A$7:$U$300,12,FALSE)) ->  | AF16: =IF($P16="","",VLOOKUP($P16,'FO-DRE-01'!$A$7:$U$300,13,FALSE)) ->  | AG16: =IF($P16="","",VLOOKUP($P16,'FO-DRE-01'!$A$7:$U$300,14,FALSE)) ->  | AH16: W | AI16: =IF(Q16="","",VLOOKUP($Q16,'FO-DRE-04'!$A$6:$M$100,3,FALSE)) ->  | AJ16: =IF(Q16="","",VLOOKUP($Q16,'FO-DRE-04'!$A$6:$M$100,4,FALSE)) ->  | AK16: =IF(Q16="","",VLOOKUP($Q16,'FO-DRE-04'!$A$6:$M$100,5,FALSE)) ->  | AL16: =IF(Q16="","",VLOOKUP($Q16,'FO-DRE-04'!$A$6:$M$100,7,FALSE)) ->  | AM16: =IF(Q16="","",VLOOKUP($Q16,'FO-DRE-04'!$A$6:$M$100,11,FALSE)) ->  | AN16: =IF($R16="","",VLOOKUP($R16,'FO-DRE-02'!$A$6:$N$100,2,FALSE)) ->  | AO16: =IF($R16="","",VLOOKUP($R16,'FO-DRE-02'!$A$5:$J$100,3,FALSE)) ->  | AP16: =IF($R16="","",VLOOKUP($R16,'FO-DRE-02'!$A$5:$J$100,6,FALSE)) ->  | AQ16: =IF($R16="","",VLOOKUP($R16,'FO-DRE-02'!$A$5:$J$100,4,FALSE)) ->  | AR16: =IF($R16="","",VLOOKUP($R16,'FO-DRE-02'!$A$5:$J$100,5,FALSE)) ->  | AS16: =IF($R16="","",VLOOKUP($R16,'FO-DRE-02'!$A$5:$J$100,6,FALSE)) ->  | AT16: =IF($R16="","",VLOOKUP($R16,'FO-DRE-02'!$A$5:$J$100,7,FALSE)) ->  | AU16: =IF($R16="","",VLOOKUP($R16,'FO-DRE-02'!$A$5:$J$100,9,FALSE)) ->  | AV16: =IF($R16="","",VLOOKUP($R16,'FO-DRE-02'!$A$5:$M$100,11,FALSE)) ->  | AW16: =IF($R16="","",VLOOKUP($R16,'FO-DRE-02'!$A$5:$M$100,12,FALSE)) ->  | AX16: =IF($R16="","",VLOOKUP($R16,'FO-DRE-02'!$A$5:$M$100,13,FALSE)) ->  | BA16: 5000 | BD16: 7 | BF16: F/D | BG16: F/D
T17: =IF($P17="","",VLOOKUP($P17,'FO-DRE-01'!$A$7:$U$347,18,FALSE)) ->  | U17: =IF($P17="","",VLOOKUP($P17,'FO-DRE-01'!$A$7:$U$300,16,FALSE)) ->  | V17: =IF($P17="","",VLOOKUP($P17,'FO-DRE-01'!$A$7:$U$300,17,FALSE)) ->  | W17: =IF($P17="","",VLOOKUP($P17,'FO-DRE-01'!$A$7:$U$300,3,FALSE)) ->  | X17: =IF($P17="","",VLOOKUP($P17,'FO-DRE-01'!$A$7:$U$300,4,FALSE)) ->  | Y17: =IF($P17="","",VLOOKUP($P17,'FO-DRE-01'!$A$7:$U$300,5,FALSE)) ->  | Z17: =IF($P17="","",VLOOKUP($P17,'FO-DRE-01'!$A$7:$U$300,7,FALSE)) ->  | AA17: =IF($P17="","",VLOOKUP($P17,'FO-DRE-01'!$A$7:$U$300,8,FALSE)) ->  | AB17: =IF($P17="","",VLOOKUP($P17,'FO-DRE-01'!$A$7:$U$300,9,FALSE)) ->  | AC17: =IF($P17="","",VLOOKUP($P17,'FO-DRE-01'!$A$7:$U$300,10,FALSE)) ->  | AD17: =IF($P17="","",VLOOKUP($P17,'FO-DRE-01'!$A$7:$U$300,11,FALSE)) ->  | AE17: =IF($P17="","",VLOOKUP($P17,'FO-DRE-01'!$A$7:$U$300,12,FALSE)) ->  | AF17: =IF($P17="","",VLOOKUP($P17,'FO-DRE-01'!$A$7:$U$300,13,FALSE)) ->  | AG17: =IF($P17="","",VLOOKUP($P17,'FO-DRE-01'!$A$7:$U$300,14,FALSE)) ->  | AH17: W | AI17: =IF(Q17="","",VLOOKUP($Q17,'FO-DRE-04'!$A$6:$M$100,3,FALSE)) ->  | AJ17: =IF(Q17="","",VLOOKUP($Q17,'FO-DRE-04'!$A$6:$M$100,4,FALSE)) ->  | AK17: =IF(Q17="","",VLOOKUP($Q17,'FO-DRE-04'!$A$6:$M$100,5,FALSE)) ->  | AL17: =IF(Q17="","",VLOOKUP($Q17,'FO-DRE-04'!$A$6:$M$100,7,FALSE)) ->  | AM17: =IF(Q17="","",VLOOKUP($Q17,'FO-DRE-04'!$A$6:$M$100,11,FALSE)) ->  | AN17: =IF($R17="","",VLOOKUP($R17,'FO-DRE-02'!$A$6:$N$100,2,FALSE)) ->  | AO17: =IF($R17="","",VLOOKUP($R17,'FO-DRE-02'!$A$5:$J$100,3,FALSE)) ->  | AP17: =IF($R17="","",VLOOKUP($R17,'FO-DRE-02'!$A$5:$J$100,6,FALSE)) ->  | AQ17: =IF($R17="","",VLOOKUP($R17,'FO-DRE-02'!$A$5:$J$100,4,FALSE)) ->  | AR17: =IF($R17="","",VLOOKUP($R17,'FO-DRE-02'!$A$5:$J$100,5,FALSE)) ->  | AS17: =IF($R17="","",VLOOKUP($R17,'FO-DRE-02'!$A$5:$J$100,6,FALSE)) ->  | AT17: =IF($R17="","",VLOOKUP($R17,'FO-DRE-02'!$A$5:$J$100,7,FALSE)) ->  | AU17: =IF($R17="","",VLOOKUP($R17,'FO-DRE-02'!$A$5:$J$100,9,FALSE)) ->  | AV17: =IF($R17="","",VLOOKUP($R17,'FO-DRE-02'!$A$5:$M$100,11,FALSE)) ->  | AW17: =IF($R17="","",VLOOKUP($R17,'FO-DRE-02'!$A$5:$M$100,12,FALSE)) ->  | AX17: =IF($R17="","",VLOOKUP($R17,'FO-DRE-02'!$A$5:$M$100,13,FALSE)) ->  | BA17: 5000 | BD17: 8 | BF17: F/D | BG17: F/D
T18: =IF($P18="","",VLOOKUP($P18,'FO-DRE-01'!$A$7:$U$347,18,FALSE)) ->  | U18: =IF($P18="","",VLOOKUP($P18,'FO-DRE-01'!$A$7:$U$300,16,FALSE)) ->  | V18: =IF($P18="","",VLOOKUP($P18,'FO-DRE-01'!$A$7:$U$300,17,FALSE)) ->  | W18: =IF($P18="","",VLOOKUP($P18,'FO-DRE-01'!$A$7:$U$300,3,FALSE)) ->  | X18: =IF($P18="","",VLOOKUP($P18,'FO-DRE-01'!$A$7:$U$300,4,FALSE)) ->  | Y18: =IF($P18="","",VLOOKUP($P18,'FO-DRE-01'!$A$7:$U$300,5,FALSE)) ->  | Z18: =IF($P18="","",VLOOKUP($P18,'FO-DRE-01'!$A$7:$U$300,7,FALSE)) ->  | AA18: =IF($P18="","",VLOOKUP($P18,'FO-DRE-01'!$A$7:$U$300,8,FALSE)) ->  | AB18: =IF($P18="","",VLOOKUP($P18,'FO-DRE-01'!$A$7:$U$300,9,FALSE)) ->  | AC18: =IF($P18="","",VLOOKUP($P18,'FO-DRE-01'!$A$7:$U$300,10,FALSE)) ->  | AD18: =IF($P18="","",VLOOKUP($P18,'FO-DRE-01'!$A$7:$U$300,11,FALSE)) ->  | AE18: =IF($P18="","",VLOOKUP($P18,'FO-DRE-01'!$A$7:$U$300,12,FALSE)) ->  | AF18: =IF($P18="","",VLOOKUP($P18,'FO-DRE-01'!$A$7:$U$300,13,FALSE)) ->  | AG18: =IF($P18="","",VLOOKUP($P18,'FO-DRE-01'!$A$7:$U$300,14,FALSE)) ->  | AH18: W | AI18: =IF(Q18="","",VLOOKUP($Q18,'FO-DRE-04'!$A$6:$M$100,3,FALSE)) ->  | AJ18: =IF(Q18="","",VLOOKUP($Q18,'FO-DRE-04'!$A$6:$M$100,4,FALSE)) ->  | AK18: =IF(Q18="","",VLOOKUP($Q18,'FO-DRE-04'!$A$6:$M$100,5,FALSE)) ->  | AL18: =IF(Q18="","",VLOOKUP($Q18,'FO-DRE-04'!$A$6:$M$100,7,FALSE)) ->  | AM18: =IF(Q18="","",VLOOKUP($Q18,'FO-DRE-04'!$A$6:$M$100,11,FALSE)) ->  | AN18: =IF($R18="","",VLOOKUP($R18,'FO-DRE-02'!$A$6:$N$100,2,FALSE)) ->  | AO18: =IF($R18="","",VLOOKUP($R18,'FO-DRE-02'!$A$5:$J$100,3,FALSE)) ->  | AP18: =IF($R18="","",VLOOKUP($R18,'FO-DRE-02'!$A$5:$J$100,6,FALSE)) ->  | AQ18: =IF($R18="","",VLOOKUP($R18,'FO-DRE-02'!$A$5:$J$100,4,FALSE)) ->  | AR18: =IF($R18="","",VLOOKUP($R18,'FO-DRE-02'!$A$5:$J$100,5,FALSE)) ->  | AS18: =IF($R18="","",VLOOKUP($R18,'FO-DRE-02'!$A$5:$J$100,6,FALSE)) ->  | AT18: =IF($R18="","",VLOOKUP($R18,'FO-DRE-02'!$A$5:$J$100,7,FALSE)) ->  | AU18: =IF($R18="","",VLOOKUP($R18,'FO-DRE-02'!$A$5:$J$100,9,FALSE)) ->  | AV18: =IF($R18="","",VLOOKUP($R18,'FO-DRE-02'!$A$5:$M$100,11,FALSE)) ->  | AW18: =IF($R18="","",VLOOKUP($R18,'FO-DRE-02'!$A$5:$M$100,12,FALSE)) ->  | AX18: =IF($R18="","",VLOOKUP($R18,'FO-DRE-02'!$A$5:$M$100,13,FALSE)) ->  | BA18: 5000 | BD18: 9 | BF18: F/D | BG18: F/D
T19: =IF($P19="","",VLOOKUP($P19,'FO-DRE-01'!$A$7:$U$347,18,FALSE)) ->  | U19: =IF($P19="","",VLOOKUP($P19,'FO-DRE-01'!$A$7:$U$300,16,FALSE)) ->  | V19: =IF($P19="","",VLOOKUP($P19,'FO-DRE-01'!$A$7:$U$300,17,FALSE)) ->  | W19: =IF($P19="","",VLOOKUP($P19,'FO-DRE-01'!$A$7:$U$300,3,FALSE)) ->  | X19: =IF($P19="","",VLOOKUP($P19,'FO-DRE-01'!$A$7:$U$300,4,FALSE)) ->  | Y19: =IF($P19="","",VLOOKUP($P19,'FO-DRE-01'!$A$7:$U$300,5,FALSE)) ->  | Z19: =IF($P19="","",VLOOKUP($P19,'FO-DRE-01'!$A$7:$U$300,7,FALSE)) ->  | AA19: =IF($P19="","",VLOOKUP($P19,'FO-DRE-01'!$A$7:$U$300,8,FALSE)) ->  | AB19: =IF($P19="","",VLOOKUP($P19,'FO-DRE-01'!$A$7:$U$300,9,FALSE)) ->  | AC19: =IF($P19="","",VLOOKUP($P19,'FO-DRE-01'!$A$7:$U$300,10,FALSE)) ->  | AD19: =IF($P19="","",VLOOKUP($P19,'FO-DRE-01'!$A$7:$U$300,11,FALSE)) ->  | AE19: =IF($P19="","",VLOOKUP($P19,'FO-DRE-01'!$A$7:$U$300,12,FALSE)) ->  | AF19: =IF($P19="","",VLOOKUP($P19,'FO-DRE-01'!$A$7:$U$300,13,FALSE)) ->  | AG19: =IF($P19="","",VLOOKUP($P19,'FO-DRE-01'!$A$7:$U$300,14,FALSE)) ->  | AH19: W | AI19: =IF(Q19="","",VLOOKUP($Q19,'FO-DRE-04'!$A$6:$M$100,3,FALSE)) ->  | AJ19: =IF(Q19="","",VLOOKUP($Q19,'FO-DRE-04'!$A$6:$M$100,4,FALSE)) ->  | AK19: =IF(Q19="","",VLOOKUP($Q19,'FO-DRE-04'!$A$6:$M$100,5,FALSE)) ->  | AL19: =IF(Q19="","",VLOOKUP($Q19,'FO-DRE-04'!$A$6:$M$100,7,FALSE)) ->  | AM19: =IF(Q19="","",VLOOKUP($Q19,'FO-DRE-04'!$A$6:$M$100,11,FALSE)) ->  | AN19: =IF($R19="","",VLOOKUP($R19,'FO-DRE-02'!$A$6:$N$100,2,FALSE)) ->  | AO19: =IF($R19="","",VLOOKUP($R19,'FO-DRE-02'!$A$5:$J$100,3,FALSE)) ->  | AP19: =IF($R19="","",VLOOKUP($R19,'FO-DRE-02'!$A$5:$J$100,6,FALSE)) ->  | AQ19: =IF($R19="","",VLOOKUP($R19,'FO-DRE-02'!$A$5:$J$100,4,FALSE)) ->  | AR19: =IF($R19="","",VLOOKUP($R19,'FO-DRE-02'!$A$5:$J$100,5,FALSE)) ->  | AS19: =IF($R19="","",VLOOKUP($R19,'FO-DRE-02'!$A$5:$J$100,6,FALSE)) ->  | AT19: =IF($R19="","",VLOOKUP($R19,'FO-DRE-02'!$A$5:$J$100,7,FALSE)) ->  | AU19: =IF($R19="","",VLOOKUP($R19,'FO-DRE-02'!$A$5:$J$100,9,FALSE)) ->  | AV19: =IF($R19="","",VLOOKUP($R19,'FO-DRE-02'!$A$5:$M$100,11,FALSE)) ->  | AW19: =IF($R19="","",VLOOKUP($R19,'FO-DRE-02'!$A$5:$M$100,12,FALSE)) ->  | AX19: =IF($R19="","",VLOOKUP($R19,'FO-DRE-02'!$A$5:$M$100,13,FALSE)) ->  | BA19: 5000 | BD19: 10 | BF19: F/D | BG19: F/D
T20: =IF($P20="","",VLOOKUP($P20,'FO-DRE-01'!$A$7:$U$347,18,FALSE)) ->  | U20: =IF($P20="","",VLOOKUP($P20,'FO-DRE-01'!$A$7:$U$300,16,FALSE)) ->  | V20: =IF($P20="","",VLOOKUP($P20,'FO-DRE-01'!$A$7:$U$300,17,FALSE)) ->  | W20: =IF($P20="","",VLOOKUP($P20,'FO-DRE-01'!$A$7:$U$300,3,FALSE)) ->  | X20: =IF($P20="","",VLOOKUP($P20,'FO-DRE-01'!$A$7:$U$300,4,FALSE)) ->  | Y20: =IF($P20="","",VLOOKUP($P20,'FO-DRE-01'!$A$7:$U$300,5,FALSE)) ->  | Z20: =IF($P20="","",VLOOKUP($P20,'FO-DRE-01'!$A$7:$U$300,7,FALSE)) ->  | AA20: =IF($P20="","",VLOOKUP($P20,'FO-DRE-01'!$A$7:$U$300,8,FALSE)) ->  | AB20: =IF($P20="","",VLOOKUP($P20,'FO-DRE-01'!$A$7:$U$300,9,FALSE)) ->  | AC20: =IF($P20="","",VLOOKUP($P20,'FO-DRE-01'!$A$7:$U$300,10,FALSE)) ->  | AD20: =IF($P20="","",VLOOKUP($P20,'FO-DRE-01'!$A$7:$U$300,11,FALSE)) ->  | AE20: =IF($P20="","",VLOOKUP($P20,'FO-DRE-01'!$A$7:$U$300,12,FALSE)) ->  | AF20: =IF($P20="","",VLOOKUP($P20,'FO-DRE-01'!$A$7:$U$300,13,FALSE)) ->  | AG20: =IF($P20="","",VLOOKUP($P20,'FO-DRE-01'!$A$7:$U$300,14,FALSE)) ->  | AH20: W | AI20: =IF(Q20="","",VLOOKUP($Q20,'FO-DRE-04'!$A$6:$M$100,3,FALSE)) ->  | AJ20: =IF(Q20="","",VLOOKUP($Q20,'FO-DRE-04'!$A$6:$M$100,4,FALSE)) ->  | AK20: =IF(Q20="","",VLOOKUP($Q20,'FO-DRE-04'!$A$6:$M$100,5,FALSE)) ->  | AL20: =IF(Q20="","",VLOOKUP($Q20,'FO-DRE-04'!$A$6:$M$100,7,FALSE)) ->  | AM20: =IF(Q20="","",VLOOKUP($Q20,'FO-DRE-04'!$A$6:$M$100,11,FALSE)) ->  | AN20: =IF($R20="","",VLOOKUP($R20,'FO-DRE-02'!$A$6:$N$100,2,FALSE)) ->  | AO20: =IF($R20="","",VLOOKUP($R20,'FO-DRE-02'!$A$5:$J$100,3,FALSE)) ->  | AP20: =IF($R20="","",VLOOKUP($R20,'FO-DRE-02'!$A$5:$J$100,6,FALSE)) ->  | AQ20: =IF($R20="","",VLOOKUP($R20,'FO-DRE-02'!$A$5:$J$100,4,FALSE)) ->  | AR20: =IF($R20="","",VLOOKUP($R20,'FO-DRE-02'!$A$5:$J$100,5,FALSE)) ->  | AS20: =IF($R20="","",VLOOKUP($R20,'FO-DRE-02'!$A$5:$J$100,6,FALSE)) ->  | AT20: =IF($R20="","",VLOOKUP($R20,'FO-DRE-02'!$A$5:$J$100,7,FALSE)) ->  | AU20: =IF($R20="","",VLOOKUP($R20,'FO-DRE-02'!$A$5:$J$100,9,FALSE)) ->  | AV20: =IF($R20="","",VLOOKUP($R20,'FO-DRE-02'!$A$5:$M$100,11,FALSE)) ->  | AW20: =IF($R20="","",VLOOKUP($R20,'FO-DRE-02'!$A$5:$M$100,12,FALSE)) ->  | AX20: =IF($R20="","",VLOOKUP($R20,'FO-DRE-02'!$A$5:$M$100,13,FALSE)) ->  | AY20: =CONCATENATE("0",AA11,"°",IF(AB11<10,CONCATENATE("0",AB11),AB11),"'",IF(ROUND(AC11,0)=AC11,IF(AC11<10,CONCATENATE("0",AC11,".00"),CONCATENATE(AC11,".00")),IF(ROUND(AC11*10,0)=AC11*10,IF(AC11<10,CONCATENATE("0",AC11,"0"),CONCATENATE(AC11,"0")),IF(AC11<10,CONCATENATE("0",AC11),AC11))),"''",AD11) -> 00°29'29,77''S | AZ20: =CONCATENATE(AE11,"°",IF(AF11<10,CONCATENATE("0",AF11),AF11),"'",IF(ROUND(AG11,0)=AG11,IF(AG11<10,CONCATENATE("0",AG11,".00"),CONCATENATE(AG11,".00")),IF(ROUND(AG11*10,0)=AG11*10,IF(AG11<10,CONCATENATE("0",AG11,"0"),CONCATENATE(AG11,"0")),IF(AG11<10,CONCATENATE("0",AG11),AG11))),"''",AH11) -> 76°46'34,40''W | BA20: =IF(J12="902 - 928",900,IF(J12="2400 - 2483.5",2400,5000)) -> 5000 | BD20: 11 | BF20: F/D | BG20: F/D
T21: =IF($P21="","",VLOOKUP($P21,'FO-DRE-01'!$A$7:$U$347,18,FALSE)) ->  | U21: =IF($P21="","",VLOOKUP($P21,'FO-DRE-01'!$A$7:$U$300,16,FALSE)) ->  | V21: =IF($P21="","",VLOOKUP($P21,'FO-DRE-01'!$A$7:$U$300,17,FALSE)) ->  | W21: =IF($P21="","",VLOOKUP($P21,'FO-DRE-01'!$A$7:$U$300,3,FALSE)) ->  | X21: =IF($P21="","",VLOOKUP($P21,'FO-DRE-01'!$A$7:$U$300,4,FALSE)) ->  | Y21: =IF($P21="","",VLOOKUP($P21,'FO-DRE-01'!$A$7:$U$300,5,FALSE)) ->  | Z21: =IF($P21="","",VLOOKUP($P21,'FO-DRE-01'!$A$7:$U$300,7,FALSE)) ->  | AA21: =IF($P21="","",VLOOKUP($P21,'FO-DRE-01'!$A$7:$U$300,8,FALSE)) ->  | AB21: =IF($P21="","",VLOOKUP($P21,'FO-DRE-01'!$A$7:$U$300,9,FALSE)) ->  | AC21: =IF($P21="","",VLOOKUP($P21,'FO-DRE-01'!$A$7:$U$300,10,FALSE)) ->  | AD21: =IF($P21="","",VLOOKUP($P21,'FO-DRE-01'!$A$7:$U$300,11,FALSE)) ->  | AE21: =IF($P21="","",VLOOKUP($P21,'FO-DRE-01'!$A$7:$U$300,12,FALSE)) ->  | AF21: =IF($P21="","",VLOOKUP($P21,'FO-DRE-01'!$A$7:$U$300,13,FALSE)) ->  | AG21: =IF($P21="","",VLOOKUP($P21,'FO-DRE-01'!$A$7:$U$300,14,FALSE)) ->  | AH21: W | AI21: =IF(Q21="","",VLOOKUP($Q21,'FO-DRE-04'!$A$6:$M$100,3,FALSE)) ->  | AJ21: =IF(Q21="","",VLOOKUP($Q21,'FO-DRE-04'!$A$6:$M$100,4,FALSE)) ->  | AK21: =IF(Q21="","",VLOOKUP($Q21,'FO-DRE-04'!$A$6:$M$100,5,FALSE)) ->  | AL21: =IF(Q21="","",VLOOKUP($Q21,'FO-DRE-04'!$A$6:$M$100,7,FALSE)) ->  | AM21: =IF(Q21="","",VLOOKUP($Q21,'FO-DRE-04'!$A$6:$M$100,11,FALSE)) ->  | AN21: =IF($R21="","",VLOOKUP($R21,'FO-DRE-02'!$A$6:$N$100,2,FALSE)) ->  | AO21: =IF($R21="","",VLOOKUP($R21,'FO-DRE-02'!$A$5:$J$100,3,FALSE)) ->  | AP21: =IF($R21="","",VLOOKUP($R21,'FO-DRE-02'!$A$5:$J$100,6,FALSE)) ->  | AQ21: =IF($R21="","",VLOOKUP($R21,'FO-DRE-02'!$A$5:$J$100,4,FALSE)) ->  | AR21: =IF($R21="","",VLOOKUP($R21,'FO-DRE-02'!$A$5:$J$100,5,FALSE)) ->  | AS21: =IF($R21="","",VLOOKUP($R21,'FO-DRE-02'!$A$5:$J$100,6,FALSE)) ->  | AT21: =IF($R21="","",VLOOKUP($R21,'FO-DRE-02'!$A$5:$J$100,7,FALSE)) ->  | AU21: =IF($R21="","",VLOOKUP($R21,'FO-DRE-02'!$A$5:$J$100,9,FALSE)) ->  | AV21: =IF($R21="","",VLOOKUP($R21,'FO-DRE-02'!$A$5:$M$100,11,FALSE)) ->  | AW21: =IF($R21="","",VLOOKUP($R21,'FO-DRE-02'!$A$5:$M$100,12,FALSE)) ->  | AX21: =IF($R21="","",VLOOKUP($R21,'FO-DRE-02'!$A$5:$M$100,13,FALSE)) ->  | BA21: 5000 | BD21: 12 | BF21: F/D | BG21: F/D
T22: =IF($P22="","",VLOOKUP($P22,'FO-DRE-01'!$A$7:$U$347,18,FALSE)) ->  | U22: =IF($P22="","",VLOOKUP($P22,'FO-DRE-01'!$A$7:$U$300,16,FALSE)) ->  | V22: =IF($P22="","",VLOOKUP($P22,'FO-DRE-01'!$A$7:$U$300,17,FALSE)) ->  | W22: =IF($P22="","",VLOOKUP($P22,'FO-DRE-01'!$A$7:$U$300,3,FALSE)) ->  | X22: =IF($P22="","",VLOOKUP($P22,'FO-DRE-01'!$A$7:$U$300,4,FALSE)) ->  | Y22: =IF($P22="","",VLOOKUP($P22,'FO-DRE-01'!$A$7:$U$300,5,FALSE)) ->  | Z22: =IF($P22="","",VLOOKUP($P22,'FO-DRE-01'!$A$7:$U$300,7,FALSE)) ->  | AA22: =IF($P22="","",VLOOKUP($P22,'FO-DRE-01'!$A$7:$U$300,8,FALSE)) ->  | AB22: =IF($P22="","",VLOOKUP($P22,'FO-DRE-01'!$A$7:$U$300,9,FALSE)) ->  | AC22: =IF($P22="","",VLOOKUP($P22,'FO-DRE-01'!$A$7:$U$300,10,FALSE)) ->  | AD22: =IF($P22="","",VLOOKUP($P22,'FO-DRE-01'!$A$7:$U$300,11,FALSE)) ->  | AE22: =IF($P22="","",VLOOKUP($P22,'FO-DRE-01'!$A$7:$U$300,12,FALSE)) ->  | AF22: =IF($P22="","",VLOOKUP($P22,'FO-DRE-01'!$A$7:$U$300,13,FALSE)) ->  | AG22: =IF($P22="","",VLOOKUP($P22,'FO-DRE-01'!$A$7:$U$300,14,FALSE)) ->  | AH22: W | AI22: =IF(Q22="","",VLOOKUP($Q22,'FO-DRE-04'!$A$6:$M$100,3,FALSE)) ->  | AJ22: =IF(Q22="","",VLOOKUP($Q22,'FO-DRE-04'!$A$6:$M$100,4,FALSE)) ->  | AK22: =IF(Q22="","",VLOOKUP($Q22,'FO-DRE-04'!$A$6:$M$100,5,FALSE)) ->  | AL22: =IF(Q22="","",VLOOKUP($Q22,'FO-DRE-04'!$A$6:$M$100,7,FALSE)) ->  | AM22: =IF(Q22="","",VLOOKUP($Q22,'FO-DRE-04'!$A$6:$M$100,11,FALSE)) ->  | AN22: =IF($R22="","",VLOOKUP($R22,'FO-DRE-02'!$A$6:$N$100,2,FALSE)) ->  | AO22: =IF($R22="","",VLOOKUP($R22,'FO-DRE-02'!$A$5:$J$100,3,FALSE)) ->  | AP22: =IF($R22="","",VLOOKUP($R22,'FO-DRE-02'!$A$5:$J$100,6,FALSE)) ->  | AQ22: =IF($R22="","",VLOOKUP($R22,'FO-DRE-02'!$A$5:$J$100,4,FALSE)) ->  | AR22: =IF($R22="","",VLOOKUP($R22,'FO-DRE-02'!$A$5:$J$100,5,FALSE)) ->  | AS22: =IF($R22="","",VLOOKUP($R22,'FO-DRE-02'!$A$5:$J$100,6,FALSE)) ->  | AT22: =IF($R22="","",VLOOKUP($R22,'FO-DRE-02'!$A$5:$J$100,7,FALSE)) ->  | AU22: =IF($R22="","",VLOOKUP($R22,'FO-DRE-02'!$A$5:$J$100,9,FALSE)) ->  | AV22: =IF($R22="","",VLOOKUP($R22,'FO-DRE-02'!$A$5:$M$100,11,FALSE)) ->  | AW22: =IF($R22="","",VLOOKUP($R22,'FO-DRE-02'!$A$5:$M$100,12,FALSE)) ->  | AX22: =IF($R22="","",VLOOKUP($R22,'FO-DRE-02'!$A$5:$M$100,13,FALSE)) ->  | BA22: 5000 | BD22: 13 | BF22: F/D | BG22: F/D
T23: =IF($P23="","",VLOOKUP($P23,'FO-DRE-01'!$A$7:$U$347,18,FALSE)) ->  | U23: =IF($P23="","",VLOOKUP($P23,'FO-DRE-01'!$A$7:$U$300,16,FALSE)) ->  | V23: =IF($P23="","",VLOOKUP($P23,'FO-DRE-01'!$A$7:$U$300,17,FALSE)) ->  | W23: =IF($P23="","",VLOOKUP($P23,'FO-DRE-01'!$A$7:$U$300,3,FALSE)) ->  | X23: =IF($P23="","",VLOOKUP($P23,'FO-DRE-01'!$A$7:$U$300,4,FALSE)) ->  | Y23: =IF($P23="","",VLOOKUP($P23,'FO-DRE-01'!$A$7:$U$300,5,FALSE)) ->  | Z23: =IF($P23="","",VLOOKUP($P23,'FO-DRE-01'!$A$7:$U$300,7,FALSE)) ->  | AA23: =IF($P23="","",VLOOKUP($P23,'FO-DRE-01'!$A$7:$U$300,8,FALSE)) ->  | AB23: =IF($P23="","",VLOOKUP($P23,'FO-DRE-01'!$A$7:$U$300,9,FALSE)) ->  | AC23: =IF($P23="","",VLOOKUP($P23,'FO-DRE-01'!$A$7:$U$300,10,FALSE)) ->  | AD23: =IF($P23="","",VLOOKUP($P23,'FO-DRE-01'!$A$7:$U$300,11,FALSE)) ->  | AE23: =IF($P23="","",VLOOKUP($P23,'FO-DRE-01'!$A$7:$U$300,12,FALSE)) ->  | AF23: =IF($P23="","",VLOOKUP($P23,'FO-DRE-01'!$A$7:$U$300,13,FALSE)) ->  | AG23: =IF($P23="","",VLOOKUP($P23,'FO-DRE-01'!$A$7:$U$300,14,FALSE)) ->  | AH23: W | AI23: =IF(Q23="","",VLOOKUP($Q23,'FO-DRE-04'!$A$6:$M$100,3,FALSE)) ->  | AJ23: =IF(Q23="","",VLOOKUP($Q23,'FO-DRE-04'!$A$6:$M$100,4,FALSE)) ->  | AK23: =IF(Q23="","",VLOOKUP($Q23,'FO-DRE-04'!$A$6:$M$100,5,FALSE)) ->  | AL23: =IF(Q23="","",VLOOKUP($Q23,'FO-DRE-04'!$A$6:$M$100,7,FALSE)) ->  | AM23: =IF(Q23="","",VLOOKUP($Q23,'FO-DRE-04'!$A$6:$M$100,11,FALSE)) ->  | AN23: =IF($R23="","",VLOOKUP($R23,'FO-DRE-02'!$A$6:$N$100,2,FALSE)) ->  | AO23: =IF($R23="","",VLOOKUP($R23,'FO-DRE-02'!$A$5:$J$100,3,FALSE)) ->  | AP23: =IF($R23="","",VLOOKUP($R23,'FO-DRE-02'!$A$5:$J$100,6,FALSE)) ->  | AQ23: =IF($R23="","",VLOOKUP($R23,'FO-DRE-02'!$A$5:$J$100,4,FALSE)) ->  | AR23: =IF($R23="","",VLOOKUP($R23,'FO-DRE-02'!$A$5:$J$100,5,FALSE)) ->  | AS23: =IF($R23="","",VLOOKUP($R23,'FO-DRE-02'!$A$5:$J$100,6,FALSE)) ->  | AT23: =IF($R23="","",VLOOKUP($R23,'FO-DRE-02'!$A$5:$J$100,7,FALSE)) ->  | AU23: =IF($R23="","",VLOOKUP($R23,'FO-DRE-02'!$A$5:$J$100,9,FALSE)) ->  | AV23: =IF($R23="","",VLOOKUP($R23,'FO-DRE-02'!$A$5:$M$100,11,FALSE)) ->  | AW23: =IF($R23="","",VLOOKUP($R23,'FO-DRE-02'!$A$5:$M$100,12,FALSE)) ->  | AX23: =IF($R23="","",VLOOKUP($R23,'FO-DRE-02'!$A$5:$M$100,13,FALSE)) ->  | BA23: 5000 | BD23: 14 | BF23: F/D | BG23: F/D
T24: =IF($P24="","",VLOOKUP($P24,'FO-DRE-01'!$A$7:$U$347,18,FALSE)) ->  | U24: =IF($P24="","",VLOOKUP($P24,'FO-DRE-01'!$A$7:$U$300,16,FALSE)) ->  | V24: =IF($P24="","",VLOOKUP($P24,'FO-DRE-01'!$A$7:$U$300,17,FALSE)) ->  | W24: =IF($P24="","",VLOOKUP($P24,'FO-DRE-01'!$A$7:$U$300,3,FALSE)) ->  | X24: =IF($P24="","",VLOOKUP($P24,'FO-DRE-01'!$A$7:$U$300,4,FALSE)) ->  | Y24: =IF($P24="","",VLOOKUP($P24,'FO-DRE-01'!$A$7:$U$300,5,FALSE)) ->  | Z24: =IF($P24="","",VLOOKUP($P24,'FO-DRE-01'!$A$7:$U$300,7,FALSE)) ->  | AA24: =IF($P24="","",VLOOKUP($P24,'FO-DRE-01'!$A$7:$U$300,8,FALSE)) ->  | AB24: =IF($P24="","",VLOOKUP($P24,'FO-DRE-01'!$A$7:$U$300,9,FALSE)) ->  | AC24: =IF($P24="","",VLOOKUP($P24,'FO-DRE-01'!$A$7:$U$300,10,FALSE)) ->  | AD24: =IF($P24="","",VLOOKUP($P24,'FO-DRE-01'!$A$7:$U$300,11,FALSE)) ->  | AE24: =IF($P24="","",VLOOKUP($P24,'FO-DRE-01'!$A$7:$U$300,12,FALSE)) ->  | AF24: =IF($P24="","",VLOOKUP($P24,'FO-DRE-01'!$A$7:$U$300,13,FALSE)) ->  | AG24: =IF($P24="","",VLOOKUP($P24,'FO-DRE-01'!$A$7:$U$300,14,FALSE)) ->  | AH24: W | AI24: =IF(Q24="","",VLOOKUP($Q24,'FO-DRE-04'!$A$6:$M$100,3,FALSE)) ->  | AJ24: =IF(Q24="","",VLOOKUP($Q24,'FO-DRE-04'!$A$6:$M$100,4,FALSE)) ->  | AK24: =IF(Q24="","",VLOOKUP($Q24,'FO-DRE-04'!$A$6:$M$100,5,FALSE)) ->  | AL24: =IF(Q24="","",VLOOKUP($Q24,'FO-DRE-04'!$A$6:$M$100,7,FALSE)) ->  | AM24: =IF(Q24="","",VLOOKUP($Q24,'FO-DRE-04'!$A$6:$M$100,11,FALSE)) ->  | AN24: =IF($R24="","",VLOOKUP($R24,'FO-DRE-02'!$A$6:$N$100,2,FALSE)) ->  | AO24: =IF($R24="","",VLOOKUP($R24,'FO-DRE-02'!$A$5:$J$100,3,FALSE)) ->  | AP24: =IF($R24="","",VLOOKUP($R24,'FO-DRE-02'!$A$5:$J$100,6,FALSE)) ->  | AQ24: =IF($R24="","",VLOOKUP($R24,'FO-DRE-02'!$A$5:$J$100,4,FALSE)) ->  | AR24: =IF($R24="","",VLOOKUP($R24,'FO-DRE-02'!$A$5:$J$100,5,FALSE)) ->  | AS24: =IF($R24="","",VLOOKUP($R24,'FO-DRE-02'!$A$5:$J$100,6,FALSE)) ->  | AT24: =IF($R24="","",VLOOKUP($R24,'FO-DRE-02'!$A$5:$J$100,7,FALSE)) ->  | AU24: =IF($R24="","",VLOOKUP($R24,'FO-DRE-02'!$A$5:$J$100,9,FALSE)) ->  | AV24: =IF($R24="","",VLOOKUP($R24,'FO-DRE-02'!$A$5:$M$100,11,FALSE)) ->  | AW24: =IF($R24="","",VLOOKUP($R24,'FO-DRE-02'!$A$5:$M$100,12,FALSE)) ->  | AX24: =IF($R24="","",VLOOKUP($R24,'FO-DRE-02'!$A$5:$M$100,13,FALSE)) ->  | BA24: 5000 | BD24: 15 | BF24: F/D | BG24: F/D
T25: =IF($P25="","",VLOOKUP($P25,'FO-DRE-01'!$A$7:$U$347,18,FALSE)) ->  | U25: =IF($P25="","",VLOOKUP($P25,'FO-DRE-01'!$A$7:$U$300,16,FALSE)) ->  | V25: =IF($P25="","",VLOOKUP($P25,'FO-DRE-01'!$A$7:$U$300,17,FALSE)) ->  | W25: =IF($P25="","",VLOOKUP($P25,'FO-DRE-01'!$A$7:$U$300,3,FALSE)) ->  | X25: =IF($P25="","",VLOOKUP($P25,'FO-DRE-01'!$A$7:$U$300,4,FALSE)) ->  | Y25: =IF($P25="","",VLOOKUP($P25,'FO-DRE-01'!$A$7:$U$300,5,FALSE)) ->  | Z25: =IF($P25="","",VLOOKUP($P25,'FO-DRE-01'!$A$7:$U$300,7,FALSE)) ->  | AA25: =IF($P25="","",VLOOKUP($P25,'FO-DRE-01'!$A$7:$U$300,8,FALSE)) ->  | AB25: =IF($P25="","",VLOOKUP($P25,'FO-DRE-01'!$A$7:$U$300,9,FALSE)) ->  | AC25: =IF($P25="","",VLOOKUP($P25,'FO-DRE-01'!$A$7:$U$300,10,FALSE)) ->  | AD25: =IF($P25="","",VLOOKUP($P25,'FO-DRE-01'!$A$7:$U$300,11,FALSE)) ->  | AE25: =IF($P25="","",VLOOKUP($P25,'FO-DRE-01'!$A$7:$U$300,12,FALSE)) ->  | AF25: =IF($P25="","",VLOOKUP($P25,'FO-DRE-01'!$A$7:$U$300,13,FALSE)) ->  | AG25: =IF($P25="","",VLOOKUP($P25,'FO-DRE-01'!$A$7:$U$300,14,FALSE)) ->  | AH25: W | AI25: =IF(Q25="","",VLOOKUP($Q25,'FO-DRE-04'!$A$6:$M$100,3,FALSE)) ->  | AJ25: =IF(Q25="","",VLOOKUP($Q25,'FO-DRE-04'!$A$6:$M$100,4,FALSE)) ->  | AK25: =IF(Q25="","",VLOOKUP($Q25,'FO-DRE-04'!$A$6:$M$100,5,FALSE)) ->  | AL25: =IF(Q25="","",VLOOKUP($Q25,'FO-DRE-04'!$A$6:$M$100,7,FALSE)) ->  | AM25: =IF(Q25="","",VLOOKUP($Q25,'FO-DRE-04'!$A$6:$M$100,11,FALSE)) ->  | AN25: =IF($R25="","",VLOOKUP($R25,'FO-DRE-02'!$A$6:$N$100,2,FALSE)) ->  | AO25: =IF($R25="","",VLOOKUP($R25,'FO-DRE-02'!$A$5:$J$100,3,FALSE)) ->  | AP25: =IF($R25="","",VLOOKUP($R25,'FO-DRE-02'!$A$5:$J$100,6,FALSE)) ->  | AQ25: =IF($R25="","",VLOOKUP($R25,'FO-DRE-02'!$A$5:$J$100,4,FALSE)) ->  | AR25: =IF($R25="","",VLOOKUP($R25,'FO-DRE-02'!$A$5:$J$100,5,FALSE)) ->  | AS25: =IF($R25="","",VLOOKUP($R25,'FO-DRE-02'!$A$5:$J$100,6,FALSE)) ->  | AT25: =IF($R25="","",VLOOKUP($R25,'FO-DRE-02'!$A$5:$J$100,7,FALSE)) ->  | AU25: =IF($R25="","",VLOOKUP($R25,'FO-DRE-02'!$A$5:$J$100,9,FALSE)) ->  | AV25: =IF($R25="","",VLOOKUP($R25,'FO-DRE-02'!$A$5:$M$100,11,FALSE)) ->  | AW25: =IF($R25="","",VLOOKUP($R25,'FO-DRE-02'!$A$5:$M$100,12,FALSE)) ->  | AX25: =IF($R25="","",VLOOKUP($R25,'FO-DRE-02'!$A$5:$M$100,13,FALSE)) ->  | BA25: 5000 | BD25: 16 | BF25: F/D | BG25: F/D
T26: =IF($P26="","",VLOOKUP($P26,'FO-DRE-01'!$A$7:$U$347,18,FALSE)) ->  | U26: =IF($P26="","",VLOOKUP($P26,'FO-DRE-01'!$A$7:$U$300,16,FALSE)) ->  | V26: =IF($P26="","",VLOOKUP($P26,'FO-DRE-01'!$A$7:$U$300,17,FALSE)) ->  | W26: =IF($P26="","",VLOOKUP($P26,'FO-DRE-01'!$A$7:$U$300,3,FALSE)) ->  | X26: =IF($P26="","",VLOOKUP($P26,'FO-DRE-01'!$A$7:$U$300,4,FALSE)) ->  | Y26: =IF($P26="","",VLOOKUP($P26,'FO-DRE-01'!$A$7:$U$300,5,FALSE)) ->  | Z26: =IF($P26="","",VLOOKUP($P26,'FO-DRE-01'!$A$7:$U$300,7,FALSE)) ->  | AA26: =IF($P26="","",VLOOKUP($P26,'FO-DRE-01'!$A$7:$U$300,8,FALSE)) ->  | AB26: =IF($P26="","",VLOOKUP($P26,'FO-DRE-01'!$A$7:$U$300,9,FALSE)) ->  | AC26: =IF($P26="","",VLOOKUP($P26,'FO-DRE-01'!$A$7:$U$300,10,FALSE)) ->  | AD26: =IF($P26="","",VLOOKUP($P26,'FO-DRE-01'!$A$7:$U$300,11,FALSE)) ->  | AE26: =IF($P26="","",VLOOKUP($P26,'FO-DRE-01'!$A$7:$U$300,12,FALSE)) ->  | AF26: =IF($P26="","",VLOOKUP($P26,'FO-DRE-01'!$A$7:$U$300,13,FALSE)) ->  | AG26: =IF($P26="","",VLOOKUP($P26,'FO-DRE-01'!$A$7:$U$300,14,FALSE)) ->  | AH26: W | AI26: =IF(Q26="","",VLOOKUP($Q26,'FO-DRE-04'!$A$6:$M$100,3,FALSE)) ->  | AJ26: =IF(Q26="","",VLOOKUP($Q26,'FO-DRE-04'!$A$6:$M$100,4,FALSE)) ->  | AK26: =IF(Q26="","",VLOOKUP($Q26,'FO-DRE-04'!$A$6:$M$100,5,FALSE)) ->  | AL26: =IF(Q26="","",VLOOKUP($Q26,'FO-DRE-04'!$A$6:$M$100,7,FALSE)) ->  | AM26: =IF(Q26="","",VLOOKUP($Q26,'FO-DRE-04'!$A$6:$M$100,11,FALSE)) ->  | AN26: =IF($R26="","",VLOOKUP($R26,'FO-DRE-02'!$A$6:$N$100,2,FALSE)) ->  | AO26: =IF($R26="","",VLOOKUP($R26,'FO-DRE-02'!$A$5:$J$100,3,FALSE)) ->  | AP26: =IF($R26="","",VLOOKUP($R26,'FO-DRE-02'!$A$5:$J$100,6,FALSE)) ->  | AQ26: =IF($R26="","",VLOOKUP($R26,'FO-DRE-02'!$A$5:$J$100,4,FALSE)) ->  | AR26: =IF($R26="","",VLOOKUP($R26,'FO-DRE-02'!$A$5:$J$100,5,FALSE)) ->  | AS26: =IF($R26="","",VLOOKUP($R26,'FO-DRE-02'!$A$5:$J$100,6,FALSE)) ->  | AT26: =IF($R26="","",VLOOKUP($R26,'FO-DRE-02'!$A$5:$J$100,7,FALSE)) ->  | AU26: =IF($R26="","",VLOOKUP($R26,'FO-DRE-02'!$A$5:$J$100,9,FALSE)) ->  | AV26: =IF($R26="","",VLOOKUP($R26,'FO-DRE-02'!$A$5:$M$100,11,FALSE)) ->  | AW26: =IF($R26="","",VLOOKUP($R26,'FO-DRE-02'!$A$5:$M$100,12,FALSE)) ->  | AX26: =IF($R26="","",VLOOKUP($R26,'FO-DRE-02'!$A$5:$M$100,13,FALSE)) ->  | BA26: 5000 | BD26: 17 | BF26: F/D | BG26: F/D
T27: =IF($P27="","",VLOOKUP($P27,'FO-DRE-01'!$A$7:$U$347,18,FALSE)) ->  | U27: =IF($P27="","",VLOOKUP($P27,'FO-DRE-01'!$A$7:$U$300,16,FALSE)) ->  | V27: =IF($P27="","",VLOOKUP($P27,'FO-DRE-01'!$A$7:$U$300,17,FALSE)) ->  | W27: =IF($P27="","",VLOOKUP($P27,'FO-DRE-01'!$A$7:$U$300,3,FALSE)) ->  | X27: =IF($P27="","",VLOOKUP($P27,'FO-DRE-01'!$A$7:$U$300,4,FALSE)) ->  | Y27: =IF($P27="","",VLOOKUP($P27,'FO-DRE-01'!$A$7:$U$300,5,FALSE)) ->  | Z27: =IF($P27="","",VLOOKUP($P27,'FO-DRE-01'!$A$7:$U$300,7,FALSE)) ->  | AA27: =IF($P27="","",VLOOKUP($P27,'FO-DRE-01'!$A$7:$U$300,8,FALSE)) ->  | AB27: =IF($P27="","",VLOOKUP($P27,'FO-DRE-01'!$A$7:$U$300,9,FALSE)) ->  | AC27: =IF($P27="","",VLOOKUP($P27,'FO-DRE-01'!$A$7:$U$300,10,FALSE)) ->  | AD27: =IF($P27="","",VLOOKUP($P27,'FO-DRE-01'!$A$7:$U$300,11,FALSE)) ->  | AE27: =IF($P27="","",VLOOKUP($P27,'FO-DRE-01'!$A$7:$U$300,12,FALSE)) ->  | AF27: =IF($P27="","",VLOOKUP($P27,'FO-DRE-01'!$A$7:$U$300,13,FALSE)) ->  | AG27: =IF($P27="","",VLOOKUP($P27,'FO-DRE-01'!$A$7:$U$300,14,FALSE)) ->  | AH27: W | AI27: =IF(Q27="","",VLOOKUP($Q27,'FO-DRE-04'!$A$6:$M$100,3,FALSE)) ->  | AJ27: =IF(Q27="","",VLOOKUP($Q27,'FO-DRE-04'!$A$6:$M$100,4,FALSE)) ->  | AK27: =IF(Q27="","",VLOOKUP($Q27,'FO-DRE-04'!$A$6:$M$100,5,FALSE)) ->  | AL27: =IF(Q27="","",VLOOKUP($Q27,'FO-DRE-04'!$A$6:$M$100,7,FALSE)) ->  | AM27: =IF(Q27="","",VLOOKUP($Q27,'FO-DRE-04'!$A$6:$M$100,11,FALSE)) ->  | AN27: =IF($R27="","",VLOOKUP($R27,'FO-DRE-02'!$A$6:$N$100,2,FALSE)) ->  | AO27: =IF($R27="","",VLOOKUP($R27,'FO-DRE-02'!$A$5:$J$100,3,FALSE)) ->  | AP27: =IF($R27="","",VLOOKUP($R27,'FO-DRE-02'!$A$5:$J$100,6,FALSE)) ->  | AQ27: =IF($R27="","",VLOOKUP($R27,'FO-DRE-02'!$A$5:$J$100,4,FALSE)) ->  | AR27: =IF($R27="","",VLOOKUP($R27,'FO-DRE-02'!$A$5:$J$100,5,FALSE)) ->  | AS27: =IF($R27="","",VLOOKUP($R27,'FO-DRE-02'!$A$5:$J$100,6,FALSE)) ->  | AT27: =IF($R27="","",VLOOKUP($R27,'FO-DRE-02'!$A$5:$J$100,7,FALSE)) ->  | AU27: =IF($R27="","",VLOOKUP($R27,'FO-DRE-02'!$A$5:$J$100,9,FALSE)) ->  | AV27: =IF($R27="","",VLOOKUP($R27,'FO-DRE-02'!$A$5:$M$100,11,FALSE)) ->  | AW27: =IF($R27="","",VLOOKUP($R27,'FO-DRE-02'!$A$5:$M$100,12,FALSE)) ->  | AX27: =IF($R27="","",VLOOKUP($R27,'FO-DRE-02'!$A$5:$M$100,13,FALSE)) ->  | BA27: 5000 | BD27: 18 | BF27: F/D | BG27: F/D
T28: =IF($P28="","",VLOOKUP($P28,'FO-DRE-01'!$A$7:$U$347,18,FALSE)) ->  | U28: =IF($P28="","",VLOOKUP($P28,'FO-DRE-01'!$A$7:$U$300,16,FALSE)) ->  | V28: =IF($P28="","",VLOOKUP($P28,'FO-DRE-01'!$A$7:$U$300,17,FALSE)) ->  | W28: =IF($P28="","",VLOOKUP($P28,'FO-DRE-01'!$A$7:$U$300,3,FALSE)) ->  | X28: =IF($P28="","",VLOOKUP($P28,'FO-DRE-01'!$A$7:$U$300,4,FALSE)) ->  | Y28: =IF($P28="","",VLOOKUP($P28,'FO-DRE-01'!$A$7:$U$300,5,FALSE)) ->  | Z28: =IF($P28="","",VLOOKUP($P28,'FO-DRE-01'!$A$7:$U$300,7,FALSE)) ->  | AA28: =IF($P28="","",VLOOKUP($P28,'FO-DRE-01'!$A$7:$U$300,8,FALSE)) ->  | AB28: =IF($P28="","",VLOOKUP($P28,'FO-DRE-01'!$A$7:$U$300,9,FALSE)) ->  | AC28: =IF($P28="","",VLOOKUP($P28,'FO-DRE-01'!$A$7:$U$300,10,FALSE)) ->  | AD28: =IF($P28="","",VLOOKUP($P28,'FO-DRE-01'!$A$7:$U$300,11,FALSE)) ->  | AE28: =IF($P28="","",VLOOKUP($P28,'FO-DRE-01'!$A$7:$U$300,12,FALSE)) ->  | AF28: =IF($P28="","",VLOOKUP($P28,'FO-DRE-01'!$A$7:$U$300,13,FALSE)) ->  | AG28: =IF($P28="","",VLOOKUP($P28,'FO-DRE-01'!$A$7:$U$300,14,FALSE)) ->  | AH28: W | AI28: =IF(Q28="","",VLOOKUP($Q28,'FO-DRE-04'!$A$6:$M$100,3,FALSE)) ->  | AJ28: =IF(Q28="","",VLOOKUP($Q28,'FO-DRE-04'!$A$6:$M$100,4,FALSE)) ->  | AK28: =IF(Q28="","",VLOOKUP($Q28,'FO-DRE-04'!$A$6:$M$100,5,FALSE)) ->  | AL28: =IF(Q28="","",VLOOKUP($Q28,'FO-DRE-04'!$A$6:$M$100,7,FALSE)) ->  | AM28: =IF(Q28="","",VLOOKUP($Q28,'FO-DRE-04'!$A$6:$M$100,11,FALSE)) ->  | AN28: =IF($R28="","",VLOOKUP($R28,'FO-DRE-02'!$A$6:$N$100,2,FALSE)) ->  | AO28: =IF($R28="","",VLOOKUP($R28,'FO-DRE-02'!$A$5:$J$100,3,FALSE)) ->  | AP28: =IF($R28="","",VLOOKUP($R28,'FO-DRE-02'!$A$5:$J$100,6,FALSE)) ->  | AQ28: =IF($R28="","",VLOOKUP($R28,'FO-DRE-02'!$A$5:$J$100,4,FALSE)) ->  | AR28: =IF($R28="","",VLOOKUP($R28,'FO-DRE-02'!$A$5:$J$100,5,FALSE)) ->  | AS28: =IF($R28="","",VLOOKUP($R28,'FO-DRE-02'!$A$5:$J$100,6,FALSE)) ->  | AT28: =IF($R28="","",VLOOKUP($R28,'FO-DRE-02'!$A$5:$J$100,7,FALSE)) ->  | AU28: =IF($R28="","",VLOOKUP($R28,'FO-DRE-02'!$A$5:$J$100,9,FALSE)) ->  | AV28: =IF($R28="","",VLOOKUP($R28,'FO-DRE-02'!$A$5:$M$100,11,FALSE)) ->  | AW28: =IF($R28="","",VLOOKUP($R28,'FO-DRE-02'!$A$5:$M$100,12,FALSE)) ->  | AX28: =IF($R28="","",VLOOKUP($R28,'FO-DRE-02'!$A$5:$M$100,13,FALSE)) ->  | BA28: 5000 | BD28: 19 | BF28: F/D | BG28: F/D
T29: =IF($P29="","",VLOOKUP($P29,'FO-DRE-01'!$A$7:$U$347,18,FALSE)) ->  | U29: =IF($P29="","",VLOOKUP($P29,'FO-DRE-01'!$A$7:$U$300,16,FALSE)) ->  | V29: =IF($P29="","",VLOOKUP($P29,'FO-DRE-01'!$A$7:$U$300,17,FALSE)) ->  | W29: =IF($P29="","",VLOOKUP($P29,'FO-DRE-01'!$A$7:$U$300,3,FALSE)) ->  | X29: =IF($P29="","",VLOOKUP($P29,'FO-DRE-01'!$A$7:$U$300,4,FALSE)) ->  | Y29: =IF($P29="","",VLOOKUP($P29,'FO-DRE-01'!$A$7:$U$300,5,FALSE)) ->  | Z29: =IF($P29="","",VLOOKUP($P29,'FO-DRE-01'!$A$7:$U$300,7,FALSE)) ->  | AA29: =IF($P29="","",VLOOKUP($P29,'FO-DRE-01'!$A$7:$U$300,8,FALSE)) ->  | AB29: =IF($P29="","",VLOOKUP($P29,'FO-DRE-01'!$A$7:$U$300,9,FALSE)) ->  | AC29: =IF($P29="","",VLOOKUP($P29,'FO-DRE-01'!$A$7:$U$300,10,FALSE)) ->  | AD29: =IF($P29="","",VLOOKUP($P29,'FO-DRE-01'!$A$7:$U$300,11,FALSE)) ->  | AE29: =IF($P29="","",VLOOKUP($P29,'FO-DRE-01'!$A$7:$U$300,12,FALSE)) ->  | AF29: =IF($P29="","",VLOOKUP($P29,'FO-DRE-01'!$A$7:$U$300,13,FALSE)) ->  | AG29: =IF($P29="","",VLOOKUP($P29,'FO-DRE-01'!$A$7:$U$300,14,FALSE)) ->  | AH29: W | AI29: =IF(Q29="","",VLOOKUP($Q29,'FO-DRE-04'!$A$6:$M$100,3,FALSE)) ->  | AJ29: =IF(Q29="","",VLOOKUP($Q29,'FO-DRE-04'!$A$6:$M$100,4,FALSE)) ->  | AK29: =IF(Q29="","",VLOOKUP($Q29,'FO-DRE-04'!$A$6:$M$100,5,FALSE)) ->  | AL29: =IF(Q29="","",VLOOKUP($Q29,'FO-DRE-04'!$A$6:$M$100,7,FALSE)) ->  | AM29: =IF(Q29="","",VLOOKUP($Q29,'FO-DRE-04'!$A$6:$M$100,11,FALSE)) ->  | AN29: =IF($R29="","",VLOOKUP($R29,'FO-DRE-02'!$A$6:$N$100,2,FALSE)) ->  | AO29: =IF($R29="","",VLOOKUP($R29,'FO-DRE-02'!$A$5:$J$100,3,FALSE)) ->  | AP29: =IF($R29="","",VLOOKUP($R29,'FO-DRE-02'!$A$5:$J$100,6,FALSE)) ->  | AQ29: =IF($R29="","",VLOOKUP($R29,'FO-DRE-02'!$A$5:$J$100,4,FALSE)) ->  | AR29: =IF($R29="","",VLOOKUP($R29,'FO-DRE-02'!$A$5:$J$100,5,FALSE)) ->  | AS29: =IF($R29="","",VLOOKUP($R29,'FO-DRE-02'!$A$5:$J$100,6,FALSE)) ->  | AT29: =IF($R29="","",VLOOKUP($R29,'FO-DRE-02'!$A$5:$J$100,7,FALSE)) ->  | AU29: =IF($R29="","",VLOOKUP($R29,'FO-DRE-02'!$A$5:$J$100,9,FALSE)) ->  | AV29: =IF($R29="","",VLOOKUP($R29,'FO-DRE-02'!$A$5:$M$100,11,FALSE)) ->  | AW29: =IF($R29="","",VLOOKUP($R29,'FO-DRE-02'!$A$5:$M$100,12,FALSE)) ->  | AX29: =IF($R29="","",VLOOKUP($R29,'FO-DRE-02'!$A$5:$M$100,13,FALSE)) ->  | BA29: 5000 | BD29: 20 | BF29: F/D | BG29: F/D
T30: =IF($P30="","",VLOOKUP($P30,'FO-DRE-01'!$A$7:$U$347,18,FALSE)) ->  | U30: =IF($P30="","",VLOOKUP($P30,'FO-DRE-01'!$A$7:$U$300,16,FALSE)) ->  | V30: =IF($P30="","",VLOOKUP($P30,'FO-DRE-01'!$A$7:$U$300,17,FALSE)) ->  | W30: =IF($P30="","",VLOOKUP($P30,'FO-DRE-01'!$A$7:$U$300,3,FALSE)) ->  | X30: =IF($P30="","",VLOOKUP($P30,'FO-DRE-01'!$A$7:$U$300,4,FALSE)) ->  | Y30: =IF($P30="","",VLOOKUP($P30,'FO-DRE-01'!$A$7:$U$300,5,FALSE)) ->  | Z30: =IF($P30="","",VLOOKUP($P30,'FO-DRE-01'!$A$7:$U$300,7,FALSE)) ->  | AA30: =IF($P30="","",VLOOKUP($P30,'FO-DRE-01'!$A$7:$U$300,8,FALSE)) ->  | AB30: =IF($P30="","",VLOOKUP($P30,'FO-DRE-01'!$A$7:$U$300,9,FALSE)) ->  | AC30: =IF($P30="","",VLOOKUP($P30,'FO-DRE-01'!$A$7:$U$300,10,FALSE)) ->  | AD30: =IF($P30="","",VLOOKUP($P30,'FO-DRE-01'!$A$7:$U$300,11,FALSE)) ->  | AE30: =IF($P30="","",VLOOKUP($P30,'FO-DRE-01'!$A$7:$U$300,12,FALSE)) ->  | AF30: =IF($P30="","",VLOOKUP($P30,'FO-DRE-01'!$A$7:$U$300,13,FALSE)) ->  | AG30: =IF($P30="","",VLOOKUP($P30,'FO-DRE-01'!$A$7:$U$300,14,FALSE)) ->  | AH30: W | AI30: =IF(Q30="","",VLOOKUP($Q30,'FO-DRE-04'!$A$6:$M$100,3,FALSE)) ->  | AJ30: =IF(Q30="","",VLOOKUP($Q30,'FO-DRE-04'!$A$6:$M$100,4,FALSE)) ->  | AK30: =IF(Q30="","",VLOOKUP($Q30,'FO-DRE-04'!$A$6:$M$100,5,FALSE)) ->  | AL30: =IF(Q30="","",VLOOKUP($Q30,'FO-DRE-04'!$A$6:$M$100,7,FALSE)) ->  | AM30: =IF(Q30="","",VLOOKUP($Q30,'FO-DRE-04'!$A$6:$M$100,11,FALSE)) ->  | AN30: =IF($R30="","",VLOOKUP($R30,'FO-DRE-02'!$A$6:$N$100,2,FALSE)) ->  | AO30: =IF($R30="","",VLOOKUP($R30,'FO-DRE-02'!$A$5:$J$100,3,FALSE)) ->  | AP30: =IF($R30="","",VLOOKUP($R30,'FO-DRE-02'!$A$5:$J$100,6,FALSE)) ->  | AQ30: =IF($R30="","",VLOOKUP($R30,'FO-DRE-02'!$A$5:$J$100,4,FALSE)) ->  | AR30: =IF($R30="","",VLOOKUP($R30,'FO-DRE-02'!$A$5:$J$100,5,FALSE)) ->  | AS30: =IF($R30="","",VLOOKUP($R30,'FO-DRE-02'!$A$5:$J$100,6,FALSE)) ->  | AT30: =IF($R30="","",VLOOKUP($R30,'FO-DRE-02'!$A$5:$J$100,7,FALSE)) ->  | AU30: =IF($R30="","",VLOOKUP($R30,'FO-DRE-02'!$A$5:$J$100,9,FALSE)) ->  | AV30: =IF($R30="","",VLOOKUP($R30,'FO-DRE-02'!$A$5:$M$100,11,FALSE)) ->  | AW30: =IF($R30="","",VLOOKUP($R30,'FO-DRE-02'!$A$5:$M$100,12,FALSE)) ->  | AX30: =IF($R30="","",VLOOKUP($R30,'FO-DRE-02'!$A$5:$M$100,13,FALSE)) ->  | BA30: 5000 | BD30: 21 | BF30: F/D | BG30: F/D
T31: =IF($P31="","",VLOOKUP($P31,'FO-DRE-01'!$A$7:$U$347,18,FALSE)) ->  | U31: =IF($P31="","",VLOOKUP($P31,'FO-DRE-01'!$A$7:$U$300,16,FALSE)) ->  | V31: =IF($P31="","",VLOOKUP($P31,'FO-DRE-01'!$A$7:$U$300,17,FALSE)) ->  | W31: =IF($P31="","",VLOOKUP($P31,'FO-DRE-01'!$A$7:$U$300,3,FALSE)) ->  | X31: =IF($P31="","",VLOOKUP($P31,'FO-DRE-01'!$A$7:$U$300,4,FALSE)) ->  | Y31: =IF($P31="","",VLOOKUP($P31,'FO-DRE-01'!$A$7:$U$300,5,FALSE)) ->  | Z31: =IF($P31="","",VLOOKUP($P31,'FO-DRE-01'!$A$7:$U$300,7,FALSE)) ->  | AA31: =IF($P31="","",VLOOKUP($P31,'FO-DRE-01'!$A$7:$U$300,8,FALSE)) ->  | AB31: =IF($P31="","",VLOOKUP($P31,'FO-DRE-01'!$A$7:$U$300,9,FALSE)) ->  | AC31: =IF($P31="","",VLOOKUP($P31,'FO-DRE-01'!$A$7:$U$300,10,FALSE)) ->  | AD31: =IF($P31="","",VLOOKUP($P31,'FO-DRE-01'!$A$7:$U$300,11,FALSE)) ->  | AE31: =IF($P31="","",VLOOKUP($P31,'FO-DRE-01'!$A$7:$U$300,12,FALSE)) ->  | AF31: =IF($P31="","",VLOOKUP($P31,'FO-DRE-01'!$A$7:$U$300,13,FALSE)) ->  | AG31: =IF($P31="","",VLOOKUP($P31,'FO-DRE-01'!$A$7:$U$300,14,FALSE)) ->  | AH31: W | AI31: =IF(Q31="","",VLOOKUP($Q31,'FO-DRE-04'!$A$6:$M$100,3,FALSE)) ->  | AJ31: =IF(Q31="","",VLOOKUP($Q31,'FO-DRE-04'!$A$6:$M$100,4,FALSE)) ->  | AK31: =IF(Q31="","",VLOOKUP($Q31,'FO-DRE-04'!$A$6:$M$100,5,FALSE)) ->  | AL31: =IF(Q31="","",VLOOKUP($Q31,'FO-DRE-04'!$A$6:$M$100,7,FALSE)) ->  | AM31: =IF(Q31="","",VLOOKUP($Q31,'FO-DRE-04'!$A$6:$M$100,11,FALSE)) ->  | AN31: =IF($R31="","",VLOOKUP($R31,'FO-DRE-02'!$A$6:$N$100,2,FALSE)) ->  | AO31: =IF($R31="","",VLOOKUP($R31,'FO-DRE-02'!$A$5:$J$100,3,FALSE)) ->  | AP31: =IF($R31="","",VLOOKUP($R31,'FO-DRE-02'!$A$5:$J$100,6,FALSE)) ->  | AQ31: =IF($R31="","",VLOOKUP($R31,'FO-DRE-02'!$A$5:$J$100,4,FALSE)) ->  | AR31: =IF($R31="","",VLOOKUP($R31,'FO-DRE-02'!$A$5:$J$100,5,FALSE)) ->  | AS31: =IF($R31="","",VLOOKUP($R31,'FO-DRE-02'!$A$5:$J$100,6,FALSE)) ->  | AT31: =IF($R31="","",VLOOKUP($R31,'FO-DRE-02'!$A$5:$J$100,7,FALSE)) ->  | AU31: =IF($R31="","",VLOOKUP($R31,'FO-DRE-02'!$A$5:$J$100,9,FALSE)) ->  | AV31: =IF($R31="","",VLOOKUP($R31,'FO-DRE-02'!$A$5:$M$100,11,FALSE)) ->  | AW31: =IF($R31="","",VLOOKUP($R31,'FO-DRE-02'!$A$5:$M$100,12,FALSE)) ->  | AX31: =IF($R31="","",VLOOKUP($R31,'FO-DRE-02'!$A$5:$M$100,13,FALSE)) ->  | BA31: 5000 | BD31: 22 | BF31: F/D | BG31: F/D
T32: =IF($P32="","",VLOOKUP($P32,'FO-DRE-01'!$A$7:$U$347,18,FALSE)) ->  | U32: =IF($P32="","",VLOOKUP($P32,'FO-DRE-01'!$A$7:$U$300,16,FALSE)) ->  | V32: =IF($P32="","",VLOOKUP($P32,'FO-DRE-01'!$A$7:$U$300,17,FALSE)) ->  | W32: =IF($P32="","",VLOOKUP($P32,'FO-DRE-01'!$A$7:$U$300,3,FALSE)) ->  | X32: =IF($P32="","",VLOOKUP($P32,'FO-DRE-01'!$A$7:$U$300,4,FALSE)) ->  | Y32: =IF($P32="","",VLOOKUP($P32,'FO-DRE-01'!$A$7:$U$300,5,FALSE)) ->  | Z32: =IF($P32="","",VLOOKUP($P32,'FO-DRE-01'!$A$7:$U$300,7,FALSE)) ->  | AA32: =IF($P32="","",VLOOKUP($P32,'FO-DRE-01'!$A$7:$U$300,8,FALSE)) ->  | AB32: =IF($P32="","",VLOOKUP($P32,'FO-DRE-01'!$A$7:$U$300,9,FALSE)) ->  | AC32: =IF($P32="","",VLOOKUP($P32,'FO-DRE-01'!$A$7:$U$300,10,FALSE)) ->  | AD32: =IF($P32="","",VLOOKUP($P32,'FO-DRE-01'!$A$7:$U$300,11,FALSE)) ->  | AE32: =IF($P32="","",VLOOKUP($P32,'FO-DRE-01'!$A$7:$U$300,12,FALSE)) ->  | AF32: =IF($P32="","",VLOOKUP($P32,'FO-DRE-01'!$A$7:$U$300,13,FALSE)) ->  | AG32: =IF($P32="","",VLOOKUP($P32,'FO-DRE-01'!$A$7:$U$300,14,FALSE)) ->  | AH32: W | AI32: =IF(Q32="","",VLOOKUP($Q32,'FO-DRE-04'!$A$6:$M$100,3,FALSE)) ->  | AJ32: =IF(Q32="","",VLOOKUP($Q32,'FO-DRE-04'!$A$6:$M$100,4,FALSE)) ->  | AK32: =IF(Q32="","",VLOOKUP($Q32,'FO-DRE-04'!$A$6:$M$100,5,FALSE)) ->  | AL32: =IF(Q32="","",VLOOKUP($Q32,'FO-DRE-04'!$A$6:$M$100,7,FALSE)) ->  | AM32: =IF(Q32="","",VLOOKUP($Q32,'FO-DRE-04'!$A$6:$M$100,11,FALSE)) ->  | AN32: =IF($R32="","",VLOOKUP($R32,'FO-DRE-02'!$A$6:$N$100,2,FALSE)) ->  | AO32: =IF($R32="","",VLOOKUP($R32,'FO-DRE-02'!$A$5:$J$100,3,FALSE)) ->  | AP32: =IF($R32="","",VLOOKUP($R32,'FO-DRE-02'!$A$5:$J$100,6,FALSE)) ->  | AQ32: =IF($R32="","",VLOOKUP($R32,'FO-DRE-02'!$A$5:$J$100,4,FALSE)) ->  | AR32: =IF($R32="","",VLOOKUP($R32,'FO-DRE-02'!$A$5:$J$100,5,FALSE)) ->  | AS32: =IF($R32="","",VLOOKUP($R32,'FO-DRE-02'!$A$5:$J$100,6,FALSE)) ->  | AT32: =IF($R32="","",VLOOKUP($R32,'FO-DRE-02'!$A$5:$J$100,7,FALSE)) ->  | AU32: =IF($R32="","",VLOOKUP($R32,'FO-DRE-02'!$A$5:$J$100,9,FALSE)) ->  | AV32: =IF($R32="","",VLOOKUP($R32,'FO-DRE-02'!$A$5:$M$100,11,FALSE)) ->  | AW32: =IF($R32="","",VLOOKUP($R32,'FO-DRE-02'!$A$5:$M$100,12,FALSE)) ->  | AX32: =IF($R32="","",VLOOKUP($R32,'FO-DRE-02'!$A$5:$M$100,13,FALSE)) ->  | BA32: 5000 | BD32: 23 | BF32: F/D | BG32: F/D
T33: =IF($P33="","",VLOOKUP($P33,'FO-DRE-01'!$A$7:$U$347,18,FALSE)) ->  | U33: =IF($P33="","",VLOOKUP($P33,'FO-DRE-01'!$A$7:$U$300,16,FALSE)) ->  | V33: =IF($P33="","",VLOOKUP($P33,'FO-DRE-01'!$A$7:$U$300,17,FALSE)) ->  | W33: =IF($P33="","",VLOOKUP($P33,'FO-DRE-01'!$A$7:$U$300,3,FALSE)) ->  | X33: =IF($P33="","",VLOOKUP($P33,'FO-DRE-01'!$A$7:$U$300,4,FALSE)) ->  | Y33: =IF($P33="","",VLOOKUP($P33,'FO-DRE-01'!$A$7:$U$300,5,FALSE)) ->  | Z33: =IF($P33="","",VLOOKUP($P33,'FO-DRE-01'!$A$7:$U$300,7,FALSE)) ->  | AA33: =IF($P33="","",VLOOKUP($P33,'FO-DRE-01'!$A$7:$U$300,8,FALSE)) ->  | AB33: =IF($P33="","",VLOOKUP($P33,'FO-DRE-01'!$A$7:$U$300,9,FALSE)) ->  | AC33: =IF($P33="","",VLOOKUP($P33,'FO-DRE-01'!$A$7:$U$300,10,FALSE)) ->  | AD33: =IF($P33="","",VLOOKUP($P33,'FO-DRE-01'!$A$7:$U$300,11,FALSE)) ->  | AE33: =IF($P33="","",VLOOKUP($P33,'FO-DRE-01'!$A$7:$U$300,12,FALSE)) ->  | AF33: =IF($P33="","",VLOOKUP($P33,'FO-DRE-01'!$A$7:$U$300,13,FALSE)) ->  | AG33: =IF($P33="","",VLOOKUP($P33,'FO-DRE-01'!$A$7:$U$300,14,FALSE)) ->  | AH33: W | AI33: =IF(Q33="","",VLOOKUP($Q33,'FO-DRE-04'!$A$6:$M$100,3,FALSE)) ->  | AJ33: =IF(Q33="","",VLOOKUP($Q33,'FO-DRE-04'!$A$6:$M$100,4,FALSE)) ->  | AK33: =IF(Q33="","",VLOOKUP($Q33,'FO-DRE-04'!$A$6:$M$100,5,FALSE)) ->  | AL33: =IF(Q33="","",VLOOKUP($Q33,'FO-DRE-04'!$A$6:$M$100,7,FALSE)) ->  | AM33: =IF(Q33="","",VLOOKUP($Q33,'FO-DRE-04'!$A$6:$M$100,11,FALSE)) ->  | AN33: =IF($R33="","",VLOOKUP($R33,'FO-DRE-02'!$A$6:$N$100,2,FALSE)) ->  | AO33: =IF($R33="","",VLOOKUP($R33,'FO-DRE-02'!$A$5:$J$100,3,FALSE)) ->  | AP33: =IF($R33="","",VLOOKUP($R33,'FO-DRE-02'!$A$5:$J$100,6,FALSE)) ->  | AQ33: =IF($R33="","",VLOOKUP($R33,'FO-DRE-02'!$A$5:$J$100,4,FALSE)) ->  | AR33: =IF($R33="","",VLOOKUP($R33,'FO-DRE-02'!$A$5:$J$100,5,FALSE)) ->  | AS33: =IF($R33="","",VLOOKUP($R33,'FO-DRE-02'!$A$5:$J$100,6,FALSE)) ->  | AT33: =IF($R33="","",VLOOKUP($R33,'FO-DRE-02'!$A$5:$J$100,7,FALSE)) ->  | AU33: =IF($R33="","",VLOOKUP($R33,'FO-DRE-02'!$A$5:$J$100,9,FALSE)) ->  | AV33: =IF($R33="","",VLOOKUP($R33,'FO-DRE-02'!$A$5:$M$100,11,FALSE)) ->  | AW33: =IF($R33="","",VLOOKUP($R33,'FO-DRE-02'!$A$5:$M$100,12,FALSE)) ->  | AX33: =IF($R33="","",VLOOKUP($R33,'FO-DRE-02'!$A$5:$M$100,13,FALSE)) ->  | BA33: 5000 | BD33: 24 | BF33: F/D | BG33: F/D
T34: =IF($P34="","",VLOOKUP($P34,'FO-DRE-01'!$A$7:$U$347,18,FALSE)) ->  | U34: =IF($P34="","",VLOOKUP($P34,'FO-DRE-01'!$A$7:$U$300,16,FALSE)) ->  | V34: =IF($P34="","",VLOOKUP($P34,'FO-DRE-01'!$A$7:$U$300,17,FALSE)) ->  | W34: =IF($P34="","",VLOOKUP($P34,'FO-DRE-01'!$A$7:$U$300,3,FALSE)) ->  | X34: =IF($P34="","",VLOOKUP($P34,'FO-DRE-01'!$A$7:$U$300,4,FALSE)) ->  | Y34: =IF($P34="","",VLOOKUP($P34,'FO-DRE-01'!$A$7:$U$300,5,FALSE)) ->  | Z34: =IF($P34="","",VLOOKUP($P34,'FO-DRE-01'!$A$7:$U$300,7,FALSE)) ->  | AA34: =IF($P34="","",VLOOKUP($P34,'FO-DRE-01'!$A$7:$U$300,8,FALSE)) ->  | AB34: =IF($P34="","",VLOOKUP($P34,'FO-DRE-01'!$A$7:$U$300,9,FALSE)) ->  | AC34: =IF($P34="","",VLOOKUP($P34,'FO-DRE-01'!$A$7:$U$300,10,FALSE)) ->  | AD34: =IF($P34="","",VLOOKUP($P34,'FO-DRE-01'!$A$7:$U$300,11,FALSE)) ->  | AE34: =IF($P34="","",VLOOKUP($P34,'FO-DRE-01'!$A$7:$U$300,12,FALSE)) ->  | AF34: =IF($P34="","",VLOOKUP($P34,'FO-DRE-01'!$A$7:$U$300,13,FALSE)) ->  | AG34: =IF($P34="","",VLOOKUP($P34,'FO-DRE-01'!$A$7:$U$300,14,FALSE)) ->  | AH34: W | AI34: =IF(Q34="","",VLOOKUP($Q34,'FO-DRE-04'!$A$6:$M$100,3,FALSE)) ->  | AJ34: =IF(Q34="","",VLOOKUP($Q34,'FO-DRE-04'!$A$6:$M$100,4,FALSE)) ->  | AK34: =IF(Q34="","",VLOOKUP($Q34,'FO-DRE-04'!$A$6:$M$100,5,FALSE)) ->  | AL34: =IF(Q34="","",VLOOKUP($Q34,'FO-DRE-04'!$A$6:$M$100,7,FALSE)) ->  | AM34: =IF(Q34="","",VLOOKUP($Q34,'FO-DRE-04'!$A$6:$M$100,11,FALSE)) ->  | AN34: =IF($R34="","",VLOOKUP($R34,'FO-DRE-02'!$A$6:$N$100,2,FALSE)) ->  | AO34: =IF($R34="","",VLOOKUP($R34,'FO-DRE-02'!$A$5:$J$100,3,FALSE)) ->  | AP34: =IF($R34="","",VLOOKUP($R34,'FO-DRE-02'!$A$5:$J$100,6,FALSE)) ->  | AQ34: =IF($R34="","",VLOOKUP($R34,'FO-DRE-02'!$A$5:$J$100,4,FALSE)) ->  | AR34: =IF($R34="","",VLOOKUP($R34,'FO-DRE-02'!$A$5:$J$100,5,FALSE)) ->  | AS34: =IF($R34="","",VLOOKUP($R34,'FO-DRE-02'!$A$5:$J$100,6,FALSE)) ->  | AT34: =IF($R34="","",VLOOKUP($R34,'FO-DRE-02'!$A$5:$J$100,7,FALSE)) ->  | AU34: =IF($R34="","",VLOOKUP($R34,'FO-DRE-02'!$A$5:$J$100,9,FALSE)) ->  | AV34: =IF($R34="","",VLOOKUP($R34,'FO-DRE-02'!$A$5:$M$100,11,FALSE)) ->  | AW34: =IF($R34="","",VLOOKUP($R34,'FO-DRE-02'!$A$5:$M$100,12,FALSE)) ->  | AX34: =IF($R34="","",VLOOKUP($R34,'FO-DRE-02'!$A$5:$M$100,13,FALSE)) ->  | BA34: 5000 | BD34: 25 | BF34: F/D | BG34: F/D
T35: =IF($P35="","",VLOOKUP($P35,'FO-DRE-01'!$A$7:$U$347,18,FALSE)) ->  | U35: =IF($P35="","",VLOOKUP($P35,'FO-DRE-01'!$A$7:$U$300,16,FALSE)) ->  | V35: =IF($P35="","",VLOOKUP($P35,'FO-DRE-01'!$A$7:$U$300,17,FALSE)) ->  | W35: =IF($P35="","",VLOOKUP($P35,'FO-DRE-01'!$A$7:$U$300,3,FALSE)) ->  | X35: =IF($P35="","",VLOOKUP($P35,'FO-DRE-01'!$A$7:$U$300,4,FALSE)) ->  | Y35: =IF($P35="","",VLOOKUP($P35,'FO-DRE-01'!$A$7:$U$300,5,FALSE)) ->  | Z35: =IF($P35="","",VLOOKUP($P35,'FO-DRE-01'!$A$7:$U$300,7,FALSE)) ->  | AA35: =IF($P35="","",VLOOKUP($P35,'FO-DRE-01'!$A$7:$U$300,8,FALSE)) ->  | AB35: =IF($P35="","",VLOOKUP($P35,'FO-DRE-01'!$A$7:$U$300,9,FALSE)) ->  | AC35: =IF($P35="","",VLOOKUP($P35,'FO-DRE-01'!$A$7:$U$300,10,FALSE)) ->  | AD35: =IF($P35="","",VLOOKUP($P35,'FO-DRE-01'!$A$7:$U$300,11,FALSE)) ->  | AE35: =IF($P35="","",VLOOKUP($P35,'FO-DRE-01'!$A$7:$U$300,12,FALSE)) ->  | AF35: =IF($P35="","",VLOOKUP($P35,'FO-DRE-01'!$A$7:$U$300,13,FALSE)) ->  | AG35: =IF($P35="","",VLOOKUP($P35,'FO-DRE-01'!$A$7:$U$300,14,FALSE)) ->  | AH35: W | AI35: =IF(Q35="","",VLOOKUP($Q35,'FO-DRE-04'!$A$6:$M$100,3,FALSE)) ->  | AJ35: =IF(Q35="","",VLOOKUP($Q35,'FO-DRE-04'!$A$6:$M$100,4,FALSE)) ->  | AK35: =IF(Q35="","",VLOOKUP($Q35,'FO-DRE-04'!$A$6:$M$100,5,FALSE)) ->  | AL35: =IF(Q35="","",VLOOKUP($Q35,'FO-DRE-04'!$A$6:$M$100,7,FALSE)) ->  | AM35: =IF(Q35="","",VLOOKUP($Q35,'FO-DRE-04'!$A$6:$M$100,11,FALSE)) ->  | AN35: =IF($R35="","",VLOOKUP($R35,'FO-DRE-02'!$A$6:$N$100,2,FALSE)) ->  | AO35: =IF($R35="","",VLOOKUP($R35,'FO-DRE-02'!$A$5:$J$100,3,FALSE)) ->  | AP35: =IF($R35="","",VLOOKUP($R35,'FO-DRE-02'!$A$5:$J$100,6,FALSE)) ->  | AQ35: =IF($R35="","",VLOOKUP($R35,'FO-DRE-02'!$A$5:$J$100,4,FALSE)) ->  | AR35: =IF($R35="","",VLOOKUP($R35,'FO-DRE-02'!$A$5:$J$100,5,FALSE)) ->  | AS35: =IF($R35="","",VLOOKUP($R35,'FO-DRE-02'!$A$5:$J$100,6,FALSE)) ->  | AT35: =IF($R35="","",VLOOKUP($R35,'FO-DRE-02'!$A$5:$J$100,7,FALSE)) ->  | AU35: =IF($R35="","",VLOOKUP($R35,'FO-DRE-02'!$A$5:$J$100,9,FALSE)) ->  | AV35: =IF($R35="","",VLOOKUP($R35,'FO-DRE-02'!$A$5:$M$100,11,FALSE)) ->  | AW35: =IF($R35="","",VLOOKUP($R35,'FO-DRE-02'!$A$5:$M$100,12,FALSE)) ->  | AX35: =IF($R35="","",VLOOKUP($R35,'FO-DRE-02'!$A$5:$M$100,13,FALSE)) ->  | BA35: 5000 | BD35: 26 | BF35: F/D | BG35: F/D
T36: =IF($P36="","",VLOOKUP($P36,'FO-DRE-01'!$A$7:$U$347,18,FALSE)) ->  | U36: =IF($P36="","",VLOOKUP($P36,'FO-DRE-01'!$A$7:$U$300,16,FALSE)) ->  | V36: =IF($P36="","",VLOOKUP($P36,'FO-DRE-01'!$A$7:$U$300,17,FALSE)) ->  | W36: =IF($P36="","",VLOOKUP($P36,'FO-DRE-01'!$A$7:$U$300,3,FALSE)) ->  | X36: =IF($P36="","",VLOOKUP($P36,'FO-DRE-01'!$A$7:$U$300,4,FALSE)) ->  | Y36: =IF($P36="","",VLOOKUP($P36,'FO-DRE-01'!$A$7:$U$300,5,FALSE)) ->  | Z36: =IF($P36="","",VLOOKUP($P36,'FO-DRE-01'!$A$7:$U$300,7,FALSE)) ->  | AA36: =IF($P36="","",VLOOKUP($P36,'FO-DRE-01'!$A$7:$U$300,8,FALSE)) ->  | AB36: =IF($P36="","",VLOOKUP($P36,'FO-DRE-01'!$A$7:$U$300,9,FALSE)) ->  | AC36: =IF($P36="","",VLOOKUP($P36,'FO-DRE-01'!$A$7:$U$300,10,FALSE)) ->  | AD36: =IF($P36="","",VLOOKUP($P36,'FO-DRE-01'!$A$7:$U$300,11,FALSE)) ->  | AE36: =IF($P36="","",VLOOKUP($P36,'FO-DRE-01'!$A$7:$U$300,12,FALSE)) ->  | AF36: =IF($P36="","",VLOOKUP($P36,'FO-DRE-01'!$A$7:$U$300,13,FALSE)) ->  | AG36: =IF($P36="","",VLOOKUP($P36,'FO-DRE-01'!$A$7:$U$300,14,FALSE)) ->  | AH36: W | AI36: =IF(Q36="","",VLOOKUP($Q36,'FO-DRE-04'!$A$6:$M$100,3,FALSE)) ->  | AJ36: =IF(Q36="","",VLOOKUP($Q36,'FO-DRE-04'!$A$6:$M$100,4,FALSE)) ->  | AK36: =IF(Q36="","",VLOOKUP($Q36,'FO-DRE-04'!$A$6:$M$100,5,FALSE)) ->  | AL36: =IF(Q36="","",VLOOKUP($Q36,'FO-DRE-04'!$A$6:$M$100,7,FALSE)) ->  | AM36: =IF(Q36="","",VLOOKUP($Q36,'FO-DRE-04'!$A$6:$M$100,11,FALSE)) ->  | AN36: =IF($R36="","",VLOOKUP($R36,'FO-DRE-02'!$A$6:$N$100,2,FALSE)) ->  | AO36: =IF($R36="","",VLOOKUP($R36,'FO-DRE-02'!$A$5:$J$100,3,FALSE)) ->  | AP36: =IF($R36="","",VLOOKUP($R36,'FO-DRE-02'!$A$5:$J$100,6,FALSE)) ->  | AQ36: =IF($R36="","",VLOOKUP($R36,'FO-DRE-02'!$A$5:$J$100,4,FALSE)) ->  | AR36: =IF($R36="","",VLOOKUP($R36,'FO-DRE-02'!$A$5:$J$100,5,FALSE)) ->  | AS36: =IF($R36="","",VLOOKUP($R36,'FO-DRE-02'!$A$5:$J$100,6,FALSE)) ->  | AT36: =IF($R36="","",VLOOKUP($R36,'FO-DRE-02'!$A$5:$J$100,7,FALSE)) ->  | AU36: =IF($R36="","",VLOOKUP($R36,'FO-DRE-02'!$A$5:$J$100,9,FALSE)) ->  | AV36: =IF($R36="","",VLOOKUP($R36,'FO-DRE-02'!$A$5:$M$100,11,FALSE)) ->  | AW36: =IF($R36="","",VLOOKUP($R36,'FO-DRE-02'!$A$5:$M$100,12,FALSE)) ->  | AX36: =IF($R36="","",VLOOKUP($R36,'FO-DRE-02'!$A$5:$M$100,13,FALSE)) ->  | BA36: 5000 | BD36: 27 | BF36: F/D | BG36: F/D
T37: =IF($P37="","",VLOOKUP($P37,'FO-DRE-01'!$A$7:$U$347,18,FALSE)) ->  | U37: =IF($P37="","",VLOOKUP($P37,'FO-DRE-01'!$A$7:$U$300,16,FALSE)) ->  | V37: =IF($P37="","",VLOOKUP($P37,'FO-DRE-01'!$A$7:$U$300,17,FALSE)) ->  | W37: =IF($P37="","",VLOOKUP($P37,'FO-DRE-01'!$A$7:$U$300,3,FALSE)) ->  | X37: =IF($P37="","",VLOOKUP($P37,'FO-DRE-01'!$A$7:$U$300,4,FALSE)) ->  | Y37: =IF($P37="","",VLOOKUP($P37,'FO-DRE-01'!$A$7:$U$300,5,FALSE)) ->  | Z37: =IF($P37="","",VLOOKUP($P37,'FO-DRE-01'!$A$7:$U$300,7,FALSE)) ->  | AA37: =IF($P37="","",VLOOKUP($P37,'FO-DRE-01'!$A$7:$U$300,8,FALSE)) ->  | AB37: =IF($P37="","",VLOOKUP($P37,'FO-DRE-01'!$A$7:$U$300,9,FALSE)) ->  | AC37: =IF($P37="","",VLOOKUP($P37,'FO-DRE-01'!$A$7:$U$300,10,FALSE)) ->  | AD37: =IF($P37="","",VLOOKUP($P37,'FO-DRE-01'!$A$7:$U$300,11,FALSE)) ->  | AE37: =IF($P37="","",VLOOKUP($P37,'FO-DRE-01'!$A$7:$U$300,12,FALSE)) ->  | AF37: =IF($P37="","",VLOOKUP($P37,'FO-DRE-01'!$A$7:$U$300,13,FALSE)) ->  | AG37: =IF($P37="","",VLOOKUP($P37,'FO-DRE-01'!$A$7:$U$300,14,FALSE)) ->  | AH37: W | AI37: =IF(Q37="","",VLOOKUP($Q37,'FO-DRE-04'!$A$6:$M$100,3,FALSE)) ->  | AJ37: =IF(Q37="","",VLOOKUP($Q37,'FO-DRE-04'!$A$6:$M$100,4,FALSE)) ->  | AK37: =IF(Q37="","",VLOOKUP($Q37,'FO-DRE-04'!$A$6:$M$100,5,FALSE)) ->  | AL37: =IF(Q37="","",VLOOKUP($Q37,'FO-DRE-04'!$A$6:$M$100,7,FALSE)) ->  | AM37: =IF(Q37="","",VLOOKUP($Q37,'FO-DRE-04'!$A$6:$M$100,11,FALSE)) ->  | AN37: =IF($R37="","",VLOOKUP($R37,'FO-DRE-02'!$A$6:$N$100,2,FALSE)) ->  | AO37: =IF($R37="","",VLOOKUP($R37,'FO-DRE-02'!$A$5:$J$100,3,FALSE)) ->  | AP37: =IF($R37="","",VLOOKUP($R37,'FO-DRE-02'!$A$5:$J$100,6,FALSE)) ->  | AQ37: =IF($R37="","",VLOOKUP($R37,'FO-DRE-02'!$A$5:$J$100,4,FALSE)) ->  | AR37: =IF($R37="","",VLOOKUP($R37,'FO-DRE-02'!$A$5:$J$100,5,FALSE)) ->  | AS37: =IF($R37="","",VLOOKUP($R37,'FO-DRE-02'!$A$5:$J$100,6,FALSE)) ->  | AT37: =IF($R37="","",VLOOKUP($R37,'FO-DRE-02'!$A$5:$J$100,7,FALSE)) ->  | AU37: =IF($R37="","",VLOOKUP($R37,'FO-DRE-02'!$A$5:$J$100,9,FALSE)) ->  | AV37: =IF($R37="","",VLOOKUP($R37,'FO-DRE-02'!$A$5:$M$100,11,FALSE)) ->  | AW37: =IF($R37="","",VLOOKUP($R37,'FO-DRE-02'!$A$5:$M$100,12,FALSE)) ->  | AX37: =IF($R37="","",VLOOKUP($R37,'FO-DRE-02'!$A$5:$M$100,13,FALSE)) ->  | BA37: 5000 | BD37: 28 | BF37: F/D | BG37: F/D
T38: =IF($P38="","",VLOOKUP($P38,'FO-DRE-01'!$A$7:$U$347,18,FALSE)) ->  | U38: =IF($P38="","",VLOOKUP($P38,'FO-DRE-01'!$A$7:$U$300,16,FALSE)) ->  | V38: =IF($P38="","",VLOOKUP($P38,'FO-DRE-01'!$A$7:$U$300,17,FALSE)) ->  | W38: =IF($P38="","",VLOOKUP($P38,'FO-DRE-01'!$A$7:$U$300,3,FALSE)) ->  | X38: =IF($P38="","",VLOOKUP($P38,'FO-DRE-01'!$A$7:$U$300,4,FALSE)) ->  | Y38: =IF($P38="","",VLOOKUP($P38,'FO-DRE-01'!$A$7:$U$300,5,FALSE)) ->  | Z38: =IF($P38="","",VLOOKUP($P38,'FO-DRE-01'!$A$7:$U$300,7,FALSE)) ->  | AA38: =IF($P38="","",VLOOKUP($P38,'FO-DRE-01'!$A$7:$U$300,8,FALSE)) ->  | AB38: =IF($P38="","",VLOOKUP($P38,'FO-DRE-01'!$A$7:$U$300,9,FALSE)) ->  | AC38: =IF($P38="","",VLOOKUP($P38,'FO-DRE-01'!$A$7:$U$300,10,FALSE)) ->  | AD38: =IF($P38="","",VLOOKUP($P38,'FO-DRE-01'!$A$7:$U$300,11,FALSE)) ->  | AE38: =IF($P38="","",VLOOKUP($P38,'FO-DRE-01'!$A$7:$U$300,12,FALSE)) ->  | AF38: =IF($P38="","",VLOOKUP($P38,'FO-DRE-01'!$A$7:$U$300,13,FALSE)) ->  | AG38: =IF($P38="","",VLOOKUP($P38,'FO-DRE-01'!$A$7:$U$300,14,FALSE)) ->  | AH38: W | AI38: =IF(Q38="","",VLOOKUP($Q38,'FO-DRE-04'!$A$6:$M$100,3,FALSE)) ->  | AJ38: =IF(Q38="","",VLOOKUP($Q38,'FO-DRE-04'!$A$6:$M$100,4,FALSE)) ->  | AK38: =IF(Q38="","",VLOOKUP($Q38,'FO-DRE-04'!$A$6:$M$100,5,FALSE)) ->  | AL38: =IF(Q38="","",VLOOKUP($Q38,'FO-DRE-04'!$A$6:$M$100,7,FALSE)) ->  | AM38: =IF(Q38="","",VLOOKUP($Q38,'FO-DRE-04'!$A$6:$M$100,11,FALSE)) ->  | AN38: =IF($R38="","",VLOOKUP($R38,'FO-DRE-02'!$A$6:$N$100,2,FALSE)) ->  | AO38: =IF($R38="","",VLOOKUP($R38,'FO-DRE-02'!$A$5:$J$100,3,FALSE)) ->  | AP38: =IF($R38="","",VLOOKUP($R38,'FO-DRE-02'!$A$5:$J$100,6,FALSE)) ->  | AQ38: =IF($R38="","",VLOOKUP($R38,'FO-DRE-02'!$A$5:$J$100,4,FALSE)) ->  | AR38: =IF($R38="","",VLOOKUP($R38,'FO-DRE-02'!$A$5:$J$100,5,FALSE)) ->  | AS38: =IF($R38="","",VLOOKUP($R38,'FO-DRE-02'!$A$5:$J$100,6,FALSE)) ->  | AT38: =IF($R38="","",VLOOKUP($R38,'FO-DRE-02'!$A$5:$J$100,7,FALSE)) ->  | AU38: =IF($R38="","",VLOOKUP($R38,'FO-DRE-02'!$A$5:$J$100,9,FALSE)) ->  | AV38: =IF($R38="","",VLOOKUP($R38,'FO-DRE-02'!$A$5:$M$100,11,FALSE)) ->  | AW38: =IF($R38="","",VLOOKUP($R38,'FO-DRE-02'!$A$5:$M$100,12,FALSE)) ->  | AX38: =IF($R38="","",VLOOKUP($R38,'FO-DRE-02'!$A$5:$M$100,13,FALSE)) ->  | BA38: 5000 | BD38: 29 | BF38: F/D | BG38: F/D
T39: =IF($P39="","",VLOOKUP($P39,'FO-DRE-01'!$A$7:$U$347,18,FALSE)) ->  | U39: =IF($P39="","",VLOOKUP($P39,'FO-DRE-01'!$A$7:$U$300,16,FALSE)) ->  | V39: =IF($P39="","",VLOOKUP($P39,'FO-DRE-01'!$A$7:$U$300,17,FALSE)) ->  | W39: =IF($P39="","",VLOOKUP($P39,'FO-DRE-01'!$A$7:$U$300,3,FALSE)) ->  | X39: =IF($P39="","",VLOOKUP($P39,'FO-DRE-01'!$A$7:$U$300,4,FALSE)) ->  | Y39: =IF($P39="","",VLOOKUP($P39,'FO-DRE-01'!$A$7:$U$300,5,FALSE)) ->  | Z39: =IF($P39="","",VLOOKUP($P39,'FO-DRE-01'!$A$7:$U$300,7,FALSE)) ->  | AA39: =IF($P39="","",VLOOKUP($P39,'FO-DRE-01'!$A$7:$U$300,8,FALSE)) ->  | AB39: =IF($P39="","",VLOOKUP($P39,'FO-DRE-01'!$A$7:$U$300,9,FALSE)) ->  | AC39: =IF($P39="","",VLOOKUP($P39,'FO-DRE-01'!$A$7:$U$300,10,FALSE)) ->  | AD39: =IF($P39="","",VLOOKUP($P39,'FO-DRE-01'!$A$7:$U$300,11,FALSE)) ->  | AE39: =IF($P39="","",VLOOKUP($P39,'FO-DRE-01'!$A$7:$U$300,12,FALSE)) ->  | AF39: =IF($P39="","",VLOOKUP($P39,'FO-DRE-01'!$A$7:$U$300,13,FALSE)) ->  | AG39: =IF($P39="","",VLOOKUP($P39,'FO-DRE-01'!$A$7:$U$300,14,FALSE)) ->  | AH39: W | AI39: =IF(Q39="","",VLOOKUP($Q39,'FO-DRE-04'!$A$6:$M$100,3,FALSE)) ->  | AJ39: =IF(Q39="","",VLOOKUP($Q39,'FO-DRE-04'!$A$6:$M$100,4,FALSE)) ->  | AK39: =IF(Q39="","",VLOOKUP($Q39,'FO-DRE-04'!$A$6:$M$100,5,FALSE)) ->  | AL39: =IF(Q39="","",VLOOKUP($Q39,'FO-DRE-04'!$A$6:$M$100,7,FALSE)) ->  | AM39: =IF(Q39="","",VLOOKUP($Q39,'FO-DRE-04'!$A$6:$M$100,11,FALSE)) ->  | AN39: =IF($R39="","",VLOOKUP($R39,'FO-DRE-02'!$A$6:$N$100,2,FALSE)) ->  | AO39: =IF($R39="","",VLOOKUP($R39,'FO-DRE-02'!$A$5:$J$100,3,FALSE)) ->  | AP39: =IF($R39="","",VLOOKUP($R39,'FO-DRE-02'!$A$5:$J$100,6,FALSE)) ->  | AQ39: =IF($R39="","",VLOOKUP($R39,'FO-DRE-02'!$A$5:$J$100,4,FALSE)) ->  | AR39: =IF($R39="","",VLOOKUP($R39,'FO-DRE-02'!$A$5:$J$100,5,FALSE)) ->  | AS39: =IF($R39="","",VLOOKUP($R39,'FO-DRE-02'!$A$5:$J$100,6,FALSE)) ->  | AT39: =IF($R39="","",VLOOKUP($R39,'FO-DRE-02'!$A$5:$J$100,7,FALSE)) ->  | AU39: =IF($R39="","",VLOOKUP($R39,'FO-DRE-02'!$A$5:$J$100,9,FALSE)) ->  | AV39: =IF($R39="","",VLOOKUP($R39,'FO-DRE-02'!$A$5:$M$100,11,FALSE)) ->  | AW39: =IF($R39="","",VLOOKUP($R39,'FO-DRE-02'!$A$5:$M$100,12,FALSE)) ->  | AX39: =IF($R39="","",VLOOKUP($R39,'FO-DRE-02'!$A$5:$M$100,13,FALSE)) ->  | BA39: 5000 | BD39: 30 | BF39: F/D | BG39: F/D
T40: =IF($P40="","",VLOOKUP($P40,'FO-DRE-01'!$A$7:$U$347,18,FALSE)) ->  | U40: =IF($P40="","",VLOOKUP($P40,'FO-DRE-01'!$A$7:$U$300,16,FALSE)) ->  | V40: =IF($P40="","",VLOOKUP($P40,'FO-DRE-01'!$A$7:$U$300,17,FALSE)) ->  | W40: =IF($P40="","",VLOOKUP($P40,'FO-DRE-01'!$A$7:$U$300,3,FALSE)) ->  | X40: =IF($P40="","",VLOOKUP($P40,'FO-DRE-01'!$A$7:$U$300,4,FALSE)) ->  | Y40: =IF($P40="","",VLOOKUP($P40,'FO-DRE-01'!$A$7:$U$300,5,FALSE)) ->  | Z40: =IF($P40="","",VLOOKUP($P40,'FO-DRE-01'!$A$7:$U$300,7,FALSE)) ->  | AA40: =IF($P40="","",VLOOKUP($P40,'FO-DRE-01'!$A$7:$U$300,8,FALSE)) ->  | AB40: =IF($P40="","",VLOOKUP($P40,'FO-DRE-01'!$A$7:$U$300,9,FALSE)) ->  | AC40: =IF($P40="","",VLOOKUP($P40,'FO-DRE-01'!$A$7:$U$300,10,FALSE)) ->  | AD40: =IF($P40="","",VLOOKUP($P40,'FO-DRE-01'!$A$7:$U$300,11,FALSE)) ->  | AE40: =IF($P40="","",VLOOKUP($P40,'FO-DRE-01'!$A$7:$U$300,12,FALSE)) ->  | AF40: =IF($P40="","",VLOOKUP($P40,'FO-DRE-01'!$A$7:$U$300,13,FALSE)) ->  | AG40: =IF($P40="","",VLOOKUP($P40,'FO-DRE-01'!$A$7:$U$300,14,FALSE)) ->  | AH40: W | AI40: =IF(Q40="","",VLOOKUP($Q40,'FO-DRE-04'!$A$6:$M$100,3,FALSE)) ->  | AJ40: =IF(Q40="","",VLOOKUP($Q40,'FO-DRE-04'!$A$6:$M$100,4,FALSE)) ->  | AK40: =IF(Q40="","",VLOOKUP($Q40,'FO-DRE-04'!$A$6:$M$100,5,FALSE)) ->  | AL40: =IF(Q40="","",VLOOKUP($Q40,'FO-DRE-04'!$A$6:$M$100,7,FALSE)) ->  | AM40: =IF(Q40="","",VLOOKUP($Q40,'FO-DRE-04'!$A$6:$M$100,11,FALSE)) ->  | AN40: =IF($R40="","",VLOOKUP($R40,'FO-DRE-02'!$A$6:$N$100,2,FALSE)) ->  | AO40: =IF($R40="","",VLOOKUP($R40,'FO-DRE-02'!$A$5:$J$100,3,FALSE)) ->  | AP40: =IF($R40="","",VLOOKUP($R40,'FO-DRE-02'!$A$5:$J$100,6,FALSE)) ->  | AQ40: =IF($R40="","",VLOOKUP($R40,'FO-DRE-02'!$A$5:$J$100,4,FALSE)) ->  | AR40: =IF($R40="","",VLOOKUP($R40,'FO-DRE-02'!$A$5:$J$100,5,FALSE)) ->  | AS40: =IF($R40="","",VLOOKUP($R40,'FO-DRE-02'!$A$5:$J$100,6,FALSE)) ->  | AT40: =IF($R40="","",VLOOKUP($R40,'FO-DRE-02'!$A$5:$J$100,7,FALSE)) ->  | AU40: =IF($R40="","",VLOOKUP($R40,'FO-DRE-02'!$A$5:$J$100,9,FALSE)) ->  | AV40: =IF($R40="","",VLOOKUP($R40,'FO-DRE-02'!$A$5:$M$100,11,FALSE)) ->  | AW40: =IF($R40="","",VLOOKUP($R40,'FO-DRE-02'!$A$5:$M$100,12,FALSE)) ->  | AX40: =IF($R40="","",VLOOKUP($R40,'FO-DRE-02'!$A$5:$M$100,13,FALSE)) ->  | BA40: 5000 | BD40: 31 | BF40: F/D | BG40: F/D
T41: =IF($P41="","",VLOOKUP($P41,'FO-DRE-01'!$A$7:$U$347,18,FALSE)) ->  | U41: =IF($P41="","",VLOOKUP($P41,'FO-DRE-01'!$A$7:$U$300,16,FALSE)) ->  | V41: =IF($P41="","",VLOOKUP($P41,'FO-DRE-01'!$A$7:$U$300,17,FALSE)) ->  | W41: =IF($P41="","",VLOOKUP($P41,'FO-DRE-01'!$A$7:$U$300,3,FALSE)) ->  | X41: =IF($P41="","",VLOOKUP($P41,'FO-DRE-01'!$A$7:$U$300,4,FALSE)) ->  | Y41: =IF($P41="","",VLOOKUP($P41,'FO-DRE-01'!$A$7:$U$300,5,FALSE)) ->  | Z41: =IF($P41="","",VLOOKUP($P41,'FO-DRE-01'!$A$7:$U$300,7,FALSE)) ->  | AA41: =IF($P41="","",VLOOKUP($P41,'FO-DRE-01'!$A$7:$U$300,8,FALSE)) ->  | AB41: =IF($P41="","",VLOOKUP($P41,'FO-DRE-01'!$A$7:$U$300,9,FALSE)) ->  | AC41: =IF($P41="","",VLOOKUP($P41,'FO-DRE-01'!$A$7:$U$300,10,FALSE)) ->  | AD41: =IF($P41="","",VLOOKUP($P41,'FO-DRE-01'!$A$7:$U$300,11,FALSE)) ->  | AE41: =IF($P41="","",VLOOKUP($P41,'FO-DRE-01'!$A$7:$U$300,12,FALSE)) ->  | AF41: =IF($P41="","",VLOOKUP($P41,'FO-DRE-01'!$A$7:$U$300,13,FALSE)) ->  | AG41: =IF($P41="","",VLOOKUP($P41,'FO-DRE-01'!$A$7:$U$300,14,FALSE)) ->  | AH41: W | AI41: =IF(Q41="","",VLOOKUP($Q41,'FO-DRE-04'!$A$6:$M$100,3,FALSE)) ->  | AJ41: =IF(Q41="","",VLOOKUP($Q41,'FO-DRE-04'!$A$6:$M$100,4,FALSE)) ->  | AK41: =IF(Q41="","",VLOOKUP($Q41,'FO-DRE-04'!$A$6:$M$100,5,FALSE)) ->  | AL41: =IF(Q41="","",VLOOKUP($Q41,'FO-DRE-04'!$A$6:$M$100,7,FALSE)) ->  | AM41: =IF(Q41="","",VLOOKUP($Q41,'FO-DRE-04'!$A$6:$M$100,11,FALSE)) ->  | AN41: =IF($R41="","",VLOOKUP($R41,'FO-DRE-02'!$A$6:$N$100,2,FALSE)) ->  | AO41: =IF($R41="","",VLOOKUP($R41,'FO-DRE-02'!$A$5:$J$100,3,FALSE)) ->  | AP41: =IF($R41="","",VLOOKUP($R41,'FO-DRE-02'!$A$5:$J$100,6,FALSE)) ->  | AQ41: =IF($R41="","",VLOOKUP($R41,'FO-DRE-02'!$A$5:$J$100,4,FALSE)) ->  | AR41: =IF($R41="","",VLOOKUP($R41,'FO-DRE-02'!$A$5:$J$100,5,FALSE)) ->  | AS41: =IF($R41="","",VLOOKUP($R41,'FO-DRE-02'!$A$5:$J$100,6,FALSE)) ->  | AT41: =IF($R41="","",VLOOKUP($R41,'FO-DRE-02'!$A$5:$J$100,7,FALSE)) ->  | AU41: =IF($R41="","",VLOOKUP($R41,'FO-DRE-02'!$A$5:$J$100,9,FALSE)) ->  | AV41: =IF($R41="","",VLOOKUP($R41,'FO-DRE-02'!$A$5:$M$100,11,FALSE)) ->  | AW41: =IF($R41="","",VLOOKUP($R41,'FO-DRE-02'!$A$5:$M$100,12,FALSE)) ->  | AX41: =IF($R41="","",VLOOKUP($R41,'FO-DRE-02'!$A$5:$M$100,13,FALSE)) ->  | BA41: 5000 | BD41: 32 | BF41: F/D | BG41: F/D
T42: =IF($P42="","",VLOOKUP($P42,'FO-DRE-01'!$A$7:$U$347,18,FALSE)) ->  | U42: =IF($P42="","",VLOOKUP($P42,'FO-DRE-01'!$A$7:$U$300,16,FALSE)) ->  | V42: =IF($P42="","",VLOOKUP($P42,'FO-DRE-01'!$A$7:$U$300,17,FALSE)) ->  | W42: =IF($P42="","",VLOOKUP($P42,'FO-DRE-01'!$A$7:$U$300,3,FALSE)) ->  | X42: =IF($P42="","",VLOOKUP($P42,'FO-DRE-01'!$A$7:$U$300,4,FALSE)) ->  | Y42: =IF($P42="","",VLOOKUP($P42,'FO-DRE-01'!$A$7:$U$300,5,FALSE)) ->  | Z42: =IF($P42="","",VLOOKUP($P42,'FO-DRE-01'!$A$7:$U$300,7,FALSE)) ->  | AA42: =IF($P42="","",VLOOKUP($P42,'FO-DRE-01'!$A$7:$U$300,8,FALSE)) ->  | AB42: =IF($P42="","",VLOOKUP($P42,'FO-DRE-01'!$A$7:$U$300,9,FALSE)) ->  | AC42: =IF($P42="","",VLOOKUP($P42,'FO-DRE-01'!$A$7:$U$300,10,FALSE)) ->  | AD42: =IF($P42="","",VLOOKUP($P42,'FO-DRE-01'!$A$7:$U$300,11,FALSE)) ->  | AE42: =IF($P42="","",VLOOKUP($P42,'FO-DRE-01'!$A$7:$U$300,12,FALSE)) ->  | AF42: =IF($P42="","",VLOOKUP($P42,'FO-DRE-01'!$A$7:$U$300,13,FALSE)) ->  | AG42: =IF($P42="","",VLOOKUP($P42,'FO-DRE-01'!$A$7:$U$300,14,FALSE)) ->  | AH42: W | AI42: =IF(Q42="","",VLOOKUP($Q42,'FO-DRE-04'!$A$6:$M$100,3,FALSE)) ->  | AJ42: =IF(Q42="","",VLOOKUP($Q42,'FO-DRE-04'!$A$6:$M$100,4,FALSE)) ->  | AK42: =IF(Q42="","",VLOOKUP($Q42,'FO-DRE-04'!$A$6:$M$100,5,FALSE)) ->  | AL42: =IF(Q42="","",VLOOKUP($Q42,'FO-DRE-04'!$A$6:$M$100,7,FALSE)) ->  | AM42: =IF(Q42="","",VLOOKUP($Q42,'FO-DRE-04'!$A$6:$M$100,11,FALSE)) ->  | AN42: =IF($R42="","",VLOOKUP($R42,'FO-DRE-02'!$A$6:$N$100,2,FALSE)) ->  | AO42: =IF($R42="","",VLOOKUP($R42,'FO-DRE-02'!$A$5:$J$100,3,FALSE)) ->  | AP42: =IF($R42="","",VLOOKUP($R42,'FO-DRE-02'!$A$5:$J$100,6,FALSE)) ->  | AQ42: =IF($R42="","",VLOOKUP($R42,'FO-DRE-02'!$A$5:$J$100,4,FALSE)) ->  | AR42: =IF($R42="","",VLOOKUP($R42,'FO-DRE-02'!$A$5:$J$100,5,FALSE)) ->  | AS42: =IF($R42="","",VLOOKUP($R42,'FO-DRE-02'!$A$5:$J$100,6,FALSE)) ->  | AT42: =IF($R42="","",VLOOKUP($R42,'FO-DRE-02'!$A$5:$J$100,7,FALSE)) ->  | AU42: =IF($R42="","",VLOOKUP($R42,'FO-DRE-02'!$A$5:$J$100,9,FALSE)) ->  | AV42: =IF($R42="","",VLOOKUP($R42,'FO-DRE-02'!$A$5:$M$100,11,FALSE)) ->  | AW42: =IF($R42="","",VLOOKUP($R42,'FO-DRE-02'!$A$5:$M$100,12,FALSE)) ->  | AX42: =IF($R42="","",VLOOKUP($R42,'FO-DRE-02'!$A$5:$M$100,13,FALSE)) ->  | AY42: =CONCATENATE("0",AA42,"°",IF(AB42<10,CONCATENATE("0",AB42),AB42),"'",IF(ROUND(AC42,0)=AC42,IF(AC42<10,CONCATENATE("0",AC42,".00"),CONCATENATE(AC42,".00")),IF(ROUND(AC42*10,0)=AC42*10,IF(AC42<10,CONCATENATE("0",AC42,"0"),CONCATENATE(AC42,"0")),IF(AC42<10,CONCATENATE("0",AC42),AC42))),"''",AD42) ->  | AZ42: =CONCATENATE(AE42,"°",IF(AF42<10,CONCATENATE("0",AF42),AF42),"'",IF(ROUND(AG42,0)=AG42,IF(AG42<10,CONCATENATE("0",AG42,".00"),CONCATENATE(AG42,".00")),IF(ROUND(AG42*10,0)=AG42*10,IF(AG42<10,CONCATENATE("0",AG42,"0"),CONCATENATE(AG42,"0")),IF(AG42<10,CONCATENATE("0",AG42),AG42))),"''",AH42) ->  | BA42: =IF(J42="902 - 928",900,IF(J42="2400 - 2483.5",2400,5000)) -> 5000 | BD42: 33 | BF42: F/D | BG42: F/D
T43: =IF($P43="","",VLOOKUP($P43,'FO-DRE-01'!$A$7:$U$347,18,FALSE)) ->  | U43: =IF($P43="","",VLOOKUP($P43,'FO-DRE-01'!$A$7:$U$300,16,FALSE)) ->  | V43: =IF($P43="","",VLOOKUP($P43,'FO-DRE-01'!$A$7:$U$300,17,FALSE)) ->  | W43: =IF($P43="","",VLOOKUP($P43,'FO-DRE-01'!$A$7:$U$300,3,FALSE)) ->  | X43: =IF($P43="","",VLOOKUP($P43,'FO-DRE-01'!$A$7:$U$300,4,FALSE)) ->  | Y43: =IF($P43="","",VLOOKUP($P43,'FO-DRE-01'!$A$7:$U$300,5,FALSE)) ->  | Z43: =IF($P43="","",VLOOKUP($P43,'FO-DRE-01'!$A$7:$U$300,7,FALSE)) ->  | AA43: =IF($P43="","",VLOOKUP($P43,'FO-DRE-01'!$A$7:$U$300,8,FALSE)) ->  | AB43: =IF($P43="","",VLOOKUP($P43,'FO-DRE-01'!$A$7:$U$300,9,FALSE)) ->  | AC43: =IF($P43="","",VLOOKUP($P43,'FO-DRE-01'!$A$7:$U$300,10,FALSE)) ->  | AD43: =IF($P43="","",VLOOKUP($P43,'FO-DRE-01'!$A$7:$U$300,11,FALSE)) ->  | AE43: =IF($P43="","",VLOOKUP($P43,'FO-DRE-01'!$A$7:$U$300,12,FALSE)) ->  | AF43: =IF($P43="","",VLOOKUP($P43,'FO-DRE-01'!$A$7:$U$300,13,FALSE)) ->  | AG43: =IF($P43="","",VLOOKUP($P43,'FO-DRE-01'!$A$7:$U$300,14,FALSE)) ->  | AH43: W | AI43: =IF(Q43="","",VLOOKUP($Q43,'FO-DRE-04'!$A$6:$M$100,3,FALSE)) ->  | AJ43: =IF(Q43="","",VLOOKUP($Q43,'FO-DRE-04'!$A$6:$M$100,4,FALSE)) ->  | AK43: =IF(Q43="","",VLOOKUP($Q43,'FO-DRE-04'!$A$6:$M$100,5,FALSE)) ->  | AL43: =IF(Q43="","",VLOOKUP($Q43,'FO-DRE-04'!$A$6:$M$100,7,FALSE)) ->  | AM43: =IF(Q43="","",VLOOKUP($Q43,'FO-DRE-04'!$A$6:$M$100,11,FALSE)) ->  | AN43: =IF($R43="","",VLOOKUP($R43,'FO-DRE-02'!$A$6:$N$100,2,FALSE)) ->  | AO43: =IF($R43="","",VLOOKUP($R43,'FO-DRE-02'!$A$5:$J$100,3,FALSE)) ->  | AP43: =IF($R43="","",VLOOKUP($R43,'FO-DRE-02'!$A$5:$J$100,6,FALSE)) ->  | AQ43: =IF($R43="","",VLOOKUP($R43,'FO-DRE-02'!$A$5:$J$100,4,FALSE)) ->  | AR43: =IF($R43="","",VLOOKUP($R43,'FO-DRE-02'!$A$5:$J$100,5,FALSE)) ->  | AS43: =IF($R43="","",VLOOKUP($R43,'FO-DRE-02'!$A$5:$J$100,6,FALSE)) ->  | AT43: =IF($R43="","",VLOOKUP($R43,'FO-DRE-02'!$A$5:$J$100,7,FALSE)) ->  | AU43: =IF($R43="","",VLOOKUP($R43,'FO-DRE-02'!$A$5:$J$100,9,FALSE)) ->  | AV43: =IF($R43="","",VLOOKUP($R43,'FO-DRE-02'!$A$5:$M$100,11,FALSE)) ->  | AW43: =IF($R43="","",VLOOKUP($R43,'FO-DRE-02'!$A$5:$M$100,12,FALSE)) ->  | AX43: =IF($R43="","",VLOOKUP($R43,'FO-DRE-02'!$A$5:$M$100,13,FALSE)) ->  | BA43: 5000 | BD43: 34 | BF43: F/D | BG43: F/D
T44: =IF($P44="","",VLOOKUP($P44,'FO-DRE-01'!$A$7:$U$347,18,FALSE)) ->  | U44: =IF($P44="","",VLOOKUP($P44,'FO-DRE-01'!$A$7:$U$300,16,FALSE)) ->  | V44: =IF($P44="","",VLOOKUP($P44,'FO-DRE-01'!$A$7:$U$300,17,FALSE)) ->  | W44: =IF($P44="","",VLOOKUP($P44,'FO-DRE-01'!$A$7:$U$300,3,FALSE)) ->  | X44: =IF($P44="","",VLOOKUP($P44,'FO-DRE-01'!$A$7:$U$300,4,FALSE)) ->  | Y44: =IF($P44="","",VLOOKUP($P44,'FO-DRE-01'!$A$7:$U$300,5,FALSE)) ->  | Z44: =IF($P44="","",VLOOKUP($P44,'FO-DRE-01'!$A$7:$U$300,7,FALSE)) ->  | AA44: =IF($P44="","",VLOOKUP($P44,'FO-DRE-01'!$A$7:$U$300,8,FALSE)) ->  | AB44: =IF($P44="","",VLOOKUP($P44,'FO-DRE-01'!$A$7:$U$300,9,FALSE)) ->  | AC44: =IF($P44="","",VLOOKUP($P44,'FO-DRE-01'!$A$7:$U$300,10,FALSE)) ->  | AD44: =IF($P44="","",VLOOKUP($P44,'FO-DRE-01'!$A$7:$U$300,11,FALSE)) ->  | AE44: =IF($P44="","",VLOOKUP($P44,'FO-DRE-01'!$A$7:$U$300,12,FALSE)) ->  | AF44: =IF($P44="","",VLOOKUP($P44,'FO-DRE-01'!$A$7:$U$300,13,FALSE)) ->  | AG44: =IF($P44="","",VLOOKUP($P44,'FO-DRE-01'!$A$7:$U$300,14,FALSE)) ->  | AH44: W | AI44: =IF(Q44="","",VLOOKUP($Q44,'FO-DRE-04'!$A$6:$M$100,3,FALSE)) ->  | AJ44: =IF(Q44="","",VLOOKUP($Q44,'FO-DRE-04'!$A$6:$M$100,4,FALSE)) ->  | AK44: =IF(Q44="","",VLOOKUP($Q44,'FO-DRE-04'!$A$6:$M$100,5,FALSE)) ->  | AL44: =IF(Q44="","",VLOOKUP($Q44,'FO-DRE-04'!$A$6:$M$100,7,FALSE)) ->  | AM44: =IF(Q44="","",VLOOKUP($Q44,'FO-DRE-04'!$A$6:$M$100,11,FALSE)) ->  | AN44: =IF($R44="","",VLOOKUP($R44,'FO-DRE-02'!$A$6:$N$100,2,FALSE)) ->  | AO44: =IF($R44="","",VLOOKUP($R44,'FO-DRE-02'!$A$5:$J$100,3,FALSE)) ->  | AP44: =IF($R44="","",VLOOKUP($R44,'FO-DRE-02'!$A$5:$J$100,6,FALSE)) ->  | AQ44: =IF($R44="","",VLOOKUP($R44,'FO-DRE-02'!$A$5:$J$100,4,FALSE)) ->  | AR44: =IF($R44="","",VLOOKUP($R44,'FO-DRE-02'!$A$5:$J$100,5,FALSE)) ->  | AS44: =IF($R44="","",VLOOKUP($R44,'FO-DRE-02'!$A$5:$J$100,6,FALSE)) ->  | AT44: =IF($R44="","",VLOOKUP($R44,'FO-DRE-02'!$A$5:$J$100,7,FALSE)) ->  | AU44: =IF($R44="","",VLOOKUP($R44,'FO-DRE-02'!$A$5:$J$100,9,FALSE)) ->  | AV44: =IF($R44="","",VLOOKUP($R44,'FO-DRE-02'!$A$5:$M$100,11,FALSE)) ->  | AW44: =IF($R44="","",VLOOKUP($R44,'FO-DRE-02'!$A$5:$M$100,12,FALSE)) ->  | AX44: =IF($R44="","",VLOOKUP($R44,'FO-DRE-02'!$A$5:$M$100,13,FALSE)) ->  | BA44: 5000 | BD44: 35 | BF44: F/D | BG44: F/D
T45: =IF($P45="","",VLOOKUP($P45,'FO-DRE-01'!$A$7:$U$347,18,FALSE)) ->  | U45: =IF($P45="","",VLOOKUP($P45,'FO-DRE-01'!$A$7:$U$300,16,FALSE)) ->  | V45: =IF($P45="","",VLOOKUP($P45,'FO-DRE-01'!$A$7:$U$300,17,FALSE)) ->  | W45: =IF($P45="","",VLOOKUP($P45,'FO-DRE-01'!$A$7:$U$300,3,FALSE)) ->  | X45: =IF($P45="","",VLOOKUP($P45,'FO-DRE-01'!$A$7:$U$300,4,FALSE)) ->  | Y45: =IF($P45="","",VLOOKUP($P45,'FO-DRE-01'!$A$7:$U$300,5,FALSE)) ->  | Z45: =IF($P45="","",VLOOKUP($P45,'FO-DRE-01'!$A$7:$U$300,7,FALSE)) ->  | AA45: =IF($P45="","",VLOOKUP($P45,'FO-DRE-01'!$A$7:$U$300,8,FALSE)) ->  | AB45: =IF($P45="","",VLOOKUP($P45,'FO-DRE-01'!$A$7:$U$300,9,FALSE)) ->  | AC45: =IF($P45="","",VLOOKUP($P45,'FO-DRE-01'!$A$7:$U$300,10,FALSE)) ->  | AD45: =IF($P45="","",VLOOKUP($P45,'FO-DRE-01'!$A$7:$U$300,11,FALSE)) ->  | AE45: =IF($P45="","",VLOOKUP($P45,'FO-DRE-01'!$A$7:$U$300,12,FALSE)) ->  | AF45: =IF($P45="","",VLOOKUP($P45,'FO-DRE-01'!$A$7:$U$300,13,FALSE)) ->  | AG45: =IF($P45="","",VLOOKUP($P45,'FO-DRE-01'!$A$7:$U$300,14,FALSE)) ->  | AH45: W | AI45: =IF(Q45="","",VLOOKUP($Q45,'FO-DRE-04'!$A$6:$M$100,3,FALSE)) ->  | AJ45: =IF(Q45="","",VLOOKUP($Q45,'FO-DRE-04'!$A$6:$M$100,4,FALSE)) ->  | AK45: =IF(Q45="","",VLOOKUP($Q45,'FO-DRE-04'!$A$6:$M$100,5,FALSE)) ->  | AL45: =IF(Q45="","",VLOOKUP($Q45,'FO-DRE-04'!$A$6:$M$100,7,FALSE)) ->  | AM45: =IF(Q45="","",VLOOKUP($Q45,'FO-DRE-04'!$A$6:$M$100,11,FALSE)) ->  | AN45: =IF($R45="","",VLOOKUP($R45,'FO-DRE-02'!$A$6:$N$100,2,FALSE)) ->  | AO45: =IF($R45="","",VLOOKUP($R45,'FO-DRE-02'!$A$5:$J$100,3,FALSE)) ->  | AP45: =IF($R45="","",VLOOKUP($R45,'FO-DRE-02'!$A$5:$J$100,6,FALSE)) ->  | AQ45: =IF($R45="","",VLOOKUP($R45,'FO-DRE-02'!$A$5:$J$100,4,FALSE)) ->  | AR45: =IF($R45="","",VLOOKUP($R45,'FO-DRE-02'!$A$5:$J$100,5,FALSE)) ->  | AS45: =IF($R45="","",VLOOKUP($R45,'FO-DRE-02'!$A$5:$J$100,6,FALSE)) ->  | AT45: =IF($R45="","",VLOOKUP($R45,'FO-DRE-02'!$A$5:$J$100,7,FALSE)) ->  | AU45: =IF($R45="","",VLOOKUP($R45,'FO-DRE-02'!$A$5:$J$100,9,FALSE)) ->  | AV45: =IF($R45="","",VLOOKUP($R45,'FO-DRE-02'!$A$5:$M$100,11,FALSE)) ->  | AW45: =IF($R45="","",VLOOKUP($R45,'FO-DRE-02'!$A$5:$M$100,12,FALSE)) ->  | AX45: =IF($R45="","",VLOOKUP($R45,'FO-DRE-02'!$A$5:$M$100,13,FALSE)) ->  | BA45: 5000 | BD45: 36 | BF45: F/D | BG45: F/D
T46: =IF($P46="","",VLOOKUP($P46,'FO-DRE-01'!$A$7:$U$347,18,FALSE)) ->  | U46: =IF($P46="","",VLOOKUP($P46,'FO-DRE-01'!$A$7:$U$300,16,FALSE)) ->  | V46: =IF($P46="","",VLOOKUP($P46,'FO-DRE-01'!$A$7:$U$300,17,FALSE)) ->  | W46: =IF($P46="","",VLOOKUP($P46,'FO-DRE-01'!$A$7:$U$300,3,FALSE)) ->  | X46: =IF($P46="","",VLOOKUP($P46,'FO-DRE-01'!$A$7:$U$300,4,FALSE)) ->  | Y46: =IF($P46="","",VLOOKUP($P46,'FO-DRE-01'!$A$7:$U$300,5,FALSE)) ->  | Z46: =IF($P46="","",VLOOKUP($P46,'FO-DRE-01'!$A$7:$U$300,7,FALSE)) ->  | AA46: =IF($P46="","",VLOOKUP($P46,'FO-DRE-01'!$A$7:$U$300,8,FALSE)) ->  | AB46: =IF($P46="","",VLOOKUP($P46,'FO-DRE-01'!$A$7:$U$300,9,FALSE)) ->  | AC46: =IF($P46="","",VLOOKUP($P46,'FO-DRE-01'!$A$7:$U$300,10,FALSE)) ->  | AD46: =IF($P46="","",VLOOKUP($P46,'FO-DRE-01'!$A$7:$U$300,11,FALSE)) ->  | AE46: =IF($P46="","",VLOOKUP($P46,'FO-DRE-01'!$A$7:$U$300,12,FALSE)) ->  | AF46: =IF($P46="","",VLOOKUP($P46,'FO-DRE-01'!$A$7:$U$300,13,FALSE)) ->  | AG46: =IF($P46="","",VLOOKUP($P46,'FO-DRE-01'!$A$7:$U$300,14,FALSE)) ->  | AH46: W | AI46: =IF(Q46="","",VLOOKUP($Q46,'FO-DRE-04'!$A$6:$M$100,3,FALSE)) ->  | AJ46: =IF(Q46="","",VLOOKUP($Q46,'FO-DRE-04'!$A$6:$M$100,4,FALSE)) ->  | AK46: =IF(Q46="","",VLOOKUP($Q46,'FO-DRE-04'!$A$6:$M$100,5,FALSE)) ->  | AL46: =IF(Q46="","",VLOOKUP($Q46,'FO-DRE-04'!$A$6:$M$100,7,FALSE)) ->  | AM46: =IF(Q46="","",VLOOKUP($Q46,'FO-DRE-04'!$A$6:$M$100,11,FALSE)) ->  | AN46: =IF($R46="","",VLOOKUP($R46,'FO-DRE-02'!$A$6:$N$100,2,FALSE)) ->  | AO46: =IF($R46="","",VLOOKUP($R46,'FO-DRE-02'!$A$5:$J$100,3,FALSE)) ->  | AP46: =IF($R46="","",VLOOKUP($R46,'FO-DRE-02'!$A$5:$J$100,6,FALSE)) ->  | AQ46: =IF($R46="","",VLOOKUP($R46,'FO-DRE-02'!$A$5:$J$100,4,FALSE)) ->  | AR46: =IF($R46="","",VLOOKUP($R46,'FO-DRE-02'!$A$5:$J$100,5,FALSE)) ->  | AS46: =IF($R46="","",VLOOKUP($R46,'FO-DRE-02'!$A$5:$J$100,6,FALSE)) ->  | AT46: =IF($R46="","",VLOOKUP($R46,'FO-DRE-02'!$A$5:$J$100,7,FALSE)) ->  | AU46: =IF($R46="","",VLOOKUP($R46,'FO-DRE-02'!$A$5:$J$100,9,FALSE)) ->  | AV46: =IF($R46="","",VLOOKUP($R46,'FO-DRE-02'!$A$5:$M$100,11,FALSE)) ->  | AW46: =IF($R46="","",VLOOKUP($R46,'FO-DRE-02'!$A$5:$M$100,12,FALSE)) ->  | AX46: =IF($R46="","",VLOOKUP($R46,'FO-DRE-02'!$A$5:$M$100,13,FALSE)) ->  | BA46: 5000 | BD46: 37 | BF46: F/D | BG46: F/D
T47: =IF($P47="","",VLOOKUP($P47,'FO-DRE-01'!$A$7:$U$347,18,FALSE)) ->  | U47: =IF($P47="","",VLOOKUP($P47,'FO-DRE-01'!$A$7:$U$300,16,FALSE)) ->  | V47: =IF($P47="","",VLOOKUP($P47,'FO-DRE-01'!$A$7:$U$300,17,FALSE)) ->  | W47: =IF($P47="","",VLOOKUP($P47,'FO-DRE-01'!$A$7:$U$300,3,FALSE)) ->  | X47: =IF($P47="","",VLOOKUP($P47,'FO-DRE-01'!$A$7:$U$300,4,FALSE)) ->  | Y47: =IF($P47="","",VLOOKUP($P47,'FO-DRE-01'!$A$7:$U$300,5,FALSE)) ->  | Z47: =IF($P47="","",VLOOKUP($P47,'FO-DRE-01'!$A$7:$U$300,7,FALSE)) ->  | AA47: =IF($P47="","",VLOOKUP($P47,'FO-DRE-01'!$A$7:$U$300,8,FALSE)) ->  | AB47: =IF($P47="","",VLOOKUP($P47,'FO-DRE-01'!$A$7:$U$300,9,FALSE)) ->  | AC47: =IF($P47="","",VLOOKUP($P47,'FO-DRE-01'!$A$7:$U$300,10,FALSE)) ->  | AD47: =IF($P47="","",VLOOKUP($P47,'FO-DRE-01'!$A$7:$U$300,11,FALSE)) ->  | AE47: =IF($P47="","",VLOOKUP($P47,'FO-DRE-01'!$A$7:$U$300,12,FALSE)) ->  | AF47: =IF($P47="","",VLOOKUP($P47,'FO-DRE-01'!$A$7:$U$300,13,FALSE)) ->  | AG47: =IF($P47="","",VLOOKUP($P47,'FO-DRE-01'!$A$7:$U$300,14,FALSE)) ->  | AH47: W | AI47: =IF(Q47="","",VLOOKUP($Q47,'FO-DRE-04'!$A$6:$M$100,3,FALSE)) ->  | AJ47: =IF(Q47="","",VLOOKUP($Q47,'FO-DRE-04'!$A$6:$M$100,4,FALSE)) ->  | AK47: =IF(Q47="","",VLOOKUP($Q47,'FO-DRE-04'!$A$6:$M$100,5,FALSE)) ->  | AL47: =IF(Q47="","",VLOOKUP($Q47,'FO-DRE-04'!$A$6:$M$100,7,FALSE)) ->  | AM47: =IF(Q47="","",VLOOKUP($Q47,'FO-DRE-04'!$A$6:$M$100,11,FALSE)) ->  | AN47: =IF($R47="","",VLOOKUP($R47,'FO-DRE-02'!$A$6:$N$100,2,FALSE)) ->  | AO47: =IF($R47="","",VLOOKUP($R47,'FO-DRE-02'!$A$5:$J$100,3,FALSE)) ->  | AP47: =IF($R47="","",VLOOKUP($R47,'FO-DRE-02'!$A$5:$J$100,6,FALSE)) ->  | AQ47: =IF($R47="","",VLOOKUP($R47,'FO-DRE-02'!$A$5:$J$100,4,FALSE)) ->  | AR47: =IF($R47="","",VLOOKUP($R47,'FO-DRE-02'!$A$5:$J$100,5,FALSE)) ->  | AS47: =IF($R47="","",VLOOKUP($R47,'FO-DRE-02'!$A$5:$J$100,6,FALSE)) ->  | AT47: =IF($R47="","",VLOOKUP($R47,'FO-DRE-02'!$A$5:$J$100,7,FALSE)) ->  | AU47: =IF($R47="","",VLOOKUP($R47,'FO-DRE-02'!$A$5:$J$100,9,FALSE)) ->  | AV47: =IF($R47="","",VLOOKUP($R47,'FO-DRE-02'!$A$5:$M$100,11,FALSE)) ->  | AW47: =IF($R47="","",VLOOKUP($R47,'FO-DRE-02'!$A$5:$M$100,12,FALSE)) ->  | AX47: =IF($R47="","",VLOOKUP($R47,'FO-DRE-02'!$A$5:$M$100,13,FALSE)) ->  | BA47: 5000 | BD47: 38 | BF47: F/D | BG47: F/D
T48: =IF($P48="","",VLOOKUP($P48,'FO-DRE-01'!$A$7:$U$347,18,FALSE)) ->  | U48: =IF($P48="","",VLOOKUP($P48,'FO-DRE-01'!$A$7:$U$300,16,FALSE)) ->  | V48: =IF($P48="","",VLOOKUP($P48,'FO-DRE-01'!$A$7:$U$300,17,FALSE)) ->  | W48: =IF($P48="","",VLOOKUP($P48,'FO-DRE-01'!$A$7:$U$300,3,FALSE)) ->  | X48: =IF($P48="","",VLOOKUP($P48,'FO-DRE-01'!$A$7:$U$300,4,FALSE)) ->  | Y48: =IF($P48="","",VLOOKUP($P48,'FO-DRE-01'!$A$7:$U$300,5,FALSE)) ->  | Z48: =IF($P48="","",VLOOKUP($P48,'FO-DRE-01'!$A$7:$U$300,7,FALSE)) ->  | AA48: =IF($P48="","",VLOOKUP($P48,'FO-DRE-01'!$A$7:$U$300,8,FALSE)) ->  | AB48: =IF($P48="","",VLOOKUP($P48,'FO-DRE-01'!$A$7:$U$300,9,FALSE)) ->  | AC48: =IF($P48="","",VLOOKUP($P48,'FO-DRE-01'!$A$7:$U$300,10,FALSE)) ->  | AD48: =IF($P48="","",VLOOKUP($P48,'FO-DRE-01'!$A$7:$U$300,11,FALSE)) ->  | AE48: =IF($P48="","",VLOOKUP($P48,'FO-DRE-01'!$A$7:$U$300,12,FALSE)) ->  | AF48: =IF($P48="","",VLOOKUP($P48,'FO-DRE-01'!$A$7:$U$300,13,FALSE)) ->  | AG48: =IF($P48="","",VLOOKUP($P48,'FO-DRE-01'!$A$7:$U$300,14,FALSE)) ->  | AH48: W | AI48: =IF(Q48="","",VLOOKUP($Q48,'FO-DRE-04'!$A$6:$M$100,3,FALSE)) ->  | AJ48: =IF(Q48="","",VLOOKUP($Q48,'FO-DRE-04'!$A$6:$M$100,4,FALSE)) ->  | AK48: =IF(Q48="","",VLOOKUP($Q48,'FO-DRE-04'!$A$6:$M$100,5,FALSE)) ->  | AL48: =IF(Q48="","",VLOOKUP($Q48,'FO-DRE-04'!$A$6:$M$100,7,FALSE)) ->  | AM48: =IF(Q48="","",VLOOKUP($Q48,'FO-DRE-04'!$A$6:$M$100,11,FALSE)) ->  | AN48: =IF($R48="","",VLOOKUP($R48,'FO-DRE-02'!$A$6:$N$100,2,FALSE)) ->  | AO48: =IF($R48="","",VLOOKUP($R48,'FO-DRE-02'!$A$5:$J$100,3,FALSE)) ->  | AP48: =IF($R48="","",VLOOKUP($R48,'FO-DRE-02'!$A$5:$J$100,6,FALSE)) ->  | AQ48: =IF($R48="","",VLOOKUP($R48,'FO-DRE-02'!$A$5:$J$100,4,FALSE)) ->  | AR48: =IF($R48="","",VLOOKUP($R48,'FO-DRE-02'!$A$5:$J$100,5,FALSE)) ->  | AS48: =IF($R48="","",VLOOKUP($R48,'FO-DRE-02'!$A$5:$J$100,6,FALSE)) ->  | AT48: =IF($R48="","",VLOOKUP($R48,'FO-DRE-02'!$A$5:$J$100,7,FALSE)) ->  | AU48: =IF($R48="","",VLOOKUP($R48,'FO-DRE-02'!$A$5:$J$100,9,FALSE)) ->  | AV48: =IF($R48="","",VLOOKUP($R48,'FO-DRE-02'!$A$5:$M$100,11,FALSE)) ->  | AW48: =IF($R48="","",VLOOKUP($R48,'FO-DRE-02'!$A$5:$M$100,12,FALSE)) ->  | AX48: =IF($R48="","",VLOOKUP($R48,'FO-DRE-02'!$A$5:$M$100,13,FALSE)) ->  | BA48: 5000 | BD48: 39 | BF48: F/D | BG48: F/D
T49: =IF($P49="","",VLOOKUP($P49,'FO-DRE-01'!$A$7:$U$347,18,FALSE)) ->  | U49: =IF($P49="","",VLOOKUP($P49,'FO-DRE-01'!$A$7:$U$300,16,FALSE)) ->  | V49: =IF($P49="","",VLOOKUP($P49,'FO-DRE-01'!$A$7:$U$300,17,FALSE)) ->  | W49: =IF($P49="","",VLOOKUP($P49,'FO-DRE-01'!$A$7:$U$300,3,FALSE)) ->  | X49: =IF($P49="","",VLOOKUP($P49,'FO-DRE-01'!$A$7:$U$300,4,FALSE)) ->  | Y49: =IF($P49="","",VLOOKUP($P49,'FO-DRE-01'!$A$7:$U$300,5,FALSE)) ->  | Z49: =IF($P49="","",VLOOKUP($P49,'FO-DRE-01'!$A$7:$U$300,7,FALSE)) ->  | AA49: =IF($P49="","",VLOOKUP($P49,'FO-DRE-01'!$A$7:$U$300,8,FALSE)) ->  | AB49: =IF($P49="","",VLOOKUP($P49,'FO-DRE-01'!$A$7:$U$300,9,FALSE)) ->  | AC49: =IF($P49="","",VLOOKUP($P49,'FO-DRE-01'!$A$7:$U$300,10,FALSE)) ->  | AD49: =IF($P49="","",VLOOKUP($P49,'FO-DRE-01'!$A$7:$U$300,11,FALSE)) ->  | AE49: =IF($P49="","",VLOOKUP($P49,'FO-DRE-01'!$A$7:$U$300,12,FALSE)) ->  | AF49: =IF($P49="","",VLOOKUP($P49,'FO-DRE-01'!$A$7:$U$300,13,FALSE)) ->  | AG49: =IF($P49="","",VLOOKUP($P49,'FO-DRE-01'!$A$7:$U$300,14,FALSE)) ->  | AH49: W | AI49: =IF(Q49="","",VLOOKUP($Q49,'FO-DRE-04'!$A$6:$M$100,3,FALSE)) ->  | AJ49: =IF(Q49="","",VLOOKUP($Q49,'FO-DRE-04'!$A$6:$M$100,4,FALSE)) ->  | AK49: =IF(Q49="","",VLOOKUP($Q49,'FO-DRE-04'!$A$6:$M$100,5,FALSE)) ->  | AL49: =IF(Q49="","",VLOOKUP($Q49,'FO-DRE-04'!$A$6:$M$100,7,FALSE)) ->  | AM49: =IF(Q49="","",VLOOKUP($Q49,'FO-DRE-04'!$A$6:$M$100,11,FALSE)) ->  | AN49: =IF($R49="","",VLOOKUP($R49,'FO-DRE-02'!$A$6:$N$100,2,FALSE)) ->  | AO49: =IF($R49="","",VLOOKUP($R49,'FO-DRE-02'!$A$5:$J$100,3,FALSE)) ->  | AP49: =IF($R49="","",VLOOKUP($R49,'FO-DRE-02'!$A$5:$J$100,6,FALSE)) ->  | AQ49: =IF($R49="","",VLOOKUP($R49,'FO-DRE-02'!$A$5:$J$100,4,FALSE)) ->  | AR49: =IF($R49="","",VLOOKUP($R49,'FO-DRE-02'!$A$5:$J$100,5,FALSE)) ->  | AS49: =IF($R49="","",VLOOKUP($R49,'FO-DRE-02'!$A$5:$J$100,6,FALSE)) ->  | AT49: =IF($R49="","",VLOOKUP($R49,'FO-DRE-02'!$A$5:$J$100,7,FALSE)) ->  | AU49: =IF($R49="","",VLOOKUP($R49,'FO-DRE-02'!$A$5:$J$100,9,FALSE)) ->  | AV49: =IF($R49="","",VLOOKUP($R49,'FO-DRE-02'!$A$5:$M$100,11,FALSE)) ->  | AW49: =IF($R49="","",VLOOKUP($R49,'FO-DRE-02'!$A$5:$M$100,12,FALSE)) ->  | AX49: =IF($R49="","",VLOOKUP($R49,'FO-DRE-02'!$A$5:$M$100,13,FALSE)) ->  | BA49: 5000 | BD49: 40 | BF49: F/D | BG49: F/D
T50: =IF($P50="","",VLOOKUP($P50,'FO-DRE-01'!$A$7:$U$347,18,FALSE)) ->  | U50: =IF($P50="","",VLOOKUP($P50,'FO-DRE-01'!$A$7:$U$300,16,FALSE)) ->  | V50: =IF($P50="","",VLOOKUP($P50,'FO-DRE-01'!$A$7:$U$300,17,FALSE)) ->  | W50: =IF($P50="","",VLOOKUP($P50,'FO-DRE-01'!$A$7:$U$300,3,FALSE)) ->  | X50: =IF($P50="","",VLOOKUP($P50,'FO-DRE-01'!$A$7:$U$300,4,FALSE)) ->  | Y50: =IF($P50="","",VLOOKUP($P50,'FO-DRE-01'!$A$7:$U$300,5,FALSE)) ->  | Z50: =IF($P50="","",VLOOKUP($P50,'FO-DRE-01'!$A$7:$U$300,7,FALSE)) ->  | AA50: =IF($P50="","",VLOOKUP($P50,'FO-DRE-01'!$A$7:$U$300,8,FALSE)) ->  | AB50: =IF($P50="","",VLOOKUP($P50,'FO-DRE-01'!$A$7:$U$300,9,FALSE)) ->  | AC50: =IF($P50="","",VLOOKUP($P50,'FO-DRE-01'!$A$7:$U$300,10,FALSE)) ->  | AD50: =IF($P50="","",VLOOKUP($P50,'FO-DRE-01'!$A$7:$U$300,11,FALSE)) ->  | AE50: =IF($P50="","",VLOOKUP($P50,'FO-DRE-01'!$A$7:$U$300,12,FALSE)) ->  | AF50: =IF($P50="","",VLOOKUP($P50,'FO-DRE-01'!$A$7:$U$300,13,FALSE)) ->  | AG50: =IF($P50="","",VLOOKUP($P50,'FO-DRE-01'!$A$7:$U$300,14,FALSE)) ->  | AH50: W | AI50: =IF(Q50="","",VLOOKUP($Q50,'FO-DRE-04'!$A$6:$M$100,3,FALSE)) ->  | AJ50: =IF(Q50="","",VLOOKUP($Q50,'FO-DRE-04'!$A$6:$M$100,4,FALSE)) ->  | AK50: =IF(Q50="","",VLOOKUP($Q50,'FO-DRE-04'!$A$6:$M$100,5,FALSE)) ->  | AL50: =IF(Q50="","",VLOOKUP($Q50,'FO-DRE-04'!$A$6:$M$100,7,FALSE)) ->  | AM50: =IF(Q50="","",VLOOKUP($Q50,'FO-DRE-04'!$A$6:$M$100,11,FALSE)) ->  | AN50: =IF($R50="","",VLOOKUP($R50,'FO-DRE-02'!$A$6:$N$100,2,FALSE)) ->  | AO50: =IF($R50="","",VLOOKUP($R50,'FO-DRE-02'!$A$5:$J$100,3,FALSE)) ->  | AP50: =IF($R50="","",VLOOKUP($R50,'FO-DRE-02'!$A$5:$J$100,6,FALSE)) ->  | AQ50: =IF($R50="","",VLOOKUP($R50,'FO-DRE-02'!$A$5:$J$100,4,FALSE)) ->  | AR50: =IF($R50="","",VLOOKUP($R50,'FO-DRE-02'!$A$5:$J$100,5,FALSE)) ->  | AS50: =IF($R50="","",VLOOKUP($R50,'FO-DRE-02'!$A$5:$J$100,6,FALSE)) ->  | AT50: =IF($R50="","",VLOOKUP($R50,'FO-DRE-02'!$A$5:$J$100,7,FALSE)) ->  | AU50: =IF($R50="","",VLOOKUP($R50,'FO-DRE-02'!$A$5:$J$100,9,FALSE)) ->  | AV50: =IF($R50="","",VLOOKUP($R50,'FO-DRE-02'!$A$5:$M$100,11,FALSE)) ->  | AW50: =IF($R50="","",VLOOKUP($R50,'FO-DRE-02'!$A$5:$M$100,12,FALSE)) ->  | AX50: =IF($R50="","",VLOOKUP($R50,'FO-DRE-02'!$A$5:$M$100,13,FALSE)) ->  | BA50: 5000 | BD50: 41 | BF50: F/D | BG50: F/D
T51: =IF($P51="","",VLOOKUP($P51,'FO-DRE-01'!$A$7:$U$347,18,FALSE)) ->  | U51: =IF($P51="","",VLOOKUP($P51,'FO-DRE-01'!$A$7:$U$300,16,FALSE)) ->  | V51: =IF($P51="","",VLOOKUP($P51,'FO-DRE-01'!$A$7:$U$300,17,FALSE)) ->  | W51: =IF($P51="","",VLOOKUP($P51,'FO-DRE-01'!$A$7:$U$300,3,FALSE)) ->  | X51: =IF($P51="","",VLOOKUP($P51,'FO-DRE-01'!$A$7:$U$300,4,FALSE)) ->  | Y51: =IF($P51="","",VLOOKUP($P51,'FO-DRE-01'!$A$7:$U$300,5,FALSE)) ->  | Z51: =IF($P51="","",VLOOKUP($P51,'FO-DRE-01'!$A$7:$U$300,7,FALSE)) ->  | AA51: =IF($P51="","",VLOOKUP($P51,'FO-DRE-01'!$A$7:$U$300,8,FALSE)) ->  | AB51: =IF($P51="","",VLOOKUP($P51,'FO-DRE-01'!$A$7:$U$300,9,FALSE)) ->  | AC51: =IF($P51="","",VLOOKUP($P51,'FO-DRE-01'!$A$7:$U$300,10,FALSE)) ->  | AD51: =IF($P51="","",VLOOKUP($P51,'FO-DRE-01'!$A$7:$U$300,11,FALSE)) ->  | AE51: =IF($P51="","",VLOOKUP($P51,'FO-DRE-01'!$A$7:$U$300,12,FALSE)) ->  | AF51: =IF($P51="","",VLOOKUP($P51,'FO-DRE-01'!$A$7:$U$300,13,FALSE)) ->  | AG51: =IF($P51="","",VLOOKUP($P51,'FO-DRE-01'!$A$7:$U$300,14,FALSE)) ->  | AH51: W | AI51: =IF(Q51="","",VLOOKUP($Q51,'FO-DRE-04'!$A$6:$M$100,3,FALSE)) ->  | AJ51: =IF(Q51="","",VLOOKUP($Q51,'FO-DRE-04'!$A$6:$M$100,4,FALSE)) ->  | AK51: =IF(Q51="","",VLOOKUP($Q51,'FO-DRE-04'!$A$6:$M$100,5,FALSE)) ->  | AL51: =IF(Q51="","",VLOOKUP($Q51,'FO-DRE-04'!$A$6:$M$100,7,FALSE)) ->  | AM51: =IF(Q51="","",VLOOKUP($Q51,'FO-DRE-04'!$A$6:$M$100,11,FALSE)) ->  | AN51: =IF($R51="","",VLOOKUP($R51,'FO-DRE-02'!$A$6:$N$100,2,FALSE)) ->  | AO51: =IF($R51="","",VLOOKUP($R51,'FO-DRE-02'!$A$5:$J$100,3,FALSE)) ->  | AP51: =IF($R51="","",VLOOKUP($R51,'FO-DRE-02'!$A$5:$J$100,6,FALSE)) ->  | AQ51: =IF($R51="","",VLOOKUP($R51,'FO-DRE-02'!$A$5:$J$100,4,FALSE)) ->  | AR51: =IF($R51="","",VLOOKUP($R51,'FO-DRE-02'!$A$5:$J$100,5,FALSE)) ->  | AS51: =IF($R51="","",VLOOKUP($R51,'FO-DRE-02'!$A$5:$J$100,6,FALSE)) ->  | AT51: =IF($R51="","",VLOOKUP($R51,'FO-DRE-02'!$A$5:$J$100,7,FALSE)) ->  | AU51: =IF($R51="","",VLOOKUP($R51,'FO-DRE-02'!$A$5:$J$100,9,FALSE)) ->  | AV51: =IF($R51="","",VLOOKUP($R51,'FO-DRE-02'!$A$5:$M$100,11,FALSE)) ->  | AW51: =IF($R51="","",VLOOKUP($R51,'FO-DRE-02'!$A$5:$M$100,12,FALSE)) ->  | AX51: =IF($R51="","",VLOOKUP($R51,'FO-DRE-02'!$A$5:$M$100,13,FALSE)) ->  | BA51: 5000 | BD51: 42 | BF51: F/D | BG51: F/D
T52: =IF($P52="","",VLOOKUP($P52,'FO-DRE-01'!$A$7:$U$347,18,FALSE)) ->  | U52: =IF($P52="","",VLOOKUP($P52,'FO-DRE-01'!$A$7:$U$300,16,FALSE)) ->  | V52: =IF($P52="","",VLOOKUP($P52,'FO-DRE-01'!$A$7:$U$300,17,FALSE)) ->  | W52: =IF($P52="","",VLOOKUP($P52,'FO-DRE-01'!$A$7:$U$300,3,FALSE)) ->  | X52: =IF($P52="","",VLOOKUP($P52,'FO-DRE-01'!$A$7:$U$300,4,FALSE)) ->  | Y52: =IF($P52="","",VLOOKUP($P52,'FO-DRE-01'!$A$7:$U$300,5,FALSE)) ->  | Z52: =IF($P52="","",VLOOKUP($P52,'FO-DRE-01'!$A$7:$U$300,7,FALSE)) ->  | AA52: =IF($P52="","",VLOOKUP($P52,'FO-DRE-01'!$A$7:$U$300,8,FALSE)) ->  | AB52: =IF($P52="","",VLOOKUP($P52,'FO-DRE-01'!$A$7:$U$300,9,FALSE)) ->  | AC52: =IF($P52="","",VLOOKUP($P52,'FO-DRE-01'!$A$7:$U$300,10,FALSE)) ->  | AD52: =IF($P52="","",VLOOKUP($P52,'FO-DRE-01'!$A$7:$U$300,11,FALSE)) ->  | AE52: =IF($P52="","",VLOOKUP($P52,'FO-DRE-01'!$A$7:$U$300,12,FALSE)) ->  | AF52: =IF($P52="","",VLOOKUP($P52,'FO-DRE-01'!$A$7:$U$300,13,FALSE)) ->  | AG52: =IF($P52="","",VLOOKUP($P52,'FO-DRE-01'!$A$7:$U$300,14,FALSE)) ->  | AH52: W | AI52: =IF(Q52="","",VLOOKUP($Q52,'FO-DRE-04'!$A$6:$M$100,3,FALSE)) ->  | AJ52: =IF(Q52="","",VLOOKUP($Q52,'FO-DRE-04'!$A$6:$M$100,4,FALSE)) ->  | AK52: =IF(Q52="","",VLOOKUP($Q52,'FO-DRE-04'!$A$6:$M$100,5,FALSE)) ->  | AL52: =IF(Q52="","",VLOOKUP($Q52,'FO-DRE-04'!$A$6:$M$100,7,FALSE)) ->  | AM52: =IF(Q52="","",VLOOKUP($Q52,'FO-DRE-04'!$A$6:$M$100,11,FALSE)) ->  | AN52: =IF($R52="","",VLOOKUP($R52,'FO-DRE-02'!$A$6:$N$100,2,FALSE)) ->  | AO52: =IF($R52="","",VLOOKUP($R52,'FO-DRE-02'!$A$5:$J$100,3,FALSE)) ->  | AP52: =IF($R52="","",VLOOKUP($R52,'FO-DRE-02'!$A$5:$J$100,6,FALSE)) ->  | AQ52: =IF($R52="","",VLOOKUP($R52,'FO-DRE-02'!$A$5:$J$100,4,FALSE)) ->  | AR52: =IF($R52="","",VLOOKUP($R52,'FO-DRE-02'!$A$5:$J$100,5,FALSE)) ->  | AS52: =IF($R52="","",VLOOKUP($R52,'FO-DRE-02'!$A$5:$J$100,6,FALSE)) ->  | AT52: =IF($R52="","",VLOOKUP($R52,'FO-DRE-02'!$A$5:$J$100,7,FALSE)) ->  | AU52: =IF($R52="","",VLOOKUP($R52,'FO-DRE-02'!$A$5:$J$100,9,FALSE)) ->  | AV52: =IF($R52="","",VLOOKUP($R52,'FO-DRE-02'!$A$5:$M$100,11,FALSE)) ->  | AW52: =IF($R52="","",VLOOKUP($R52,'FO-DRE-02'!$A$5:$M$100,12,FALSE)) ->  | AX52: =IF($R52="","",VLOOKUP($R52,'FO-DRE-02'!$A$5:$M$100,13,FALSE)) ->  | BA52: 5000 | BD52: 43 | BF52: F/D | BG52: F/D
T53: =IF($P53="","",VLOOKUP($P53,'FO-DRE-01'!$A$7:$U$347,18,FALSE)) ->  | U53: =IF($P53="","",VLOOKUP($P53,'FO-DRE-01'!$A$7:$U$300,16,FALSE)) ->  | V53: =IF($P53="","",VLOOKUP($P53,'FO-DRE-01'!$A$7:$U$300,17,FALSE)) ->  | W53: =IF($P53="","",VLOOKUP($P53,'FO-DRE-01'!$A$7:$U$300,3,FALSE)) ->  | X53: =IF($P53="","",VLOOKUP($P53,'FO-DRE-01'!$A$7:$U$300,4,FALSE)) ->  | Y53: =IF($P53="","",VLOOKUP($P53,'FO-DRE-01'!$A$7:$U$300,5,FALSE)) ->  | Z53: =IF($P53="","",VLOOKUP($P53,'FO-DRE-01'!$A$7:$U$300,7,FALSE)) ->  | AA53: =IF($P53="","",VLOOKUP($P53,'FO-DRE-01'!$A$7:$U$300,8,FALSE)) ->  | AB53: =IF($P53="","",VLOOKUP($P53,'FO-DRE-01'!$A$7:$U$300,9,FALSE)) ->  | AC53: =IF($P53="","",VLOOKUP($P53,'FO-DRE-01'!$A$7:$U$300,10,FALSE)) ->  | AD53: =IF($P53="","",VLOOKUP($P53,'FO-DRE-01'!$A$7:$U$300,11,FALSE)) ->  | AE53: =IF($P53="","",VLOOKUP($P53,'FO-DRE-01'!$A$7:$U$300,12,FALSE)) ->  | AF53: =IF($P53="","",VLOOKUP($P53,'FO-DRE-01'!$A$7:$U$300,13,FALSE)) ->  | AG53: =IF($P53="","",VLOOKUP($P53,'FO-DRE-01'!$A$7:$U$300,14,FALSE)) ->  | AH53: W | AI53: =IF(Q53="","",VLOOKUP($Q53,'FO-DRE-04'!$A$6:$M$100,3,FALSE)) ->  | AJ53: =IF(Q53="","",VLOOKUP($Q53,'FO-DRE-04'!$A$6:$M$100,4,FALSE)) ->  | AK53: =IF(Q53="","",VLOOKUP($Q53,'FO-DRE-04'!$A$6:$M$100,5,FALSE)) ->  | AL53: =IF(Q53="","",VLOOKUP($Q53,'FO-DRE-04'!$A$6:$M$100,7,FALSE)) ->  | AM53: =IF(Q53="","",VLOOKUP($Q53,'FO-DRE-04'!$A$6:$M$100,11,FALSE)) ->  | AN53: =IF($R53="","",VLOOKUP($R53,'FO-DRE-02'!$A$6:$N$100,2,FALSE)) ->  | AO53: =IF($R53="","",VLOOKUP($R53,'FO-DRE-02'!$A$5:$J$100,3,FALSE)) ->  | AP53: =IF($R53="","",VLOOKUP($R53,'FO-DRE-02'!$A$5:$J$100,6,FALSE)) ->  | AQ53: =IF($R53="","",VLOOKUP($R53,'FO-DRE-02'!$A$5:$J$100,4,FALSE)) ->  | AR53: =IF($R53="","",VLOOKUP($R53,'FO-DRE-02'!$A$5:$J$100,5,FALSE)) ->  | AS53: =IF($R53="","",VLOOKUP($R53,'FO-DRE-02'!$A$5:$J$100,6,FALSE)) ->  | AT53: =IF($R53="","",VLOOKUP($R53,'FO-DRE-02'!$A$5:$J$100,7,FALSE)) ->  | AU53: =IF($R53="","",VLOOKUP($R53,'FO-DRE-02'!$A$5:$J$100,9,FALSE)) ->  | AV53: =IF($R53="","",VLOOKUP($R53,'FO-DRE-02'!$A$5:$M$100,11,FALSE)) ->  | AW53: =IF($R53="","",VLOOKUP($R53,'FO-DRE-02'!$A$5:$M$100,12,FALSE)) ->  | AX53: =IF($R53="","",VLOOKUP($R53,'FO-DRE-02'!$A$5:$M$100,13,FALSE)) ->  | BA53: 5000 | BD53: 44 | BF53: F/D | BG53: F/D
T54: =IF($P54="","",VLOOKUP($P54,'FO-DRE-01'!$A$7:$U$347,18,FALSE)) ->  | U54: =IF($P54="","",VLOOKUP($P54,'FO-DRE-01'!$A$7:$U$300,16,FALSE)) ->  | V54: =IF($P54="","",VLOOKUP($P54,'FO-DRE-01'!$A$7:$U$300,17,FALSE)) ->  | W54: =IF($P54="","",VLOOKUP($P54,'FO-DRE-01'!$A$7:$U$300,3,FALSE)) ->  | X54: =IF($P54="","",VLOOKUP($P54,'FO-DRE-01'!$A$7:$U$300,4,FALSE)) ->  | Y54: =IF($P54="","",VLOOKUP($P54,'FO-DRE-01'!$A$7:$U$300,5,FALSE)) ->  | Z54: =IF($P54="","",VLOOKUP($P54,'FO-DRE-01'!$A$7:$U$300,7,FALSE)) ->  | AA54: =IF($P54="","",VLOOKUP($P54,'FO-DRE-01'!$A$7:$U$300,8,FALSE)) ->  | AB54: =IF($P54="","",VLOOKUP($P54,'FO-DRE-01'!$A$7:$U$300,9,FALSE)) ->  | AC54: =IF($P54="","",VLOOKUP($P54,'FO-DRE-01'!$A$7:$U$300,10,FALSE)) ->  | AD54: =IF($P54="","",VLOOKUP($P54,'FO-DRE-01'!$A$7:$U$300,11,FALSE)) ->  | AE54: =IF($P54="","",VLOOKUP($P54,'FO-DRE-01'!$A$7:$U$300,12,FALSE)) ->  | AF54: =IF($P54="","",VLOOKUP($P54,'FO-DRE-01'!$A$7:$U$300,13,FALSE)) ->  | AG54: =IF($P54="","",VLOOKUP($P54,'FO-DRE-01'!$A$7:$U$300,14,FALSE)) ->  | AH54: W | AI54: =IF(Q54="","",VLOOKUP($Q54,'FO-DRE-04'!$A$6:$M$100,3,FALSE)) ->  | AJ54: =IF(Q54="","",VLOOKUP($Q54,'FO-DRE-04'!$A$6:$M$100,4,FALSE)) ->  | AK54: =IF(Q54="","",VLOOKUP($Q54,'FO-DRE-04'!$A$6:$M$100,5,FALSE)) ->  | AL54: =IF(Q54="","",VLOOKUP($Q54,'FO-DRE-04'!$A$6:$M$100,7,FALSE)) ->  | AM54: =IF(Q54="","",VLOOKUP($Q54,'FO-DRE-04'!$A$6:$M$100,11,FALSE)) ->  | AN54: =IF($R54="","",VLOOKUP($R54,'FO-DRE-02'!$A$6:$N$100,2,FALSE)) ->  | AO54: =IF($R54="","",VLOOKUP($R54,'FO-DRE-02'!$A$5:$J$100,3,FALSE)) ->  | AP54: =IF($R54="","",VLOOKUP($R54,'FO-DRE-02'!$A$5:$J$100,6,FALSE)) ->  | AQ54: =IF($R54="","",VLOOKUP($R54,'FO-DRE-02'!$A$5:$J$100,4,FALSE)) ->  | AR54: =IF($R54="","",VLOOKUP($R54,'FO-DRE-02'!$A$5:$J$100,5,FALSE)) ->  | AS54: =IF($R54="","",VLOOKUP($R54,'FO-DRE-02'!$A$5:$J$100,6,FALSE)) ->  | AT54: =IF($R54="","",VLOOKUP($R54,'FO-DRE-02'!$A$5:$J$100,7,FALSE)) ->  | AU54: =IF($R54="","",VLOOKUP($R54,'FO-DRE-02'!$A$5:$J$100,9,FALSE)) ->  | AV54: =IF($R54="","",VLOOKUP($R54,'FO-DRE-02'!$A$5:$M$100,11,FALSE)) ->  | AW54: =IF($R54="","",VLOOKUP($R54,'FO-DRE-02'!$A$5:$M$100,12,FALSE)) ->  | AX54: =IF($R54="","",VLOOKUP($R54,'FO-DRE-02'!$A$5:$M$100,13,FALSE)) ->  | BA54: 5000 | BD54: 45 | BF54: F/D | BG54: F/D
T55: =IF($P55="","",VLOOKUP($P55,'FO-DRE-01'!$A$7:$U$347,18,FALSE)) ->  | U55: =IF($P55="","",VLOOKUP($P55,'FO-DRE-01'!$A$7:$U$300,16,FALSE)) ->  | V55: =IF($P55="","",VLOOKUP($P55,'FO-DRE-01'!$A$7:$U$300,17,FALSE)) ->  | W55: =IF($P55="","",VLOOKUP($P55,'FO-DRE-01'!$A$7:$U$300,3,FALSE)) ->  | X55: =IF($P55="","",VLOOKUP($P55,'FO-DRE-01'!$A$7:$U$300,4,FALSE)) ->  | Y55: =IF($P55="","",VLOOKUP($P55,'FO-DRE-01'!$A$7:$U$300,5,FALSE)) ->  | Z55: =IF($P55="","",VLOOKUP($P55,'FO-DRE-01'!$A$7:$U$300,7,FALSE)) ->  | AA55: =IF($P55="","",VLOOKUP($P55,'FO-DRE-01'!$A$7:$U$300,8,FALSE)) ->  | AB55: =IF($P55="","",VLOOKUP($P55,'FO-DRE-01'!$A$7:$U$300,9,FALSE)) ->  | AC55: =IF($P55="","",VLOOKUP($P55,'FO-DRE-01'!$A$7:$U$300,10,FALSE)) ->  | AD55: =IF($P55="","",VLOOKUP($P55,'FO-DRE-01'!$A$7:$U$300,11,FALSE)) ->  | AE55: =IF($P55="","",VLOOKUP($P55,'FO-DRE-01'!$A$7:$U$300,12,FALSE)) ->  | AF55: =IF($P55="","",VLOOKUP($P55,'FO-DRE-01'!$A$7:$U$300,13,FALSE)) ->  | AG55: =IF($P55="","",VLOOKUP($P55,'FO-DRE-01'!$A$7:$U$300,14,FALSE)) ->  | AH55: W | AI55: =IF(Q55="","",VLOOKUP($Q55,'FO-DRE-04'!$A$6:$M$100,3,FALSE)) ->  | AJ55: =IF(Q55="","",VLOOKUP($Q55,'FO-DRE-04'!$A$6:$M$100,4,FALSE)) ->  | AK55: =IF(Q55="","",VLOOKUP($Q55,'FO-DRE-04'!$A$6:$M$100,5,FALSE)) ->  | AL55: =IF(Q55="","",VLOOKUP($Q55,'FO-DRE-04'!$A$6:$M$100,7,FALSE)) ->  | AM55: =IF(Q55="","",VLOOKUP($Q55,'FO-DRE-04'!$A$6:$M$100,11,FALSE)) ->  | AN55: =IF($R55="","",VLOOKUP($R55,'FO-DRE-02'!$A$6:$N$100,2,FALSE)) ->  | AO55: =IF($R55="","",VLOOKUP($R55,'FO-DRE-02'!$A$5:$J$100,3,FALSE)) ->  | AP55: =IF($R55="","",VLOOKUP($R55,'FO-DRE-02'!$A$5:$J$100,6,FALSE)) ->  | AQ55: =IF($R55="","",VLOOKUP($R55,'FO-DRE-02'!$A$5:$J$100,4,FALSE)) ->  | AR55: =IF($R55="","",VLOOKUP($R55,'FO-DRE-02'!$A$5:$J$100,5,FALSE)) ->  | AS55: =IF($R55="","",VLOOKUP($R55,'FO-DRE-02'!$A$5:$J$100,6,FALSE)) ->  | AT55: =IF($R55="","",VLOOKUP($R55,'FO-DRE-02'!$A$5:$J$100,7,FALSE)) ->  | AU55: =IF($R55="","",VLOOKUP($R55,'FO-DRE-02'!$A$5:$J$100,9,FALSE)) ->  | AV55: =IF($R55="","",VLOOKUP($R55,'FO-DRE-02'!$A$5:$M$100,11,FALSE)) ->  | AW55: =IF($R55="","",VLOOKUP($R55,'FO-DRE-02'!$A$5:$M$100,12,FALSE)) ->  | AX55: =IF($R55="","",VLOOKUP($R55,'FO-DRE-02'!$A$5:$M$100,13,FALSE)) ->  | BA55: 5000 | BD55: 46 | BF55: F/D | BG55: F/D
T56: =IF($P56="","",VLOOKUP($P56,'FO-DRE-01'!$A$7:$U$347,18,FALSE)) ->  | U56: =IF($P56="","",VLOOKUP($P56,'FO-DRE-01'!$A$7:$U$300,16,FALSE)) ->  | V56: =IF($P56="","",VLOOKUP($P56,'FO-DRE-01'!$A$7:$U$300,17,FALSE)) ->  | W56: =IF($P56="","",VLOOKUP($P56,'FO-DRE-01'!$A$7:$U$300,3,FALSE)) ->  | X56: =IF($P56="","",VLOOKUP($P56,'FO-DRE-01'!$A$7:$U$300,4,FALSE)) ->  | Y56: =IF($P56="","",VLOOKUP($P56,'FO-DRE-01'!$A$7:$U$300,5,FALSE)) ->  | Z56: =IF($P56="","",VLOOKUP($P56,'FO-DRE-01'!$A$7:$U$300,7,FALSE)) ->  | AA56: =IF($P56="","",VLOOKUP($P56,'FO-DRE-01'!$A$7:$U$300,8,FALSE)) ->  | AB56: =IF($P56="","",VLOOKUP($P56,'FO-DRE-01'!$A$7:$U$300,9,FALSE)) ->  | AC56: =IF($P56="","",VLOOKUP($P56,'FO-DRE-01'!$A$7:$U$300,10,FALSE)) ->  | AD56: =IF($P56="","",VLOOKUP($P56,'FO-DRE-01'!$A$7:$U$300,11,FALSE)) ->  | AE56: =IF($P56="","",VLOOKUP($P56,'FO-DRE-01'!$A$7:$U$300,12,FALSE)) ->  | AF56: =IF($P56="","",VLOOKUP($P56,'FO-DRE-01'!$A$7:$U$300,13,FALSE)) ->  | AG56: =IF($P56="","",VLOOKUP($P56,'FO-DRE-01'!$A$7:$U$300,14,FALSE)) ->  | AH56: W | AI56: =IF(Q56="","",VLOOKUP($Q56,'FO-DRE-04'!$A$6:$M$100,3,FALSE)) ->  | AJ56: =IF(Q56="","",VLOOKUP($Q56,'FO-DRE-04'!$A$6:$M$100,4,FALSE)) ->  | AK56: =IF(Q56="","",VLOOKUP($Q56,'FO-DRE-04'!$A$6:$M$100,5,FALSE)) ->  | AL56: =IF(Q56="","",VLOOKUP($Q56,'FO-DRE-04'!$A$6:$M$100,7,FALSE)) ->  | AM56: =IF(Q56="","",VLOOKUP($Q56,'FO-DRE-04'!$A$6:$M$100,11,FALSE)) ->  | AN56: =IF($R56="","",VLOOKUP($R56,'FO-DRE-02'!$A$6:$N$100,2,FALSE)) ->  | AO56: =IF($R56="","",VLOOKUP($R56,'FO-DRE-02'!$A$5:$J$100,3,FALSE)) ->  | AP56: =IF($R56="","",VLOOKUP($R56,'FO-DRE-02'!$A$5:$J$100,6,FALSE)) ->  | AQ56: =IF($R56="","",VLOOKUP($R56,'FO-DRE-02'!$A$5:$J$100,4,FALSE)) ->  | AR56: =IF($R56="","",VLOOKUP($R56,'FO-DRE-02'!$A$5:$J$100,5,FALSE)) ->  | AS56: =IF($R56="","",VLOOKUP($R56,'FO-DRE-02'!$A$5:$J$100,6,FALSE)) ->  | AT56: =IF($R56="","",VLOOKUP($R56,'FO-DRE-02'!$A$5:$J$100,7,FALSE)) ->  | AU56: =IF($R56="","",VLOOKUP($R56,'FO-DRE-02'!$A$5:$J$100,9,FALSE)) ->  | AV56: =IF($R56="","",VLOOKUP($R56,'FO-DRE-02'!$A$5:$M$100,11,FALSE)) ->  | AW56: =IF($R56="","",VLOOKUP($R56,'FO-DRE-02'!$A$5:$M$100,12,FALSE)) ->  | AX56: =IF($R56="","",VLOOKUP($R56,'FO-DRE-02'!$A$5:$M$100,13,FALSE)) ->  | BA56: 5000 | BD56: 47 | BF56: F/D | BG56: F/D
T57: =IF($P57="","",VLOOKUP($P57,'FO-DRE-01'!$A$7:$U$347,18,FALSE)) ->  | U57: =IF($P57="","",VLOOKUP($P57,'FO-DRE-01'!$A$7:$U$300,16,FALSE)) ->  | V57: =IF($P57="","",VLOOKUP($P57,'FO-DRE-01'!$A$7:$U$300,17,FALSE)) ->  | W57: =IF($P57="","",VLOOKUP($P57,'FO-DRE-01'!$A$7:$U$300,3,FALSE)) ->  | X57: =IF($P57="","",VLOOKUP($P57,'FO-DRE-01'!$A$7:$U$300,4,FALSE)) ->  | Y57: =IF($P57="","",VLOOKUP($P57,'FO-DRE-01'!$A$7:$U$300,5,FALSE)) ->  | Z57: =IF($P57="","",VLOOKUP($P57,'FO-DRE-01'!$A$7:$U$300,7,FALSE)) ->  | AA57: =IF($P57="","",VLOOKUP($P57,'FO-DRE-01'!$A$7:$U$300,8,FALSE)) ->  | AB57: =IF($P57="","",VLOOKUP($P57,'FO-DRE-01'!$A$7:$U$300,9,FALSE)) ->  | AC57: =IF($P57="","",VLOOKUP($P57,'FO-DRE-01'!$A$7:$U$300,10,FALSE)) ->  | AD57: =IF($P57="","",VLOOKUP($P57,'FO-DRE-01'!$A$7:$U$300,11,FALSE)) ->  | AE57: =IF($P57="","",VLOOKUP($P57,'FO-DRE-01'!$A$7:$U$300,12,FALSE)) ->  | AF57: =IF($P57="","",VLOOKUP($P57,'FO-DRE-01'!$A$7:$U$300,13,FALSE)) ->  | AG57: =IF($P57="","",VLOOKUP($P57,'FO-DRE-01'!$A$7:$U$300,14,FALSE)) ->  | AH57: W | AI57: =IF(Q57="","",VLOOKUP($Q57,'FO-DRE-04'!$A$6:$M$100,3,FALSE)) ->  | AJ57: =IF(Q57="","",VLOOKUP($Q57,'FO-DRE-04'!$A$6:$M$100,4,FALSE)) ->  | AK57: =IF(Q57="","",VLOOKUP($Q57,'FO-DRE-04'!$A$6:$M$100,5,FALSE)) ->  | AL57: =IF(Q57="","",VLOOKUP($Q57,'FO-DRE-04'!$A$6:$M$100,7,FALSE)) ->  | AM57: =IF(Q57="","",VLOOKUP($Q57,'FO-DRE-04'!$A$6:$M$100,11,FALSE)) ->  | AN57: =IF($R57="","",VLOOKUP($R57,'FO-DRE-02'!$A$6:$N$100,2,FALSE)) ->  | AO57: =IF($R57="","",VLOOKUP($R57,'FO-DRE-02'!$A$5:$J$100,3,FALSE)) ->  | AP57: =IF($R57="","",VLOOKUP($R57,'FO-DRE-02'!$A$5:$J$100,6,FALSE)) ->  | AQ57: =IF($R57="","",VLOOKUP($R57,'FO-DRE-02'!$A$5:$J$100,4,FALSE)) ->  | AR57: =IF($R57="","",VLOOKUP($R57,'FO-DRE-02'!$A$5:$J$100,5,FALSE)) ->  | AS57: =IF($R57="","",VLOOKUP($R57,'FO-DRE-02'!$A$5:$J$100,6,FALSE)) ->  | AT57: =IF($R57="","",VLOOKUP($R57,'FO-DRE-02'!$A$5:$J$100,7,FALSE)) ->  | AU57: =IF($R57="","",VLOOKUP($R57,'FO-DRE-02'!$A$5:$J$100,9,FALSE)) ->  | AV57: =IF($R57="","",VLOOKUP($R57,'FO-DRE-02'!$A$5:$M$100,11,FALSE)) ->  | AW57: =IF($R57="","",VLOOKUP($R57,'FO-DRE-02'!$A$5:$M$100,12,FALSE)) ->  | AX57: =IF($R57="","",VLOOKUP($R57,'FO-DRE-02'!$A$5:$M$100,13,FALSE)) ->  | BA57: 5000 | BD57: 48 | BF57: F/D | BG57: F/D
T58: =IF($P58="","",VLOOKUP($P58,'FO-DRE-01'!$A$7:$U$347,18,FALSE)) ->  | U58: =IF($P58="","",VLOOKUP($P58,'FO-DRE-01'!$A$7:$U$300,16,FALSE)) ->  | V58: =IF($P58="","",VLOOKUP($P58,'FO-DRE-01'!$A$7:$U$300,17,FALSE)) ->  | W58: =IF($P58="","",VLOOKUP($P58,'FO-DRE-01'!$A$7:$U$300,3,FALSE)) ->  | X58: =IF($P58="","",VLOOKUP($P58,'FO-DRE-01'!$A$7:$U$300,4,FALSE)) ->  | Y58: =IF($P58="","",VLOOKUP($P58,'FO-DRE-01'!$A$7:$U$300,5,FALSE)) ->  | Z58: =IF($P58="","",VLOOKUP($P58,'FO-DRE-01'!$A$7:$U$300,7,FALSE)) ->  | AA58: =IF($P58="","",VLOOKUP($P58,'FO-DRE-01'!$A$7:$U$300,8,FALSE)) ->  | AB58: =IF($P58="","",VLOOKUP($P58,'FO-DRE-01'!$A$7:$U$300,9,FALSE)) ->  | AC58: =IF($P58="","",VLOOKUP($P58,'FO-DRE-01'!$A$7:$U$300,10,FALSE)) ->  | AD58: =IF($P58="","",VLOOKUP($P58,'FO-DRE-01'!$A$7:$U$300,11,FALSE)) ->  | AE58: =IF($P58="","",VLOOKUP($P58,'FO-DRE-01'!$A$7:$U$300,12,FALSE)) ->  | AF58: =IF($P58="","",VLOOKUP($P58,'FO-DRE-01'!$A$7:$U$300,13,FALSE)) ->  | AG58: =IF($P58="","",VLOOKUP($P58,'FO-DRE-01'!$A$7:$U$300,14,FALSE)) ->  | AH58: W | AI58: =IF(Q58="","",VLOOKUP($Q58,'FO-DRE-04'!$A$6:$M$100,3,FALSE)) ->  | AJ58: =IF(Q58="","",VLOOKUP($Q58,'FO-DRE-04'!$A$6:$M$100,4,FALSE)) ->  | AK58: =IF(Q58="","",VLOOKUP($Q58,'FO-DRE-04'!$A$6:$M$100,5,FALSE)) ->  | AL58: =IF(Q58="","",VLOOKUP($Q58,'FO-DRE-04'!$A$6:$M$100,7,FALSE)) ->  | AM58: =IF(Q58="","",VLOOKUP($Q58,'FO-DRE-04'!$A$6:$M$100,11,FALSE)) ->  | AN58: =IF($R58="","",VLOOKUP($R58,'FO-DRE-02'!$A$6:$N$100,2,FALSE)) ->  | AO58: =IF($R58="","",VLOOKUP($R58,'FO-DRE-02'!$A$5:$J$100,3,FALSE)) ->  | AP58: =IF($R58="","",VLOOKUP($R58,'FO-DRE-02'!$A$5:$J$100,6,FALSE)) ->  | AQ58: =IF($R58="","",VLOOKUP($R58,'FO-DRE-02'!$A$5:$J$100,4,FALSE)) ->  | AR58: =IF($R58="","",VLOOKUP($R58,'FO-DRE-02'!$A$5:$J$100,5,FALSE)) ->  | AS58: =IF($R58="","",VLOOKUP($R58,'FO-DRE-02'!$A$5:$J$100,6,FALSE)) ->  | AT58: =IF($R58="","",VLOOKUP($R58,'FO-DRE-02'!$A$5:$J$100,7,FALSE)) ->  | AU58: =IF($R58="","",VLOOKUP($R58,'FO-DRE-02'!$A$5:$J$100,9,FALSE)) ->  | AV58: =IF($R58="","",VLOOKUP($R58,'FO-DRE-02'!$A$5:$M$100,11,FALSE)) ->  | AW58: =IF($R58="","",VLOOKUP($R58,'FO-DRE-02'!$A$5:$M$100,12,FALSE)) ->  | AX58: =IF($R58="","",VLOOKUP($R58,'FO-DRE-02'!$A$5:$M$100,13,FALSE)) ->  | BA58: 5000 | BD58: 49 | BF58: F/D | BG58: F/D
T59: =IF($P59="","",VLOOKUP($P59,'FO-DRE-01'!$A$7:$U$347,18,FALSE)) ->  | U59: =IF($P59="","",VLOOKUP($P59,'FO-DRE-01'!$A$7:$U$300,16,FALSE)) ->  | V59: =IF($P59="","",VLOOKUP($P59,'FO-DRE-01'!$A$7:$U$300,17,FALSE)) ->  | W59: =IF($P59="","",VLOOKUP($P59,'FO-DRE-01'!$A$7:$U$300,3,FALSE)) ->  | X59: =IF($P59="","",VLOOKUP($P59,'FO-DRE-01'!$A$7:$U$300,4,FALSE)) ->  | Y59: =IF($P59="","",VLOOKUP($P59,'FO-DRE-01'!$A$7:$U$300,5,FALSE)) ->  | Z59: =IF($P59="","",VLOOKUP($P59,'FO-DRE-01'!$A$7:$U$300,7,FALSE)) ->  | AA59: =IF($P59="","",VLOOKUP($P59,'FO-DRE-01'!$A$7:$U$300,8,FALSE)) ->  | AB59: =IF($P59="","",VLOOKUP($P59,'FO-DRE-01'!$A$7:$U$300,9,FALSE)) ->  | AC59: =IF($P59="","",VLOOKUP($P59,'FO-DRE-01'!$A$7:$U$300,10,FALSE)) ->  | AD59: =IF($P59="","",VLOOKUP($P59,'FO-DRE-01'!$A$7:$U$300,11,FALSE)) ->  | AE59: =IF($P59="","",VLOOKUP($P59,'FO-DRE-01'!$A$7:$U$300,12,FALSE)) ->  | AF59: =IF($P59="","",VLOOKUP($P59,'FO-DRE-01'!$A$7:$U$300,13,FALSE)) ->  | AG59: =IF($P59="","",VLOOKUP($P59,'FO-DRE-01'!$A$7:$U$300,14,FALSE)) ->  | AH59: W | AI59: =IF(Q59="","",VLOOKUP($Q59,'FO-DRE-04'!$A$6:$M$100,3,FALSE)) ->  | AJ59: =IF(Q59="","",VLOOKUP($Q59,'FO-DRE-04'!$A$6:$M$100,4,FALSE)) ->  | AK59: =IF(Q59="","",VLOOKUP($Q59,'FO-DRE-04'!$A$6:$M$100,5,FALSE)) ->  | AL59: =IF(Q59="","",VLOOKUP($Q59,'FO-DRE-04'!$A$6:$M$100,7,FALSE)) ->  | AM59: =IF(Q59="","",VLOOKUP($Q59,'FO-DRE-04'!$A$6:$M$100,11,FALSE)) ->  | AN59: =IF($R59="","",VLOOKUP($R59,'FO-DRE-02'!$A$6:$N$100,2,FALSE)) ->  | AO59: =IF($R59="","",VLOOKUP($R59,'FO-DRE-02'!$A$5:$J$100,3,FALSE)) ->  | AP59: =IF($R59="","",VLOOKUP($R59,'FO-DRE-02'!$A$5:$J$100,6,FALSE)) ->  | AQ59: =IF($R59="","",VLOOKUP($R59,'FO-DRE-02'!$A$5:$J$100,4,FALSE)) ->  | AR59: =IF($R59="","",VLOOKUP($R59,'FO-DRE-02'!$A$5:$J$100,5,FALSE)) ->  | AS59: =IF($R59="","",VLOOKUP($R59,'FO-DRE-02'!$A$5:$J$100,6,FALSE)) ->  | AT59: =IF($R59="","",VLOOKUP($R59,'FO-DRE-02'!$A$5:$J$100,7,FALSE)) ->  | AU59: =IF($R59="","",VLOOKUP($R59,'FO-DRE-02'!$A$5:$J$100,9,FALSE)) ->  | AV59: =IF($R59="","",VLOOKUP($R59,'FO-DRE-02'!$A$5:$M$100,11,FALSE)) ->  | AW59: =IF($R59="","",VLOOKUP($R59,'FO-DRE-02'!$A$5:$M$100,12,FALSE)) ->  | AX59: =IF($R59="","",VLOOKUP($R59,'FO-DRE-02'!$A$5:$M$100,13,FALSE)) ->  | BA59: 5000 | BD59: 50 | BF59: F/D | BG59: F/D
T60: =IF($P60="","",VLOOKUP($P60,'FO-DRE-01'!$A$7:$U$347,18,FALSE)) ->  | U60: =IF($P60="","",VLOOKUP($P60,'FO-DRE-01'!$A$7:$U$300,16,FALSE)) ->  | V60: =IF($P60="","",VLOOKUP($P60,'FO-DRE-01'!$A$7:$U$300,17,FALSE)) ->  | W60: =IF($P60="","",VLOOKUP($P60,'FO-DRE-01'!$A$7:$U$300,3,FALSE)) ->  | X60: =IF($P60="","",VLOOKUP($P60,'FO-DRE-01'!$A$7:$U$300,4,FALSE)) ->  | Y60: =IF($P60="","",VLOOKUP($P60,'FO-DRE-01'!$A$7:$U$300,5,FALSE)) ->  | Z60: =IF($P60="","",VLOOKUP($P60,'FO-DRE-01'!$A$7:$U$300,7,FALSE)) ->  | AA60: =IF($P60="","",VLOOKUP($P60,'FO-DRE-01'!$A$7:$U$300,8,FALSE)) ->  | AB60: =IF($P60="","",VLOOKUP($P60,'FO-DRE-01'!$A$7:$U$300,9,FALSE)) ->  | AC60: =IF($P60="","",VLOOKUP($P60,'FO-DRE-01'!$A$7:$U$300,10,FALSE)) ->  | AD60: =IF($P60="","",VLOOKUP($P60,'FO-DRE-01'!$A$7:$U$300,11,FALSE)) ->  | AE60: =IF($P60="","",VLOOKUP($P60,'FO-DRE-01'!$A$7:$U$300,12,FALSE)) ->  | AF60: =IF($P60="","",VLOOKUP($P60,'FO-DRE-01'!$A$7:$U$300,13,FALSE)) ->  | AG60: =IF($P60="","",VLOOKUP($P60,'FO-DRE-01'!$A$7:$U$300,14,FALSE)) ->  | AH60: W | AI60: =IF(Q60="","",VLOOKUP($Q60,'FO-DRE-04'!$A$6:$M$100,3,FALSE)) ->  | AJ60: =IF(Q60="","",VLOOKUP($Q60,'FO-DRE-04'!$A$6:$M$100,4,FALSE)) ->  | AK60: =IF(Q60="","",VLOOKUP($Q60,'FO-DRE-04'!$A$6:$M$100,5,FALSE)) ->  | AL60: =IF(Q60="","",VLOOKUP($Q60,'FO-DRE-04'!$A$6:$M$100,7,FALSE)) ->  | AM60: =IF(Q60="","",VLOOKUP($Q60,'FO-DRE-04'!$A$6:$M$100,11,FALSE)) ->  | AN60: =IF($R60="","",VLOOKUP($R60,'FO-DRE-02'!$A$6:$N$100,2,FALSE)) ->  | AO60: =IF($R60="","",VLOOKUP($R60,'FO-DRE-02'!$A$5:$J$100,3,FALSE)) ->  | AP60: =IF($R60="","",VLOOKUP($R60,'FO-DRE-02'!$A$5:$J$100,6,FALSE)) ->  | AQ60: =IF($R60="","",VLOOKUP($R60,'FO-DRE-02'!$A$5:$J$100,4,FALSE)) ->  | AR60: =IF($R60="","",VLOOKUP($R60,'FO-DRE-02'!$A$5:$J$100,5,FALSE)) ->  | AS60: =IF($R60="","",VLOOKUP($R60,'FO-DRE-02'!$A$5:$J$100,6,FALSE)) ->  | AT60: =IF($R60="","",VLOOKUP($R60,'FO-DRE-02'!$A$5:$J$100,7,FALSE)) ->  | AU60: =IF($R60="","",VLOOKUP($R60,'FO-DRE-02'!$A$5:$J$100,9,FALSE)) ->  | AV60: =IF($R60="","",VLOOKUP($R60,'FO-DRE-02'!$A$5:$M$100,11,FALSE)) ->  | AW60: =IF($R60="","",VLOOKUP($R60,'FO-DRE-02'!$A$5:$M$100,12,FALSE)) ->  | AX60: =IF($R60="","",VLOOKUP($R60,'FO-DRE-02'!$A$5:$M$100,13,FALSE)) ->  | BA60: 5000 | BD60: 51 | BF60: F/D | BG60: F/D
T61: =IF($P61="","",VLOOKUP($P61,'FO-DRE-01'!$A$7:$U$347,18,FALSE)) ->  | U61: =IF($P61="","",VLOOKUP($P61,'FO-DRE-01'!$A$7:$U$300,16,FALSE)) ->  | V61: =IF($P61="","",VLOOKUP($P61,'FO-DRE-01'!$A$7:$U$300,17,FALSE)) ->  | W61: =IF($P61="","",VLOOKUP($P61,'FO-DRE-01'!$A$7:$U$300,3,FALSE)) ->  | X61: =IF($P61="","",VLOOKUP($P61,'FO-DRE-01'!$A$7:$U$300,4,FALSE)) ->  | Y61: =IF($P61="","",VLOOKUP($P61,'FO-DRE-01'!$A$7:$U$300,5,FALSE)) ->  | Z61: =IF($P61="","",VLOOKUP($P61,'FO-DRE-01'!$A$7:$U$300,7,FALSE)) ->  | AA61: =IF($P61="","",VLOOKUP($P61,'FO-DRE-01'!$A$7:$U$300,8,FALSE)) ->  | AB61: =IF($P61="","",VLOOKUP($P61,'FO-DRE-01'!$A$7:$U$300,9,FALSE)) ->  | AC61: =IF($P61="","",VLOOKUP($P61,'FO-DRE-01'!$A$7:$U$300,10,FALSE)) ->  | AD61: =IF($P61="","",VLOOKUP($P61,'FO-DRE-01'!$A$7:$U$300,11,FALSE)) ->  | AE61: =IF($P61="","",VLOOKUP($P61,'FO-DRE-01'!$A$7:$U$300,12,FALSE)) ->  | AF61: =IF($P61="","",VLOOKUP($P61,'FO-DRE-01'!$A$7:$U$300,13,FALSE)) ->  | AG61: =IF($P61="","",VLOOKUP($P61,'FO-DRE-01'!$A$7:$U$300,14,FALSE)) ->  | AH61: W | AI61: =IF(Q61="","",VLOOKUP($Q61,'FO-DRE-04'!$A$6:$M$100,3,FALSE)) ->  | AJ61: =IF(Q61="","",VLOOKUP($Q61,'FO-DRE-04'!$A$6:$M$100,4,FALSE)) ->  | AK61: =IF(Q61="","",VLOOKUP($Q61,'FO-DRE-04'!$A$6:$M$100,5,FALSE)) ->  | AL61: =IF(Q61="","",VLOOKUP($Q61,'FO-DRE-04'!$A$6:$M$100,7,FALSE)) ->  | AM61: =IF(Q61="","",VLOOKUP($Q61,'FO-DRE-04'!$A$6:$M$100,11,FALSE)) ->  | AN61: =IF($R61="","",VLOOKUP($R61,'FO-DRE-02'!$A$6:$N$100,2,FALSE)) ->  | AO61: =IF($R61="","",VLOOKUP($R61,'FO-DRE-02'!$A$5:$J$100,3,FALSE)) ->  | AP61: =IF($R61="","",VLOOKUP($R61,'FO-DRE-02'!$A$5:$J$100,6,FALSE)) ->  | AQ61: =IF($R61="","",VLOOKUP($R61,'FO-DRE-02'!$A$5:$J$100,4,FALSE)) ->  | AR61: =IF($R61="","",VLOOKUP($R61,'FO-DRE-02'!$A$5:$J$100,5,FALSE)) ->  | AS61: =IF($R61="","",VLOOKUP($R61,'FO-DRE-02'!$A$5:$J$100,6,FALSE)) ->  | AT61: =IF($R61="","",VLOOKUP($R61,'FO-DRE-02'!$A$5:$J$100,7,FALSE)) ->  | AU61: =IF($R61="","",VLOOKUP($R61,'FO-DRE-02'!$A$5:$J$100,9,FALSE)) ->  | AV61: =IF($R61="","",VLOOKUP($R61,'FO-DRE-02'!$A$5:$M$100,11,FALSE)) ->  | AW61: =IF($R61="","",VLOOKUP($R61,'FO-DRE-02'!$A$5:$M$100,12,FALSE)) ->  | AX61: =IF($R61="","",VLOOKUP($R61,'FO-DRE-02'!$A$5:$M$100,13,FALSE)) ->  | BA61: 5000 | BD61: 52 | BF61: F/D | BG61: F/D
T62: =IF($P62="","",VLOOKUP($P62,'FO-DRE-01'!$A$7:$U$347,18,FALSE)) ->  | U62: =IF($P62="","",VLOOKUP($P62,'FO-DRE-01'!$A$7:$U$300,16,FALSE)) ->  | V62: =IF($P62="","",VLOOKUP($P62,'FO-DRE-01'!$A$7:$U$300,17,FALSE)) ->  | W62: =IF($P62="","",VLOOKUP($P62,'FO-DRE-01'!$A$7:$U$300,3,FALSE)) ->  | X62: =IF($P62="","",VLOOKUP($P62,'FO-DRE-01'!$A$7:$U$300,4,FALSE)) ->  | Y62: =IF($P62="","",VLOOKUP($P62,'FO-DRE-01'!$A$7:$U$300,5,FALSE)) ->  | Z62: =IF($P62="","",VLOOKUP($P62,'FO-DRE-01'!$A$7:$U$300,7,FALSE)) ->  | AA62: =IF($P62="","",VLOOKUP($P62,'FO-DRE-01'!$A$7:$U$300,8,FALSE)) ->  | AB62: =IF($P62="","",VLOOKUP($P62,'FO-DRE-01'!$A$7:$U$300,9,FALSE)) ->  | AC62: =IF($P62="","",VLOOKUP($P62,'FO-DRE-01'!$A$7:$U$300,10,FALSE)) ->  | AD62: =IF($P62="","",VLOOKUP($P62,'FO-DRE-01'!$A$7:$U$300,11,FALSE)) ->  | AE62: =IF($P62="","",VLOOKUP($P62,'FO-DRE-01'!$A$7:$U$300,12,FALSE)) ->  | AF62: =IF($P62="","",VLOOKUP($P62,'FO-DRE-01'!$A$7:$U$300,13,FALSE)) ->  | AG62: =IF($P62="","",VLOOKUP($P62,'FO-DRE-01'!$A$7:$U$300,14,FALSE)) ->  | AH62: W | AI62: =IF(Q62="","",VLOOKUP($Q62,'FO-DRE-04'!$A$6:$M$100,3,FALSE)) ->  | AJ62: =IF(Q62="","",VLOOKUP($Q62,'FO-DRE-04'!$A$6:$M$100,4,FALSE)) ->  | AK62: =IF(Q62="","",VLOOKUP($Q62,'FO-DRE-04'!$A$6:$M$100,5,FALSE)) ->  | AL62: =IF(Q62="","",VLOOKUP($Q62,'FO-DRE-04'!$A$6:$M$100,7,FALSE)) ->  | AM62: =IF(Q62="","",VLOOKUP($Q62,'FO-DRE-04'!$A$6:$M$100,11,FALSE)) ->  | AN62: =IF($R62="","",VLOOKUP($R62,'FO-DRE-02'!$A$6:$N$100,2,FALSE)) ->  | AO62: =IF($R62="","",VLOOKUP($R62,'FO-DRE-02'!$A$5:$J$100,3,FALSE)) ->  | AP62: =IF($R62="","",VLOOKUP($R62,'FO-DRE-02'!$A$5:$J$100,6,FALSE)) ->  | AQ62: =IF($R62="","",VLOOKUP($R62,'FO-DRE-02'!$A$5:$J$100,4,FALSE)) ->  | AR62: =IF($R62="","",VLOOKUP($R62,'FO-DRE-02'!$A$5:$J$100,5,FALSE)) ->  | AS62: =IF($R62="","",VLOOKUP($R62,'FO-DRE-02'!$A$5:$J$100,6,FALSE)) ->  | AT62: =IF($R62="","",VLOOKUP($R62,'FO-DRE-02'!$A$5:$J$100,7,FALSE)) ->  | AU62: =IF($R62="","",VLOOKUP($R62,'FO-DRE-02'!$A$5:$J$100,9,FALSE)) ->  | AV62: =IF($R62="","",VLOOKUP($R62,'FO-DRE-02'!$A$5:$M$100,11,FALSE)) ->  | AW62: =IF($R62="","",VLOOKUP($R62,'FO-DRE-02'!$A$5:$M$100,12,FALSE)) ->  | AX62: =IF($R62="","",VLOOKUP($R62,'FO-DRE-02'!$A$5:$M$100,13,FALSE)) ->  | BA62: 5000 | BD62: 53 | BF62: F/D | BG62: F/D
T63: =IF($P63="","",VLOOKUP($P63,'FO-DRE-01'!$A$7:$U$347,18,FALSE)) ->  | U63: =IF($P63="","",VLOOKUP($P63,'FO-DRE-01'!$A$7:$U$300,16,FALSE)) ->  | V63: =IF($P63="","",VLOOKUP($P63,'FO-DRE-01'!$A$7:$U$300,17,FALSE)) ->  | W63: =IF($P63="","",VLOOKUP($P63,'FO-DRE-01'!$A$7:$U$300,3,FALSE)) ->  | X63: =IF($P63="","",VLOOKUP($P63,'FO-DRE-01'!$A$7:$U$300,4,FALSE)) ->  | Y63: =IF($P63="","",VLOOKUP($P63,'FO-DRE-01'!$A$7:$U$300,5,FALSE)) ->  | Z63: =IF($P63="","",VLOOKUP($P63,'FO-DRE-01'!$A$7:$U$300,7,FALSE)) ->  | AA63: =IF($P63="","",VLOOKUP($P63,'FO-DRE-01'!$A$7:$U$300,8,FALSE)) ->  | AB63: =IF($P63="","",VLOOKUP($P63,'FO-DRE-01'!$A$7:$U$300,9,FALSE)) ->  | AC63: =IF($P63="","",VLOOKUP($P63,'FO-DRE-01'!$A$7:$U$300,10,FALSE)) ->  | AD63: =IF($P63="","",VLOOKUP($P63,'FO-DRE-01'!$A$7:$U$300,11,FALSE)) ->  | AE63: =IF($P63="","",VLOOKUP($P63,'FO-DRE-01'!$A$7:$U$300,12,FALSE)) ->  | AF63: =IF($P63="","",VLOOKUP($P63,'FO-DRE-01'!$A$7:$U$300,13,FALSE)) ->  | AG63: =IF($P63="","",VLOOKUP($P63,'FO-DRE-01'!$A$7:$U$300,14,FALSE)) ->  | AH63: W | AI63: =IF(Q63="","",VLOOKUP($Q63,'FO-DRE-04'!$A$6:$M$100,3,FALSE)) ->  | AJ63: =IF(Q63="","",VLOOKUP($Q63,'FO-DRE-04'!$A$6:$M$100,4,FALSE)) ->  | AK63: =IF(Q63="","",VLOOKUP($Q63,'FO-DRE-04'!$A$6:$M$100,5,FALSE)) ->  | AL63: =IF(Q63="","",VLOOKUP($Q63,'FO-DRE-04'!$A$6:$M$100,7,FALSE)) ->  | AM63: =IF(Q63="","",VLOOKUP($Q63,'FO-DRE-04'!$A$6:$M$100,11,FALSE)) ->  | AN63: =IF($R63="","",VLOOKUP($R63,'FO-DRE-02'!$A$6:$N$100,2,FALSE)) ->  | AO63: =IF($R63="","",VLOOKUP($R63,'FO-DRE-02'!$A$5:$J$100,3,FALSE)) ->  | AP63: =IF($R63="","",VLOOKUP($R63,'FO-DRE-02'!$A$5:$J$100,6,FALSE)) ->  | AQ63: =IF($R63="","",VLOOKUP($R63,'FO-DRE-02'!$A$5:$J$100,4,FALSE)) ->  | AR63: =IF($R63="","",VLOOKUP($R63,'FO-DRE-02'!$A$5:$J$100,5,FALSE)) ->  | AS63: =IF($R63="","",VLOOKUP($R63,'FO-DRE-02'!$A$5:$J$100,6,FALSE)) ->  | AT63: =IF($R63="","",VLOOKUP($R63,'FO-DRE-02'!$A$5:$J$100,7,FALSE)) ->  | AU63: =IF($R63="","",VLOOKUP($R63,'FO-DRE-02'!$A$5:$J$100,9,FALSE)) ->  | AV63: =IF($R63="","",VLOOKUP($R63,'FO-DRE-02'!$A$5:$M$100,11,FALSE)) ->  | AW63: =IF($R63="","",VLOOKUP($R63,'FO-DRE-02'!$A$5:$M$100,12,FALSE)) ->  | AX63: =IF($R63="","",VLOOKUP($R63,'FO-DRE-02'!$A$5:$M$100,13,FALSE)) ->  | BA63: 5000 | BD63: 54 | BF63: F/D | BG63: F/D
T64: =IF($P64="","",VLOOKUP($P64,'FO-DRE-01'!$A$7:$U$347,18,FALSE)) ->  | U64: =IF($P64="","",VLOOKUP($P64,'FO-DRE-01'!$A$7:$U$300,16,FALSE)) ->  | V64: =IF($P64="","",VLOOKUP($P64,'FO-DRE-01'!$A$7:$U$300,17,FALSE)) ->  | W64: =IF($P64="","",VLOOKUP($P64,'FO-DRE-01'!$A$7:$U$300,3,FALSE)) ->  | X64: =IF($P64="","",VLOOKUP($P64,'FO-DRE-01'!$A$7:$U$300,4,FALSE)) ->  | Y64: =IF($P64="","",VLOOKUP($P64,'FO-DRE-01'!$A$7:$U$300,5,FALSE)) ->  | Z64: =IF($P64="","",VLOOKUP($P64,'FO-DRE-01'!$A$7:$U$300,7,FALSE)) ->  | AA64: =IF($P64="","",VLOOKUP($P64,'FO-DRE-01'!$A$7:$U$300,8,FALSE)) ->  | AB64: =IF($P64="","",VLOOKUP($P64,'FO-DRE-01'!$A$7:$U$300,9,FALSE)) ->  | AC64: =IF($P64="","",VLOOKUP($P64,'FO-DRE-01'!$A$7:$U$300,10,FALSE)) ->  | AD64: =IF($P64="","",VLOOKUP($P64,'FO-DRE-01'!$A$7:$U$300,11,FALSE)) ->  | AE64: =IF($P64="","",VLOOKUP($P64,'FO-DRE-01'!$A$7:$U$300,12,FALSE)) ->  | AF64: =IF($P64="","",VLOOKUP($P64,'FO-DRE-01'!$A$7:$U$300,13,FALSE)) ->  | AG64: =IF($P64="","",VLOOKUP($P64,'FO-DRE-01'!$A$7:$U$300,14,FALSE)) ->  | AH64: W | AI64: =IF(Q64="","",VLOOKUP($Q64,'FO-DRE-04'!$A$6:$M$100,3,FALSE)) ->  | AJ64: =IF(Q64="","",VLOOKUP($Q64,'FO-DRE-04'!$A$6:$M$100,4,FALSE)) ->  | AK64: =IF(Q64="","",VLOOKUP($Q64,'FO-DRE-04'!$A$6:$M$100,5,FALSE)) ->  | AL64: =IF(Q64="","",VLOOKUP($Q64,'FO-DRE-04'!$A$6:$M$100,7,FALSE)) ->  | AM64: =IF(Q64="","",VLOOKUP($Q64,'FO-DRE-04'!$A$6:$M$100,11,FALSE)) ->  | AN64: =IF($R64="","",VLOOKUP($R64,'FO-DRE-02'!$A$6:$N$100,2,FALSE)) ->  | AO64: =IF($R64="","",VLOOKUP($R64,'FO-DRE-02'!$A$5:$J$100,3,FALSE)) ->  | AP64: =IF($R64="","",VLOOKUP($R64,'FO-DRE-02'!$A$5:$J$100,6,FALSE)) ->  | AQ64: =IF($R64="","",VLOOKUP($R64,'FO-DRE-02'!$A$5:$J$100,4,FALSE)) ->  | AR64: =IF($R64="","",VLOOKUP($R64,'FO-DRE-02'!$A$5:$J$100,5,FALSE)) ->  | AS64: =IF($R64="","",VLOOKUP($R64,'FO-DRE-02'!$A$5:$J$100,6,FALSE)) ->  | AT64: =IF($R64="","",VLOOKUP($R64,'FO-DRE-02'!$A$5:$J$100,7,FALSE)) ->  | AU64: =IF($R64="","",VLOOKUP($R64,'FO-DRE-02'!$A$5:$J$100,9,FALSE)) ->  | AV64: =IF($R64="","",VLOOKUP($R64,'FO-DRE-02'!$A$5:$M$100,11,FALSE)) ->  | AW64: =IF($R64="","",VLOOKUP($R64,'FO-DRE-02'!$A$5:$M$100,12,FALSE)) ->  | AX64: =IF($R64="","",VLOOKUP($R64,'FO-DRE-02'!$A$5:$M$100,13,FALSE)) ->  | BA64: 5000 | BD64: 55 | BF64: F/D | BG64: F/D
T65: =IF($P65="","",VLOOKUP($P65,'FO-DRE-01'!$A$7:$U$347,18,FALSE)) ->  | U65: =IF($P65="","",VLOOKUP($P65,'FO-DRE-01'!$A$7:$U$300,16,FALSE)) ->  | V65: =IF($P65="","",VLOOKUP($P65,'FO-DRE-01'!$A$7:$U$300,17,FALSE)) ->  | W65: =IF($P65="","",VLOOKUP($P65,'FO-DRE-01'!$A$7:$U$300,3,FALSE)) ->  | X65: =IF($P65="","",VLOOKUP($P65,'FO-DRE-01'!$A$7:$U$300,4,FALSE)) ->  | Y65: =IF($P65="","",VLOOKUP($P65,'FO-DRE-01'!$A$7:$U$300,5,FALSE)) ->  | Z65: =IF($P65="","",VLOOKUP($P65,'FO-DRE-01'!$A$7:$U$300,7,FALSE)) ->  | AA65: =IF($P65="","",VLOOKUP($P65,'FO-DRE-01'!$A$7:$U$300,8,FALSE)) ->  | AB65: =IF($P65="","",VLOOKUP($P65,'FO-DRE-01'!$A$7:$U$300,9,FALSE)) ->  | AC65: =IF($P65="","",VLOOKUP($P65,'FO-DRE-01'!$A$7:$U$300,10,FALSE)) ->  | AD65: =IF($P65="","",VLOOKUP($P65,'FO-DRE-01'!$A$7:$U$300,11,FALSE)) ->  | AE65: =IF($P65="","",VLOOKUP($P65,'FO-DRE-01'!$A$7:$U$300,12,FALSE)) ->  | AF65: =IF($P65="","",VLOOKUP($P65,'FO-DRE-01'!$A$7:$U$300,13,FALSE)) ->  | AG65: =IF($P65="","",VLOOKUP($P65,'FO-DRE-01'!$A$7:$U$300,14,FALSE)) ->  | AH65: W | AI65: =IF(Q65="","",VLOOKUP($Q65,'FO-DRE-04'!$A$6:$M$100,3,FALSE)) ->  | AJ65: =IF(Q65="","",VLOOKUP($Q65,'FO-DRE-04'!$A$6:$M$100,4,FALSE)) ->  | AK65: =IF(Q65="","",VLOOKUP($Q65,'FO-DRE-04'!$A$6:$M$100,5,FALSE)) ->  | AL65: =IF(Q65="","",VLOOKUP($Q65,'FO-DRE-04'!$A$6:$M$100,7,FALSE)) ->  | AM65: =IF(Q65="","",VLOOKUP($Q65,'FO-DRE-04'!$A$6:$M$100,11,FALSE)) ->  | AN65: =IF($R65="","",VLOOKUP($R65,'FO-DRE-02'!$A$6:$N$100,2,FALSE)) ->  | AO65: =IF($R65="","",VLOOKUP($R65,'FO-DRE-02'!$A$5:$J$100,3,FALSE)) ->  | AP65: =IF($R65="","",VLOOKUP($R65,'FO-DRE-02'!$A$5:$J$100,6,FALSE)) ->  | AQ65: =IF($R65="","",VLOOKUP($R65,'FO-DRE-02'!$A$5:$J$100,4,FALSE)) ->  | AR65: =IF($R65="","",VLOOKUP($R65,'FO-DRE-02'!$A$5:$J$100,5,FALSE)) ->  | AS65: =IF($R65="","",VLOOKUP($R65,'FO-DRE-02'!$A$5:$J$100,6,FALSE)) ->  | AT65: =IF($R65="","",VLOOKUP($R65,'FO-DRE-02'!$A$5:$J$100,7,FALSE)) ->  | AU65: =IF($R65="","",VLOOKUP($R65,'FO-DRE-02'!$A$5:$J$100,9,FALSE)) ->  | AV65: =IF($R65="","",VLOOKUP($R65,'FO-DRE-02'!$A$5:$M$100,11,FALSE)) ->  | AW65: =IF($R65="","",VLOOKUP($R65,'FO-DRE-02'!$A$5:$M$100,12,FALSE)) ->  | AX65: =IF($R65="","",VLOOKUP($R65,'FO-DRE-02'!$A$5:$M$100,13,FALSE)) ->  | BA65: 5000 | BD65: 56 | BF65: F/D | BG65: F/D
T66: =IF($P66="","",VLOOKUP($P66,'FO-DRE-01'!$A$7:$U$347,18,FALSE)) ->  | U66: =IF($P66="","",VLOOKUP($P66,'FO-DRE-01'!$A$7:$U$300,16,FALSE)) ->  | V66: =IF($P66="","",VLOOKUP($P66,'FO-DRE-01'!$A$7:$U$300,17,FALSE)) ->  | W66: =IF($P66="","",VLOOKUP($P66,'FO-DRE-01'!$A$7:$U$300,3,FALSE)) ->  | X66: =IF($P66="","",VLOOKUP($P66,'FO-DRE-01'!$A$7:$U$300,4,FALSE)) ->  | Y66: =IF($P66="","",VLOOKUP($P66,'FO-DRE-01'!$A$7:$U$300,5,FALSE)) ->  | Z66: =IF($P66="","",VLOOKUP($P66,'FO-DRE-01'!$A$7:$U$300,7,FALSE)) ->  | AA66: =IF($P66="","",VLOOKUP($P66,'FO-DRE-01'!$A$7:$U$300,8,FALSE)) ->  | AB66: =IF($P66="","",VLOOKUP($P66,'FO-DRE-01'!$A$7:$U$300,9,FALSE)) ->  | AC66: =IF($P66="","",VLOOKUP($P66,'FO-DRE-01'!$A$7:$U$300,10,FALSE)) ->  | AD66: =IF($P66="","",VLOOKUP($P66,'FO-DRE-01'!$A$7:$U$300,11,FALSE)) ->  | AE66: =IF($P66="","",VLOOKUP($P66,'FO-DRE-01'!$A$7:$U$300,12,FALSE)) ->  | AF66: =IF($P66="","",VLOOKUP($P66,'FO-DRE-01'!$A$7:$U$300,13,FALSE)) ->  | AG66: =IF($P66="","",VLOOKUP($P66,'FO-DRE-01'!$A$7:$U$300,14,FALSE)) ->  | AH66: W | AI66: =IF(Q66="","",VLOOKUP($Q66,'FO-DRE-04'!$A$6:$M$100,3,FALSE)) ->  | AJ66: =IF(Q66="","",VLOOKUP($Q66,'FO-DRE-04'!$A$6:$M$100,4,FALSE)) ->  | AK66: =IF(Q66="","",VLOOKUP($Q66,'FO-DRE-04'!$A$6:$M$100,5,FALSE)) ->  | AL66: =IF(Q66="","",VLOOKUP($Q66,'FO-DRE-04'!$A$6:$M$100,7,FALSE)) ->  | AM66: =IF(Q66="","",VLOOKUP($Q66,'FO-DRE-04'!$A$6:$M$100,11,FALSE)) ->  | AN66: =IF($R66="","",VLOOKUP($R66,'FO-DRE-02'!$A$6:$N$100,2,FALSE)) ->  | AO66: =IF($R66="","",VLOOKUP($R66,'FO-DRE-02'!$A$5:$J$100,3,FALSE)) ->  | AP66: =IF($R66="","",VLOOKUP($R66,'FO-DRE-02'!$A$5:$J$100,6,FALSE)) ->  | AQ66: =IF($R66="","",VLOOKUP($R66,'FO-DRE-02'!$A$5:$J$100,4,FALSE)) ->  | AR66: =IF($R66="","",VLOOKUP($R66,'FO-DRE-02'!$A$5:$J$100,5,FALSE)) ->  | AS66: =IF($R66="","",VLOOKUP($R66,'FO-DRE-02'!$A$5:$J$100,6,FALSE)) ->  | AT66: =IF($R66="","",VLOOKUP($R66,'FO-DRE-02'!$A$5:$J$100,7,FALSE)) ->  | AU66: =IF($R66="","",VLOOKUP($R66,'FO-DRE-02'!$A$5:$J$100,9,FALSE)) ->  | AV66: =IF($R66="","",VLOOKUP($R66,'FO-DRE-02'!$A$5:$M$100,11,FALSE)) ->  | AW66: =IF($R66="","",VLOOKUP($R66,'FO-DRE-02'!$A$5:$M$100,12,FALSE)) ->  | AX66: =IF($R66="","",VLOOKUP($R66,'FO-DRE-02'!$A$5:$M$100,13,FALSE)) ->  | BA66: 5000 | BD66: 57 | BF66: F/D | BG66: F/D
T67: =IF($P67="","",VLOOKUP($P67,'FO-DRE-01'!$A$7:$U$347,18,FALSE)) ->  | U67: =IF($P67="","",VLOOKUP($P67,'FO-DRE-01'!$A$7:$U$300,16,FALSE)) ->  | V67: =IF($P67="","",VLOOKUP($P67,'FO-DRE-01'!$A$7:$U$300,17,FALSE)) ->  | W67: =IF($P67="","",VLOOKUP($P67,'FO-DRE-01'!$A$7:$U$300,3,FALSE)) ->  | X67: =IF($P67="","",VLOOKUP($P67,'FO-DRE-01'!$A$7:$U$300,4,FALSE)) ->  | Y67: =IF($P67="","",VLOOKUP($P67,'FO-DRE-01'!$A$7:$U$300,5,FALSE)) ->  | Z67: =IF($P67="","",VLOOKUP($P67,'FO-DRE-01'!$A$7:$U$300,7,FALSE)) ->  | AA67: =IF($P67="","",VLOOKUP($P67,'FO-DRE-01'!$A$7:$U$300,8,FALSE)) ->  | AB67: =IF($P67="","",VLOOKUP($P67,'FO-DRE-01'!$A$7:$U$300,9,FALSE)) ->  | AC67: =IF($P67="","",VLOOKUP($P67,'FO-DRE-01'!$A$7:$U$300,10,FALSE)) ->  | AD67: =IF($P67="","",VLOOKUP($P67,'FO-DRE-01'!$A$7:$U$300,11,FALSE)) ->  | AE67: =IF($P67="","",VLOOKUP($P67,'FO-DRE-01'!$A$7:$U$300,12,FALSE)) ->  | AF67: =IF($P67="","",VLOOKUP($P67,'FO-DRE-01'!$A$7:$U$300,13,FALSE)) ->  | AG67: =IF($P67="","",VLOOKUP($P67,'FO-DRE-01'!$A$7:$U$300,14,FALSE)) ->  | AH67: W | AI67: =IF(Q67="","",VLOOKUP($Q67,'FO-DRE-04'!$A$6:$M$100,3,FALSE)) ->  | AJ67: =IF(Q67="","",VLOOKUP($Q67,'FO-DRE-04'!$A$6:$M$100,4,FALSE)) ->  | AK67: =IF(Q67="","",VLOOKUP($Q67,'FO-DRE-04'!$A$6:$M$100,5,FALSE)) ->  | AL67: =IF(Q67="","",VLOOKUP($Q67,'FO-DRE-04'!$A$6:$M$100,7,FALSE)) ->  | AM67: =IF(Q67="","",VLOOKUP($Q67,'FO-DRE-04'!$A$6:$M$100,11,FALSE)) ->  | AN67: =IF($R67="","",VLOOKUP($R67,'FO-DRE-02'!$A$6:$N$100,2,FALSE)) ->  | AO67: =IF($R67="","",VLOOKUP($R67,'FO-DRE-02'!$A$5:$J$100,3,FALSE)) ->  | AP67: =IF($R67="","",VLOOKUP($R67,'FO-DRE-02'!$A$5:$J$100,6,FALSE)) ->  | AQ67: =IF($R67="","",VLOOKUP($R67,'FO-DRE-02'!$A$5:$J$100,4,FALSE)) ->  | AR67: =IF($R67="","",VLOOKUP($R67,'FO-DRE-02'!$A$5:$J$100,5,FALSE)) ->  | AS67: =IF($R67="","",VLOOKUP($R67,'FO-DRE-02'!$A$5:$J$100,6,FALSE)) ->  | AT67: =IF($R67="","",VLOOKUP($R67,'FO-DRE-02'!$A$5:$J$100,7,FALSE)) ->  | AU67: =IF($R67="","",VLOOKUP($R67,'FO-DRE-02'!$A$5:$J$100,9,FALSE)) ->  | AV67: =IF($R67="","",VLOOKUP($R67,'FO-DRE-02'!$A$5:$M$100,11,FALSE)) ->  | AW67: =IF($R67="","",VLOOKUP($R67,'FO-DRE-02'!$A$5:$M$100,12,FALSE)) ->  | AX67: =IF($R67="","",VLOOKUP($R67,'FO-DRE-02'!$A$5:$M$100,13,FALSE)) ->  | BA67: 5000 | BD67: 58 | BF67: F/D | BG67: F/D
T68: =IF($P68="","",VLOOKUP($P68,'FO-DRE-01'!$A$7:$U$347,18,FALSE)) ->  | U68: =IF($P68="","",VLOOKUP($P68,'FO-DRE-01'!$A$7:$U$300,16,FALSE)) ->  | V68: =IF($P68="","",VLOOKUP($P68,'FO-DRE-01'!$A$7:$U$300,17,FALSE)) ->  | W68: =IF($P68="","",VLOOKUP($P68,'FO-DRE-01'!$A$7:$U$300,3,FALSE)) ->  | X68: =IF($P68="","",VLOOKUP($P68,'FO-DRE-01'!$A$7:$U$300,4,FALSE)) ->  | Y68: =IF($P68="","",VLOOKUP($P68,'FO-DRE-01'!$A$7:$U$300,5,FALSE)) ->  | Z68: =IF($P68="","",VLOOKUP($P68,'FO-DRE-01'!$A$7:$U$300,7,FALSE)) ->  | AA68: =IF($P68="","",VLOOKUP($P68,'FO-DRE-01'!$A$7:$U$300,8,FALSE)) ->  | AB68: =IF($P68="","",VLOOKUP($P68,'FO-DRE-01'!$A$7:$U$300,9,FALSE)) ->  | AC68: =IF($P68="","",VLOOKUP($P68,'FO-DRE-01'!$A$7:$U$300,10,FALSE)) ->  | AD68: =IF($P68="","",VLOOKUP($P68,'FO-DRE-01'!$A$7:$U$300,11,FALSE)) ->  | AE68: =IF($P68="","",VLOOKUP($P68,'FO-DRE-01'!$A$7:$U$300,12,FALSE)) ->  | AF68: =IF($P68="","",VLOOKUP($P68,'FO-DRE-01'!$A$7:$U$300,13,FALSE)) ->  | AG68: =IF($P68="","",VLOOKUP($P68,'FO-DRE-01'!$A$7:$U$300,14,FALSE)) ->  | AH68: W | AI68: =IF(Q68="","",VLOOKUP($Q68,'FO-DRE-04'!$A$6:$M$100,3,FALSE)) ->  | AJ68: =IF(Q68="","",VLOOKUP($Q68,'FO-DRE-04'!$A$6:$M$100,4,FALSE)) ->  | AK68: =IF(Q68="","",VLOOKUP($Q68,'FO-DRE-04'!$A$6:$M$100,5,FALSE)) ->  | AL68: =IF(Q68="","",VLOOKUP($Q68,'FO-DRE-04'!$A$6:$M$100,7,FALSE)) ->  | AM68: =IF(Q68="","",VLOOKUP($Q68,'FO-DRE-04'!$A$6:$M$100,11,FALSE)) ->  | AN68: =IF($R68="","",VLOOKUP($R68,'FO-DRE-02'!$A$6:$N$100,2,FALSE)) ->  | AO68: =IF($R68="","",VLOOKUP($R68,'FO-DRE-02'!$A$5:$J$100,3,FALSE)) ->  | AP68: =IF($R68="","",VLOOKUP($R68,'FO-DRE-02'!$A$5:$J$100,6,FALSE)) ->  | AQ68: =IF($R68="","",VLOOKUP($R68,'FO-DRE-02'!$A$5:$J$100,4,FALSE)) ->  | AR68: =IF($R68="","",VLOOKUP($R68,'FO-DRE-02'!$A$5:$J$100,5,FALSE)) ->  | AS68: =IF($R68="","",VLOOKUP($R68,'FO-DRE-02'!$A$5:$J$100,6,FALSE)) ->  | AT68: =IF($R68="","",VLOOKUP($R68,'FO-DRE-02'!$A$5:$J$100,7,FALSE)) ->  | AU68: =IF($R68="","",VLOOKUP($R68,'FO-DRE-02'!$A$5:$J$100,9,FALSE)) ->  | AV68: =IF($R68="","",VLOOKUP($R68,'FO-DRE-02'!$A$5:$M$100,11,FALSE)) ->  | AW68: =IF($R68="","",VLOOKUP($R68,'FO-DRE-02'!$A$5:$M$100,12,FALSE)) ->  | AX68: =IF($R68="","",VLOOKUP($R68,'FO-DRE-02'!$A$5:$M$100,13,FALSE)) ->  | BA68: 5000 | BD68: 59 | BF68: F/D | BG68: F/D
T69: =IF($P69="","",VLOOKUP($P69,'FO-DRE-01'!$A$7:$U$347,18,FALSE)) ->  | U69: =IF($P69="","",VLOOKUP($P69,'FO-DRE-01'!$A$7:$U$300,16,FALSE)) ->  | V69: =IF($P69="","",VLOOKUP($P69,'FO-DRE-01'!$A$7:$U$300,17,FALSE)) ->  | W69: =IF($P69="","",VLOOKUP($P69,'FO-DRE-01'!$A$7:$U$300,3,FALSE)) ->  | X69: =IF($P69="","",VLOOKUP($P69,'FO-DRE-01'!$A$7:$U$300,4,FALSE)) ->  | Y69: =IF($P69="","",VLOOKUP($P69,'FO-DRE-01'!$A$7:$U$300,5,FALSE)) ->  | Z69: =IF($P69="","",VLOOKUP($P69,'FO-DRE-01'!$A$7:$U$300,7,FALSE)) ->  | AA69: =IF($P69="","",VLOOKUP($P69,'FO-DRE-01'!$A$7:$U$300,8,FALSE)) ->  | AB69: =IF($P69="","",VLOOKUP($P69,'FO-DRE-01'!$A$7:$U$300,9,FALSE)) ->  | AC69: =IF($P69="","",VLOOKUP($P69,'FO-DRE-01'!$A$7:$U$300,10,FALSE)) ->  | AD69: =IF($P69="","",VLOOKUP($P69,'FO-DRE-01'!$A$7:$U$300,11,FALSE)) ->  | AE69: =IF($P69="","",VLOOKUP($P69,'FO-DRE-01'!$A$7:$U$300,12,FALSE)) ->  | AF69: =IF($P69="","",VLOOKUP($P69,'FO-DRE-01'!$A$7:$U$300,13,FALSE)) ->  | AG69: =IF($P69="","",VLOOKUP($P69,'FO-DRE-01'!$A$7:$U$300,14,FALSE)) ->  | AH69: W | AI69: =IF(Q69="","",VLOOKUP($Q69,'FO-DRE-04'!$A$6:$M$100,3,FALSE)) ->  | AJ69: =IF(Q69="","",VLOOKUP($Q69,'FO-DRE-04'!$A$6:$M$100,4,FALSE)) ->  | AK69: =IF(Q69="","",VLOOKUP($Q69,'FO-DRE-04'!$A$6:$M$100,5,FALSE)) ->  | AL69: =IF(Q69="","",VLOOKUP($Q69,'FO-DRE-04'!$A$6:$M$100,7,FALSE)) ->  | AM69: =IF(Q69="","",VLOOKUP($Q69,'FO-DRE-04'!$A$6:$M$100,11,FALSE)) ->  | AN69: =IF($R69="","",VLOOKUP($R69,'FO-DRE-02'!$A$6:$N$100,2,FALSE)) ->  | AO69: =IF($R69="","",VLOOKUP($R69,'FO-DRE-02'!$A$5:$J$100,3,FALSE)) ->  | AP69: =IF($R69="","",VLOOKUP($R69,'FO-DRE-02'!$A$5:$J$100,6,FALSE)) ->  | AQ69: =IF($R69="","",VLOOKUP($R69,'FO-DRE-02'!$A$5:$J$100,4,FALSE)) ->  | AR69: =IF($R69="","",VLOOKUP($R69,'FO-DRE-02'!$A$5:$J$100,5,FALSE)) ->  | AS69: =IF($R69="","",VLOOKUP($R69,'FO-DRE-02'!$A$5:$J$100,6,FALSE)) ->  | AT69: =IF($R69="","",VLOOKUP($R69,'FO-DRE-02'!$A$5:$J$100,7,FALSE)) ->  | AU69: =IF($R69="","",VLOOKUP($R69,'FO-DRE-02'!$A$5:$J$100,9,FALSE)) ->  | AV69: =IF($R69="","",VLOOKUP($R69,'FO-DRE-02'!$A$5:$M$100,11,FALSE)) ->  | AW69: =IF($R69="","",VLOOKUP($R69,'FO-DRE-02'!$A$5:$M$100,12,FALSE)) ->  | AX69: =IF($R69="","",VLOOKUP($R69,'FO-DRE-02'!$A$5:$M$100,13,FALSE)) ->  | BA69: 5000 | BD69: 60 | BF69: F/D | BG69: F/D
T70: =IF($P70="","",VLOOKUP($P70,'FO-DRE-01'!$A$7:$U$347,18,FALSE)) ->  | U70: =IF($P70="","",VLOOKUP($P70,'FO-DRE-01'!$A$7:$U$300,16,FALSE)) ->  | V70: =IF($P70="","",VLOOKUP($P70,'FO-DRE-01'!$A$7:$U$300,17,FALSE)) ->  | W70: =IF($P70="","",VLOOKUP($P70,'FO-DRE-01'!$A$7:$U$300,3,FALSE)) ->  | X70: =IF($P70="","",VLOOKUP($P70,'FO-DRE-01'!$A$7:$U$300,4,FALSE)) ->  | Y70: =IF($P70="","",VLOOKUP($P70,'FO-DRE-01'!$A$7:$U$300,5,FALSE)) ->  | Z70: =IF($P70="","",VLOOKUP($P70,'FO-DRE-01'!$A$7:$U$300,7,FALSE)) ->  | AA70: =IF($P70="","",VLOOKUP($P70,'FO-DRE-01'!$A$7:$U$300,8,FALSE)) ->  | AB70: =IF($P70="","",VLOOKUP($P70,'FO-DRE-01'!$A$7:$U$300,9,FALSE)) ->  | AC70: =IF($P70="","",VLOOKUP($P70,'FO-DRE-01'!$A$7:$U$300,10,FALSE)) ->  | AD70: =IF($P70="","",VLOOKUP($P70,'FO-DRE-01'!$A$7:$U$300,11,FALSE)) ->  | AE70: =IF($P70="","",VLOOKUP($P70,'FO-DRE-01'!$A$7:$U$300,12,FALSE)) ->  | AF70: =IF($P70="","",VLOOKUP($P70,'FO-DRE-01'!$A$7:$U$300,13,FALSE)) ->  | AG70: =IF($P70="","",VLOOKUP($P70,'FO-DRE-01'!$A$7:$U$300,14,FALSE)) ->  | AH70: W | AI70: =IF(Q70="","",VLOOKUP($Q70,'FO-DRE-04'!$A$6:$M$100,3,FALSE)) ->  | AJ70: =IF(Q70="","",VLOOKUP($Q70,'FO-DRE-04'!$A$6:$M$100,4,FALSE)) ->  | AK70: =IF(Q70="","",VLOOKUP($Q70,'FO-DRE-04'!$A$6:$M$100,5,FALSE)) ->  | AL70: =IF(Q70="","",VLOOKUP($Q70,'FO-DRE-04'!$A$6:$M$100,7,FALSE)) ->  | AM70: =IF(Q70="","",VLOOKUP($Q70,'FO-DRE-04'!$A$6:$M$100,11,FALSE)) ->  | AN70: =IF($R70="","",VLOOKUP($R70,'FO-DRE-02'!$A$6:$N$100,2,FALSE)) ->  | AO70: =IF($R70="","",VLOOKUP($R70,'FO-DRE-02'!$A$5:$J$100,3,FALSE)) ->  | AP70: =IF($R70="","",VLOOKUP($R70,'FO-DRE-02'!$A$5:$J$100,6,FALSE)) ->  | AQ70: =IF($R70="","",VLOOKUP($R70,'FO-DRE-02'!$A$5:$J$100,4,FALSE)) ->  | AR70: =IF($R70="","",VLOOKUP($R70,'FO-DRE-02'!$A$5:$J$100,5,FALSE)) ->  | AS70: =IF($R70="","",VLOOKUP($R70,'FO-DRE-02'!$A$5:$J$100,6,FALSE)) ->  | AT70: =IF($R70="","",VLOOKUP($R70,'FO-DRE-02'!$A$5:$J$100,7,FALSE)) ->  | AU70: =IF($R70="","",VLOOKUP($R70,'FO-DRE-02'!$A$5:$J$100,9,FALSE)) ->  | AV70: =IF($R70="","",VLOOKUP($R70,'FO-DRE-02'!$A$5:$M$100,11,FALSE)) ->  | AW70: =IF($R70="","",VLOOKUP($R70,'FO-DRE-02'!$A$5:$M$100,12,FALSE)) ->  | AX70: =IF($R70="","",VLOOKUP($R70,'FO-DRE-02'!$A$5:$M$100,13,FALSE)) ->  | BA70: 5000 | BD70: 61 | BF70: F/D | BG70: F/D
T71: =IF($P71="","",VLOOKUP($P71,'FO-DRE-01'!$A$7:$U$347,18,FALSE)) ->  | U71: =IF($P71="","",VLOOKUP($P71,'FO-DRE-01'!$A$7:$U$300,16,FALSE)) ->  | V71: =IF($P71="","",VLOOKUP($P71,'FO-DRE-01'!$A$7:$U$300,17,FALSE)) ->  | W71: =IF($P71="","",VLOOKUP($P71,'FO-DRE-01'!$A$7:$U$300,3,FALSE)) ->  | X71: =IF($P71="","",VLOOKUP($P71,'FO-DRE-01'!$A$7:$U$300,4,FALSE)) ->  | Y71: =IF($P71="","",VLOOKUP($P71,'FO-DRE-01'!$A$7:$U$300,5,FALSE)) ->  | Z71: =IF($P71="","",VLOOKUP($P71,'FO-DRE-01'!$A$7:$U$300,7,FALSE)) ->  | AA71: =IF($P71="","",VLOOKUP($P71,'FO-DRE-01'!$A$7:$U$300,8,FALSE)) ->  | AB71: =IF($P71="","",VLOOKUP($P71,'FO-DRE-01'!$A$7:$U$300,9,FALSE)) ->  | AC71: =IF($P71="","",VLOOKUP($P71,'FO-DRE-01'!$A$7:$U$300,10,FALSE)) ->  | AD71: =IF($P71="","",VLOOKUP($P71,'FO-DRE-01'!$A$7:$U$300,11,FALSE)) ->  | AE71: =IF($P71="","",VLOOKUP($P71,'FO-DRE-01'!$A$7:$U$300,12,FALSE)) ->  | AF71: =IF($P71="","",VLOOKUP($P71,'FO-DRE-01'!$A$7:$U$300,13,FALSE)) ->  | AG71: =IF($P71="","",VLOOKUP($P71,'FO-DRE-01'!$A$7:$U$300,14,FALSE)) ->  | AH71: W | AI71: =IF(Q71="","",VLOOKUP($Q71,'FO-DRE-04'!$A$6:$M$100,3,FALSE)) ->  | AJ71: =IF(Q71="","",VLOOKUP($Q71,'FO-DRE-04'!$A$6:$M$100,4,FALSE)) ->  | AK71: =IF(Q71="","",VLOOKUP($Q71,'FO-DRE-04'!$A$6:$M$100,5,FALSE)) ->  | AL71: =IF(Q71="","",VLOOKUP($Q71,'FO-DRE-04'!$A$6:$M$100,7,FALSE)) ->  | AM71: =IF(Q71="","",VLOOKUP($Q71,'FO-DRE-04'!$A$6:$M$100,11,FALSE)) ->  | AN71: =IF($R71="","",VLOOKUP($R71,'FO-DRE-02'!$A$6:$N$100,2,FALSE)) ->  | AO71: =IF($R71="","",VLOOKUP($R71,'FO-DRE-02'!$A$5:$J$100,3,FALSE)) ->  | AP71: =IF($R71="","",VLOOKUP($R71,'FO-DRE-02'!$A$5:$J$100,6,FALSE)) ->  | AQ71: =IF($R71="","",VLOOKUP($R71,'FO-DRE-02'!$A$5:$J$100,4,FALSE)) ->  | AR71: =IF($R71="","",VLOOKUP($R71,'FO-DRE-02'!$A$5:$J$100,5,FALSE)) ->  | AS71: =IF($R71="","",VLOOKUP($R71,'FO-DRE-02'!$A$5:$J$100,6,FALSE)) ->  | AT71: =IF($R71="","",VLOOKUP($R71,'FO-DRE-02'!$A$5:$J$100,7,FALSE)) ->  | AU71: =IF($R71="","",VLOOKUP($R71,'FO-DRE-02'!$A$5:$J$100,9,FALSE)) ->  | AV71: =IF($R71="","",VLOOKUP($R71,'FO-DRE-02'!$A$5:$M$100,11,FALSE)) ->  | AW71: =IF($R71="","",VLOOKUP($R71,'FO-DRE-02'!$A$5:$M$100,12,FALSE)) ->  | AX71: =IF($R71="","",VLOOKUP($R71,'FO-DRE-02'!$A$5:$M$100,13,FALSE)) ->  | BA71: 5000 | BD71: 62 | BF71: F/D | BG71: F/D
T72: =IF($P72="","",VLOOKUP($P72,'FO-DRE-01'!$A$7:$U$347,18,FALSE)) ->  | U72: =IF($P72="","",VLOOKUP($P72,'FO-DRE-01'!$A$7:$U$300,16,FALSE)) ->  | V72: =IF($P72="","",VLOOKUP($P72,'FO-DRE-01'!$A$7:$U$300,17,FALSE)) ->  | W72: =IF($P72="","",VLOOKUP($P72,'FO-DRE-01'!$A$7:$U$300,3,FALSE)) ->  | X72: =IF($P72="","",VLOOKUP($P72,'FO-DRE-01'!$A$7:$U$300,4,FALSE)) ->  | Y72: =IF($P72="","",VLOOKUP($P72,'FO-DRE-01'!$A$7:$U$300,5,FALSE)) ->  | Z72: =IF($P72="","",VLOOKUP($P72,'FO-DRE-01'!$A$7:$U$300,7,FALSE)) ->  | AA72: =IF($P72="","",VLOOKUP($P72,'FO-DRE-01'!$A$7:$U$300,8,FALSE)) ->  | AB72: =IF($P72="","",VLOOKUP($P72,'FO-DRE-01'!$A$7:$U$300,9,FALSE)) ->  | AC72: =IF($P72="","",VLOOKUP($P72,'FO-DRE-01'!$A$7:$U$300,10,FALSE)) ->  | AD72: =IF($P72="","",VLOOKUP($P72,'FO-DRE-01'!$A$7:$U$300,11,FALSE)) ->  | AE72: =IF($P72="","",VLOOKUP($P72,'FO-DRE-01'!$A$7:$U$300,12,FALSE)) ->  | AF72: =IF($P72="","",VLOOKUP($P72,'FO-DRE-01'!$A$7:$U$300,13,FALSE)) ->  | AG72: =IF($P72="","",VLOOKUP($P72,'FO-DRE-01'!$A$7:$U$300,14,FALSE)) ->  | AH72: W | AI72: =IF(Q72="","",VLOOKUP($Q72,'FO-DRE-04'!$A$6:$M$100,3,FALSE)) ->  | AJ72: =IF(Q72="","",VLOOKUP($Q72,'FO-DRE-04'!$A$6:$M$100,4,FALSE)) ->  | AK72: =IF(Q72="","",VLOOKUP($Q72,'FO-DRE-04'!$A$6:$M$100,5,FALSE)) ->  | AL72: =IF(Q72="","",VLOOKUP($Q72,'FO-DRE-04'!$A$6:$M$100,7,FALSE)) ->  | AM72: =IF(Q72="","",VLOOKUP($Q72,'FO-DRE-04'!$A$6:$M$100,11,FALSE)) ->  | AN72: =IF($R72="","",VLOOKUP($R72,'FO-DRE-02'!$A$6:$N$100,2,FALSE)) ->  | AO72: =IF($R72="","",VLOOKUP($R72,'FO-DRE-02'!$A$5:$J$100,3,FALSE)) ->  | AP72: =IF($R72="","",VLOOKUP($R72,'FO-DRE-02'!$A$5:$J$100,6,FALSE)) ->  | AQ72: =IF($R72="","",VLOOKUP($R72,'FO-DRE-02'!$A$5:$J$100,4,FALSE)) ->  | AR72: =IF($R72="","",VLOOKUP($R72,'FO-DRE-02'!$A$5:$J$100,5,FALSE)) ->  | AS72: =IF($R72="","",VLOOKUP($R72,'FO-DRE-02'!$A$5:$J$100,6,FALSE)) ->  | AT72: =IF($R72="","",VLOOKUP($R72,'FO-DRE-02'!$A$5:$J$100,7,FALSE)) ->  | AU72: =IF($R72="","",VLOOKUP($R72,'FO-DRE-02'!$A$5:$J$100,9,FALSE)) ->  | AV72: =IF($R72="","",VLOOKUP($R72,'FO-DRE-02'!$A$5:$M$100,11,FALSE)) ->  | AW72: =IF($R72="","",VLOOKUP($R72,'FO-DRE-02'!$A$5:$M$100,12,FALSE)) ->  | AX72: =IF($R72="","",VLOOKUP($R72,'FO-DRE-02'!$A$5:$M$100,13,FALSE)) ->  | BA72: 5000 | BD72: 63 | BF72: F/D | BG72: F/D
T73: =IF($P73="","",VLOOKUP($P73,'FO-DRE-01'!$A$7:$U$347,18,FALSE)) ->  | U73: =IF($P73="","",VLOOKUP($P73,'FO-DRE-01'!$A$7:$U$300,16,FALSE)) ->  | V73: =IF($P73="","",VLOOKUP($P73,'FO-DRE-01'!$A$7:$U$300,17,FALSE)) ->  | W73: =IF($P73="","",VLOOKUP($P73,'FO-DRE-01'!$A$7:$U$300,3,FALSE)) ->  | X73: =IF($P73="","",VLOOKUP($P73,'FO-DRE-01'!$A$7:$U$300,4,FALSE)) ->  | Y73: =IF($P73="","",VLOOKUP($P73,'FO-DRE-01'!$A$7:$U$300,5,FALSE)) ->  | Z73: =IF($P73="","",VLOOKUP($P73,'FO-DRE-01'!$A$7:$U$300,7,FALSE)) ->  | AA73: =IF($P73="","",VLOOKUP($P73,'FO-DRE-01'!$A$7:$U$300,8,FALSE)) ->  | AB73: =IF($P73="","",VLOOKUP($P73,'FO-DRE-01'!$A$7:$U$300,9,FALSE)) ->  | AC73: =IF($P73="","",VLOOKUP($P73,'FO-DRE-01'!$A$7:$U$300,10,FALSE)) ->  | AD73: =IF($P73="","",VLOOKUP($P73,'FO-DRE-01'!$A$7:$U$300,11,FALSE)) ->  | AE73: =IF($P73="","",VLOOKUP($P73,'FO-DRE-01'!$A$7:$U$300,12,FALSE)) ->  | AF73: =IF($P73="","",VLOOKUP($P73,'FO-DRE-01'!$A$7:$U$300,13,FALSE)) ->  | AG73: =IF($P73="","",VLOOKUP($P73,'FO-DRE-01'!$A$7:$U$300,14,FALSE)) ->  | AH73: W | AI73: =IF(Q73="","",VLOOKUP($Q73,'FO-DRE-04'!$A$6:$M$100,3,FALSE)) ->  | AJ73: =IF(Q73="","",VLOOKUP($Q73,'FO-DRE-04'!$A$6:$M$100,4,FALSE)) ->  | AK73: =IF(Q73="","",VLOOKUP($Q73,'FO-DRE-04'!$A$6:$M$100,5,FALSE)) ->  | AL73: =IF(Q73="","",VLOOKUP($Q73,'FO-DRE-04'!$A$6:$M$100,7,FALSE)) ->  | AM73: =IF(Q73="","",VLOOKUP($Q73,'FO-DRE-04'!$A$6:$M$100,11,FALSE)) ->  | AN73: =IF($R73="","",VLOOKUP($R73,'FO-DRE-02'!$A$6:$N$100,2,FALSE)) ->  | AO73: =IF($R73="","",VLOOKUP($R73,'FO-DRE-02'!$A$5:$J$100,3,FALSE)) ->  | AP73: =IF($R73="","",VLOOKUP($R73,'FO-DRE-02'!$A$5:$J$100,6,FALSE)) ->  | AQ73: =IF($R73="","",VLOOKUP($R73,'FO-DRE-02'!$A$5:$J$100,4,FALSE)) ->  | AR73: =IF($R73="","",VLOOKUP($R73,'FO-DRE-02'!$A$5:$J$100,5,FALSE)) ->  | AS73: =IF($R73="","",VLOOKUP($R73,'FO-DRE-02'!$A$5:$J$100,6,FALSE)) ->  | AT73: =IF($R73="","",VLOOKUP($R73,'FO-DRE-02'!$A$5:$J$100,7,FALSE)) ->  | AU73: =IF($R73="","",VLOOKUP($R73,'FO-DRE-02'!$A$5:$J$100,9,FALSE)) ->  | AV73: =IF($R73="","",VLOOKUP($R73,'FO-DRE-02'!$A$5:$M$100,11,FALSE)) ->  | AW73: =IF($R73="","",VLOOKUP($R73,'FO-DRE-02'!$A$5:$M$100,12,FALSE)) ->  | AX73: =IF($R73="","",VLOOKUP($R73,'FO-DRE-02'!$A$5:$M$100,13,FALSE)) ->  | BA73: 5000 | BD73: 64 | BF73: F/D | BG73: F/D
T74: =IF($P74="","",VLOOKUP($P74,'FO-DRE-01'!$A$7:$U$347,18,FALSE)) ->  | U74: =IF($P74="","",VLOOKUP($P74,'FO-DRE-01'!$A$7:$U$300,16,FALSE)) ->  | V74: =IF($P74="","",VLOOKUP($P74,'FO-DRE-01'!$A$7:$U$300,17,FALSE)) ->  | W74: =IF($P74="","",VLOOKUP($P74,'FO-DRE-01'!$A$7:$U$300,3,FALSE)) ->  | X74: =IF($P74="","",VLOOKUP($P74,'FO-DRE-01'!$A$7:$U$300,4,FALSE)) ->  | Y74: =IF($P74="","",VLOOKUP($P74,'FO-DRE-01'!$A$7:$U$300,5,FALSE)) ->  | Z74: =IF($P74="","",VLOOKUP($P74,'FO-DRE-01'!$A$7:$U$300,7,FALSE)) ->  | AA74: =IF($P74="","",VLOOKUP($P74,'FO-DRE-01'!$A$7:$U$300,8,FALSE)) ->  | AB74: =IF($P74="","",VLOOKUP($P74,'FO-DRE-01'!$A$7:$U$300,9,FALSE)) ->  | AC74: =IF($P74="","",VLOOKUP($P74,'FO-DRE-01'!$A$7:$U$300,10,FALSE)) ->  | AD74: =IF($P74="","",VLOOKUP($P74,'FO-DRE-01'!$A$7:$U$300,11,FALSE)) ->  | AE74: =IF($P74="","",VLOOKUP($P74,'FO-DRE-01'!$A$7:$U$300,12,FALSE)) ->  | AF74: =IF($P74="","",VLOOKUP($P74,'FO-DRE-01'!$A$7:$U$300,13,FALSE)) ->  | AG74: =IF($P74="","",VLOOKUP($P74,'FO-DRE-01'!$A$7:$U$300,14,FALSE)) ->  | AH74: W | AI74: =IF(Q74="","",VLOOKUP($Q74,'FO-DRE-04'!$A$6:$M$100,3,FALSE)) ->  | AJ74: =IF(Q74="","",VLOOKUP($Q74,'FO-DRE-04'!$A$6:$M$100,4,FALSE)) ->  | AK74: =IF(Q74="","",VLOOKUP($Q74,'FO-DRE-04'!$A$6:$M$100,5,FALSE)) ->  | AL74: =IF(Q74="","",VLOOKUP($Q74,'FO-DRE-04'!$A$6:$M$100,7,FALSE)) ->  | AM74: =IF(Q74="","",VLOOKUP($Q74,'FO-DRE-04'!$A$6:$M$100,11,FALSE)) ->  | AN74: =IF($R74="","",VLOOKUP($R74,'FO-DRE-02'!$A$6:$N$100,2,FALSE)) ->  | AO74: =IF($R74="","",VLOOKUP($R74,'FO-DRE-02'!$A$5:$J$100,3,FALSE)) ->  | AP74: =IF($R74="","",VLOOKUP($R74,'FO-DRE-02'!$A$5:$J$100,6,FALSE)) ->  | AQ74: =IF($R74="","",VLOOKUP($R74,'FO-DRE-02'!$A$5:$J$100,4,FALSE)) ->  | AR74: =IF($R74="","",VLOOKUP($R74,'FO-DRE-02'!$A$5:$J$100,5,FALSE)) ->  | AS74: =IF($R74="","",VLOOKUP($R74,'FO-DRE-02'!$A$5:$J$100,6,FALSE)) ->  | AT74: =IF($R74="","",VLOOKUP($R74,'FO-DRE-02'!$A$5:$J$100,7,FALSE)) ->  | AU74: =IF($R74="","",VLOOKUP($R74,'FO-DRE-02'!$A$5:$J$100,9,FALSE)) ->  | AV74: =IF($R74="","",VLOOKUP($R74,'FO-DRE-02'!$A$5:$M$100,11,FALSE)) ->  | AW74: =IF($R74="","",VLOOKUP($R74,'FO-DRE-02'!$A$5:$M$100,12,FALSE)) ->  | AX74: =IF($R74="","",VLOOKUP($R74,'FO-DRE-02'!$A$5:$M$100,13,FALSE)) ->  | AY74: =CONCATENATE("0",AA74,"°",IF(AB74<10,CONCATENATE("0",AB74),AB74),"'",IF(ROUND(AC74,0)=AC74,IF(AC74<10,CONCATENATE("0",AC74,".00"),CONCATENATE(AC74,".00")),IF(ROUND(AC74*10,0)=AC74*10,IF(AC74<10,CONCATENATE("0",AC74,"0"),CONCATENATE(AC74,"0")),IF(AC74<10,CONCATENATE("0",AC74),AC74))),"''",AD74) ->  | AZ74: =CONCATENATE(AE74,"°",IF(AF74<10,CONCATENATE("0",AF74),AF74),"'",IF(ROUND(AG74,0)=AG74,IF(AG74<10,CONCATENATE("0",AG74,".00"),CONCATENATE(AG74,".00")),IF(ROUND(AG74*10,0)=AG74*10,IF(AG74<10,CONCATENATE("0",AG74,"0"),CONCATENATE(AG74,"0")),IF(AG74<10,CONCATENATE("0",AG74),AG74))),"''",AH74) ->  | BA74: =IF(J74="902 - 928",900,IF(J74="2400 - 2483.5",2400,5000)) -> 5000 | BD74: 65 | BF74: F/D | BG74: F/D | BH74: =IF(D74="","",IF(AND(10<F74,F74<=400),10,IF(AND(400<F74,F74<=2000),(F74/40),IF(AND(2000<F74,F74<=300000),50,0)))) ->  | BI74: =IF(E74="","",IF(AND(10<F74,F74<=400),2,IF(AND(400<F74,F74<=2000),(F74/200),IF(AND(2000<F74,F74<=300000),10,0)))) ->  | BN74: =IF(J74="","",SQRT(POWER($BN$9,2)+POWER((AX74-1.5),2))) -> 
I75: =IF(D75="","",IF(D75="SIM",1,2)) ->  | T75: =IF($P75="","",VLOOKUP($P75,'FO-DRE-01'!$A$7:$U$347,18,FALSE)) ->  | U75: =IF($P75="","",VLOOKUP($P75,'FO-DRE-01'!$A$7:$U$300,16,FALSE)) ->  | V75: =IF($P75="","",VLOOKUP($P75,'FO-DRE-01'!$A$7:$U$300,17,FALSE)) ->  | W75: =IF($P75="","",VLOOKUP($P75,'FO-DRE-01'!$A$7:$U$300,3,FALSE)) ->  | X75: =IF($P75="","",VLOOKUP($P75,'FO-DRE-01'!$A$7:$U$300,4,FALSE)) ->  | Y75: =IF($P75="","",VLOOKUP($P75,'FO-DRE-01'!$A$7:$U$300,5,FALSE)) ->  | Z75: =IF($P75="","",VLOOKUP($P75,'FO-DRE-01'!$A$7:$U$300,7,FALSE)) ->  | AA75: =IF($P75="","",VLOOKUP($P75,'FO-DRE-01'!$A$7:$U$300,8,FALSE)) ->  | AB75: =IF($P75="","",VLOOKUP($P75,'FO-DRE-01'!$A$7:$U$300,9,FALSE)) ->  | AC75: =IF($P75="","",VLOOKUP($P75,'FO-DRE-01'!$A$7:$U$300,10,FALSE)) ->  | AD75: =IF($P75="","",VLOOKUP($P75,'FO-DRE-01'!$A$7:$U$300,11,FALSE)) ->  | AE75: =IF($P75="","",VLOOKUP($P75,'FO-DRE-01'!$A$7:$U$300,12,FALSE)) ->  | AF75: =IF($P75="","",VLOOKUP($P75,'FO-DRE-01'!$A$7:$U$300,13,FALSE)) ->  | AG75: =IF($P75="","",VLOOKUP($P75,'FO-DRE-01'!$A$7:$U$300,14,FALSE)) ->  | AH75: W | AI75: =IF(Q75="","",VLOOKUP($Q75,'FO-DRE-04'!$A$6:$M$100,3,FALSE)) ->  | AJ75: =IF(Q75="","",VLOOKUP($Q75,'FO-DRE-04'!$A$6:$M$100,4,FALSE)) ->  | AK75: =IF(Q75="","",VLOOKUP($Q75,'FO-DRE-04'!$A$6:$M$100,5,FALSE)) ->  | AL75: =IF(Q75="","",VLOOKUP($Q75,'FO-DRE-04'!$A$6:$M$100,7,FALSE)) ->  | AM75: =IF(Q75="","",VLOOKUP($Q75,'FO-DRE-04'!$A$6:$M$100,11,FALSE)) ->  | AN75: =IF($R75="","",VLOOKUP($R75,'FO-DRE-02'!$A$6:$N$100,2,FALSE)) ->  | AO75: =IF($R75="","",VLOOKUP($R75,'FO-DRE-02'!$A$5:$J$100,3,FALSE)) ->  | AP75: =IF($R75="","",VLOOKUP($R75,'FO-DRE-02'!$A$5:$J$100,6,FALSE)) ->  | AQ75: =IF($R75="","",VLOOKUP($R75,'FO-DRE-02'!$A$5:$J$100,4,FALSE)) ->  | AR75: =IF($R75="","",VLOOKUP($R75,'FO-DRE-02'!$A$5:$J$100,5,FALSE)) ->  | AS75: =IF($R75="","",VLOOKUP($R75,'FO-DRE-02'!$A$5:$J$100,6,FALSE)) ->  | AT75: =IF($R75="","",VLOOKUP($R75,'FO-DRE-02'!$A$5:$J$100,7,FALSE)) ->  | AU75: =IF($R75="","",VLOOKUP($R75,'FO-DRE-02'!$A$5:$J$100,9,FALSE)) ->  | AV75: =IF($R75="","",VLOOKUP($R75,'FO-DRE-02'!$A$5:$M$100,11,FALSE)) ->  | AW75: =IF($R75="","",VLOOKUP($R75,'FO-DRE-02'!$A$5:$M$100,12,FALSE)) ->  | AX75: =IF($R75="","",VLOOKUP($R75,'FO-DRE-02'!$A$5:$M$100,13,FALSE)) ->  | BA75: 5000 | BD75: 66 | BE75: =IF(P75="","",P75) ->  | BF75: =IF(OR($E75="",$AL75="",$AU75=""),"F/D",IF(BR75>BH75,"SI","")) -> F/D | BG75: =IF(OR($E75="",$AL75="",$AU75=""),"F/D",IF(BR75>BI75,"SI","")) -> F/D | BJ75: =IF(J75="","",SQRT(POWER($BJ$9,2)+POWER((AX75-1.5),2))) ->  | BK75: =IF(J75="","",SQRT(POWER($BK$9,2)+POWER((AX75-1.5),2))) ->  | BL75: =IF(J75="","",SQRT(POWER($BL$9,2)+POWER((AX75-1.5),2))) ->  | BM75: =IF(J75="","",SQRT(POWER($BM$9,2)+POWER((AX75-1.5),2))) ->  | BO75: =IF(OR(AI75="MOVIL",AI75="PORTATIL"),"",IF(AL75="","",AL75)) ->  | BP75: =IF(J75="","",POWER(10,(AU75+2.15)/10)) ->  | BQ75: =IF(OR(BO75="",BP75=""),"",BP75*BO75) ->  | BR75: =IF(J75="","",$BQ75/(PI()*BJ75^2)) ->  | BS75: =IF(J75="","",$BQ75/(PI()*BK75^2)) ->  | BT75: =IF(J75="","",$BQ75/(PI()*BL75^2)) ->  | BU75: =IF(J75="","",$BQ75/(PI()*BM75^2)) ->  | BV75: =IF(J75="","",$BQ75/(PI()*BN75^2)) -> 
T76: =IF($P76="","",VLOOKUP($P76,'FO-DRE-01'!$A$7:$U$347,18,FALSE)) ->  | U76: =IF($P76="","",VLOOKUP($P76,'FO-DRE-01'!$A$7:$U$300,16,FALSE)) ->  | V76: =IF($P76="","",VLOOKUP($P76,'FO-DRE-01'!$A$7:$U$300,17,FALSE)) ->  | W76: =IF($P76="","",VLOOKUP($P76,'FO-DRE-01'!$A$7:$U$300,3,FALSE)) ->  | X76: =IF($P76="","",VLOOKUP($P76,'FO-DRE-01'!$A$7:$U$300,4,FALSE)) ->  | Y76: =IF($P76="","",VLOOKUP($P76,'FO-DRE-01'!$A$7:$U$300,5,FALSE)) ->  | Z76: =IF($P76="","",VLOOKUP($P76,'FO-DRE-01'!$A$7:$U$300,7,FALSE)) ->  | AA76: =IF($P76="","",VLOOKUP($P76,'FO-DRE-01'!$A$7:$U$300,8,FALSE)) ->  | AB76: =IF($P76="","",VLOOKUP($P76,'FO-DRE-01'!$A$7:$U$300,9,FALSE)) ->  | AC76: =IF($P76="","",VLOOKUP($P76,'FO-DRE-01'!$A$7:$U$300,10,FALSE)) ->  | AD76: =IF($P76="","",VLOOKUP($P76,'FO-DRE-01'!$A$7:$U$300,11,FALSE)) ->  | AE76: =IF($P76="","",VLOOKUP($P76,'FO-DRE-01'!$A$7:$U$300,12,FALSE)) ->  | AF76: =IF($P76="","",VLOOKUP($P76,'FO-DRE-01'!$A$7:$U$300,13,FALSE)) ->  | AG76: =IF($P76="","",VLOOKUP($P76,'FO-DRE-01'!$A$7:$U$300,14,FALSE)) ->  | AH76: W | AI76: =IF(Q76="","",VLOOKUP($Q76,'FO-DRE-04'!$A$6:$M$100,3,FALSE)) ->  | AJ76: =IF(Q76="","",VLOOKUP($Q76,'FO-DRE-04'!$A$6:$M$100,4,FALSE)) ->  | AK76: =IF(Q76="","",VLOOKUP($Q76,'FO-DRE-04'!$A$6:$M$100,5,FALSE)) ->  | AL76: =IF(Q76="","",VLOOKUP($Q76,'FO-DRE-04'!$A$6:$M$100,7,FALSE)) ->  | AM76: =IF(Q76="","",VLOOKUP($Q76,'FO-DRE-04'!$A$6:$M$100,11,FALSE)) ->  | AN76: =IF($R76="","",VLOOKUP($R76,'FO-DRE-02'!$A$6:$N$100,2,FALSE)) ->  | AO76: =IF($R76="","",VLOOKUP($R76,'FO-DRE-02'!$A$5:$J$100,3,FALSE)) ->  | AP76: =IF($R76="","",VLOOKUP($R76,'FO-DRE-02'!$A$5:$J$100,6,FALSE)) ->  | AQ76: =IF($R76="","",VLOOKUP($R76,'FO-DRE-02'!$A$5:$J$100,4,FALSE)) ->  | AR76: =IF($R76="","",VLOOKUP($R76,'FO-DRE-02'!$A$5:$J$100,5,FALSE)) ->  | AS76: =IF($R76="","",VLOOKUP($R76,'FO-DRE-02'!$A$5:$J$100,6,FALSE)) ->  | AT76: =IF($R76="","",VLOOKUP($R76,'FO-DRE-02'!$A$5:$J$100,7,FALSE)) ->  | AU76: =IF($R76="","",VLOOKUP($R76,'FO-DRE-02'!$A$5:$J$100,9,FALSE)) ->  | AV76: =IF($R76="","",VLOOKUP($R76,'FO-DRE-02'!$A$5:$M$100,11,FALSE)) ->  | AW76: =IF($R76="","",VLOOKUP($R76,'FO-DRE-02'!$A$5:$M$100,12,FALSE)) ->  | AX76: =IF($R76="","",VLOOKUP($R76,'FO-DRE-02'!$A$5:$M$100,13,FALSE)) ->  | BA76: 5000 | BD76: 67 | BF76: F/D | BG76: F/D
T77: =IF($P77="","",VLOOKUP($P77,'FO-DRE-01'!$A$7:$U$347,18,FALSE)) ->  | U77: =IF($P77="","",VLOOKUP($P77,'FO-DRE-01'!$A$7:$U$300,16,FALSE)) ->  | V77: =IF($P77="","",VLOOKUP($P77,'FO-DRE-01'!$A$7:$U$300,17,FALSE)) ->  | W77: =IF($P77="","",VLOOKUP($P77,'FO-DRE-01'!$A$7:$U$300,3,FALSE)) ->  | X77: =IF($P77="","",VLOOKUP($P77,'FO-DRE-01'!$A$7:$U$300,4,FALSE)) ->  | Y77: =IF($P77="","",VLOOKUP($P77,'FO-DRE-01'!$A$7:$U$300,5,FALSE)) ->  | Z77: =IF($P77="","",VLOOKUP($P77,'FO-DRE-01'!$A$7:$U$300,7,FALSE)) ->  | AA77: =IF($P77="","",VLOOKUP($P77,'FO-DRE-01'!$A$7:$U$300,8,FALSE)) ->  | AB77: =IF($P77="","",VLOOKUP($P77,'FO-DRE-01'!$A$7:$U$300,9,FALSE)) ->  | AC77: =IF($P77="","",VLOOKUP($P77,'FO-DRE-01'!$A$7:$U$300,10,FALSE)) ->  | AD77: =IF($P77="","",VLOOKUP($P77,'FO-DRE-01'!$A$7:$U$300,11,FALSE)) ->  | AE77: =IF($P77="","",VLOOKUP($P77,'FO-DRE-01'!$A$7:$U$300,12,FALSE)) ->  | AF77: =IF($P77="","",VLOOKUP($P77,'FO-DRE-01'!$A$7:$U$300,13,FALSE)) ->  | AG77: =IF($P77="","",VLOOKUP($P77,'FO-DRE-01'!$A$7:$U$300,14,FALSE)) ->  | AH77: W | AI77: =IF(Q77="","",VLOOKUP($Q77,'FO-DRE-04'!$A$6:$M$100,3,FALSE)) ->  | AJ77: =IF(Q77="","",VLOOKUP($Q77,'FO-DRE-04'!$A$6:$M$100,4,FALSE)) ->  | AK77: =IF(Q77="","",VLOOKUP($Q77,'FO-DRE-04'!$A$6:$M$100,5,FALSE)) ->  | AL77: =IF(Q77="","",VLOOKUP($Q77,'FO-DRE-04'!$A$6:$M$100,7,FALSE)) ->  | AM77: =IF(Q77="","",VLOOKUP($Q77,'FO-DRE-04'!$A$6:$M$100,11,FALSE)) ->  | AN77: =IF($R77="","",VLOOKUP($R77,'FO-DRE-02'!$A$6:$N$100,2,FALSE)) ->  | AO77: =IF($R77="","",VLOOKUP($R77,'FO-DRE-02'!$A$5:$J$100,3,FALSE)) ->  | AP77: =IF($R77="","",VLOOKUP($R77,'FO-DRE-02'!$A$5:$J$100,6,FALSE)) ->  | AQ77: =IF($R77="","",VLOOKUP($R77,'FO-DRE-02'!$A$5:$J$100,4,FALSE)) ->  | AR77: =IF($R77="","",VLOOKUP($R77,'FO-DRE-02'!$A$5:$J$100,5,FALSE)) ->  | AS77: =IF($R77="","",VLOOKUP($R77,'FO-DRE-02'!$A$5:$J$100,6,FALSE)) ->  | AT77: =IF($R77="","",VLOOKUP($R77,'FO-DRE-02'!$A$5:$J$100,7,FALSE)) ->  | AU77: =IF($R77="","",VLOOKUP($R77,'FO-DRE-02'!$A$5:$J$100,9,FALSE)) ->  | AV77: =IF($R77="","",VLOOKUP($R77,'FO-DRE-02'!$A$5:$M$100,11,FALSE)) ->  | AW77: =IF($R77="","",VLOOKUP($R77,'FO-DRE-02'!$A$5:$M$100,12,FALSE)) ->  | AX77: =IF($R77="","",VLOOKUP($R77,'FO-DRE-02'!$A$5:$M$100,13,FALSE)) ->  | BA77: 5000 | BD77: 68 | BF77: F/D | BG77: F/D
T78: =IF($P78="","",VLOOKUP($P78,'FO-DRE-01'!$A$7:$U$347,18,FALSE)) ->  | U78: =IF($P78="","",VLOOKUP($P78,'FO-DRE-01'!$A$7:$U$300,16,FALSE)) ->  | V78: =IF($P78="","",VLOOKUP($P78,'FO-DRE-01'!$A$7:$U$300,17,FALSE)) ->  | W78: =IF($P78="","",VLOOKUP($P78,'FO-DRE-01'!$A$7:$U$300,3,FALSE)) ->  | X78: =IF($P78="","",VLOOKUP($P78,'FO-DRE-01'!$A$7:$U$300,4,FALSE)) ->  | Y78: =IF($P78="","",VLOOKUP($P78,'FO-DRE-01'!$A$7:$U$300,5,FALSE)) ->  | Z78: =IF($P78="","",VLOOKUP($P78,'FO-DRE-01'!$A$7:$U$300,7,FALSE)) ->  | AA78: =IF($P78="","",VLOOKUP($P78,'FO-DRE-01'!$A$7:$U$300,8,FALSE)) ->  | AB78: =IF($P78="","",VLOOKUP($P78,'FO-DRE-01'!$A$7:$U$300,9,FALSE)) ->  | AC78: =IF($P78="","",VLOOKUP($P78,'FO-DRE-01'!$A$7:$U$300,10,FALSE)) ->  | AD78: =IF($P78="","",VLOOKUP($P78,'FO-DRE-01'!$A$7:$U$300,11,FALSE)) ->  | AE78: =IF($P78="","",VLOOKUP($P78,'FO-DRE-01'!$A$7:$U$300,12,FALSE)) ->  | AF78: =IF($P78="","",VLOOKUP($P78,'FO-DRE-01'!$A$7:$U$300,13,FALSE)) ->  | AG78: =IF($P78="","",VLOOKUP($P78,'FO-DRE-01'!$A$7:$U$300,14,FALSE)) ->  | AH78: W | AI78: =IF(Q78="","",VLOOKUP($Q78,'FO-DRE-04'!$A$6:$M$100,3,FALSE)) ->  | AJ78: =IF(Q78="","",VLOOKUP($Q78,'FO-DRE-04'!$A$6:$M$100,4,FALSE)) ->  | AK78: =IF(Q78="","",VLOOKUP($Q78,'FO-DRE-04'!$A$6:$M$100,5,FALSE)) ->  | AL78: =IF(Q78="","",VLOOKUP($Q78,'FO-DRE-04'!$A$6:$M$100,7,FALSE)) ->  | AM78: =IF(Q78="","",VLOOKUP($Q78,'FO-DRE-04'!$A$6:$M$100,11,FALSE)) ->  | AN78: =IF($R78="","",VLOOKUP($R78,'FO-DRE-02'!$A$6:$N$100,2,FALSE)) ->  | AO78: =IF($R78="","",VLOOKUP($R78,'FO-DRE-02'!$A$5:$J$100,3,FALSE)) ->  | AP78: =IF($R78="","",VLOOKUP($R78,'FO-DRE-02'!$A$5:$J$100,6,FALSE)) ->  | AQ78: =IF($R78="","",VLOOKUP($R78,'FO-DRE-02'!$A$5:$J$100,4,FALSE)) ->  | AR78: =IF($R78="","",VLOOKUP($R78,'FO-DRE-02'!$A$5:$J$100,5,FALSE)) ->  | AS78: =IF($R78="","",VLOOKUP($R78,'FO-DRE-02'!$A$5:$J$100,6,FALSE)) ->  | AT78: =IF($R78="","",VLOOKUP($R78,'FO-DRE-02'!$A$5:$J$100,7,FALSE)) ->  | AU78: =IF($R78="","",VLOOKUP($R78,'FO-DRE-02'!$A$5:$J$100,9,FALSE)) ->  | AV78: =IF($R78="","",VLOOKUP($R78,'FO-DRE-02'!$A$5:$M$100,11,FALSE)) ->  | AW78: =IF($R78="","",VLOOKUP($R78,'FO-DRE-02'!$A$5:$M$100,12,FALSE)) ->  | AX78: =IF($R78="","",VLOOKUP($R78,'FO-DRE-02'!$A$5:$M$100,13,FALSE)) ->  | BA78: 5000 | BD78: 69 | BF78: F/D | BG78: F/D
T79: =IF($P79="","",VLOOKUP($P79,'FO-DRE-01'!$A$7:$U$347,18,FALSE)) ->  | U79: =IF($P79="","",VLOOKUP($P79,'FO-DRE-01'!$A$7:$U$300,16,FALSE)) ->  | V79: =IF($P79="","",VLOOKUP($P79,'FO-DRE-01'!$A$7:$U$300,17,FALSE)) ->  | W79: =IF($P79="","",VLOOKUP($P79,'FO-DRE-01'!$A$7:$U$300,3,FALSE)) ->  | X79: =IF($P79="","",VLOOKUP($P79,'FO-DRE-01'!$A$7:$U$300,4,FALSE)) ->  | Y79: =IF($P79="","",VLOOKUP($P79,'FO-DRE-01'!$A$7:$U$300,5,FALSE)) ->  | Z79: =IF($P79="","",VLOOKUP($P79,'FO-DRE-01'!$A$7:$U$300,7,FALSE)) ->  | AA79: =IF($P79="","",VLOOKUP($P79,'FO-DRE-01'!$A$7:$U$300,8,FALSE)) ->  | AB79: =IF($P79="","",VLOOKUP($P79,'FO-DRE-01'!$A$7:$U$300,9,FALSE)) ->  | AC79: =IF($P79="","",VLOOKUP($P79,'FO-DRE-01'!$A$7:$U$300,10,FALSE)) ->  | AD79: =IF($P79="","",VLOOKUP($P79,'FO-DRE-01'!$A$7:$U$300,11,FALSE)) ->  | AE79: =IF($P79="","",VLOOKUP($P79,'FO-DRE-01'!$A$7:$U$300,12,FALSE)) ->  | AF79: =IF($P79="","",VLOOKUP($P79,'FO-DRE-01'!$A$7:$U$300,13,FALSE)) ->  | AG79: =IF($P79="","",VLOOKUP($P79,'FO-DRE-01'!$A$7:$U$300,14,FALSE)) ->  | AH79: W | AI79: =IF(Q79="","",VLOOKUP($Q79,'FO-DRE-04'!$A$6:$M$100,3,FALSE)) ->  | AJ79: =IF(Q79="","",VLOOKUP($Q79,'FO-DRE-04'!$A$6:$M$100,4,FALSE)) ->  | AK79: =IF(Q79="","",VLOOKUP($Q79,'FO-DRE-04'!$A$6:$M$100,5,FALSE)) ->  | AL79: =IF(Q79="","",VLOOKUP($Q79,'FO-DRE-04'!$A$6:$M$100,7,FALSE)) ->  | AM79: =IF(Q79="","",VLOOKUP($Q79,'FO-DRE-04'!$A$6:$M$100,11,FALSE)) ->  | AN79: =IF($R79="","",VLOOKUP($R79,'FO-DRE-02'!$A$6:$N$100,2,FALSE)) ->  | AO79: =IF($R79="","",VLOOKUP($R79,'FO-DRE-02'!$A$5:$J$100,3,FALSE)) ->  | AP79: =IF($R79="","",VLOOKUP($R79,'FO-DRE-02'!$A$5:$J$100,6,FALSE)) ->  | AQ79: =IF($R79="","",VLOOKUP($R79,'FO-DRE-02'!$A$5:$J$100,4,FALSE)) ->  | AR79: =IF($R79="","",VLOOKUP($R79,'FO-DRE-02'!$A$5:$J$100,5,FALSE)) ->  | AS79: =IF($R79="","",VLOOKUP($R79,'FO-DRE-02'!$A$5:$J$100,6,FALSE)) ->  | AT79: =IF($R79="","",VLOOKUP($R79,'FO-DRE-02'!$A$5:$J$100,7,FALSE)) ->  | AU79: =IF($R79="","",VLOOKUP($R79,'FO-DRE-02'!$A$5:$J$100,9,FALSE)) ->  | AV79: =IF($R79="","",VLOOKUP($R79,'FO-DRE-02'!$A$5:$M$100,11,FALSE)) ->  | AW79: =IF($R79="","",VLOOKUP($R79,'FO-DRE-02'!$A$5:$M$100,12,FALSE)) ->  | AX79: =IF($R79="","",VLOOKUP($R79,'FO-DRE-02'!$A$5:$M$100,13,FALSE)) ->  | BA79: 5000 | BD79: 70 | BF79: F/D | BG79: F/D
T80: =IF($P80="","",VLOOKUP($P80,'FO-DRE-01'!$A$7:$U$347,18,FALSE)) ->  | U80: =IF($P80="","",VLOOKUP($P80,'FO-DRE-01'!$A$7:$U$300,16,FALSE)) ->  | V80: =IF($P80="","",VLOOKUP($P80,'FO-DRE-01'!$A$7:$U$300,17,FALSE)) ->  | W80: =IF($P80="","",VLOOKUP($P80,'FO-DRE-01'!$A$7:$U$300,3,FALSE)) ->  | X80: =IF($P80="","",VLOOKUP($P80,'FO-DRE-01'!$A$7:$U$300,4,FALSE)) ->  | Y80: =IF($P80="","",VLOOKUP($P80,'FO-DRE-01'!$A$7:$U$300,5,FALSE)) ->  | Z80: =IF($P80="","",VLOOKUP($P80,'FO-DRE-01'!$A$7:$U$300,7,FALSE)) ->  | AA80: =IF($P80="","",VLOOKUP($P80,'FO-DRE-01'!$A$7:$U$300,8,FALSE)) ->  | AB80: =IF($P80="","",VLOOKUP($P80,'FO-DRE-01'!$A$7:$U$300,9,FALSE)) ->  | AC80: =IF($P80="","",VLOOKUP($P80,'FO-DRE-01'!$A$7:$U$300,10,FALSE)) ->  | AD80: =IF($P80="","",VLOOKUP($P80,'FO-DRE-01'!$A$7:$U$300,11,FALSE)) ->  | AE80: =IF($P80="","",VLOOKUP($P80,'FO-DRE-01'!$A$7:$U$300,12,FALSE)) ->  | AF80: =IF($P80="","",VLOOKUP($P80,'FO-DRE-01'!$A$7:$U$300,13,FALSE)) ->  | AG80: =IF($P80="","",VLOOKUP($P80,'FO-DRE-01'!$A$7:$U$300,14,FALSE)) ->  | AH80: W | AI80: =IF(Q80="","",VLOOKUP($Q80,'FO-DRE-04'!$A$6:$M$100,3,FALSE)) ->  | AJ80: =IF(Q80="","",VLOOKUP($Q80,'FO-DRE-04'!$A$6:$M$100,4,FALSE)) ->  | AK80: =IF(Q80="","",VLOOKUP($Q80,'FO-DRE-04'!$A$6:$M$100,5,FALSE)) ->  | AL80: =IF(Q80="","",VLOOKUP($Q80,'FO-DRE-04'!$A$6:$M$100,7,FALSE)) ->  | AM80: =IF(Q80="","",VLOOKUP($Q80,'FO-DRE-04'!$A$6:$M$100,11,FALSE)) ->  | AN80: =IF($R80="","",VLOOKUP($R80,'FO-DRE-02'!$A$6:$N$100,2,FALSE)) ->  | AO80: =IF($R80="","",VLOOKUP($R80,'FO-DRE-02'!$A$5:$J$100,3,FALSE)) ->  | AP80: =IF($R80="","",VLOOKUP($R80,'FO-DRE-02'!$A$5:$J$100,6,FALSE)) ->  | AQ80: =IF($R80="","",VLOOKUP($R80,'FO-DRE-02'!$A$5:$J$100,4,FALSE)) ->  | AR80: =IF($R80="","",VLOOKUP($R80,'FO-DRE-02'!$A$5:$J$100,5,FALSE)) ->  | AS80: =IF($R80="","",VLOOKUP($R80,'FO-DRE-02'!$A$5:$J$100,6,FALSE)) ->  | AT80: =IF($R80="","",VLOOKUP($R80,'FO-DRE-02'!$A$5:$J$100,7,FALSE)) ->  | AU80: =IF($R80="","",VLOOKUP($R80,'FO-DRE-02'!$A$5:$J$100,9,FALSE)) ->  | AV80: =IF($R80="","",VLOOKUP($R80,'FO-DRE-02'!$A$5:$M$100,11,FALSE)) ->  | AW80: =IF($R80="","",VLOOKUP($R80,'FO-DRE-02'!$A$5:$M$100,12,FALSE)) ->  | AX80: =IF($R80="","",VLOOKUP($R80,'FO-DRE-02'!$A$5:$M$100,13,FALSE)) ->  | BA80: 5000 | BD80: 71 | BF80: F/D | BG80: F/D
T81: =IF($P81="","",VLOOKUP($P81,'FO-DRE-01'!$A$7:$U$347,18,FALSE)) ->  | U81: =IF($P81="","",VLOOKUP($P81,'FO-DRE-01'!$A$7:$U$300,16,FALSE)) ->  | V81: =IF($P81="","",VLOOKUP($P81,'FO-DRE-01'!$A$7:$U$300,17,FALSE)) ->  | W81: =IF($P81="","",VLOOKUP($P81,'FO-DRE-01'!$A$7:$U$300,3,FALSE)) ->  | X81: =IF($P81="","",VLOOKUP($P81,'FO-DRE-01'!$A$7:$U$300,4,FALSE)) ->  | Y81: =IF($P81="","",VLOOKUP($P81,'FO-DRE-01'!$A$7:$U$300,5,FALSE)) ->  | Z81: =IF($P81="","",VLOOKUP($P81,'FO-DRE-01'!$A$7:$U$300,7,FALSE)) ->  | AA81: =IF($P81="","",VLOOKUP($P81,'FO-DRE-01'!$A$7:$U$300,8,FALSE)) ->  | AB81: =IF($P81="","",VLOOKUP($P81,'FO-DRE-01'!$A$7:$U$300,9,FALSE)) ->  | AC81: =IF($P81="","",VLOOKUP($P81,'FO-DRE-01'!$A$7:$U$300,10,FALSE)) ->  | AD81: =IF($P81="","",VLOOKUP($P81,'FO-DRE-01'!$A$7:$U$300,11,FALSE)) ->  | AE81: =IF($P81="","",VLOOKUP($P81,'FO-DRE-01'!$A$7:$U$300,12,FALSE)) ->  | AF81: =IF($P81="","",VLOOKUP($P81,'FO-DRE-01'!$A$7:$U$300,13,FALSE)) ->  | AG81: =IF($P81="","",VLOOKUP($P81,'FO-DRE-01'!$A$7:$U$300,14,FALSE)) ->  | AH81: W | AI81: =IF(Q81="","",VLOOKUP($Q81,'FO-DRE-04'!$A$6:$M$100,3,FALSE)) ->  | AJ81: =IF(Q81="","",VLOOKUP($Q81,'FO-DRE-04'!$A$6:$M$100,4,FALSE)) ->  | AK81: =IF(Q81="","",VLOOKUP($Q81,'FO-DRE-04'!$A$6:$M$100,5,FALSE)) ->  | AL81: =IF(Q81="","",VLOOKUP($Q81,'FO-DRE-04'!$A$6:$M$100,7,FALSE)) ->  | AM81: =IF(Q81="","",VLOOKUP($Q81,'FO-DRE-04'!$A$6:$M$100,11,FALSE)) ->  | AN81: =IF($R81="","",VLOOKUP($R81,'FO-DRE-02'!$A$6:$N$100,2,FALSE)) ->  | AO81: =IF($R81="","",VLOOKUP($R81,'FO-DRE-02'!$A$5:$J$100,3,FALSE)) ->  | AP81: =IF($R81="","",VLOOKUP($R81,'FO-DRE-02'!$A$5:$J$100,6,FALSE)) ->  | AQ81: =IF($R81="","",VLOOKUP($R81,'FO-DRE-02'!$A$5:$J$100,4,FALSE)) ->  | AR81: =IF($R81="","",VLOOKUP($R81,'FO-DRE-02'!$A$5:$J$100,5,FALSE)) ->  | AS81: =IF($R81="","",VLOOKUP($R81,'FO-DRE-02'!$A$5:$J$100,6,FALSE)) ->  | AT81: =IF($R81="","",VLOOKUP($R81,'FO-DRE-02'!$A$5:$J$100,7,FALSE)) ->  | AU81: =IF($R81="","",VLOOKUP($R81,'FO-DRE-02'!$A$5:$J$100,9,FALSE)) ->  | AV81: =IF($R81="","",VLOOKUP($R81,'FO-DRE-02'!$A$5:$M$100,11,FALSE)) ->  | AW81: =IF($R81="","",VLOOKUP($R81,'FO-DRE-02'!$A$5:$M$100,12,FALSE)) ->  | AX81: =IF($R81="","",VLOOKUP($R81,'FO-DRE-02'!$A$5:$M$100,13,FALSE)) ->  | BA81: 5000 | BD81: 72 | BF81: F/D | BG81: F/D
T82: =IF($P82="","",VLOOKUP($P82,'FO-DRE-01'!$A$7:$U$347,18,FALSE)) ->  | U82: =IF($P82="","",VLOOKUP($P82,'FO-DRE-01'!$A$7:$U$300,16,FALSE)) ->  | V82: =IF($P82="","",VLOOKUP($P82,'FO-DRE-01'!$A$7:$U$300,17,FALSE)) ->  | W82: =IF($P82="","",VLOOKUP($P82,'FO-DRE-01'!$A$7:$U$300,3,FALSE)) ->  | X82: =IF($P82="","",VLOOKUP($P82,'FO-DRE-01'!$A$7:$U$300,4,FALSE)) ->  | Y82: =IF($P82="","",VLOOKUP($P82,'FO-DRE-01'!$A$7:$U$300,5,FALSE)) ->  | Z82: =IF($P82="","",VLOOKUP($P82,'FO-DRE-01'!$A$7:$U$300,7,FALSE)) ->  | AA82: =IF($P82="","",VLOOKUP($P82,'FO-DRE-01'!$A$7:$U$300,8,FALSE)) ->  | AB82: =IF($P82="","",VLOOKUP($P82,'FO-DRE-01'!$A$7:$U$300,9,FALSE)) ->  | AC82: =IF($P82="","",VLOOKUP($P82,'FO-DRE-01'!$A$7:$U$300,10,FALSE)) ->  | AD82: =IF($P82="","",VLOOKUP($P82,'FO-DRE-01'!$A$7:$U$300,11,FALSE)) ->  | AE82: =IF($P82="","",VLOOKUP($P82,'FO-DRE-01'!$A$7:$U$300,12,FALSE)) ->  | AF82: =IF($P82="","",VLOOKUP($P82,'FO-DRE-01'!$A$7:$U$300,13,FALSE)) ->  | AG82: =IF($P82="","",VLOOKUP($P82,'FO-DRE-01'!$A$7:$U$300,14,FALSE)) ->  | AH82: W | AI82: =IF(Q82="","",VLOOKUP($Q82,'FO-DRE-04'!$A$6:$M$100,3,FALSE)) ->  | AJ82: =IF(Q82="","",VLOOKUP($Q82,'FO-DRE-04'!$A$6:$M$100,4,FALSE)) ->  | AK82: =IF(Q82="","",VLOOKUP($Q82,'FO-DRE-04'!$A$6:$M$100,5,FALSE)) ->  | AL82: =IF(Q82="","",VLOOKUP($Q82,'FO-DRE-04'!$A$6:$M$100,7,FALSE)) ->  | AM82: =IF(Q82="","",VLOOKUP($Q82,'FO-DRE-04'!$A$6:$M$100,11,FALSE)) ->  | AN82: =IF($R82="","",VLOOKUP($R82,'FO-DRE-02'!$A$6:$N$100,2,FALSE)) ->  | AO82: =IF($R82="","",VLOOKUP($R82,'FO-DRE-02'!$A$5:$J$100,3,FALSE)) ->  | AP82: =IF($R82="","",VLOOKUP($R82,'FO-DRE-02'!$A$5:$J$100,6,FALSE)) ->  | AQ82: =IF($R82="","",VLOOKUP($R82,'FO-DRE-02'!$A$5:$J$100,4,FALSE)) ->  | AR82: =IF($R82="","",VLOOKUP($R82,'FO-DRE-02'!$A$5:$J$100,5,FALSE)) ->  | AS82: =IF($R82="","",VLOOKUP($R82,'FO-DRE-02'!$A$5:$J$100,6,FALSE)) ->  | AT82: =IF($R82="","",VLOOKUP($R82,'FO-DRE-02'!$A$5:$J$100,7,FALSE)) ->  | AU82: =IF($R82="","",VLOOKUP($R82,'FO-DRE-02'!$A$5:$J$100,9,FALSE)) ->  | AV82: =IF($R82="","",VLOOKUP($R82,'FO-DRE-02'!$A$5:$M$100,11,FALSE)) ->  | AW82: =IF($R82="","",VLOOKUP($R82,'FO-DRE-02'!$A$5:$M$100,12,FALSE)) ->  | AX82: =IF($R82="","",VLOOKUP($R82,'FO-DRE-02'!$A$5:$M$100,13,FALSE)) ->  | BA82: 5000 | BD82: 73 | BF82: F/D | BG82: F/D
T83: =IF($P83="","",VLOOKUP($P83,'FO-DRE-01'!$A$7:$U$347,18,FALSE)) ->  | U83: =IF($P83="","",VLOOKUP($P83,'FO-DRE-01'!$A$7:$U$300,16,FALSE)) ->  | V83: =IF($P83="","",VLOOKUP($P83,'FO-DRE-01'!$A$7:$U$300,17,FALSE)) ->  | W83: =IF($P83="","",VLOOKUP($P83,'FO-DRE-01'!$A$7:$U$300,3,FALSE)) ->  | X83: =IF($P83="","",VLOOKUP($P83,'FO-DRE-01'!$A$7:$U$300,4,FALSE)) ->  | Y83: =IF($P83="","",VLOOKUP($P83,'FO-DRE-01'!$A$7:$U$300,5,FALSE)) ->  | Z83: =IF($P83="","",VLOOKUP($P83,'FO-DRE-01'!$A$7:$U$300,7,FALSE)) ->  | AA83: =IF($P83="","",VLOOKUP($P83,'FO-DRE-01'!$A$7:$U$300,8,FALSE)) ->  | AB83: =IF($P83="","",VLOOKUP($P83,'FO-DRE-01'!$A$7:$U$300,9,FALSE)) ->  | AC83: =IF($P83="","",VLOOKUP($P83,'FO-DRE-01'!$A$7:$U$300,10,FALSE)) ->  | AD83: =IF($P83="","",VLOOKUP($P83,'FO-DRE-01'!$A$7:$U$300,11,FALSE)) ->  | AE83: =IF($P83="","",VLOOKUP($P83,'FO-DRE-01'!$A$7:$U$300,12,FALSE)) ->  | AF83: =IF($P83="","",VLOOKUP($P83,'FO-DRE-01'!$A$7:$U$300,13,FALSE)) ->  | AG83: =IF($P83="","",VLOOKUP($P83,'FO-DRE-01'!$A$7:$U$300,14,FALSE)) ->  | AH83: W | AI83: =IF(Q83="","",VLOOKUP($Q83,'FO-DRE-04'!$A$6:$M$100,3,FALSE)) ->  | AJ83: =IF(Q83="","",VLOOKUP($Q83,'FO-DRE-04'!$A$6:$M$100,4,FALSE)) ->  | AK83: =IF(Q83="","",VLOOKUP($Q83,'FO-DRE-04'!$A$6:$M$100,5,FALSE)) ->  | AL83: =IF(Q83="","",VLOOKUP($Q83,'FO-DRE-04'!$A$6:$M$100,7,FALSE)) ->  | AM83: =IF(Q83="","",VLOOKUP($Q83,'FO-DRE-04'!$A$6:$M$100,11,FALSE)) ->  | AN83: =IF($R83="","",VLOOKUP($R83,'FO-DRE-02'!$A$6:$N$100,2,FALSE)) ->  | AO83: =IF($R83="","",VLOOKUP($R83,'FO-DRE-02'!$A$5:$J$100,3,FALSE)) ->  | AP83: =IF($R83="","",VLOOKUP($R83,'FO-DRE-02'!$A$5:$J$100,6,FALSE)) ->  | AQ83: =IF($R83="","",VLOOKUP($R83,'FO-DRE-02'!$A$5:$J$100,4,FALSE)) ->  | AR83: =IF($R83="","",VLOOKUP($R83,'FO-DRE-02'!$A$5:$J$100,5,FALSE)) ->  | AS83: =IF($R83="","",VLOOKUP($R83,'FO-DRE-02'!$A$5:$J$100,6,FALSE)) ->  | AT83: =IF($R83="","",VLOOKUP($R83,'FO-DRE-02'!$A$5:$J$100,7,FALSE)) ->  | AU83: =IF($R83="","",VLOOKUP($R83,'FO-DRE-02'!$A$5:$J$100,9,FALSE)) ->  | AV83: =IF($R83="","",VLOOKUP($R83,'FO-DRE-02'!$A$5:$M$100,11,FALSE)) ->  | AW83: =IF($R83="","",VLOOKUP($R83,'FO-DRE-02'!$A$5:$M$100,12,FALSE)) ->  | AX83: =IF($R83="","",VLOOKUP($R83,'FO-DRE-02'!$A$5:$M$100,13,FALSE)) ->  | BA83: 5000 | BD83: 74 | BF83: F/D | BG83: F/D
T84: =IF($P84="","",VLOOKUP($P84,'FO-DRE-01'!$A$7:$U$347,18,FALSE)) ->  | U84: =IF($P84="","",VLOOKUP($P84,'FO-DRE-01'!$A$7:$U$300,16,FALSE)) ->  | V84: =IF($P84="","",VLOOKUP($P84,'FO-DRE-01'!$A$7:$U$300,17,FALSE)) ->  | W84: =IF($P84="","",VLOOKUP($P84,'FO-DRE-01'!$A$7:$U$300,3,FALSE)) ->  | X84: =IF($P84="","",VLOOKUP($P84,'FO-DRE-01'!$A$7:$U$300,4,FALSE)) ->  | Y84: =IF($P84="","",VLOOKUP($P84,'FO-DRE-01'!$A$7:$U$300,5,FALSE)) ->  | Z84: =IF($P84="","",VLOOKUP($P84,'FO-DRE-01'!$A$7:$U$300,7,FALSE)) ->  | AA84: =IF($P84="","",VLOOKUP($P84,'FO-DRE-01'!$A$7:$U$300,8,FALSE)) ->  | AB84: =IF($P84="","",VLOOKUP($P84,'FO-DRE-01'!$A$7:$U$300,9,FALSE)) ->  | AC84: =IF($P84="","",VLOOKUP($P84,'FO-DRE-01'!$A$7:$U$300,10,FALSE)) ->  | AD84: =IF($P84="","",VLOOKUP($P84,'FO-DRE-01'!$A$7:$U$300,11,FALSE)) ->  | AE84: =IF($P84="","",VLOOKUP($P84,'FO-DRE-01'!$A$7:$U$300,12,FALSE)) ->  | AF84: =IF($P84="","",VLOOKUP($P84,'FO-DRE-01'!$A$7:$U$300,13,FALSE)) ->  | AG84: =IF($P84="","",VLOOKUP($P84,'FO-DRE-01'!$A$7:$U$300,14,FALSE)) ->  | AH84: W | AI84: =IF(Q84="","",VLOOKUP($Q84,'FO-DRE-04'!$A$6:$M$100,3,FALSE)) ->  | AJ84: =IF(Q84="","",VLOOKUP($Q84,'FO-DRE-04'!$A$6:$M$100,4,FALSE)) ->  | AK84: =IF(Q84="","",VLOOKUP($Q84,'FO-DRE-04'!$A$6:$M$100,5,FALSE)) ->  | AL84: =IF(Q84="","",VLOOKUP($Q84,'FO-DRE-04'!$A$6:$M$100,7,FALSE)) ->  | AM84: =IF(Q84="","",VLOOKUP($Q84,'FO-DRE-04'!$A$6:$M$100,11,FALSE)) ->  | AN84: =IF($R84="","",VLOOKUP($R84,'FO-DRE-02'!$A$6:$N$100,2,FALSE)) ->  | AO84: =IF($R84="","",VLOOKUP($R84,'FO-DRE-02'!$A$5:$J$100,3,FALSE)) ->  | AP84: =IF($R84="","",VLOOKUP($R84,'FO-DRE-02'!$A$5:$J$100,6,FALSE)) ->  | AQ84: =IF($R84="","",VLOOKUP($R84,'FO-DRE-02'!$A$5:$J$100,4,FALSE)) ->  | AR84: =IF($R84="","",VLOOKUP($R84,'FO-DRE-02'!$A$5:$J$100,5,FALSE)) ->  | AS84: =IF($R84="","",VLOOKUP($R84,'FO-DRE-02'!$A$5:$J$100,6,FALSE)) ->  | AT84: =IF($R84="","",VLOOKUP($R84,'FO-DRE-02'!$A$5:$J$100,7,FALSE)) ->  | AU84: =IF($R84="","",VLOOKUP($R84,'FO-DRE-02'!$A$5:$J$100,9,FALSE)) ->  | AV84: =IF($R84="","",VLOOKUP($R84,'FO-DRE-02'!$A$5:$M$100,11,FALSE)) ->  | AW84: =IF($R84="","",VLOOKUP($R84,'FO-DRE-02'!$A$5:$M$100,12,FALSE)) ->  | AX84: =IF($R84="","",VLOOKUP($R84,'FO-DRE-02'!$A$5:$M$100,13,FALSE)) ->  | BA84: 5000 | BD84: 75 | BF84: F/D | BG84: F/D
T85: =IF($P85="","",VLOOKUP($P85,'FO-DRE-01'!$A$7:$U$347,18,FALSE)) ->  | U85: =IF($P85="","",VLOOKUP($P85,'FO-DRE-01'!$A$7:$U$300,16,FALSE)) ->  | V85: =IF($P85="","",VLOOKUP($P85,'FO-DRE-01'!$A$7:$U$300,17,FALSE)) ->  | W85: =IF($P85="","",VLOOKUP($P85,'FO-DRE-01'!$A$7:$U$300,3,FALSE)) ->  | X85: =IF($P85="","",VLOOKUP($P85,'FO-DRE-01'!$A$7:$U$300,4,FALSE)) ->  | Y85: =IF($P85="","",VLOOKUP($P85,'FO-DRE-01'!$A$7:$U$300,5,FALSE)) ->  | Z85: =IF($P85="","",VLOOKUP($P85,'FO-DRE-01'!$A$7:$U$300,7,FALSE)) ->  | AA85: =IF($P85="","",VLOOKUP($P85,'FO-DRE-01'!$A$7:$U$300,8,FALSE)) ->  | AB85: =IF($P85="","",VLOOKUP($P85,'FO-DRE-01'!$A$7:$U$300,9,FALSE)) ->  | AC85: =IF($P85="","",VLOOKUP($P85,'FO-DRE-01'!$A$7:$U$300,10,FALSE)) ->  | AD85: =IF($P85="","",VLOOKUP($P85,'FO-DRE-01'!$A$7:$U$300,11,FALSE)) ->  | AE85: =IF($P85="","",VLOOKUP($P85,'FO-DRE-01'!$A$7:$U$300,12,FALSE)) ->  | AF85: =IF($P85="","",VLOOKUP($P85,'FO-DRE-01'!$A$7:$U$300,13,FALSE)) ->  | AG85: =IF($P85="","",VLOOKUP($P85,'FO-DRE-01'!$A$7:$U$300,14,FALSE)) ->  | AH85: W | AI85: =IF(Q85="","",VLOOKUP($Q85,'FO-DRE-04'!$A$6:$M$100,3,FALSE)) ->  | AJ85: =IF(Q85="","",VLOOKUP($Q85,'FO-DRE-04'!$A$6:$M$100,4,FALSE)) ->  | AK85: =IF(Q85="","",VLOOKUP($Q85,'FO-DRE-04'!$A$6:$M$100,5,FALSE)) ->  | AL85: =IF(Q85="","",VLOOKUP($Q85,'FO-DRE-04'!$A$6:$M$100,7,FALSE)) ->  | AM85: =IF(Q85="","",VLOOKUP($Q85,'FO-DRE-04'!$A$6:$M$100,11,FALSE)) ->  | AN85: =IF($R85="","",VLOOKUP($R85,'FO-DRE-02'!$A$6:$N$100,2,FALSE)) ->  | AO85: =IF($R85="","",VLOOKUP($R85,'FO-DRE-02'!$A$5:$J$100,3,FALSE)) ->  | AP85: =IF($R85="","",VLOOKUP($R85,'FO-DRE-02'!$A$5:$J$100,6,FALSE)) ->  | AQ85: =IF($R85="","",VLOOKUP($R85,'FO-DRE-02'!$A$5:$J$100,4,FALSE)) ->  | AR85: =IF($R85="","",VLOOKUP($R85,'FO-DRE-02'!$A$5:$J$100,5,FALSE)) ->  | AS85: =IF($R85="","",VLOOKUP($R85,'FO-DRE-02'!$A$5:$J$100,6,FALSE)) ->  | AT85: =IF($R85="","",VLOOKUP($R85,'FO-DRE-02'!$A$5:$J$100,7,FALSE)) ->  | AU85: =IF($R85="","",VLOOKUP($R85,'FO-DRE-02'!$A$5:$J$100,9,FALSE)) ->  | AV85: =IF($R85="","",VLOOKUP($R85,'FO-DRE-02'!$A$5:$M$100,11,FALSE)) ->  | AW85: =IF($R85="","",VLOOKUP($R85,'FO-DRE-02'!$A$5:$M$100,12,FALSE)) ->  | AX85: =IF($R85="","",VLOOKUP($R85,'FO-DRE-02'!$A$5:$M$100,13,FALSE)) ->  | BA85: 5000 | BD85: 76 | BF85: F/D | BG85: F/D
T86: =IF($P86="","",VLOOKUP($P86,'FO-DRE-01'!$A$7:$U$347,18,FALSE)) ->  | U86: =IF($P86="","",VLOOKUP($P86,'FO-DRE-01'!$A$7:$U$300,16,FALSE)) ->  | V86: =IF($P86="","",VLOOKUP($P86,'FO-DRE-01'!$A$7:$U$300,17,FALSE)) ->  | W86: =IF($P86="","",VLOOKUP($P86,'FO-DRE-01'!$A$7:$U$300,3,FALSE)) ->  | X86: =IF($P86="","",VLOOKUP($P86,'FO-DRE-01'!$A$7:$U$300,4,FALSE)) ->  | Y86: =IF($P86="","",VLOOKUP($P86,'FO-DRE-01'!$A$7:$U$300,5,FALSE)) ->  | Z86: =IF($P86="","",VLOOKUP($P86,'FO-DRE-01'!$A$7:$U$300,7,FALSE)) ->  | AA86: =IF($P86="","",VLOOKUP($P86,'FO-DRE-01'!$A$7:$U$300,8,FALSE)) ->  | AB86: =IF($P86="","",VLOOKUP($P86,'FO-DRE-01'!$A$7:$U$300,9,FALSE)) ->  | AC86: =IF($P86="","",VLOOKUP($P86,'FO-DRE-01'!$A$7:$U$300,10,FALSE)) ->  | AD86: =IF($P86="","",VLOOKUP($P86,'FO-DRE-01'!$A$7:$U$300,11,FALSE)) ->  | AE86: =IF($P86="","",VLOOKUP($P86,'FO-DRE-01'!$A$7:$U$300,12,FALSE)) ->  | AF86: =IF($P86="","",VLOOKUP($P86,'FO-DRE-01'!$A$7:$U$300,13,FALSE)) ->  | AG86: =IF($P86="","",VLOOKUP($P86,'FO-DRE-01'!$A$7:$U$300,14,FALSE)) ->  | AH86: W | AI86: =IF(Q86="","",VLOOKUP($Q86,'FO-DRE-04'!$A$6:$M$100,3,FALSE)) ->  | AJ86: =IF(Q86="","",VLOOKUP($Q86,'FO-DRE-04'!$A$6:$M$100,4,FALSE)) ->  | AK86: =IF(Q86="","",VLOOKUP($Q86,'FO-DRE-04'!$A$6:$M$100,5,FALSE)) ->  | AL86: =IF(Q86="","",VLOOKUP($Q86,'FO-DRE-04'!$A$6:$M$100,7,FALSE)) ->  | AM86: =IF(Q86="","",VLOOKUP($Q86,'FO-DRE-04'!$A$6:$M$100,11,FALSE)) ->  | AN86: =IF($R86="","",VLOOKUP($R86,'FO-DRE-02'!$A$6:$N$100,2,FALSE)) ->  | AO86: =IF($R86="","",VLOOKUP($R86,'FO-DRE-02'!$A$5:$J$100,3,FALSE)) ->  | AP86: =IF($R86="","",VLOOKUP($R86,'FO-DRE-02'!$A$5:$J$100,6,FALSE)) ->  | AQ86: =IF($R86="","",VLOOKUP($R86,'FO-DRE-02'!$A$5:$J$100,4,FALSE)) ->  | AR86: =IF($R86="","",VLOOKUP($R86,'FO-DRE-02'!$A$5:$J$100,5,FALSE)) ->  | AS86: =IF($R86="","",VLOOKUP($R86,'FO-DRE-02'!$A$5:$J$100,6,FALSE)) ->  | AT86: =IF($R86="","",VLOOKUP($R86,'FO-DRE-02'!$A$5:$J$100,7,FALSE)) ->  | AU86: =IF($R86="","",VLOOKUP($R86,'FO-DRE-02'!$A$5:$J$100,9,FALSE)) ->  | AV86: =IF($R86="","",VLOOKUP($R86,'FO-DRE-02'!$A$5:$M$100,11,FALSE)) ->  | AW86: =IF($R86="","",VLOOKUP($R86,'FO-DRE-02'!$A$5:$M$100,12,FALSE)) ->  | AX86: =IF($R86="","",VLOOKUP($R86,'FO-DRE-02'!$A$5:$M$100,13,FALSE)) ->  | BA86: 5000 | BD86: 77 | BF86: F/D | BG86: F/D
T87: =IF($P87="","",VLOOKUP($P87,'FO-DRE-01'!$A$7:$U$347,18,FALSE)) ->  | U87: =IF($P87="","",VLOOKUP($P87,'FO-DRE-01'!$A$7:$U$300,16,FALSE)) ->  | V87: =IF($P87="","",VLOOKUP($P87,'FO-DRE-01'!$A$7:$U$300,17,FALSE)) ->  | W87: =IF($P87="","",VLOOKUP($P87,'FO-DRE-01'!$A$7:$U$300,3,FALSE)) ->  | X87: =IF($P87="","",VLOOKUP($P87,'FO-DRE-01'!$A$7:$U$300,4,FALSE)) ->  | Y87: =IF($P87="","",VLOOKUP($P87,'FO-DRE-01'!$A$7:$U$300,5,FALSE)) ->  | Z87: =IF($P87="","",VLOOKUP($P87,'FO-DRE-01'!$A$7:$U$300,7,FALSE)) ->  | AA87: =IF($P87="","",VLOOKUP($P87,'FO-DRE-01'!$A$7:$U$300,8,FALSE)) ->  | AB87: =IF($P87="","",VLOOKUP($P87,'FO-DRE-01'!$A$7:$U$300,9,FALSE)) ->  | AC87: =IF($P87="","",VLOOKUP($P87,'FO-DRE-01'!$A$7:$U$300,10,FALSE)) ->  | AD87: =IF($P87="","",VLOOKUP($P87,'FO-DRE-01'!$A$7:$U$300,11,FALSE)) ->  | AE87: =IF($P87="","",VLOOKUP($P87,'FO-DRE-01'!$A$7:$U$300,12,FALSE)) ->  | AF87: =IF($P87="","",VLOOKUP($P87,'FO-DRE-01'!$A$7:$U$300,13,FALSE)) ->  | AG87: =IF($P87="","",VLOOKUP($P87,'FO-DRE-01'!$A$7:$U$300,14,FALSE)) ->  | AH87: W | AI87: =IF(Q87="","",VLOOKUP($Q87,'FO-DRE-04'!$A$6:$M$100,3,FALSE)) ->  | AJ87: =IF(Q87="","",VLOOKUP($Q87,'FO-DRE-04'!$A$6:$M$100,4,FALSE)) ->  | AK87: =IF(Q87="","",VLOOKUP($Q87,'FO-DRE-04'!$A$6:$M$100,5,FALSE)) ->  | AL87: =IF(Q87="","",VLOOKUP($Q87,'FO-DRE-04'!$A$6:$M$100,7,FALSE)) ->  | AM87: =IF(Q87="","",VLOOKUP($Q87,'FO-DRE-04'!$A$6:$M$100,11,FALSE)) ->  | AN87: =IF($R87="","",VLOOKUP($R87,'FO-DRE-02'!$A$6:$N$100,2,FALSE)) ->  | AO87: =IF($R87="","",VLOOKUP($R87,'FO-DRE-02'!$A$5:$J$100,3,FALSE)) ->  | AP87: =IF($R87="","",VLOOKUP($R87,'FO-DRE-02'!$A$5:$J$100,6,FALSE)) ->  | AQ87: =IF($R87="","",VLOOKUP($R87,'FO-DRE-02'!$A$5:$J$100,4,FALSE)) ->  | AR87: =IF($R87="","",VLOOKUP($R87,'FO-DRE-02'!$A$5:$J$100,5,FALSE)) ->  | AS87: =IF($R87="","",VLOOKUP($R87,'FO-DRE-02'!$A$5:$J$100,6,FALSE)) ->  | AT87: =IF($R87="","",VLOOKUP($R87,'FO-DRE-02'!$A$5:$J$100,7,FALSE)) ->  | AU87: =IF($R87="","",VLOOKUP($R87,'FO-DRE-02'!$A$5:$J$100,9,FALSE)) ->  | AV87: =IF($R87="","",VLOOKUP($R87,'FO-DRE-02'!$A$5:$M$100,11,FALSE)) ->  | AW87: =IF($R87="","",VLOOKUP($R87,'FO-DRE-02'!$A$5:$M$100,12,FALSE)) ->  | AX87: =IF($R87="","",VLOOKUP($R87,'FO-DRE-02'!$A$5:$M$100,13,FALSE)) ->  | BA87: 5000 | BD87: 78 | BF87: F/D | BG87: F/D
T88: =IF($P88="","",VLOOKUP($P88,'FO-DRE-01'!$A$7:$U$347,18,FALSE)) ->  | U88: =IF($P88="","",VLOOKUP($P88,'FO-DRE-01'!$A$7:$U$300,16,FALSE)) ->  | V88: =IF($P88="","",VLOOKUP($P88,'FO-DRE-01'!$A$7:$U$300,17,FALSE)) ->  | W88: =IF($P88="","",VLOOKUP($P88,'FO-DRE-01'!$A$7:$U$300,3,FALSE)) ->  | X88: =IF($P88="","",VLOOKUP($P88,'FO-DRE-01'!$A$7:$U$300,4,FALSE)) ->  | Y88: =IF($P88="","",VLOOKUP($P88,'FO-DRE-01'!$A$7:$U$300,5,FALSE)) ->  | Z88: =IF($P88="","",VLOOKUP($P88,'FO-DRE-01'!$A$7:$U$300,7,FALSE)) ->  | AA88: =IF($P88="","",VLOOKUP($P88,'FO-DRE-01'!$A$7:$U$300,8,FALSE)) ->  | AB88: =IF($P88="","",VLOOKUP($P88,'FO-DRE-01'!$A$7:$U$300,9,FALSE)) ->  | AC88: =IF($P88="","",VLOOKUP($P88,'FO-DRE-01'!$A$7:$U$300,10,FALSE)) ->  | AD88: =IF($P88="","",VLOOKUP($P88,'FO-DRE-01'!$A$7:$U$300,11,FALSE)) ->  | AE88: =IF($P88="","",VLOOKUP($P88,'FO-DRE-01'!$A$7:$U$300,12,FALSE)) ->  | AF88: =IF($P88="","",VLOOKUP($P88,'FO-DRE-01'!$A$7:$U$300,13,FALSE)) ->  | AG88: =IF($P88="","",VLOOKUP($P88,'FO-DRE-01'!$A$7:$U$300,14,FALSE)) ->  | AH88: W | AI88: =IF(Q88="","",VLOOKUP($Q88,'FO-DRE-04'!$A$6:$M$100,3,FALSE)) ->  | AJ88: =IF(Q88="","",VLOOKUP($Q88,'FO-DRE-04'!$A$6:$M$100,4,FALSE)) ->  | AK88: =IF(Q88="","",VLOOKUP($Q88,'FO-DRE-04'!$A$6:$M$100,5,FALSE)) ->  | AL88: =IF(Q88="","",VLOOKUP($Q88,'FO-DRE-04'!$A$6:$M$100,7,FALSE)) ->  | AM88: =IF(Q88="","",VLOOKUP($Q88,'FO-DRE-04'!$A$6:$M$100,11,FALSE)) ->  | AN88: =IF($R88="","",VLOOKUP($R88,'FO-DRE-02'!$A$6:$N$100,2,FALSE)) ->  | AO88: =IF($R88="","",VLOOKUP($R88,'FO-DRE-02'!$A$5:$J$100,3,FALSE)) ->  | AP88: =IF($R88="","",VLOOKUP($R88,'FO-DRE-02'!$A$5:$J$100,6,FALSE)) ->  | AQ88: =IF($R88="","",VLOOKUP($R88,'FO-DRE-02'!$A$5:$J$100,4,FALSE)) ->  | AR88: =IF($R88="","",VLOOKUP($R88,'FO-DRE-02'!$A$5:$J$100,5,FALSE)) ->  | AS88: =IF($R88="","",VLOOKUP($R88,'FO-DRE-02'!$A$5:$J$100,6,FALSE)) ->  | AT88: =IF($R88="","",VLOOKUP($R88,'FO-DRE-02'!$A$5:$J$100,7,FALSE)) ->  | AU88: =IF($R88="","",VLOOKUP($R88,'FO-DRE-02'!$A$5:$J$100,9,FALSE)) ->  | AV88: =IF($R88="","",VLOOKUP($R88,'FO-DRE-02'!$A$5:$M$100,11,FALSE)) ->  | AW88: =IF($R88="","",VLOOKUP($R88,'FO-DRE-02'!$A$5:$M$100,12,FALSE)) ->  | AX88: =IF($R88="","",VLOOKUP($R88,'FO-DRE-02'!$A$5:$M$100,13,FALSE)) ->  | BA88: 5000 | BD88: 79 | BF88: F/D | BG88: F/D
T89: =IF($P89="","",VLOOKUP($P89,'FO-DRE-01'!$A$7:$U$347,18,FALSE)) ->  | U89: =IF($P89="","",VLOOKUP($P89,'FO-DRE-01'!$A$7:$U$300,16,FALSE)) ->  | V89: =IF($P89="","",VLOOKUP($P89,'FO-DRE-01'!$A$7:$U$300,17,FALSE)) ->  | W89: =IF($P89="","",VLOOKUP($P89,'FO-DRE-01'!$A$7:$U$300,3,FALSE)) ->  | X89: =IF($P89="","",VLOOKUP($P89,'FO-DRE-01'!$A$7:$U$300,4,FALSE)) ->  | Y89: =IF($P89="","",VLOOKUP($P89,'FO-DRE-01'!$A$7:$U$300,5,FALSE)) ->  | Z89: =IF($P89="","",VLOOKUP($P89,'FO-DRE-01'!$A$7:$U$300,7,FALSE)) ->  | AA89: =IF($P89="","",VLOOKUP($P89,'FO-DRE-01'!$A$7:$U$300,8,FALSE)) ->  | AB89: =IF($P89="","",VLOOKUP($P89,'FO-DRE-01'!$A$7:$U$300,9,FALSE)) ->  | AC89: =IF($P89="","",VLOOKUP($P89,'FO-DRE-01'!$A$7:$U$300,10,FALSE)) ->  | AD89: =IF($P89="","",VLOOKUP($P89,'FO-DRE-01'!$A$7:$U$300,11,FALSE)) ->  | AE89: =IF($P89="","",VLOOKUP($P89,'FO-DRE-01'!$A$7:$U$300,12,FALSE)) ->  | AF89: =IF($P89="","",VLOOKUP($P89,'FO-DRE-01'!$A$7:$U$300,13,FALSE)) ->  | AG89: =IF($P89="","",VLOOKUP($P89,'FO-DRE-01'!$A$7:$U$300,14,FALSE)) ->  | AH89: W | AI89: =IF(Q89="","",VLOOKUP($Q89,'FO-DRE-04'!$A$6:$M$100,3,FALSE)) ->  | AJ89: =IF(Q89="","",VLOOKUP($Q89,'FO-DRE-04'!$A$6:$M$100,4,FALSE)) ->  | AK89: =IF(Q89="","",VLOOKUP($Q89,'FO-DRE-04'!$A$6:$M$100,5,FALSE)) ->  | AL89: =IF(Q89="","",VLOOKUP($Q89,'FO-DRE-04'!$A$6:$M$100,7,FALSE)) ->  | AM89: =IF(Q89="","",VLOOKUP($Q89,'FO-DRE-04'!$A$6:$M$100,11,FALSE)) ->  | AN89: =IF($R89="","",VLOOKUP($R89,'FO-DRE-02'!$A$6:$N$100,2,FALSE)) ->  | AO89: =IF($R89="","",VLOOKUP($R89,'FO-DRE-02'!$A$5:$J$100,3,FALSE)) ->  | AP89: =IF($R89="","",VLOOKUP($R89,'FO-DRE-02'!$A$5:$J$100,6,FALSE)) ->  | AQ89: =IF($R89="","",VLOOKUP($R89,'FO-DRE-02'!$A$5:$J$100,4,FALSE)) ->  | AR89: =IF($R89="","",VLOOKUP($R89,'FO-DRE-02'!$A$5:$J$100,5,FALSE)) ->  | AS89: =IF($R89="","",VLOOKUP($R89,'FO-DRE-02'!$A$5:$J$100,6,FALSE)) ->  | AT89: =IF($R89="","",VLOOKUP($R89,'FO-DRE-02'!$A$5:$J$100,7,FALSE)) ->  | AU89: =IF($R89="","",VLOOKUP($R89,'FO-DRE-02'!$A$5:$J$100,9,FALSE)) ->  | AV89: =IF($R89="","",VLOOKUP($R89,'FO-DRE-02'!$A$5:$M$100,11,FALSE)) ->  | AW89: =IF($R89="","",VLOOKUP($R89,'FO-DRE-02'!$A$5:$M$100,12,FALSE)) ->  | AX89: =IF($R89="","",VLOOKUP($R89,'FO-DRE-02'!$A$5:$M$100,13,FALSE)) ->  | BA89: 5000 | BD89: 80 | BF89: F/D | BG89: F/D
T90: =IF($P90="","",VLOOKUP($P90,'FO-DRE-01'!$A$7:$U$347,18,FALSE)) ->  | U90: =IF($P90="","",VLOOKUP($P90,'FO-DRE-01'!$A$7:$U$300,16,FALSE)) ->  | V90: =IF($P90="","",VLOOKUP($P90,'FO-DRE-01'!$A$7:$U$300,17,FALSE)) ->  | W90: =IF($P90="","",VLOOKUP($P90,'FO-DRE-01'!$A$7:$U$300,3,FALSE)) ->  | X90: =IF($P90="","",VLOOKUP($P90,'FO-DRE-01'!$A$7:$U$300,4,FALSE)) ->  | Y90: =IF($P90="","",VLOOKUP($P90,'FO-DRE-01'!$A$7:$U$300,5,FALSE)) ->  | Z90: =IF($P90="","",VLOOKUP($P90,'FO-DRE-01'!$A$7:$U$300,7,FALSE)) ->  | AA90: =IF($P90="","",VLOOKUP($P90,'FO-DRE-01'!$A$7:$U$300,8,FALSE)) ->  | AB90: =IF($P90="","",VLOOKUP($P90,'FO-DRE-01'!$A$7:$U$300,9,FALSE)) ->  | AC90: =IF($P90="","",VLOOKUP($P90,'FO-DRE-01'!$A$7:$U$300,10,FALSE)) ->  | AD90: =IF($P90="","",VLOOKUP($P90,'FO-DRE-01'!$A$7:$U$300,11,FALSE)) ->  | AE90: =IF($P90="","",VLOOKUP($P90,'FO-DRE-01'!$A$7:$U$300,12,FALSE)) ->  | AF90: =IF($P90="","",VLOOKUP($P90,'FO-DRE-01'!$A$7:$U$300,13,FALSE)) ->  | AG90: =IF($P90="","",VLOOKUP($P90,'FO-DRE-01'!$A$7:$U$300,14,FALSE)) ->  | AH90: W | AI90: =IF(Q90="","",VLOOKUP($Q90,'FO-DRE-04'!$A$6:$M$100,3,FALSE)) ->  | AJ90: =IF(Q90="","",VLOOKUP($Q90,'FO-DRE-04'!$A$6:$M$100,4,FALSE)) ->  | AK90: =IF(Q90="","",VLOOKUP($Q90,'FO-DRE-04'!$A$6:$M$100,5,FALSE)) ->  | AL90: =IF(Q90="","",VLOOKUP($Q90,'FO-DRE-04'!$A$6:$M$100,7,FALSE)) ->  | AM90: =IF(Q90="","",VLOOKUP($Q90,'FO-DRE-04'!$A$6:$M$100,11,FALSE)) ->  | AN90: =IF($R90="","",VLOOKUP($R90,'FO-DRE-02'!$A$6:$N$100,2,FALSE)) ->  | AO90: =IF($R90="","",VLOOKUP($R90,'FO-DRE-02'!$A$5:$J$100,3,FALSE)) ->  | AP90: =IF($R90="","",VLOOKUP($R90,'FO-DRE-02'!$A$5:$J$100,6,FALSE)) ->  | AQ90: =IF($R90="","",VLOOKUP($R90,'FO-DRE-02'!$A$5:$J$100,4,FALSE)) ->  | AR90: =IF($R90="","",VLOOKUP($R90,'FO-DRE-02'!$A$5:$J$100,5,FALSE)) ->  | AS90: =IF($R90="","",VLOOKUP($R90,'FO-DRE-02'!$A$5:$J$100,6,FALSE)) ->  | AT90: =IF($R90="","",VLOOKUP($R90,'FO-DRE-02'!$A$5:$J$100,7,FALSE)) ->  | AU90: =IF($R90="","",VLOOKUP($R90,'FO-DRE-02'!$A$5:$J$100,9,FALSE)) ->  | AV90: =IF($R90="","",VLOOKUP($R90,'FO-DRE-02'!$A$5:$M$100,11,FALSE)) ->  | AW90: =IF($R90="","",VLOOKUP($R90,'FO-DRE-02'!$A$5:$M$100,12,FALSE)) ->  | AX90: =IF($R90="","",VLOOKUP($R90,'FO-DRE-02'!$A$5:$M$100,13,FALSE)) ->  | BA90: 5000 | BD90: 81 | BF90: F/D | BG90: F/D
T91: =IF($P91="","",VLOOKUP($P91,'FO-DRE-01'!$A$7:$U$347,18,FALSE)) ->  | U91: =IF($P91="","",VLOOKUP($P91,'FO-DRE-01'!$A$7:$U$300,16,FALSE)) ->  | V91: =IF($P91="","",VLOOKUP($P91,'FO-DRE-01'!$A$7:$U$300,17,FALSE)) ->  | W91: =IF($P91="","",VLOOKUP($P91,'FO-DRE-01'!$A$7:$U$300,3,FALSE)) ->  | X91: =IF($P91="","",VLOOKUP($P91,'FO-DRE-01'!$A$7:$U$300,4,FALSE)) ->  | Y91: =IF($P91="","",VLOOKUP($P91,'FO-DRE-01'!$A$7:$U$300,5,FALSE)) ->  | Z91: =IF($P91="","",VLOOKUP($P91,'FO-DRE-01'!$A$7:$U$300,7,FALSE)) ->  | AA91: =IF($P91="","",VLOOKUP($P91,'FO-DRE-01'!$A$7:$U$300,8,FALSE)) ->  | AB91: =IF($P91="","",VLOOKUP($P91,'FO-DRE-01'!$A$7:$U$300,9,FALSE)) ->  | AC91: =IF($P91="","",VLOOKUP($P91,'FO-DRE-01'!$A$7:$U$300,10,FALSE)) ->  | AD91: =IF($P91="","",VLOOKUP($P91,'FO-DRE-01'!$A$7:$U$300,11,FALSE)) ->  | AE91: =IF($P91="","",VLOOKUP($P91,'FO-DRE-01'!$A$7:$U$300,12,FALSE)) ->  | AF91: =IF($P91="","",VLOOKUP($P91,'FO-DRE-01'!$A$7:$U$300,13,FALSE)) ->  | AG91: =IF($P91="","",VLOOKUP($P91,'FO-DRE-01'!$A$7:$U$300,14,FALSE)) ->  | AH91: W | AI91: =IF(Q91="","",VLOOKUP($Q91,'FO-DRE-04'!$A$6:$M$100,3,FALSE)) ->  | AJ91: =IF(Q91="","",VLOOKUP($Q91,'FO-DRE-04'!$A$6:$M$100,4,FALSE)) ->  | AK91: =IF(Q91="","",VLOOKUP($Q91,'FO-DRE-04'!$A$6:$M$100,5,FALSE)) ->  | AL91: =IF(Q91="","",VLOOKUP($Q91,'FO-DRE-04'!$A$6:$M$100,7,FALSE)) ->  | AM91: =IF(Q91="","",VLOOKUP($Q91,'FO-DRE-04'!$A$6:$M$100,11,FALSE)) ->  | AN91: =IF($R91="","",VLOOKUP($R91,'FO-DRE-02'!$A$6:$N$100,2,FALSE)) ->  | AO91: =IF($R91="","",VLOOKUP($R91,'FO-DRE-02'!$A$5:$J$100,3,FALSE)) ->  | AP91: =IF($R91="","",VLOOKUP($R91,'FO-DRE-02'!$A$5:$J$100,6,FALSE)) ->  | AQ91: =IF($R91="","",VLOOKUP($R91,'FO-DRE-02'!$A$5:$J$100,4,FALSE)) ->  | AR91: =IF($R91="","",VLOOKUP($R91,'FO-DRE-02'!$A$5:$J$100,5,FALSE)) ->  | AS91: =IF($R91="","",VLOOKUP($R91,'FO-DRE-02'!$A$5:$J$100,6,FALSE)) ->  | AT91: =IF($R91="","",VLOOKUP($R91,'FO-DRE-02'!$A$5:$J$100,7,FALSE)) ->  | AU91: =IF($R91="","",VLOOKUP($R91,'FO-DRE-02'!$A$5:$J$100,9,FALSE)) ->  | AV91: =IF($R91="","",VLOOKUP($R91,'FO-DRE-02'!$A$5:$M$100,11,FALSE)) ->  | AW91: =IF($R91="","",VLOOKUP($R91,'FO-DRE-02'!$A$5:$M$100,12,FALSE)) ->  | AX91: =IF($R91="","",VLOOKUP($R91,'FO-DRE-02'!$A$5:$M$100,13,FALSE)) ->  | BA91: 5000 | BD91: 82 | BF91: F/D | BG91: F/D
T92: =IF($P92="","",VLOOKUP($P92,'FO-DRE-01'!$A$7:$U$347,18,FALSE)) ->  | U92: =IF($P92="","",VLOOKUP($P92,'FO-DRE-01'!$A$7:$U$300,16,FALSE)) ->  | V92: =IF($P92="","",VLOOKUP($P92,'FO-DRE-01'!$A$7:$U$300,17,FALSE)) ->  | W92: =IF($P92="","",VLOOKUP($P92,'FO-DRE-01'!$A$7:$U$300,3,FALSE)) ->  | X92: =IF($P92="","",VLOOKUP($P92,'FO-DRE-01'!$A$7:$U$300,4,FALSE)) ->  | Y92: =IF($P92="","",VLOOKUP($P92,'FO-DRE-01'!$A$7:$U$300,5,FALSE)) ->  | Z92: =IF($P92="","",VLOOKUP($P92,'FO-DRE-01'!$A$7:$U$300,7,FALSE)) ->  | AA92: =IF($P92="","",VLOOKUP($P92,'FO-DRE-01'!$A$7:$U$300,8,FALSE)) ->  | AB92: =IF($P92="","",VLOOKUP($P92,'FO-DRE-01'!$A$7:$U$300,9,FALSE)) ->  | AC92: =IF($P92="","",VLOOKUP($P92,'FO-DRE-01'!$A$7:$U$300,10,FALSE)) ->  | AD92: =IF($P92="","",VLOOKUP($P92,'FO-DRE-01'!$A$7:$U$300,11,FALSE)) ->  | AE92: =IF($P92="","",VLOOKUP($P92,'FO-DRE-01'!$A$7:$U$300,12,FALSE)) ->  | AF92: =IF($P92="","",VLOOKUP($P92,'FO-DRE-01'!$A$7:$U$300,13,FALSE)) ->  | AG92: =IF($P92="","",VLOOKUP($P92,'FO-DRE-01'!$A$7:$U$300,14,FALSE)) ->  | AH92: W | AI92: =IF(Q92="","",VLOOKUP($Q92,'FO-DRE-04'!$A$6:$M$100,3,FALSE)) ->  | AJ92: =IF(Q92="","",VLOOKUP($Q92,'FO-DRE-04'!$A$6:$M$100,4,FALSE)) ->  | AK92: =IF(Q92="","",VLOOKUP($Q92,'FO-DRE-04'!$A$6:$M$100,5,FALSE)) ->  | AL92: =IF(Q92="","",VLOOKUP($Q92,'FO-DRE-04'!$A$6:$M$100,7,FALSE)) ->  | AM92: =IF(Q92="","",VLOOKUP($Q92,'FO-DRE-04'!$A$6:$M$100,11,FALSE)) ->  | AN92: =IF($R92="","",VLOOKUP($R92,'FO-DRE-02'!$A$6:$N$100,2,FALSE)) ->  | AO92: =IF($R92="","",VLOOKUP($R92,'FO-DRE-02'!$A$5:$J$100,3,FALSE)) ->  | AP92: =IF($R92="","",VLOOKUP($R92,'FO-DRE-02'!$A$5:$J$100,6,FALSE)) ->  | AQ92: =IF($R92="","",VLOOKUP($R92,'FO-DRE-02'!$A$5:$J$100,4,FALSE)) ->  | AR92: =IF($R92="","",VLOOKUP($R92,'FO-DRE-02'!$A$5:$J$100,5,FALSE)) ->  | AS92: =IF($R92="","",VLOOKUP($R92,'FO-DRE-02'!$A$5:$J$100,6,FALSE)) ->  | AT92: =IF($R92="","",VLOOKUP($R92,'FO-DRE-02'!$A$5:$J$100,7,FALSE)) ->  | AU92: =IF($R92="","",VLOOKUP($R92,'FO-DRE-02'!$A$5:$J$100,9,FALSE)) ->  | AV92: =IF($R92="","",VLOOKUP($R92,'FO-DRE-02'!$A$5:$M$100,11,FALSE)) ->  | AW92: =IF($R92="","",VLOOKUP($R92,'FO-DRE-02'!$A$5:$M$100,12,FALSE)) ->  | AX92: =IF($R92="","",VLOOKUP($R92,'FO-DRE-02'!$A$5:$M$100,13,FALSE)) ->  | BA92: 5000 | BD92: 83 | BF92: F/D | BG92: F/D
T93: =IF($P93="","",VLOOKUP($P93,'FO-DRE-01'!$A$7:$U$347,18,FALSE)) ->  | U93: =IF($P93="","",VLOOKUP($P93,'FO-DRE-01'!$A$7:$U$300,16,FALSE)) ->  | V93: =IF($P93="","",VLOOKUP($P93,'FO-DRE-01'!$A$7:$U$300,17,FALSE)) ->  | W93: =IF($P93="","",VLOOKUP($P93,'FO-DRE-01'!$A$7:$U$300,3,FALSE)) ->  | X93: =IF($P93="","",VLOOKUP($P93,'FO-DRE-01'!$A$7:$U$300,4,FALSE)) ->  | Y93: =IF($P93="","",VLOOKUP($P93,'FO-DRE-01'!$A$7:$U$300,5,FALSE)) ->  | Z93: =IF($P93="","",VLOOKUP($P93,'FO-DRE-01'!$A$7:$U$300,7,FALSE)) ->  | AA93: =IF($P93="","",VLOOKUP($P93,'FO-DRE-01'!$A$7:$U$300,8,FALSE)) ->  | AB93: =IF($P93="","",VLOOKUP($P93,'FO-DRE-01'!$A$7:$U$300,9,FALSE)) ->  | AC93: =IF($P93="","",VLOOKUP($P93,'FO-DRE-01'!$A$7:$U$300,10,FALSE)) ->  | AD93: =IF($P93="","",VLOOKUP($P93,'FO-DRE-01'!$A$7:$U$300,11,FALSE)) ->  | AE93: =IF($P93="","",VLOOKUP($P93,'FO-DRE-01'!$A$7:$U$300,12,FALSE)) ->  | AF93: =IF($P93="","",VLOOKUP($P93,'FO-DRE-01'!$A$7:$U$300,13,FALSE)) ->  | AG93: =IF($P93="","",VLOOKUP($P93,'FO-DRE-01'!$A$7:$U$300,14,FALSE)) ->  | AH93: W | AI93: =IF(Q93="","",VLOOKUP($Q93,'FO-DRE-04'!$A$6:$M$100,3,FALSE)) ->  | AJ93: =IF(Q93="","",VLOOKUP($Q93,'FO-DRE-04'!$A$6:$M$100,4,FALSE)) ->  | AK93: =IF(Q93="","",VLOOKUP($Q93,'FO-DRE-04'!$A$6:$M$100,5,FALSE)) ->  | AL93: =IF(Q93="","",VLOOKUP($Q93,'FO-DRE-04'!$A$6:$M$100,7,FALSE)) ->  | AM93: =IF(Q93="","",VLOOKUP($Q93,'FO-DRE-04'!$A$6:$M$100,11,FALSE)) ->  | AN93: =IF($R93="","",VLOOKUP($R93,'FO-DRE-02'!$A$6:$N$100,2,FALSE)) ->  | AO93: =IF($R93="","",VLOOKUP($R93,'FO-DRE-02'!$A$5:$J$100,3,FALSE)) ->  | AP93: =IF($R93="","",VLOOKUP($R93,'FO-DRE-02'!$A$5:$J$100,6,FALSE)) ->  | AQ93: =IF($R93="","",VLOOKUP($R93,'FO-DRE-02'!$A$5:$J$100,4,FALSE)) ->  | AR93: =IF($R93="","",VLOOKUP($R93,'FO-DRE-02'!$A$5:$J$100,5,FALSE)) ->  | AS93: =IF($R93="","",VLOOKUP($R93,'FO-DRE-02'!$A$5:$J$100,6,FALSE)) ->  | AT93: =IF($R93="","",VLOOKUP($R93,'FO-DRE-02'!$A$5:$J$100,7,FALSE)) ->  | AU93: =IF($R93="","",VLOOKUP($R93,'FO-DRE-02'!$A$5:$J$100,9,FALSE)) ->  | AV93: =IF($R93="","",VLOOKUP($R93,'FO-DRE-02'!$A$5:$M$100,11,FALSE)) ->  | AW93: =IF($R93="","",VLOOKUP($R93,'FO-DRE-02'!$A$5:$M$100,12,FALSE)) ->  | AX93: =IF($R93="","",VLOOKUP($R93,'FO-DRE-02'!$A$5:$M$100,13,FALSE)) ->  | BA93: 5000 | BD93: 84 | BF93: F/D | BG93: F/D
T94: =IF($P94="","",VLOOKUP($P94,'FO-DRE-01'!$A$7:$U$347,18,FALSE)) ->  | U94: =IF($P94="","",VLOOKUP($P94,'FO-DRE-01'!$A$7:$U$300,16,FALSE)) ->  | V94: =IF($P94="","",VLOOKUP($P94,'FO-DRE-01'!$A$7:$U$300,17,FALSE)) ->  | W94: =IF($P94="","",VLOOKUP($P94,'FO-DRE-01'!$A$7:$U$300,3,FALSE)) ->  | X94: =IF($P94="","",VLOOKUP($P94,'FO-DRE-01'!$A$7:$U$300,4,FALSE)) ->  | Y94: =IF($P94="","",VLOOKUP($P94,'FO-DRE-01'!$A$7:$U$300,5,FALSE)) ->  | Z94: =IF($P94="","",VLOOKUP($P94,'FO-DRE-01'!$A$7:$U$300,7,FALSE)) ->  | AA94: =IF($P94="","",VLOOKUP($P94,'FO-DRE-01'!$A$7:$U$300,8,FALSE)) ->  | AB94: =IF($P94="","",VLOOKUP($P94,'FO-DRE-01'!$A$7:$U$300,9,FALSE)) ->  | AC94: =IF($P94="","",VLOOKUP($P94,'FO-DRE-01'!$A$7:$U$300,10,FALSE)) ->  | AD94: =IF($P94="","",VLOOKUP($P94,'FO-DRE-01'!$A$7:$U$300,11,FALSE)) ->  | AE94: =IF($P94="","",VLOOKUP($P94,'FO-DRE-01'!$A$7:$U$300,12,FALSE)) ->  | AF94: =IF($P94="","",VLOOKUP($P94,'FO-DRE-01'!$A$7:$U$300,13,FALSE)) ->  | AG94: =IF($P94="","",VLOOKUP($P94,'FO-DRE-01'!$A$7:$U$300,14,FALSE)) ->  | AH94: W | AI94: =IF(Q94="","",VLOOKUP($Q94,'FO-DRE-04'!$A$6:$M$100,3,FALSE)) ->  | AJ94: =IF(Q94="","",VLOOKUP($Q94,'FO-DRE-04'!$A$6:$M$100,4,FALSE)) ->  | AK94: =IF(Q94="","",VLOOKUP($Q94,'FO-DRE-04'!$A$6:$M$100,5,FALSE)) ->  | AL94: =IF(Q94="","",VLOOKUP($Q94,'FO-DRE-04'!$A$6:$M$100,7,FALSE)) ->  | AM94: =IF(Q94="","",VLOOKUP($Q94,'FO-DRE-04'!$A$6:$M$100,11,FALSE)) ->  | AN94: =IF($R94="","",VLOOKUP($R94,'FO-DRE-02'!$A$6:$N$100,2,FALSE)) ->  | AO94: =IF($R94="","",VLOOKUP($R94,'FO-DRE-02'!$A$5:$J$100,3,FALSE)) ->  | AP94: =IF($R94="","",VLOOKUP($R94,'FO-DRE-02'!$A$5:$J$100,6,FALSE)) ->  | AQ94: =IF($R94="","",VLOOKUP($R94,'FO-DRE-02'!$A$5:$J$100,4,FALSE)) ->  | AR94: =IF($R94="","",VLOOKUP($R94,'FO-DRE-02'!$A$5:$J$100,5,FALSE)) ->  | AS94: =IF($R94="","",VLOOKUP($R94,'FO-DRE-02'!$A$5:$J$100,6,FALSE)) ->  | AT94: =IF($R94="","",VLOOKUP($R94,'FO-DRE-02'!$A$5:$J$100,7,FALSE)) ->  | AU94: =IF($R94="","",VLOOKUP($R94,'FO-DRE-02'!$A$5:$J$100,9,FALSE)) ->  | AV94: =IF($R94="","",VLOOKUP($R94,'FO-DRE-02'!$A$5:$M$100,11,FALSE)) ->  | AW94: =IF($R94="","",VLOOKUP($R94,'FO-DRE-02'!$A$5:$M$100,12,FALSE)) ->  | AX94: =IF($R94="","",VLOOKUP($R94,'FO-DRE-02'!$A$5:$M$100,13,FALSE)) ->  | BA94: 5000 | BD94: 85 | BF94: F/D | BG94: F/D
T95: =IF($P95="","",VLOOKUP($P95,'FO-DRE-01'!$A$7:$U$347,18,FALSE)) ->  | U95: =IF($P95="","",VLOOKUP($P95,'FO-DRE-01'!$A$7:$U$300,16,FALSE)) ->  | V95: =IF($P95="","",VLOOKUP($P95,'FO-DRE-01'!$A$7:$U$300,17,FALSE)) ->  | W95: =IF($P95="","",VLOOKUP($P95,'FO-DRE-01'!$A$7:$U$300,3,FALSE)) ->  | X95: =IF($P95="","",VLOOKUP($P95,'FO-DRE-01'!$A$7:$U$300,4,FALSE)) ->  | Y95: =IF($P95="","",VLOOKUP($P95,'FO-DRE-01'!$A$7:$U$300,5,FALSE)) ->  | Z95: =IF($P95="","",VLOOKUP($P95,'FO-DRE-01'!$A$7:$U$300,7,FALSE)) ->  | AA95: =IF($P95="","",VLOOKUP($P95,'FO-DRE-01'!$A$7:$U$300,8,FALSE)) ->  | AB95: =IF($P95="","",VLOOKUP($P95,'FO-DRE-01'!$A$7:$U$300,9,FALSE)) ->  | AC95: =IF($P95="","",VLOOKUP($P95,'FO-DRE-01'!$A$7:$U$300,10,FALSE)) ->  | AD95: =IF($P95="","",VLOOKUP($P95,'FO-DRE-01'!$A$7:$U$300,11,FALSE)) ->  | AE95: =IF($P95="","",VLOOKUP($P95,'FO-DRE-01'!$A$7:$U$300,12,FALSE)) ->  | AF95: =IF($P95="","",VLOOKUP($P95,'FO-DRE-01'!$A$7:$U$300,13,FALSE)) ->  | AG95: =IF($P95="","",VLOOKUP($P95,'FO-DRE-01'!$A$7:$U$300,14,FALSE)) ->  | AH95: W | AI95: =IF(Q95="","",VLOOKUP($Q95,'FO-DRE-04'!$A$6:$M$100,3,FALSE)) ->  | AJ95: =IF(Q95="","",VLOOKUP($Q95,'FO-DRE-04'!$A$6:$M$100,4,FALSE)) ->  | AK95: =IF(Q95="","",VLOOKUP($Q95,'FO-DRE-04'!$A$6:$M$100,5,FALSE)) ->  | AL95: =IF(Q95="","",VLOOKUP($Q95,'FO-DRE-04'!$A$6:$M$100,7,FALSE)) ->  | AM95: =IF(Q95="","",VLOOKUP($Q95,'FO-DRE-04'!$A$6:$M$100,11,FALSE)) ->  | AN95: =IF($R95="","",VLOOKUP($R95,'FO-DRE-02'!$A$6:$N$100,2,FALSE)) ->  | AO95: =IF($R95="","",VLOOKUP($R95,'FO-DRE-02'!$A$5:$J$100,3,FALSE)) ->  | AP95: =IF($R95="","",VLOOKUP($R95,'FO-DRE-02'!$A$5:$J$100,6,FALSE)) ->  | AQ95: =IF($R95="","",VLOOKUP($R95,'FO-DRE-02'!$A$5:$J$100,4,FALSE)) ->  | AR95: =IF($R95="","",VLOOKUP($R95,'FO-DRE-02'!$A$5:$J$100,5,FALSE)) ->  | AS95: =IF($R95="","",VLOOKUP($R95,'FO-DRE-02'!$A$5:$J$100,6,FALSE)) ->  | AT95: =IF($R95="","",VLOOKUP($R95,'FO-DRE-02'!$A$5:$J$100,7,FALSE)) ->  | AU95: =IF($R95="","",VLOOKUP($R95,'FO-DRE-02'!$A$5:$J$100,9,FALSE)) ->  | AV95: =IF($R95="","",VLOOKUP($R95,'FO-DRE-02'!$A$5:$M$100,11,FALSE)) ->  | AW95: =IF($R95="","",VLOOKUP($R95,'FO-DRE-02'!$A$5:$M$100,12,FALSE)) ->  | AX95: =IF($R95="","",VLOOKUP($R95,'FO-DRE-02'!$A$5:$M$100,13,FALSE)) ->  | BA95: 5000 | BD95: 86 | BF95: F/D | BG95: F/D
T96: =IF($P96="","",VLOOKUP($P96,'FO-DRE-01'!$A$7:$U$347,18,FALSE)) ->  | U96: =IF($P96="","",VLOOKUP($P96,'FO-DRE-01'!$A$7:$U$300,16,FALSE)) ->  | V96: =IF($P96="","",VLOOKUP($P96,'FO-DRE-01'!$A$7:$U$300,17,FALSE)) ->  | W96: =IF($P96="","",VLOOKUP($P96,'FO-DRE-01'!$A$7:$U$300,3,FALSE)) ->  | X96: =IF($P96="","",VLOOKUP($P96,'FO-DRE-01'!$A$7:$U$300,4,FALSE)) ->  | Y96: =IF($P96="","",VLOOKUP($P96,'FO-DRE-01'!$A$7:$U$300,5,FALSE)) ->  | Z96: =IF($P96="","",VLOOKUP($P96,'FO-DRE-01'!$A$7:$U$300,7,FALSE)) ->  | AA96: =IF($P96="","",VLOOKUP($P96,'FO-DRE-01'!$A$7:$U$300,8,FALSE)) ->  | AB96: =IF($P96="","",VLOOKUP($P96,'FO-DRE-01'!$A$7:$U$300,9,FALSE)) ->  | AC96: =IF($P96="","",VLOOKUP($P96,'FO-DRE-01'!$A$7:$U$300,10,FALSE)) ->  | AD96: =IF($P96="","",VLOOKUP($P96,'FO-DRE-01'!$A$7:$U$300,11,FALSE)) ->  | AE96: =IF($P96="","",VLOOKUP($P96,'FO-DRE-01'!$A$7:$U$300,12,FALSE)) ->  | AF96: =IF($P96="","",VLOOKUP($P96,'FO-DRE-01'!$A$7:$U$300,13,FALSE)) ->  | AG96: =IF($P96="","",VLOOKUP($P96,'FO-DRE-01'!$A$7:$U$300,14,FALSE)) ->  | AH96: W | AI96: =IF(Q96="","",VLOOKUP($Q96,'FO-DRE-04'!$A$6:$M$100,3,FALSE)) ->  | AJ96: =IF(Q96="","",VLOOKUP($Q96,'FO-DRE-04'!$A$6:$M$100,4,FALSE)) ->  | AK96: =IF(Q96="","",VLOOKUP($Q96,'FO-DRE-04'!$A$6:$M$100,5,FALSE)) ->  | AL96: =IF(Q96="","",VLOOKUP($Q96,'FO-DRE-04'!$A$6:$M$100,7,FALSE)) ->  | AM96: =IF(Q96="","",VLOOKUP($Q96,'FO-DRE-04'!$A$6:$M$100,11,FALSE)) ->  | AN96: =IF($R96="","",VLOOKUP($R96,'FO-DRE-02'!$A$6:$N$100,2,FALSE)) ->  | AO96: =IF($R96="","",VLOOKUP($R96,'FO-DRE-02'!$A$5:$J$100,3,FALSE)) ->  | AP96: =IF($R96="","",VLOOKUP($R96,'FO-DRE-02'!$A$5:$J$100,6,FALSE)) ->  | AQ96: =IF($R96="","",VLOOKUP($R96,'FO-DRE-02'!$A$5:$J$100,4,FALSE)) ->  | AR96: =IF($R96="","",VLOOKUP($R96,'FO-DRE-02'!$A$5:$J$100,5,FALSE)) ->  | AS96: =IF($R96="","",VLOOKUP($R96,'FO-DRE-02'!$A$5:$J$100,6,FALSE)) ->  | AT96: =IF($R96="","",VLOOKUP($R96,'FO-DRE-02'!$A$5:$J$100,7,FALSE)) ->  | AU96: =IF($R96="","",VLOOKUP($R96,'FO-DRE-02'!$A$5:$J$100,9,FALSE)) ->  | AV96: =IF($R96="","",VLOOKUP($R96,'FO-DRE-02'!$A$5:$M$100,11,FALSE)) ->  | AW96: =IF($R96="","",VLOOKUP($R96,'FO-DRE-02'!$A$5:$M$100,12,FALSE)) ->  | AX96: =IF($R96="","",VLOOKUP($R96,'FO-DRE-02'!$A$5:$M$100,13,FALSE)) ->  | BA96: 5000 | BD96: 87 | BF96: F/D | BG96: F/D
T97: =IF($P97="","",VLOOKUP($P97,'FO-DRE-01'!$A$7:$U$347,18,FALSE)) ->  | U97: =IF($P97="","",VLOOKUP($P97,'FO-DRE-01'!$A$7:$U$300,16,FALSE)) ->  | V97: =IF($P97="","",VLOOKUP($P97,'FO-DRE-01'!$A$7:$U$300,17,FALSE)) ->  | W97: =IF($P97="","",VLOOKUP($P97,'FO-DRE-01'!$A$7:$U$300,3,FALSE)) ->  | X97: =IF($P97="","",VLOOKUP($P97,'FO-DRE-01'!$A$7:$U$300,4,FALSE)) ->  | Y97: =IF($P97="","",VLOOKUP($P97,'FO-DRE-01'!$A$7:$U$300,5,FALSE)) ->  | Z97: =IF($P97="","",VLOOKUP($P97,'FO-DRE-01'!$A$7:$U$300,7,FALSE)) ->  | AA97: =IF($P97="","",VLOOKUP($P97,'FO-DRE-01'!$A$7:$U$300,8,FALSE)) ->  | AB97: =IF($P97="","",VLOOKUP($P97,'FO-DRE-01'!$A$7:$U$300,9,FALSE)) ->  | AC97: =IF($P97="","",VLOOKUP($P97,'FO-DRE-01'!$A$7:$U$300,10,FALSE)) ->  | AD97: =IF($P97="","",VLOOKUP($P97,'FO-DRE-01'!$A$7:$U$300,11,FALSE)) ->  | AE97: =IF($P97="","",VLOOKUP($P97,'FO-DRE-01'!$A$7:$U$300,12,FALSE)) ->  | AF97: =IF($P97="","",VLOOKUP($P97,'FO-DRE-01'!$A$7:$U$300,13,FALSE)) ->  | AG97: =IF($P97="","",VLOOKUP($P97,'FO-DRE-01'!$A$7:$U$300,14,FALSE)) ->  | AH97: W | AI97: =IF(Q97="","",VLOOKUP($Q97,'FO-DRE-04'!$A$6:$M$100,3,FALSE)) ->  | AJ97: =IF(Q97="","",VLOOKUP($Q97,'FO-DRE-04'!$A$6:$M$100,4,FALSE)) ->  | AK97: =IF(Q97="","",VLOOKUP($Q97,'FO-DRE-04'!$A$6:$M$100,5,FALSE)) ->  | AL97: =IF(Q97="","",VLOOKUP($Q97,'FO-DRE-04'!$A$6:$M$100,7,FALSE)) ->  | AM97: =IF(Q97="","",VLOOKUP($Q97,'FO-DRE-04'!$A$6:$M$100,11,FALSE)) ->  | AN97: =IF($R97="","",VLOOKUP($R97,'FO-DRE-02'!$A$6:$N$100,2,FALSE)) ->  | AO97: =IF($R97="","",VLOOKUP($R97,'FO-DRE-02'!$A$5:$J$100,3,FALSE)) ->  | AP97: =IF($R97="","",VLOOKUP($R97,'FO-DRE-02'!$A$5:$J$100,6,FALSE)) ->  | AQ97: =IF($R97="","",VLOOKUP($R97,'FO-DRE-02'!$A$5:$J$100,4,FALSE)) ->  | AR97: =IF($R97="","",VLOOKUP($R97,'FO-DRE-02'!$A$5:$J$100,5,FALSE)) ->  | AS97: =IF($R97="","",VLOOKUP($R97,'FO-DRE-02'!$A$5:$J$100,6,FALSE)) ->  | AT97: =IF($R97="","",VLOOKUP($R97,'FO-DRE-02'!$A$5:$J$100,7,FALSE)) ->  | AU97: =IF($R97="","",VLOOKUP($R97,'FO-DRE-02'!$A$5:$J$100,9,FALSE)) ->  | AV97: =IF($R97="","",VLOOKUP($R97,'FO-DRE-02'!$A$5:$M$100,11,FALSE)) ->  | AW97: =IF($R97="","",VLOOKUP($R97,'FO-DRE-02'!$A$5:$M$100,12,FALSE)) ->  | AX97: =IF($R97="","",VLOOKUP($R97,'FO-DRE-02'!$A$5:$M$100,13,FALSE)) ->  | BA97: 5000 | BD97: 88 | BF97: F/D | BG97: F/D
T98: =IF($P98="","",VLOOKUP($P98,'FO-DRE-01'!$A$7:$U$347,18,FALSE)) ->  | U98: =IF($P98="","",VLOOKUP($P98,'FO-DRE-01'!$A$7:$U$300,16,FALSE)) ->  | V98: =IF($P98="","",VLOOKUP($P98,'FO-DRE-01'!$A$7:$U$300,17,FALSE)) ->  | W98: =IF($P98="","",VLOOKUP($P98,'FO-DRE-01'!$A$7:$U$300,3,FALSE)) ->  | X98: =IF($P98="","",VLOOKUP($P98,'FO-DRE-01'!$A$7:$U$300,4,FALSE)) ->  | Y98: =IF($P98="","",VLOOKUP($P98,'FO-DRE-01'!$A$7:$U$300,5,FALSE)) ->  | Z98: =IF($P98="","",VLOOKUP($P98,'FO-DRE-01'!$A$7:$U$300,7,FALSE)) ->  | AA98: =IF($P98="","",VLOOKUP($P98,'FO-DRE-01'!$A$7:$U$300,8,FALSE)) ->  | AB98: =IF($P98="","",VLOOKUP($P98,'FO-DRE-01'!$A$7:$U$300,9,FALSE)) ->  | AC98: =IF($P98="","",VLOOKUP($P98,'FO-DRE-01'!$A$7:$U$300,10,FALSE)) ->  | AD98: =IF($P98="","",VLOOKUP($P98,'FO-DRE-01'!$A$7:$U$300,11,FALSE)) ->  | AE98: =IF($P98="","",VLOOKUP($P98,'FO-DRE-01'!$A$7:$U$300,12,FALSE)) ->  | AF98: =IF($P98="","",VLOOKUP($P98,'FO-DRE-01'!$A$7:$U$300,13,FALSE)) ->  | AG98: =IF($P98="","",VLOOKUP($P98,'FO-DRE-01'!$A$7:$U$300,14,FALSE)) ->  | AH98: W | AI98: =IF(Q98="","",VLOOKUP($Q98,'FO-DRE-04'!$A$6:$M$100,3,FALSE)) ->  | AJ98: =IF(Q98="","",VLOOKUP($Q98,'FO-DRE-04'!$A$6:$M$100,4,FALSE)) ->  | AK98: =IF(Q98="","",VLOOKUP($Q98,'FO-DRE-04'!$A$6:$M$100,5,FALSE)) ->  | AL98: =IF(Q98="","",VLOOKUP($Q98,'FO-DRE-04'!$A$6:$M$100,7,FALSE)) ->  | AM98: =IF(Q98="","",VLOOKUP($Q98,'FO-DRE-04'!$A$6:$M$100,11,FALSE)) ->  | AN98: =IF($R98="","",VLOOKUP($R98,'FO-DRE-02'!$A$6:$N$100,2,FALSE)) ->  | AO98: =IF($R98="","",VLOOKUP($R98,'FO-DRE-02'!$A$5:$J$100,3,FALSE)) ->  | AP98: =IF($R98="","",VLOOKUP($R98,'FO-DRE-02'!$A$5:$J$100,6,FALSE)) ->  | AQ98: =IF($R98="","",VLOOKUP($R98,'FO-DRE-02'!$A$5:$J$100,4,FALSE)) ->  | AR98: =IF($R98="","",VLOOKUP($R98,'FO-DRE-02'!$A$5:$J$100,5,FALSE)) ->  | AS98: =IF($R98="","",VLOOKUP($R98,'FO-DRE-02'!$A$5:$J$100,6,FALSE)) ->  | AT98: =IF($R98="","",VLOOKUP($R98,'FO-DRE-02'!$A$5:$J$100,7,FALSE)) ->  | AU98: =IF($R98="","",VLOOKUP($R98,'FO-DRE-02'!$A$5:$J$100,9,FALSE)) ->  | AV98: =IF($R98="","",VLOOKUP($R98,'FO-DRE-02'!$A$5:$M$100,11,FALSE)) ->  | AW98: =IF($R98="","",VLOOKUP($R98,'FO-DRE-02'!$A$5:$M$100,12,FALSE)) ->  | AX98: =IF($R98="","",VLOOKUP($R98,'FO-DRE-02'!$A$5:$M$100,13,FALSE)) ->  | BA98: 5000 | BD98: 89 | BF98: F/D | BG98: F/D
T99: =IF($P99="","",VLOOKUP($P99,'FO-DRE-01'!$A$7:$U$347,18,FALSE)) ->  | U99: =IF($P99="","",VLOOKUP($P99,'FO-DRE-01'!$A$7:$U$300,16,FALSE)) ->  | V99: =IF($P99="","",VLOOKUP($P99,'FO-DRE-01'!$A$7:$U$300,17,FALSE)) ->  | W99: =IF($P99="","",VLOOKUP($P99,'FO-DRE-01'!$A$7:$U$300,3,FALSE)) ->  | X99: =IF($P99="","",VLOOKUP($P99,'FO-DRE-01'!$A$7:$U$300,4,FALSE)) ->  | Y99: =IF($P99="","",VLOOKUP($P99,'FO-DRE-01'!$A$7:$U$300,5,FALSE)) ->  | Z99: =IF($P99="","",VLOOKUP($P99,'FO-DRE-01'!$A$7:$U$300,7,FALSE)) ->  | AA99: =IF($P99="","",VLOOKUP($P99,'FO-DRE-01'!$A$7:$U$300,8,FALSE)) ->  | AB99: =IF($P99="","",VLOOKUP($P99,'FO-DRE-01'!$A$7:$U$300,9,FALSE)) ->  | AC99: =IF($P99="","",VLOOKUP($P99,'FO-DRE-01'!$A$7:$U$300,10,FALSE)) ->  | AD99: =IF($P99="","",VLOOKUP($P99,'FO-DRE-01'!$A$7:$U$300,11,FALSE)) ->  | AE99: =IF($P99="","",VLOOKUP($P99,'FO-DRE-01'!$A$7:$U$300,12,FALSE)) ->  | AF99: =IF($P99="","",VLOOKUP($P99,'FO-DRE-01'!$A$7:$U$300,13,FALSE)) ->  | AG99: =IF($P99="","",VLOOKUP($P99,'FO-DRE-01'!$A$7:$U$300,14,FALSE)) ->  | AH99: W | AI99: =IF(Q99="","",VLOOKUP($Q99,'FO-DRE-04'!$A$6:$M$100,3,FALSE)) ->  | AJ99: =IF(Q99="","",VLOOKUP($Q99,'FO-DRE-04'!$A$6:$M$100,4,FALSE)) ->  | AK99: =IF(Q99="","",VLOOKUP($Q99,'FO-DRE-04'!$A$6:$M$100,5,FALSE)) ->  | AL99: =IF(Q99="","",VLOOKUP($Q99,'FO-DRE-04'!$A$6:$M$100,7,FALSE)) ->  | AM99: =IF(Q99="","",VLOOKUP($Q99,'FO-DRE-04'!$A$6:$M$100,11,FALSE)) ->  | AN99: =IF($R99="","",VLOOKUP($R99,'FO-DRE-02'!$A$6:$N$100,2,FALSE)) ->  | AO99: =IF($R99="","",VLOOKUP($R99,'FO-DRE-02'!$A$5:$J$100,3,FALSE)) ->  | AP99: =IF($R99="","",VLOOKUP($R99,'FO-DRE-02'!$A$5:$J$100,6,FALSE)) ->  | AQ99: =IF($R99="","",VLOOKUP($R99,'FO-DRE-02'!$A$5:$J$100,4,FALSE)) ->  | AR99: =IF($R99="","",VLOOKUP($R99,'FO-DRE-02'!$A$5:$J$100,5,FALSE)) ->  | AS99: =IF($R99="","",VLOOKUP($R99,'FO-DRE-02'!$A$5:$J$100,6,FALSE)) ->  | AT99: =IF($R99="","",VLOOKUP($R99,'FO-DRE-02'!$A$5:$J$100,7,FALSE)) ->  | AU99: =IF($R99="","",VLOOKUP($R99,'FO-DRE-02'!$A$5:$J$100,9,FALSE)) ->  | AV99: =IF($R99="","",VLOOKUP($R99,'FO-DRE-02'!$A$5:$M$100,11,FALSE)) ->  | AW99: =IF($R99="","",VLOOKUP($R99,'FO-DRE-02'!$A$5:$M$100,12,FALSE)) ->  | AX99: =IF($R99="","",VLOOKUP($R99,'FO-DRE-02'!$A$5:$M$100,13,FALSE)) ->  | BA99: 5000 | BD99: 90 | BF99: F/D | BG99: F/D
T100: =IF($P100="","",VLOOKUP($P100,'FO-DRE-01'!$A$7:$U$347,18,FALSE)) ->  | U100: =IF($P100="","",VLOOKUP($P100,'FO-DRE-01'!$A$7:$U$300,16,FALSE)) ->  | V100: =IF($P100="","",VLOOKUP($P100,'FO-DRE-01'!$A$7:$U$300,17,FALSE)) ->  | W100: =IF($P100="","",VLOOKUP($P100,'FO-DRE-01'!$A$7:$U$300,3,FALSE)) ->  | X100: =IF($P100="","",VLOOKUP($P100,'FO-DRE-01'!$A$7:$U$300,4,FALSE)) ->  | Y100: =IF($P100="","",VLOOKUP($P100,'FO-DRE-01'!$A$7:$U$300,5,FALSE)) ->  | Z100: =IF($P100="","",VLOOKUP($P100,'FO-DRE-01'!$A$7:$U$300,7,FALSE)) ->  | AA100: =IF($P100="","",VLOOKUP($P100,'FO-DRE-01'!$A$7:$U$300,8,FALSE)) ->  | AB100: =IF($P100="","",VLOOKUP($P100,'FO-DRE-01'!$A$7:$U$300,9,FALSE)) ->  | AC100: =IF($P100="","",VLOOKUP($P100,'FO-DRE-01'!$A$7:$U$300,10,FALSE)) ->  | AD100: =IF($P100="","",VLOOKUP($P100,'FO-DRE-01'!$A$7:$U$300,11,FALSE)) ->  | AE100: =IF($P100="","",VLOOKUP($P100,'FO-DRE-01'!$A$7:$U$300,12,FALSE)) ->  | AF100: =IF($P100="","",VLOOKUP($P100,'FO-DRE-01'!$A$7:$U$300,13,FALSE)) ->  | AG100: =IF($P100="","",VLOOKUP($P100,'FO-DRE-01'!$A$7:$U$300,14,FALSE)) ->  | AH100: W | AI100: =IF(Q100="","",VLOOKUP($Q100,'FO-DRE-04'!$A$6:$M$100,3,FALSE)) ->  | AJ100: =IF(Q100="","",VLOOKUP($Q100,'FO-DRE-04'!$A$6:$M$100,4,FALSE)) ->  | AK100: =IF(Q100="","",VLOOKUP($Q100,'FO-DRE-04'!$A$6:$M$100,5,FALSE)) ->  | AL100: =IF(Q100="","",VLOOKUP($Q100,'FO-DRE-04'!$A$6:$M$100,7,FALSE)) ->  | AM100: =IF(Q100="","",VLOOKUP($Q100,'FO-DRE-04'!$A$6:$M$100,11,FALSE)) ->  | AN100: =IF($R100="","",VLOOKUP($R100,'FO-DRE-02'!$A$6:$N$100,2,FALSE)) ->  | AO100: =IF($R100="","",VLOOKUP($R100,'FO-DRE-02'!$A$5:$J$100,3,FALSE)) ->  | AP100: =IF($R100="","",VLOOKUP($R100,'FO-DRE-02'!$A$5:$J$100,6,FALSE)) ->  | AQ100: =IF($R100="","",VLOOKUP($R100,'FO-DRE-02'!$A$5:$J$100,4,FALSE)) ->  | AR100: =IF($R100="","",VLOOKUP($R100,'FO-DRE-02'!$A$5:$J$100,5,FALSE)) ->  | AS100: =IF($R100="","",VLOOKUP($R100,'FO-DRE-02'!$A$5:$J$100,6,FALSE)) ->  | AT100: =IF($R100="","",VLOOKUP($R100,'FO-DRE-02'!$A$5:$J$100,7,FALSE)) ->  | AU100: =IF($R100="","",VLOOKUP($R100,'FO-DRE-02'!$A$5:$J$100,9,FALSE)) ->  | AV100: =IF($R100="","",VLOOKUP($R100,'FO-DRE-02'!$A$5:$M$100,11,FALSE)) ->  | AW100: =IF($R100="","",VLOOKUP($R100,'FO-DRE-02'!$A$5:$M$100,12,FALSE)) ->  | AX100: =IF($R100="","",VLOOKUP($R100,'FO-DRE-02'!$A$5:$M$100,13,FALSE)) ->  | BA100: 5000 | BD100: 91 | BF100: F/D | BG100: F/D
T101: =IF($P101="","",VLOOKUP($P101,'FO-DRE-01'!$A$7:$U$347,18,FALSE)) ->  | U101: =IF($P101="","",VLOOKUP($P101,'FO-DRE-01'!$A$7:$U$300,16,FALSE)) ->  | V101: =IF($P101="","",VLOOKUP($P101,'FO-DRE-01'!$A$7:$U$300,17,FALSE)) ->  | W101: =IF($P101="","",VLOOKUP($P101,'FO-DRE-01'!$A$7:$U$300,3,FALSE)) ->  | X101: =IF($P101="","",VLOOKUP($P101,'FO-DRE-01'!$A$7:$U$300,4,FALSE)) ->  | Y101: =IF($P101="","",VLOOKUP($P101,'FO-DRE-01'!$A$7:$U$300,5,FALSE)) ->  | Z101: =IF($P101="","",VLOOKUP($P101,'FO-DRE-01'!$A$7:$U$300,7,FALSE)) ->  | AA101: =IF($P101="","",VLOOKUP($P101,'FO-DRE-01'!$A$7:$U$300,8,FALSE)) ->  | AB101: =IF($P101="","",VLOOKUP($P101,'FO-DRE-01'!$A$7:$U$300,9,FALSE)) ->  | AC101: =IF($P101="","",VLOOKUP($P101,'FO-DRE-01'!$A$7:$U$300,10,FALSE)) ->  | AD101: =IF($P101="","",VLOOKUP($P101,'FO-DRE-01'!$A$7:$U$300,11,FALSE)) ->  | AE101: =IF($P101="","",VLOOKUP($P101,'FO-DRE-01'!$A$7:$U$300,12,FALSE)) ->  | AF101: =IF($P101="","",VLOOKUP($P101,'FO-DRE-01'!$A$7:$U$300,13,FALSE)) ->  | AG101: =IF($P101="","",VLOOKUP($P101,'FO-DRE-01'!$A$7:$U$300,14,FALSE)) ->  | AH101: W | AI101: =IF(Q101="","",VLOOKUP($Q101,'FO-DRE-04'!$A$6:$M$100,3,FALSE)) ->  | AJ101: =IF(Q101="","",VLOOKUP($Q101,'FO-DRE-04'!$A$6:$M$100,4,FALSE)) ->  | AK101: =IF(Q101="","",VLOOKUP($Q101,'FO-DRE-04'!$A$6:$M$100,5,FALSE)) ->  | AL101: =IF(Q101="","",VLOOKUP($Q101,'FO-DRE-04'!$A$6:$M$100,7,FALSE)) ->  | AM101: =IF(Q101="","",VLOOKUP($Q101,'FO-DRE-04'!$A$6:$M$100,11,FALSE)) ->  | AN101: =IF($R101="","",VLOOKUP($R101,'FO-DRE-02'!$A$6:$N$100,2,FALSE)) ->  | AO101: =IF($R101="","",VLOOKUP($R101,'FO-DRE-02'!$A$5:$J$100,3,FALSE)) ->  | AP101: =IF($R101="","",VLOOKUP($R101,'FO-DRE-02'!$A$5:$J$100,6,FALSE)) ->  | AQ101: =IF($R101="","",VLOOKUP($R101,'FO-DRE-02'!$A$5:$J$100,4,FALSE)) ->  | AR101: =IF($R101="","",VLOOKUP($R101,'FO-DRE-02'!$A$5:$J$100,5,FALSE)) ->  | AS101: =IF($R101="","",VLOOKUP($R101,'FO-DRE-02'!$A$5:$J$100,6,FALSE)) ->  | AT101: =IF($R101="","",VLOOKUP($R101,'FO-DRE-02'!$A$5:$J$100,7,FALSE)) ->  | AU101: =IF($R101="","",VLOOKUP($R101,'FO-DRE-02'!$A$5:$J$100,9,FALSE)) ->  | AV101: =IF($R101="","",VLOOKUP($R101,'FO-DRE-02'!$A$5:$M$100,11,FALSE)) ->  | AW101: =IF($R101="","",VLOOKUP($R101,'FO-DRE-02'!$A$5:$M$100,12,FALSE)) ->  | AX101: =IF($R101="","",VLOOKUP($R101,'FO-DRE-02'!$A$5:$M$100,13,FALSE)) ->  | BA101: 5000 | BD101: 92 | BF101: F/D | BG101: F/D
T102: =IF($P102="","",VLOOKUP($P102,'FO-DRE-01'!$A$7:$U$347,18,FALSE)) ->  | U102: =IF($P102="","",VLOOKUP($P102,'FO-DRE-01'!$A$7:$U$300,16,FALSE)) ->  | V102: =IF($P102="","",VLOOKUP($P102,'FO-DRE-01'!$A$7:$U$300,17,FALSE)) ->  | W102: =IF($P102="","",VLOOKUP($P102,'FO-DRE-01'!$A$7:$U$300,3,FALSE)) ->  | X102: =IF($P102="","",VLOOKUP($P102,'FO-DRE-01'!$A$7:$U$300,4,FALSE)) ->  | Y102: =IF($P102="","",VLOOKUP($P102,'FO-DRE-01'!$A$7:$U$300,5,FALSE)) ->  | Z102: =IF($P102="","",VLOOKUP($P102,'FO-DRE-01'!$A$7:$U$300,7,FALSE)) ->  | AA102: =IF($P102="","",VLOOKUP($P102,'FO-DRE-01'!$A$7:$U$300,8,FALSE)) ->  | AB102: =IF($P102="","",VLOOKUP($P102,'FO-DRE-01'!$A$7:$U$300,9,FALSE)) ->  | AC102: =IF($P102="","",VLOOKUP($P102,'FO-DRE-01'!$A$7:$U$300,10,FALSE)) ->  | AD102: =IF($P102="","",VLOOKUP($P102,'FO-DRE-01'!$A$7:$U$300,11,FALSE)) ->  | AE102: =IF($P102="","",VLOOKUP($P102,'FO-DRE-01'!$A$7:$U$300,12,FALSE)) ->  | AF102: =IF($P102="","",VLOOKUP($P102,'FO-DRE-01'!$A$7:$U$300,13,FALSE)) ->  | AG102: =IF($P102="","",VLOOKUP($P102,'FO-DRE-01'!$A$7:$U$300,14,FALSE)) ->  | AH102: W | AI102: =IF(Q102="","",VLOOKUP($Q102,'FO-DRE-04'!$A$6:$M$100,3,FALSE)) ->  | AJ102: =IF(Q102="","",VLOOKUP($Q102,'FO-DRE-04'!$A$6:$M$100,4,FALSE)) ->  | AK102: =IF(Q102="","",VLOOKUP($Q102,'FO-DRE-04'!$A$6:$M$100,5,FALSE)) ->  | AL102: =IF(Q102="","",VLOOKUP($Q102,'FO-DRE-04'!$A$6:$M$100,7,FALSE)) ->  | AM102: =IF(Q102="","",VLOOKUP($Q102,'FO-DRE-04'!$A$6:$M$100,11,FALSE)) ->  | AN102: =IF($R102="","",VLOOKUP($R102,'FO-DRE-02'!$A$6:$N$100,2,FALSE)) ->  | AO102: =IF($R102="","",VLOOKUP($R102,'FO-DRE-02'!$A$5:$J$100,3,FALSE)) ->  | AP102: =IF($R102="","",VLOOKUP($R102,'FO-DRE-02'!$A$5:$J$100,6,FALSE)) ->  | AQ102: =IF($R102="","",VLOOKUP($R102,'FO-DRE-02'!$A$5:$J$100,4,FALSE)) ->  | AR102: =IF($R102="","",VLOOKUP($R102,'FO-DRE-02'!$A$5:$J$100,5,FALSE)) ->  | AS102: =IF($R102="","",VLOOKUP($R102,'FO-DRE-02'!$A$5:$J$100,6,FALSE)) ->  | AT102: =IF($R102="","",VLOOKUP($R102,'FO-DRE-02'!$A$5:$J$100,7,FALSE)) ->  | AU102: =IF($R102="","",VLOOKUP($R102,'FO-DRE-02'!$A$5:$J$100,9,FALSE)) ->  | AV102: =IF($R102="","",VLOOKUP($R102,'FO-DRE-02'!$A$5:$M$100,11,FALSE)) ->  | AW102: =IF($R102="","",VLOOKUP($R102,'FO-DRE-02'!$A$5:$M$100,12,FALSE)) ->  | AX102: =IF($R102="","",VLOOKUP($R102,'FO-DRE-02'!$A$5:$M$100,13,FALSE)) ->  | BA102: 5000 | BD102: 93 | BF102: F/D | BG102: F/D
T103: =IF($P103="","",VLOOKUP($P103,'FO-DRE-01'!$A$7:$U$347,18,FALSE)) ->  | U103: =IF($P103="","",VLOOKUP($P103,'FO-DRE-01'!$A$7:$U$300,16,FALSE)) ->  | V103: =IF($P103="","",VLOOKUP($P103,'FO-DRE-01'!$A$7:$U$300,17,FALSE)) ->  | W103: =IF($P103="","",VLOOKUP($P103,'FO-DRE-01'!$A$7:$U$300,3,FALSE)) ->  | X103: =IF($P103="","",VLOOKUP($P103,'FO-DRE-01'!$A$7:$U$300,4,FALSE)) ->  | Y103: =IF($P103="","",VLOOKUP($P103,'FO-DRE-01'!$A$7:$U$300,5,FALSE)) ->  | Z103: =IF($P103="","",VLOOKUP($P103,'FO-DRE-01'!$A$7:$U$300,7,FALSE)) ->  | AA103: =IF($P103="","",VLOOKUP($P103,'FO-DRE-01'!$A$7:$U$300,8,FALSE)) ->  | AB103: =IF($P103="","",VLOOKUP($P103,'FO-DRE-01'!$A$7:$U$300,9,FALSE)) ->  | AC103: =IF($P103="","",VLOOKUP($P103,'FO-DRE-01'!$A$7:$U$300,10,FALSE)) ->  | AD103: =IF($P103="","",VLOOKUP($P103,'FO-DRE-01'!$A$7:$U$300,11,FALSE)) ->  | AE103: =IF($P103="","",VLOOKUP($P103,'FO-DRE-01'!$A$7:$U$300,12,FALSE)) ->  | AF103: =IF($P103="","",VLOOKUP($P103,'FO-DRE-01'!$A$7:$U$300,13,FALSE)) ->  | AG103: =IF($P103="","",VLOOKUP($P103,'FO-DRE-01'!$A$7:$U$300,14,FALSE)) ->  | AH103: W | AI103: =IF(Q103="","",VLOOKUP($Q103,'FO-DRE-04'!$A$6:$M$100,3,FALSE)) ->  | AJ103: =IF(Q103="","",VLOOKUP($Q103,'FO-DRE-04'!$A$6:$M$100,4,FALSE)) ->  | AK103: =IF(Q103="","",VLOOKUP($Q103,'FO-DRE-04'!$A$6:$M$100,5,FALSE)) ->  | AL103: =IF(Q103="","",VLOOKUP($Q103,'FO-DRE-04'!$A$6:$M$100,7,FALSE)) ->  | AM103: =IF(Q103="","",VLOOKUP($Q103,'FO-DRE-04'!$A$6:$M$100,11,FALSE)) ->  | AN103: =IF($R103="","",VLOOKUP($R103,'FO-DRE-02'!$A$6:$N$100,2,FALSE)) ->  | AO103: =IF($R103="","",VLOOKUP($R103,'FO-DRE-02'!$A$5:$J$100,3,FALSE)) ->  | AP103: =IF($R103="","",VLOOKUP($R103,'FO-DRE-02'!$A$5:$J$100,6,FALSE)) ->  | AQ103: =IF($R103="","",VLOOKUP($R103,'FO-DRE-02'!$A$5:$J$100,4,FALSE)) ->  | AR103: =IF($R103="","",VLOOKUP($R103,'FO-DRE-02'!$A$5:$J$100,5,FALSE)) ->  | AS103: =IF($R103="","",VLOOKUP($R103,'FO-DRE-02'!$A$5:$J$100,6,FALSE)) ->  | AT103: =IF($R103="","",VLOOKUP($R103,'FO-DRE-02'!$A$5:$J$100,7,FALSE)) ->  | AU103: =IF($R103="","",VLOOKUP($R103,'FO-DRE-02'!$A$5:$J$100,9,FALSE)) ->  | AV103: =IF($R103="","",VLOOKUP($R103,'FO-DRE-02'!$A$5:$M$100,11,FALSE)) ->  | AW103: =IF($R103="","",VLOOKUP($R103,'FO-DRE-02'!$A$5:$M$100,12,FALSE)) ->  | AX103: =IF($R103="","",VLOOKUP($R103,'FO-DRE-02'!$A$5:$M$100,13,FALSE)) ->  | BA103: 5000 | BD103: 94 | BF103: F/D | BG103: F/D
T104: =IF(P104="","",VLOOKUP($P104,#REF!,2,FALSE)) ->  | U104: =IF(P104="","",VLOOKUP($P104,#REF!,3,FALSE)) ->  | V104: =IF(P104="","",VLOOKUP($P104,#REF!,4,FALSE)) ->  | W104: =IF(P104="","",VLOOKUP($P104,#REF!,6,FALSE)) ->  | X104: =IF(P104="","",VLOOKUP($P104,#REF!,7,FALSE)) ->  | Y104: =IF(P104="","",VLOOKUP($P104,#REF!,8,FALSE)) ->  | Z104: =IF(P104="","",VLOOKUP($P104,#REF!,9,FALSE)) ->  | AA104: =IF(P104="","",VLOOKUP($P104,#REF!,11,FALSE)) ->  | AB104: =IF(P104="","",VLOOKUP($P104,#REF!,12,FALSE)) ->  | AC104: =IF(P104="","",VLOOKUP($P104,#REF!,13,FALSE)) ->  | AD104: =IF(P104="","",VLOOKUP($P104,#REF!,14,FALSE)) ->  | AE104: =IF(P104="","",VLOOKUP($P104,#REF!,15,FALSE)) ->  | AF104: =IF(P104="","",VLOOKUP($P104,#REF!,16,FALSE)) ->  | AG104: =IF(P104="","",VLOOKUP($P104,#REF!,17,FALSE)) ->  | AH104: W | AI104: =IF(Q104="","",VLOOKUP($Q104,'FO-DRE-04'!$A$6:$M$100,3,FALSE)) ->  | AJ104: =IF(Q104="","",VLOOKUP($Q104,'FO-DRE-04'!$A$6:$M$100,4,FALSE)) ->  | AK104: =IF(Q104="","",VLOOKUP($Q104,'FO-DRE-04'!$A$6:$M$100,5,FALSE)) ->  | AL104: =IF(Q104="","",VLOOKUP($Q104,'FO-DRE-04'!$A$6:$M$100,7,FALSE)) ->  | AM104: =IF(Q104="","",VLOOKUP($Q104,'FO-DRE-04'!$A$6:$M$100,11,FALSE)) ->  | AN104: =IF($R104="","",VLOOKUP($R104,'FO-DRE-02'!$A$6:$N$100,2,FALSE)) ->  | AO104: =IF($R104="","",VLOOKUP($R104,'FO-DRE-02'!$A$5:$J$100,3,FALSE)) ->  | AP104: =IF($R104="","",VLOOKUP($R104,'FO-DRE-02'!$A$5:$J$100,6,FALSE)) ->  | AQ104: =IF($R104="","",VLOOKUP($R104,'FO-DRE-02'!$A$5:$J$100,4,FALSE)) ->  | AR104: =IF($R104="","",VLOOKUP($R104,'FO-DRE-02'!$A$5:$J$100,5,FALSE)) ->  | AS104: =IF($R104="","",VLOOKUP($R104,'FO-DRE-02'!$A$5:$J$100,6,FALSE)) ->  | AT104: =IF($R104="","",VLOOKUP($R104,'FO-DRE-02'!$A$5:$J$100,7,FALSE)) ->  | AU104: =IF($R104="","",VLOOKUP($R104,'FO-DRE-02'!$A$5:$J$100,9,FALSE)) ->  | AV104: =IF($R104="","",VLOOKUP($R104,'FO-DRE-02'!$A$5:$M$100,11,FALSE)) ->  | AW104: =IF($R104="","",VLOOKUP($R104,'FO-DRE-02'!$A$5:$M$100,12,FALSE)) ->  | AX104: =IF($R104="","",VLOOKUP($R104,'FO-DRE-02'!$A$5:$M$100,13,FALSE)) ->  | BA104: 5000 | BD104: 95 | BF104: F/D | BG104: F/D
T105: =IF(P105="","",VLOOKUP($P105,#REF!,2,FALSE)) ->  | U105: =IF(P105="","",VLOOKUP($P105,#REF!,3,FALSE)) ->  | V105: =IF(P105="","",VLOOKUP($P105,#REF!,4,FALSE)) ->  | W105: =IF(P105="","",VLOOKUP($P105,#REF!,6,FALSE)) ->  | X105: =IF(P105="","",VLOOKUP($P105,#REF!,7,FALSE)) ->  | Y105: =IF(P105="","",VLOOKUP($P105,#REF!,8,FALSE)) ->  | Z105: =IF(P105="","",VLOOKUP($P105,#REF!,9,FALSE)) ->  | AA105: =IF(P105="","",VLOOKUP($P105,#REF!,11,FALSE)) ->  | AB105: =IF(P105="","",VLOOKUP($P105,#REF!,12,FALSE)) ->  | AC105: =IF(P105="","",VLOOKUP($P105,#REF!,13,FALSE)) ->  | AD105: =IF(P105="","",VLOOKUP($P105,#REF!,14,FALSE)) ->  | AE105: =IF(P105="","",VLOOKUP($P105,#REF!,15,FALSE)) ->  | AF105: =IF(P105="","",VLOOKUP($P105,#REF!,16,FALSE)) ->  | AG105: =IF(P105="","",VLOOKUP($P105,#REF!,17,FALSE)) ->  | AH105: W | AI105: =IF(Q105="","",VLOOKUP($Q105,'FO-DRE-04'!$A$6:$M$100,3,FALSE)) ->  | AJ105: =IF(Q105="","",VLOOKUP($Q105,'FO-DRE-04'!$A$6:$M$100,4,FALSE)) ->  | AK105: =IF(Q105="","",VLOOKUP($Q105,'FO-DRE-04'!$A$6:$M$100,5,FALSE)) ->  | AL105: =IF(Q105="","",VLOOKUP($Q105,'FO-DRE-04'!$A$6:$M$100,7,FALSE)) ->  | AM105: =IF(Q105="","",VLOOKUP($Q105,'FO-DRE-04'!$A$6:$M$100,11,FALSE)) ->  | AN105: =IF($R105="","",VLOOKUP($R105,'FO-DRE-02'!$A$6:$N$100,2,FALSE)) ->  | AO105: =IF($R105="","",VLOOKUP($R105,'FO-DRE-02'!$A$5:$J$100,3,FALSE)) ->  | AP105: =IF($R105="","",VLOOKUP($R105,'FO-DRE-02'!$A$5:$J$100,6,FALSE)) ->  | AQ105: =IF($R105="","",VLOOKUP($R105,'FO-DRE-02'!$A$5:$J$100,4,FALSE)) ->  | AR105: =IF($R105="","",VLOOKUP($R105,'FO-DRE-02'!$A$5:$J$100,5,FALSE)) ->  | AS105: =IF($R105="","",VLOOKUP($R105,'FO-DRE-02'!$A$5:$J$100,6,FALSE)) ->  | AT105: =IF($R105="","",VLOOKUP($R105,'FO-DRE-02'!$A$5:$J$100,7,FALSE)) ->  | AU105: =IF($R105="","",VLOOKUP($R105,'FO-DRE-02'!$A$5:$J$100,9,FALSE)) ->  | AV105: =IF($R105="","",VLOOKUP($R105,'FO-DRE-02'!$A$5:$M$100,11,FALSE)) ->  | AW105: =IF($R105="","",VLOOKUP($R105,'FO-DRE-02'!$A$5:$M$100,12,FALSE)) ->  | AX105: =IF($R105="","",VLOOKUP($R105,'FO-DRE-02'!$A$5:$M$100,13,FALSE)) ->  | BA105: 5000 | BD105: 96 | BF105: F/D | BG105: F/D
T106: =IF(P106="","",VLOOKUP($P106,#REF!,2,FALSE)) ->  | U106: =IF(P106="","",VLOOKUP($P106,#REF!,3,FALSE)) ->  | V106: =IF(P106="","",VLOOKUP($P106,#REF!,4,FALSE)) ->  | W106: =IF(P106="","",VLOOKUP($P106,#REF!,6,FALSE)) ->  | X106: =IF(P106="","",VLOOKUP($P106,#REF!,7,FALSE)) ->  | Y106: =IF(P106="","",VLOOKUP($P106,#REF!,8,FALSE)) ->  | Z106: =IF(P106="","",VLOOKUP($P106,#REF!,9,FALSE)) ->  | AA106: =IF(P106="","",VLOOKUP($P106,#REF!,11,FALSE)) ->  | AB106: =IF(P106="","",VLOOKUP($P106,#REF!,12,FALSE)) ->  | AC106: =IF(P106="","",VLOOKUP($P106,#REF!,13,FALSE)) ->  | AD106: =IF(P106="","",VLOOKUP($P106,#REF!,14,FALSE)) ->  | AE106: =IF(P106="","",VLOOKUP($P106,#REF!,15,FALSE)) ->  | AF106: =IF(P106="","",VLOOKUP($P106,#REF!,16,FALSE)) ->  | AG106: =IF(P106="","",VLOOKUP($P106,#REF!,17,FALSE)) ->  | AH106: W | AI106: =IF(Q106="","",VLOOKUP($Q106,'FO-DRE-04'!$A$6:$M$100,3,FALSE)) ->  | AJ106: =IF(Q106="","",VLOOKUP($Q106,'FO-DRE-04'!$A$6:$M$100,4,FALSE)) ->  | AK106: =IF(Q106="","",VLOOKUP($Q106,'FO-DRE-04'!$A$6:$M$100,5,FALSE)) ->  | AL106: =IF(Q106="","",VLOOKUP($Q106,'FO-DRE-04'!$A$6:$M$100,7,FALSE)) ->  | AM106: =IF(Q106="","",VLOOKUP($Q106,'FO-DRE-04'!$A$6:$M$100,11,FALSE)) ->  | AN106: =IF($R106="","",VLOOKUP($R106,'FO-DRE-02'!$A$6:$N$100,2,FALSE)) ->  | AO106: =IF($R106="","",VLOOKUP($R106,'FO-DRE-02'!$A$5:$J$100,3,FALSE)) ->  | AP106: =IF($R106="","",VLOOKUP($R106,'FO-DRE-02'!$A$5:$J$100,6,FALSE)) ->  | AQ106: =IF($R106="","",VLOOKUP($R106,'FO-DRE-02'!$A$5:$J$100,4,FALSE)) ->  | AR106: =IF($R106="","",VLOOKUP($R106,'FO-DRE-02'!$A$5:$J$100,5,FALSE)) ->  | AS106: =IF($R106="","",VLOOKUP($R106,'FO-DRE-02'!$A$5:$J$100,6,FALSE)) ->  | AT106: =IF($R106="","",VLOOKUP($R106,'FO-DRE-02'!$A$5:$J$100,7,FALSE)) ->  | AU106: =IF($R106="","",VLOOKUP($R106,'FO-DRE-02'!$A$5:$J$100,9,FALSE)) ->  | AV106: =IF($R106="","",VLOOKUP($R106,'FO-DRE-02'!$A$5:$M$100,11,FALSE)) ->  | AW106: =IF($R106="","",VLOOKUP($R106,'FO-DRE-02'!$A$5:$M$100,12,FALSE)) ->  | AX106: =IF($R106="","",VLOOKUP($R106,'FO-DRE-02'!$A$5:$M$100,13,FALSE)) ->  | AY106: =CONCATENATE("0",AA106,"°",IF(AB106<10,CONCATENATE("0",AB106),AB106),"'",IF(ROUND(AC106,0)=AC106,IF(AC106<10,CONCATENATE("0",AC106,".00"),CONCATENATE(AC106,".00")),IF(ROUND(AC106*10,0)=AC106*10,IF(AC106<10,CONCATENATE("0",AC106,"0"),CONCATENATE(AC106,"0")),IF(AC106<10,CONCATENATE("0",AC106),AC106))),"''",AD106) ->  | AZ106: =CONCATENATE(AE106,"°",IF(AF106<10,CONCATENATE("0",AF106),AF106),"'",IF(ROUND(AG106,0)=AG106,IF(AG106<10,CONCATENATE("0",AG106,".00"),CONCATENATE(AG106,".00")),IF(ROUND(AG106*10,0)=AG106*10,IF(AG106<10,CONCATENATE("0",AG106,"0"),CONCATENATE(AG106,"0")),IF(AG106<10,CONCATENATE("0",AG106),AG106))),"''",AH106) ->  | BA106: =IF(J106="902 - 928",900,IF(J106="2400 - 2483.5",2400,5000)) -> 5000 | BD106: 97 | BF106: F/D | BG106: F/D
T107: =IF(P107="","",VLOOKUP($P107,#REF!,2,FALSE)) ->  | U107: =IF(P107="","",VLOOKUP($P107,#REF!,3,FALSE)) ->  | V107: =IF(P107="","",VLOOKUP($P107,#REF!,4,FALSE)) ->  | W107: =IF(P107="","",VLOOKUP($P107,#REF!,6,FALSE)) ->  | X107: =IF(P107="","",VLOOKUP($P107,#REF!,7,FALSE)) ->  | Y107: =IF(P107="","",VLOOKUP($P107,#REF!,8,FALSE)) ->  | Z107: =IF(P107="","",VLOOKUP($P107,#REF!,9,FALSE)) ->  | AA107: =IF(P107="","",VLOOKUP($P107,#REF!,11,FALSE)) ->  | AB107: =IF(P107="","",VLOOKUP($P107,#REF!,12,FALSE)) ->  | AC107: =IF(P107="","",VLOOKUP($P107,#REF!,13,FALSE)) ->  | AD107: =IF(P107="","",VLOOKUP($P107,#REF!,14,FALSE)) ->  | AE107: =IF(P107="","",VLOOKUP($P107,#REF!,15,FALSE)) ->  | AF107: =IF(P107="","",VLOOKUP($P107,#REF!,16,FALSE)) ->  | AG107: =IF(P107="","",VLOOKUP($P107,#REF!,17,FALSE)) ->  | AH107: W | AI107: =IF(Q107="","",VLOOKUP($Q107,'FO-DRE-04'!$A$6:$M$100,3,FALSE)) ->  | AJ107: =IF(Q107="","",VLOOKUP($Q107,'FO-DRE-04'!$A$6:$M$100,4,FALSE)) ->  | AK107: =IF(Q107="","",VLOOKUP($Q107,'FO-DRE-04'!$A$6:$M$100,5,FALSE)) ->  | AL107: =IF(Q107="","",VLOOKUP($Q107,'FO-DRE-04'!$A$6:$M$100,7,FALSE)) ->  | AM107: =IF(Q107="","",VLOOKUP($Q107,'FO-DRE-04'!$A$6:$M$100,11,FALSE)) ->  | AN107: =IF($R107="","",VLOOKUP($R107,'FO-DRE-02'!$A$6:$N$100,2,FALSE)) ->  | AO107: =IF($R107="","",VLOOKUP($R107,'FO-DRE-02'!$A$5:$J$100,3,FALSE)) ->  | AP107: =IF($R107="","",VLOOKUP($R107,'FO-DRE-02'!$A$5:$J$100,6,FALSE)) ->  | AQ107: =IF($R107="","",VLOOKUP($R107,'FO-DRE-02'!$A$5:$J$100,4,FALSE)) ->  | AR107: =IF($R107="","",VLOOKUP($R107,'FO-DRE-02'!$A$5:$J$100,5,FALSE)) ->  | AS107: =IF($R107="","",VLOOKUP($R107,'FO-DRE-02'!$A$5:$J$100,6,FALSE)) ->  | AT107: =IF($R107="","",VLOOKUP($R107,'FO-DRE-02'!$A$5:$J$100,7,FALSE)) ->  | AU107: =IF($R107="","",VLOOKUP($R107,'FO-DRE-02'!$A$5:$J$100,9,FALSE)) ->  | AV107: =IF($R107="","",VLOOKUP($R107,'FO-DRE-02'!$A$5:$M$100,11,FALSE)) ->  | AW107: =IF($R107="","",VLOOKUP($R107,'FO-DRE-02'!$A$5:$M$100,12,FALSE)) ->  | AX107: =IF($R107="","",VLOOKUP($R107,'FO-DRE-02'!$A$5:$M$100,13,FALSE)) ->  | BA107: 5000 | BD107: 98 | BF107: F/D | BG107: F/D
T108: =IF(P108="","",VLOOKUP($P108,#REF!,2,FALSE)) ->  | U108: =IF(P108="","",VLOOKUP($P108,#REF!,3,FALSE)) ->  | V108: =IF(P108="","",VLOOKUP($P108,#REF!,4,FALSE)) ->  | W108: =IF(P108="","",VLOOKUP($P108,#REF!,6,FALSE)) ->  | X108: =IF(P108="","",VLOOKUP($P108,#REF!,7,FALSE)) ->  | Y108: =IF(P108="","",VLOOKUP($P108,#REF!,8,FALSE)) ->  | Z108: =IF(P108="","",VLOOKUP($P108,#REF!,9,FALSE)) ->  | AA108: =IF(P108="","",VLOOKUP($P108,#REF!,11,FALSE)) ->  | AB108: =IF(P108="","",VLOOKUP($P108,#REF!,12,FALSE)) ->  | AC108: =IF(P108="","",VLOOKUP($P108,#REF!,13,FALSE)) ->  | AD108: =IF(P108="","",VLOOKUP($P108,#REF!,14,FALSE)) ->  | AE108: =IF(P108="","",VLOOKUP($P108,#REF!,15,FALSE)) ->  | AF108: =IF(P108="","",VLOOKUP($P108,#REF!,16,FALSE)) ->  | AG108: =IF(P108="","",VLOOKUP($P108,#REF!,17,FALSE)) ->  | AH108: W | AI108: =IF(Q108="","",VLOOKUP($Q108,'FO-DRE-04'!$A$6:$M$100,3,FALSE)) ->  | AJ108: =IF(Q108="","",VLOOKUP($Q108,'FO-DRE-04'!$A$6:$M$100,4,FALSE)) ->  | AK108: =IF(Q108="","",VLOOKUP($Q108,'FO-DRE-04'!$A$6:$M$100,5,FALSE)) ->  | AL108: =IF(Q108="","",VLOOKUP($Q108,'FO-DRE-04'!$A$6:$M$100,7,FALSE)) ->  | AM108: =IF(Q108="","",VLOOKUP($Q108,'FO-DRE-04'!$A$6:$M$100,11,FALSE)) ->  | AN108: =IF($R108="","",VLOOKUP($R108,'FO-DRE-02'!$A$6:$N$100,2,FALSE)) ->  | AO108: =IF($R108="","",VLOOKUP($R108,'FO-DRE-02'!$A$5:$J$100,3,FALSE)) ->  | AP108: =IF($R108="","",VLOOKUP($R108,'FO-DRE-02'!$A$5:$J$100,6,FALSE)) ->  | AQ108: =IF($R108="","",VLOOKUP($R108,'FO-DRE-02'!$A$5:$J$100,4,FALSE)) ->  | AR108: =IF($R108="","",VLOOKUP($R108,'FO-DRE-02'!$A$5:$J$100,5,FALSE)) ->  | AS108: =IF($R108="","",VLOOKUP($R108,'FO-DRE-02'!$A$5:$J$100,6,FALSE)) ->  | AT108: =IF($R108="","",VLOOKUP($R108,'FO-DRE-02'!$A$5:$J$100,7,FALSE)) ->  | AU108: =IF($R108="","",VLOOKUP($R108,'FO-DRE-02'!$A$5:$J$100,9,FALSE)) ->  | AV108: =IF($R108="","",VLOOKUP($R108,'FO-DRE-02'!$A$5:$M$100,11,FALSE)) ->  | AW108: =IF($R108="","",VLOOKUP($R108,'FO-DRE-02'!$A$5:$M$100,12,FALSE)) ->  | AX108: =IF($R108="","",VLOOKUP($R108,'FO-DRE-02'!$A$5:$M$100,13,FALSE)) ->  | BA108: 5000 | BD108: 99 | BF108: F/D | BG108: F/D
T109: =IF(P109="","",VLOOKUP($P109,#REF!,2,FALSE)) ->  | U109: =IF(P109="","",VLOOKUP($P109,#REF!,3,FALSE)) ->  | V109: =IF(P109="","",VLOOKUP($P109,#REF!,4,FALSE)) ->  | W109: =IF(P109="","",VLOOKUP($P109,#REF!,6,FALSE)) ->  | X109: =IF(P109="","",VLOOKUP($P109,#REF!,7,FALSE)) ->  | Y109: =IF(P109="","",VLOOKUP($P109,#REF!,8,FALSE)) ->  | Z109: =IF(P109="","",VLOOKUP($P109,#REF!,9,FALSE)) ->  | AA109: =IF(P109="","",VLOOKUP($P109,#REF!,11,FALSE)) ->  | AB109: =IF(P109="","",VLOOKUP($P109,#REF!,12,FALSE)) ->  | AC109: =IF(P109="","",VLOOKUP($P109,#REF!,13,FALSE)) ->  | AD109: =IF(P109="","",VLOOKUP($P109,#REF!,14,FALSE)) ->  | AE109: =IF(P109="","",VLOOKUP($P109,#REF!,15,FALSE)) ->  | AF109: =IF(P109="","",VLOOKUP($P109,#REF!,16,FALSE)) ->  | AG109: =IF(P109="","",VLOOKUP($P109,#REF!,17,FALSE)) ->  | AH109: W | AI109: =IF(Q109="","",VLOOKUP($Q109,'FO-DRE-04'!$A$6:$M$100,3,FALSE)) ->  | AJ109: =IF(Q109="","",VLOOKUP($Q109,'FO-DRE-04'!$A$6:$M$100,4,FALSE)) ->  | AK109: =IF(Q109="","",VLOOKUP($Q109,'FO-DRE-04'!$A$6:$M$100,5,FALSE)) ->  | AL109: =IF(Q109="","",VLOOKUP($Q109,'FO-DRE-04'!$A$6:$M$100,7,FALSE)) ->  | AM109: =IF(Q109="","",VLOOKUP($Q109,'FO-DRE-04'!$A$6:$M$100,11,FALSE)) ->  | AN109: =IF($R109="","",VLOOKUP($R109,'FO-DRE-02'!$A$6:$N$100,2,FALSE)) ->  | AO109: =IF($R109="","",VLOOKUP($R109,'FO-DRE-02'!$A$5:$J$100,3,FALSE)) ->  | AP109: =IF($R109="","",VLOOKUP($R109,'FO-DRE-02'!$A$5:$J$100,6,FALSE)) ->  | AQ109: =IF($R109="","",VLOOKUP($R109,'FO-DRE-02'!$A$5:$J$100,4,FALSE)) ->  | AR109: =IF($R109="","",VLOOKUP($R109,'FO-DRE-02'!$A$5:$J$100,5,FALSE)) ->  | AS109: =IF($R109="","",VLOOKUP($R109,'FO-DRE-02'!$A$5:$J$100,6,FALSE)) ->  | AT109: =IF($R109="","",VLOOKUP($R109,'FO-DRE-02'!$A$5:$J$100,7,FALSE)) ->  | AU109: =IF($R109="","",VLOOKUP($R109,'FO-DRE-02'!$A$5:$J$100,9,FALSE)) ->  | AV109: =IF($R109="","",VLOOKUP($R109,'FO-DRE-02'!$A$5:$M$100,11,FALSE)) ->  | AW109: =IF($R109="","",VLOOKUP($R109,'FO-DRE-02'!$A$5:$M$100,12,FALSE)) ->  | AX109: =IF($R109="","",VLOOKUP($R109,'FO-DRE-02'!$A$5:$M$100,13,FALSE)) ->  | BA109: 5000 | BD109: 100 | BF109: F/D | BG109: F/D
T110: =IF(P110="","",VLOOKUP($P110,#REF!,2,FALSE)) ->  | U110: =IF(P110="","",VLOOKUP($P110,#REF!,3,FALSE)) ->  | V110: =IF(P110="","",VLOOKUP($P110,#REF!,4,FALSE)) ->  | W110: =IF(P110="","",VLOOKUP($P110,#REF!,6,FALSE)) ->  | X110: =IF(P110="","",VLOOKUP($P110,#REF!,7,FALSE)) ->  | Y110: =IF(P110="","",VLOOKUP($P110,#REF!,8,FALSE)) ->  | Z110: =IF(P110="","",VLOOKUP($P110,#REF!,9,FALSE)) ->  | AA110: =IF(P110="","",VLOOKUP($P110,#REF!,11,FALSE)) ->  | AB110: =IF(P110="","",VLOOKUP($P110,#REF!,12,FALSE)) ->  | AC110: =IF(P110="","",VLOOKUP($P110,#REF!,13,FALSE)) ->  | AD110: =IF(P110="","",VLOOKUP($P110,#REF!,14,FALSE)) ->  | AE110: =IF(P110="","",VLOOKUP($P110,#REF!,15,FALSE)) ->  | AF110: =IF(P110="","",VLOOKUP($P110,#REF!,16,FALSE)) ->  | AG110: =IF(P110="","",VLOOKUP($P110,#REF!,17,FALSE)) ->  | AH110: W | AI110: =IF(Q110="","",VLOOKUP($Q110,'FO-DRE-04'!$A$6:$M$100,3,FALSE)) ->  | AJ110: =IF(Q110="","",VLOOKUP($Q110,'FO-DRE-04'!$A$6:$M$100,4,FALSE)) ->  | AK110: =IF(Q110="","",VLOOKUP($Q110,'FO-DRE-04'!$A$6:$M$100,5,FALSE)) ->  | AL110: =IF(Q110="","",VLOOKUP($Q110,'FO-DRE-04'!$A$6:$M$100,7,FALSE)) ->  | AM110: =IF(Q110="","",VLOOKUP($Q110,'FO-DRE-04'!$A$6:$M$100,11,FALSE)) ->  | AN110: =IF($R110="","",VLOOKUP($R110,'FO-DRE-02'!$A$6:$N$100,2,FALSE)) ->  | AO110: =IF($R110="","",VLOOKUP($R110,'FO-DRE-02'!$A$5:$J$100,3,FALSE)) ->  | AP110: =IF($R110="","",VLOOKUP($R110,'FO-DRE-02'!$A$5:$J$100,6,FALSE)) ->  | AQ110: =IF($R110="","",VLOOKUP($R110,'FO-DRE-02'!$A$5:$J$100,4,FALSE)) ->  | AR110: =IF($R110="","",VLOOKUP($R110,'FO-DRE-02'!$A$5:$J$100,5,FALSE)) ->  | AS110: =IF($R110="","",VLOOKUP($R110,'FO-DRE-02'!$A$5:$J$100,6,FALSE)) ->  | AT110: =IF($R110="","",VLOOKUP($R110,'FO-DRE-02'!$A$5:$J$100,7,FALSE)) ->  | AU110: =IF($R110="","",VLOOKUP($R110,'FO-DRE-02'!$A$5:$J$100,9,FALSE)) ->  | AV110: =IF($R110="","",VLOOKUP($R110,'FO-DRE-02'!$A$5:$M$100,11,FALSE)) ->  | AW110: =IF($R110="","",VLOOKUP($R110,'FO-DRE-02'!$A$5:$M$100,12,FALSE)) ->  | AX110: =IF($R110="","",VLOOKUP($R110,'FO-DRE-02'!$A$5:$M$100,13,FALSE)) ->  | BA110: 5000 | BD110: 101 | BF110: F/D | BG110: F/D
T111: =IF(P111="","",VLOOKUP($P111,#REF!,2,FALSE)) ->  | U111: =IF(P111="","",VLOOKUP($P111,#REF!,3,FALSE)) ->  | V111: =IF(P111="","",VLOOKUP($P111,#REF!,4,FALSE)) ->  | W111: =IF(P111="","",VLOOKUP($P111,#REF!,6,FALSE)) ->  | X111: =IF(P111="","",VLOOKUP($P111,#REF!,7,FALSE)) ->  | Y111: =IF(P111="","",VLOOKUP($P111,#REF!,8,FALSE)) ->  | Z111: =IF(P111="","",VLOOKUP($P111,#REF!,9,FALSE)) ->  | AA111: =IF(P111="","",VLOOKUP($P111,#REF!,11,FALSE)) ->  | AB111: =IF(P111="","",VLOOKUP($P111,#REF!,12,FALSE)) ->  | AC111: =IF(P111="","",VLOOKUP($P111,#REF!,13,FALSE)) ->  | AD111: =IF(P111="","",VLOOKUP($P111,#REF!,14,FALSE)) ->  | AE111: =IF(P111="","",VLOOKUP($P111,#REF!,15,FALSE)) ->  | AF111: =IF(P111="","",VLOOKUP($P111,#REF!,16,FALSE)) ->  | AG111: =IF(P111="","",VLOOKUP($P111,#REF!,17,FALSE)) ->  | AH111: W | AI111: =IF(Q111="","",VLOOKUP($Q111,'FO-DRE-04'!$A$6:$M$100,3,FALSE)) ->  | AJ111: =IF(Q111="","",VLOOKUP($Q111,'FO-DRE-04'!$A$6:$M$100,4,FALSE)) ->  | AK111: =IF(Q111="","",VLOOKUP($Q111,'FO-DRE-04'!$A$6:$M$100,5,FALSE)) ->  | AL111: =IF(Q111="","",VLOOKUP($Q111,'FO-DRE-04'!$A$6:$M$100,7,FALSE)) ->  | AM111: =IF(Q111="","",VLOOKUP($Q111,'FO-DRE-04'!$A$6:$M$100,11,FALSE)) ->  | AN111: =IF($R111="","",VLOOKUP($R111,'FO-DRE-02'!$A$6:$N$100,2,FALSE)) ->  | AO111: =IF($R111="","",VLOOKUP($R111,'FO-DRE-02'!$A$5:$J$100,3,FALSE)) ->  | AP111: =IF($R111="","",VLOOKUP($R111,'FO-DRE-02'!$A$5:$J$100,6,FALSE)) ->  | AQ111: =IF($R111="","",VLOOKUP($R111,'FO-DRE-02'!$A$5:$J$100,4,FALSE)) ->  | AR111: =IF($R111="","",VLOOKUP($R111,'FO-DRE-02'!$A$5:$J$100,5,FALSE)) ->  | AS111: =IF($R111="","",VLOOKUP($R111,'FO-DRE-02'!$A$5:$J$100,6,FALSE)) ->  | AT111: =IF($R111="","",VLOOKUP($R111,'FO-DRE-02'!$A$5:$J$100,7,FALSE)) ->  | AU111: =IF($R111="","",VLOOKUP($R111,'FO-DRE-02'!$A$5:$J$100,9,FALSE)) ->  | AV111: =IF($R111="","",VLOOKUP($R111,'FO-DRE-02'!$A$5:$M$100,11,FALSE)) ->  | AW111: =IF($R111="","",VLOOKUP($R111,'FO-DRE-02'!$A$5:$M$100,12,FALSE)) ->  | AX111: =IF($R111="","",VLOOKUP($R111,'FO-DRE-02'!$A$5:$M$100,13,FALSE)) ->  | BA111: 5000 | BD111: 102 | BF111: F/D | BG111: F/D
T112: =IF(P112="","",VLOOKUP($P112,#REF!,2,FALSE)) ->  | U112: =IF(P112="","",VLOOKUP($P112,#REF!,3,FALSE)) ->  | V112: =IF(P112="","",VLOOKUP($P112,#REF!,4,FALSE)) ->  | W112: =IF(P112="","",VLOOKUP($P112,#REF!,6,FALSE)) ->  | X112: =IF(P112="","",VLOOKUP($P112,#REF!,7,FALSE)) ->  | Y112: =IF(P112="","",VLOOKUP($P112,#REF!,8,FALSE)) ->  | Z112: =IF(P112="","",VLOOKUP($P112,#REF!,9,FALSE)) ->  | AA112: =IF(P112="","",VLOOKUP($P112,#REF!,11,FALSE)) ->  | AB112: =IF(P112="","",VLOOKUP($P112,#REF!,12,FALSE)) ->  | AC112: =IF(P112="","",VLOOKUP($P112,#REF!,13,FALSE)) ->  | AD112: =IF(P112="","",VLOOKUP($P112,#REF!,14,FALSE)) ->  | AE112: =IF(P112="","",VLOOKUP($P112,#REF!,15,FALSE)) ->  | AF112: =IF(P112="","",VLOOKUP($P112,#REF!,16,FALSE)) ->  | AG112: =IF(P112="","",VLOOKUP($P112,#REF!,17,FALSE)) ->  | AH112: W | AI112: =IF(Q112="","",VLOOKUP($Q112,'FO-DRE-04'!$A$6:$M$100,3,FALSE)) ->  | AJ112: =IF(Q112="","",VLOOKUP($Q112,'FO-DRE-04'!$A$6:$M$100,4,FALSE)) ->  | AK112: =IF(Q112="","",VLOOKUP($Q112,'FO-DRE-04'!$A$6:$M$100,5,FALSE)) ->  | AL112: =IF(Q112="","",VLOOKUP($Q112,'FO-DRE-04'!$A$6:$M$100,7,FALSE)) ->  | AM112: =IF(Q112="","",VLOOKUP($Q112,'FO-DRE-04'!$A$6:$M$100,11,FALSE)) ->  | AN112: =IF($R112="","",VLOOKUP($R112,'FO-DRE-02'!$A$6:$N$100,2,FALSE)) ->  | AO112: =IF($R112="","",VLOOKUP($R112,'FO-DRE-02'!$A$5:$J$100,3,FALSE)) ->  | AP112: =IF($R112="","",VLOOKUP($R112,'FO-DRE-02'!$A$5:$J$100,6,FALSE)) ->  | AQ112: =IF($R112="","",VLOOKUP($R112,'FO-DRE-02'!$A$5:$J$100,4,FALSE)) ->  | AR112: =IF($R112="","",VLOOKUP($R112,'FO-DRE-02'!$A$5:$J$100,5,FALSE)) ->  | AS112: =IF($R112="","",VLOOKUP($R112,'FO-DRE-02'!$A$5:$J$100,6,FALSE)) ->  | AT112: =IF($R112="","",VLOOKUP($R112,'FO-DRE-02'!$A$5:$J$100,7,FALSE)) ->  | AU112: =IF($R112="","",VLOOKUP($R112,'FO-DRE-02'!$A$5:$J$100,9,FALSE)) ->  | AV112: =IF($R112="","",VLOOKUP($R112,'FO-DRE-02'!$A$5:$M$100,11,FALSE)) ->  | AW112: =IF($R112="","",VLOOKUP($R112,'FO-DRE-02'!$A$5:$M$100,12,FALSE)) ->  | AX112: =IF($R112="","",VLOOKUP($R112,'FO-DRE-02'!$A$5:$M$100,13,FALSE)) ->  | BA112: 5000 | BD112: 103 | BF112: F/D | BG112: F/D
T113: =IF(P113="","",VLOOKUP($P113,#REF!,2,FALSE)) ->  | U113: =IF(P113="","",VLOOKUP($P113,#REF!,3,FALSE)) ->  | V113: =IF(P113="","",VLOOKUP($P113,#REF!,4,FALSE)) ->  | W113: =IF(P113="","",VLOOKUP($P113,#REF!,6,FALSE)) ->  | X113: =IF(P113="","",VLOOKUP($P113,#REF!,7,FALSE)) ->  | Y113: =IF(P113="","",VLOOKUP($P113,#REF!,8,FALSE)) ->  | Z113: =IF(P113="","",VLOOKUP($P113,#REF!,9,FALSE)) ->  | AA113: =IF(P113="","",VLOOKUP($P113,#REF!,11,FALSE)) ->  | AB113: =IF(P113="","",VLOOKUP($P113,#REF!,12,FALSE)) ->  | AC113: =IF(P113="","",VLOOKUP($P113,#REF!,13,FALSE)) ->  | AD113: =IF(P113="","",VLOOKUP($P113,#REF!,14,FALSE)) ->  | AE113: =IF(P113="","",VLOOKUP($P113,#REF!,15,FALSE)) ->  | AF113: =IF(P113="","",VLOOKUP($P113,#REF!,16,FALSE)) ->  | AG113: =IF(P113="","",VLOOKUP($P113,#REF!,17,FALSE)) ->  | AH113: W | AI113: =IF(Q113="","",VLOOKUP($Q113,'FO-DRE-04'!$A$6:$M$100,3,FALSE)) ->  | AJ113: =IF(Q113="","",VLOOKUP($Q113,'FO-DRE-04'!$A$6:$M$100,4,FALSE)) ->  | AK113: =IF(Q113="","",VLOOKUP($Q113,'FO-DRE-04'!$A$6:$M$100,5,FALSE)) ->  | AL113: =IF(Q113="","",VLOOKUP($Q113,'FO-DRE-04'!$A$6:$M$100,7,FALSE)) ->  | AM113: =IF(Q113="","",VLOOKUP($Q113,'FO-DRE-04'!$A$6:$M$100,11,FALSE)) ->  | AN113: =IF($R113="","",VLOOKUP($R113,'FO-DRE-02'!$A$6:$N$100,2,FALSE)) ->  | AO113: =IF($R113="","",VLOOKUP($R113,'FO-DRE-02'!$A$5:$J$100,3,FALSE)) ->  | AP113: =IF($R113="","",VLOOKUP($R113,'FO-DRE-02'!$A$5:$J$100,6,FALSE)) ->  | AQ113: =IF($R113="","",VLOOKUP($R113,'FO-DRE-02'!$A$5:$J$100,4,FALSE)) ->  | AR113: =IF($R113="","",VLOOKUP($R113,'FO-DRE-02'!$A$5:$J$100,5,FALSE)) ->  | AS113: =IF($R113="","",VLOOKUP($R113,'FO-DRE-02'!$A$5:$J$100,6,FALSE)) ->  | AT113: =IF($R113="","",VLOOKUP($R113,'FO-DRE-02'!$A$5:$J$100,7,FALSE)) ->  | AU113: =IF($R113="","",VLOOKUP($R113,'FO-DRE-02'!$A$5:$J$100,9,FALSE)) ->  | AV113: =IF($R113="","",VLOOKUP($R113,'FO-DRE-02'!$A$5:$M$100,11,FALSE)) ->  | AW113: =IF($R113="","",VLOOKUP($R113,'FO-DRE-02'!$A$5:$M$100,12,FALSE)) ->  | AX113: =IF($R113="","",VLOOKUP($R113,'FO-DRE-02'!$A$5:$M$100,13,FALSE)) ->  | BA113: 5000 | BD113: 104 | BF113: F/D | BG113: F/D
T114: =IF(P114="","",VLOOKUP($P114,#REF!,2,FALSE)) ->  | U114: =IF(P114="","",VLOOKUP($P114,#REF!,3,FALSE)) ->  | V114: =IF(P114="","",VLOOKUP($P114,#REF!,4,FALSE)) ->  | W114: =IF(P114="","",VLOOKUP($P114,#REF!,6,FALSE)) ->  | X114: =IF(P114="","",VLOOKUP($P114,#REF!,7,FALSE)) ->  | Y114: =IF(P114="","",VLOOKUP($P114,#REF!,8,FALSE)) ->  | Z114: =IF(P114="","",VLOOKUP($P114,#REF!,9,FALSE)) ->  | AA114: =IF(P114="","",VLOOKUP($P114,#REF!,11,FALSE)) ->  | AB114: =IF(P114="","",VLOOKUP($P114,#REF!,12,FALSE)) ->  | AC114: =IF(P114="","",VLOOKUP($P114,#REF!,13,FALSE)) ->  | AD114: =IF(P114="","",VLOOKUP($P114,#REF!,14,FALSE)) ->  | AE114: =IF(P114="","",VLOOKUP($P114,#REF!,15,FALSE)) ->  | AF114: =IF(P114="","",VLOOKUP($P114,#REF!,16,FALSE)) ->  | AG114: =IF(P114="","",VLOOKUP($P114,#REF!,17,FALSE)) ->  | AH114: W | AI114: =IF(Q114="","",VLOOKUP($Q114,'FO-DRE-04'!$A$6:$M$100,3,FALSE)) ->  | AJ114: =IF(Q114="","",VLOOKUP($Q114,'FO-DRE-04'!$A$6:$M$100,4,FALSE)) ->  | AK114: =IF(Q114="","",VLOOKUP($Q114,'FO-DRE-04'!$A$6:$M$100,5,FALSE)) ->  | AL114: =IF(Q114="","",VLOOKUP($Q114,'FO-DRE-04'!$A$6:$M$100,7,FALSE)) ->  | AM114: =IF(Q114="","",VLOOKUP($Q114,'FO-DRE-04'!$A$6:$M$100,11,FALSE)) ->  | AN114: =IF($R114="","",VLOOKUP($R114,'FO-DRE-02'!$A$6:$N$100,2,FALSE)) ->  | AO114: =IF($R114="","",VLOOKUP($R114,'FO-DRE-02'!$A$5:$J$100,3,FALSE)) ->  | AP114: =IF($R114="","",VLOOKUP($R114,'FO-DRE-02'!$A$5:$J$100,6,FALSE)) ->  | AQ114: =IF($R114="","",VLOOKUP($R114,'FO-DRE-02'!$A$5:$J$100,4,FALSE)) ->  | AR114: =IF($R114="","",VLOOKUP($R114,'FO-DRE-02'!$A$5:$J$100,5,FALSE)) ->  | AS114: =IF($R114="","",VLOOKUP($R114,'FO-DRE-02'!$A$5:$J$100,6,FALSE)) ->  | AT114: =IF($R114="","",VLOOKUP($R114,'FO-DRE-02'!$A$5:$J$100,7,FALSE)) ->  | AU114: =IF($R114="","",VLOOKUP($R114,'FO-DRE-02'!$A$5:$J$100,9,FALSE)) ->  | AV114: =IF($R114="","",VLOOKUP($R114,'FO-DRE-02'!$A$5:$M$100,11,FALSE)) ->  | AW114: =IF($R114="","",VLOOKUP($R114,'FO-DRE-02'!$A$5:$M$100,12,FALSE)) ->  | AX114: =IF($R114="","",VLOOKUP($R114,'FO-DRE-02'!$A$5:$M$100,13,FALSE)) ->  | BA114: 5000 | BD114: 105 | BF114: F/D | BG114: F/D
T115: =IF(P115="","",VLOOKUP($P115,#REF!,2,FALSE)) ->  | U115: =IF(P115="","",VLOOKUP($P115,#REF!,3,FALSE)) ->  | V115: =IF(P115="","",VLOOKUP($P115,#REF!,4,FALSE)) ->  | W115: =IF(P115="","",VLOOKUP($P115,#REF!,6,FALSE)) ->  | X115: =IF(P115="","",VLOOKUP($P115,#REF!,7,FALSE)) ->  | Y115: =IF(P115="","",VLOOKUP($P115,#REF!,8,FALSE)) ->  | Z115: =IF(P115="","",VLOOKUP($P115,#REF!,9,FALSE)) ->  | AA115: =IF(P115="","",VLOOKUP($P115,#REF!,11,FALSE)) ->  | AB115: =IF(P115="","",VLOOKUP($P115,#REF!,12,FALSE)) ->  | AC115: =IF(P115="","",VLOOKUP($P115,#REF!,13,FALSE)) ->  | AD115: =IF(P115="","",VLOOKUP($P115,#REF!,14,FALSE)) ->  | AE115: =IF(P115="","",VLOOKUP($P115,#REF!,15,FALSE)) ->  | AF115: =IF(P115="","",VLOOKUP($P115,#REF!,16,FALSE)) ->  | AG115: =IF(P115="","",VLOOKUP($P115,#REF!,17,FALSE)) ->  | AH115: W | AI115: =IF(Q115="","",VLOOKUP($Q115,'FO-DRE-04'!$A$6:$M$100,3,FALSE)) ->  | AJ115: =IF(Q115="","",VLOOKUP($Q115,'FO-DRE-04'!$A$6:$M$100,4,FALSE)) ->  | AK115: =IF(Q115="","",VLOOKUP($Q115,'FO-DRE-04'!$A$6:$M$100,5,FALSE)) ->  | AL115: =IF(Q115="","",VLOOKUP($Q115,'FO-DRE-04'!$A$6:$M$100,7,FALSE)) ->  | AM115: =IF(Q115="","",VLOOKUP($Q115,'FO-DRE-04'!$A$6:$M$100,11,FALSE)) ->  | AN115: =IF($R115="","",VLOOKUP($R115,'FO-DRE-02'!$A$6:$N$100,2,FALSE)) ->  | AO115: =IF($R115="","",VLOOKUP($R115,'FO-DRE-02'!$A$5:$J$100,3,FALSE)) ->  | AP115: =IF($R115="","",VLOOKUP($R115,'FO-DRE-02'!$A$5:$J$100,6,FALSE)) ->  | AQ115: =IF($R115="","",VLOOKUP($R115,'FO-DRE-02'!$A$5:$J$100,4,FALSE)) ->  | AR115: =IF($R115="","",VLOOKUP($R115,'FO-DRE-02'!$A$5:$J$100,5,FALSE)) ->  | AS115: =IF($R115="","",VLOOKUP($R115,'FO-DRE-02'!$A$5:$J$100,6,FALSE)) ->  | AT115: =IF($R115="","",VLOOKUP($R115,'FO-DRE-02'!$A$5:$J$100,7,FALSE)) ->  | AU115: =IF($R115="","",VLOOKUP($R115,'FO-DRE-02'!$A$5:$J$100,9,FALSE)) ->  | AV115: =IF($R115="","",VLOOKUP($R115,'FO-DRE-02'!$A$5:$M$100,11,FALSE)) ->  | AW115: =IF($R115="","",VLOOKUP($R115,'FO-DRE-02'!$A$5:$M$100,12,FALSE)) ->  | AX115: =IF($R115="","",VLOOKUP($R115,'FO-DRE-02'!$A$5:$M$100,13,FALSE)) ->  | BA115: 5000 | BD115: 106 | BF115: F/D | BG115: F/D
T116: =IF(P116="","",VLOOKUP($P116,#REF!,2,FALSE)) ->  | U116: =IF(P116="","",VLOOKUP($P116,#REF!,3,FALSE)) ->  | V116: =IF(P116="","",VLOOKUP($P116,#REF!,4,FALSE)) ->  | W116: =IF(P116="","",VLOOKUP($P116,#REF!,6,FALSE)) ->  | X116: =IF(P116="","",VLOOKUP($P116,#REF!,7,FALSE)) ->  | Y116: =IF(P116="","",VLOOKUP($P116,#REF!,8,FALSE)) ->  | Z116: =IF(P116="","",VLOOKUP($P116,#REF!,9,FALSE)) ->  | AA116: =IF(P116="","",VLOOKUP($P116,#REF!,11,FALSE)) ->  | AB116: =IF(P116="","",VLOOKUP($P116,#REF!,12,FALSE)) ->  | AC116: =IF(P116="","",VLOOKUP($P116,#REF!,13,FALSE)) ->  | AD116: =IF(P116="","",VLOOKUP($P116,#REF!,14,FALSE)) ->  | AE116: =IF(P116="","",VLOOKUP($P116,#REF!,15,FALSE)) ->  | AF116: =IF(P116="","",VLOOKUP($P116,#REF!,16,FALSE)) ->  | AG116: =IF(P116="","",VLOOKUP($P116,#REF!,17,FALSE)) ->  | AH116: W | AI116: =IF(Q116="","",VLOOKUP($Q116,'FO-DRE-04'!$A$6:$M$100,3,FALSE)) ->  | AJ116: =IF(Q116="","",VLOOKUP($Q116,'FO-DRE-04'!$A$6:$M$100,4,FALSE)) ->  | AK116: =IF(Q116="","",VLOOKUP($Q116,'FO-DRE-04'!$A$6:$M$100,5,FALSE)) ->  | AL116: =IF(Q116="","",VLOOKUP($Q116,'FO-DRE-04'!$A$6:$M$100,7,FALSE)) ->  | AM116: =IF(Q116="","",VLOOKUP($Q116,'FO-DRE-04'!$A$6:$M$100,11,FALSE)) ->  | AN116: =IF($R116="","",VLOOKUP($R116,'FO-DRE-02'!$A$6:$N$100,2,FALSE)) ->  | AO116: =IF($R116="","",VLOOKUP($R116,'FO-DRE-02'!$A$5:$J$100,3,FALSE)) ->  | AP116: =IF($R116="","",VLOOKUP($R116,'FO-DRE-02'!$A$5:$J$100,6,FALSE)) ->  | AQ116: =IF($R116="","",VLOOKUP($R116,'FO-DRE-02'!$A$5:$J$100,4,FALSE)) ->  | AR116: =IF($R116="","",VLOOKUP($R116,'FO-DRE-02'!$A$5:$J$100,5,FALSE)) ->  | AS116: =IF($R116="","",VLOOKUP($R116,'FO-DRE-02'!$A$5:$J$100,6,FALSE)) ->  | AT116: =IF($R116="","",VLOOKUP($R116,'FO-DRE-02'!$A$5:$J$100,7,FALSE)) ->  | AU116: =IF($R116="","",VLOOKUP($R116,'FO-DRE-02'!$A$5:$J$100,9,FALSE)) ->  | AV116: =IF($R116="","",VLOOKUP($R116,'FO-DRE-02'!$A$5:$M$100,11,FALSE)) ->  | AW116: =IF($R116="","",VLOOKUP($R116,'FO-DRE-02'!$A$5:$M$100,12,FALSE)) ->  | AX116: =IF($R116="","",VLOOKUP($R116,'FO-DRE-02'!$A$5:$M$100,13,FALSE)) ->  | BA116: 5000 | BD116: 107 | BF116: F/D | BG116: F/D
T117: =IF(P117="","",VLOOKUP($P117,#REF!,2,FALSE)) ->  | U117: =IF(P117="","",VLOOKUP($P117,#REF!,3,FALSE)) ->  | V117: =IF(P117="","",VLOOKUP($P117,#REF!,4,FALSE)) ->  | W117: =IF(P117="","",VLOOKUP($P117,#REF!,6,FALSE)) ->  | X117: =IF(P117="","",VLOOKUP($P117,#REF!,7,FALSE)) ->  | Y117: =IF(P117="","",VLOOKUP($P117,#REF!,8,FALSE)) ->  | Z117: =IF(P117="","",VLOOKUP($P117,#REF!,9,FALSE)) ->  | AA117: =IF(P117="","",VLOOKUP($P117,#REF!,11,FALSE)) ->  | AB117: =IF(P117="","",VLOOKUP($P117,#REF!,12,FALSE)) ->  | AC117: =IF(P117="","",VLOOKUP($P117,#REF!,13,FALSE)) ->  | AD117: =IF(P117="","",VLOOKUP($P117,#REF!,14,FALSE)) ->  | AE117: =IF(P117="","",VLOOKUP($P117,#REF!,15,FALSE)) ->  | AF117: =IF(P117="","",VLOOKUP($P117,#REF!,16,FALSE)) ->  | AG117: =IF(P117="","",VLOOKUP($P117,#REF!,17,FALSE)) ->  | AH117: W | AI117: =IF(Q117="","",VLOOKUP($Q117,'FO-DRE-04'!$A$6:$M$100,3,FALSE)) ->  | AJ117: =IF(Q117="","",VLOOKUP($Q117,'FO-DRE-04'!$A$6:$M$100,4,FALSE)) ->  | AK117: =IF(Q117="","",VLOOKUP($Q117,'FO-DRE-04'!$A$6:$M$100,5,FALSE)) ->  | AL117: =IF(Q117="","",VLOOKUP($Q117,'FO-DRE-04'!$A$6:$M$100,7,FALSE)) ->  | AM117: =IF(Q117="","",VLOOKUP($Q117,'FO-DRE-04'!$A$6:$M$100,11,FALSE)) ->  | AN117: =IF($R117="","",VLOOKUP($R117,'FO-DRE-02'!$A$6:$N$100,2,FALSE)) ->  | AO117: =IF($R117="","",VLOOKUP($R117,'FO-DRE-02'!$A$5:$J$100,3,FALSE)) ->  | AP117: =IF($R117="","",VLOOKUP($R117,'FO-DRE-02'!$A$5:$J$100,6,FALSE)) ->  | AQ117: =IF($R117="","",VLOOKUP($R117,'FO-DRE-02'!$A$5:$J$100,4,FALSE)) ->  | AR117: =IF($R117="","",VLOOKUP($R117,'FO-DRE-02'!$A$5:$J$100,5,FALSE)) ->  | AS117: =IF($R117="","",VLOOKUP($R117,'FO-DRE-02'!$A$5:$J$100,6,FALSE)) ->  | AT117: =IF($R117="","",VLOOKUP($R117,'FO-DRE-02'!$A$5:$J$100,7,FALSE)) ->  | AU117: =IF($R117="","",VLOOKUP($R117,'FO-DRE-02'!$A$5:$J$100,9,FALSE)) ->  | AV117: =IF($R117="","",VLOOKUP($R117,'FO-DRE-02'!$A$5:$M$100,11,FALSE)) ->  | AW117: =IF($R117="","",VLOOKUP($R117,'FO-DRE-02'!$A$5:$M$100,12,FALSE)) ->  | AX117: =IF($R117="","",VLOOKUP($R117,'FO-DRE-02'!$A$5:$M$100,13,FALSE)) ->  | BA117: 5000 | BD117: 108 | BF117: F/D | BG117: F/D
T118: =IF(P118="","",VLOOKUP($P118,#REF!,2,FALSE)) ->  | U118: =IF(P118="","",VLOOKUP($P118,#REF!,3,FALSE)) ->  | V118: =IF(P118="","",VLOOKUP($P118,#REF!,4,FALSE)) ->  | W118: =IF(P118="","",VLOOKUP($P118,#REF!,6,FALSE)) ->  | X118: =IF(P118="","",VLOOKUP($P118,#REF!,7,FALSE)) ->  | Y118: =IF(P118="","",VLOOKUP($P118,#REF!,8,FALSE)) ->  | Z118: =IF(P118="","",VLOOKUP($P118,#REF!,9,FALSE)) ->  | AA118: =IF(P118="","",VLOOKUP($P118,#REF!,11,FALSE)) ->  | AB118: =IF(P118="","",VLOOKUP($P118,#REF!,12,FALSE)) ->  | AC118: =IF(P118="","",VLOOKUP($P118,#REF!,13,FALSE)) ->  | AD118: =IF(P118="","",VLOOKUP($P118,#REF!,14,FALSE)) ->  | AE118: =IF(P118="","",VLOOKUP($P118,#REF!,15,FALSE)) ->  | AF118: =IF(P118="","",VLOOKUP($P118,#REF!,16,FALSE)) ->  | AG118: =IF(P118="","",VLOOKUP($P118,#REF!,17,FALSE)) ->  | AH118: W | AI118: =IF(Q118="","",VLOOKUP($Q118,'FO-DRE-04'!$A$6:$M$100,3,FALSE)) ->  | AJ118: =IF(Q118="","",VLOOKUP($Q118,'FO-DRE-04'!$A$6:$M$100,4,FALSE)) ->  | AK118: =IF(Q118="","",VLOOKUP($Q118,'FO-DRE-04'!$A$6:$M$100,5,FALSE)) ->  | AL118: =IF(Q118="","",VLOOKUP($Q118,'FO-DRE-04'!$A$6:$M$100,7,FALSE)) ->  | AM118: =IF(Q118="","",VLOOKUP($Q118,'FO-DRE-04'!$A$6:$M$100,11,FALSE)) ->  | AN118: =IF($R118="","",VLOOKUP($R118,'FO-DRE-02'!$A$6:$N$100,2,FALSE)) ->  | AO118: =IF($R118="","",VLOOKUP($R118,'FO-DRE-02'!$A$5:$J$100,3,FALSE)) ->  | AP118: =IF($R118="","",VLOOKUP($R118,'FO-DRE-02'!$A$5:$J$100,6,FALSE)) ->  | AQ118: =IF($R118="","",VLOOKUP($R118,'FO-DRE-02'!$A$5:$J$100,4,FALSE)) ->  | AR118: =IF($R118="","",VLOOKUP($R118,'FO-DRE-02'!$A$5:$J$100,5,FALSE)) ->  | AS118: =IF($R118="","",VLOOKUP($R118,'FO-DRE-02'!$A$5:$J$100,6,FALSE)) ->  | AT118: =IF($R118="","",VLOOKUP($R118,'FO-DRE-02'!$A$5:$J$100,7,FALSE)) ->  | AU118: =IF($R118="","",VLOOKUP($R118,'FO-DRE-02'!$A$5:$J$100,9,FALSE)) ->  | AV118: =IF($R118="","",VLOOKUP($R118,'FO-DRE-02'!$A$5:$M$100,11,FALSE)) ->  | AW118: =IF($R118="","",VLOOKUP($R118,'FO-DRE-02'!$A$5:$M$100,12,FALSE)) ->  | AX118: =IF($R118="","",VLOOKUP($R118,'FO-DRE-02'!$A$5:$M$100,13,FALSE)) ->  | BA118: 5000 | BD118: 109 | BF118: F/D | BG118: F/D
T119: =IF(P119="","",VLOOKUP($P119,#REF!,2,FALSE)) ->  | U119: =IF(P119="","",VLOOKUP($P119,#REF!,3,FALSE)) ->  | V119: =IF(P119="","",VLOOKUP($P119,#REF!,4,FALSE)) ->  | W119: =IF(P119="","",VLOOKUP($P119,#REF!,6,FALSE)) ->  | X119: =IF(P119="","",VLOOKUP($P119,#REF!,7,FALSE)) ->  | Y119: =IF(P119="","",VLOOKUP($P119,#REF!,8,FALSE)) ->  | Z119: =IF(P119="","",VLOOKUP($P119,#REF!,9,FALSE)) ->  | AA119: =IF(P119="","",VLOOKUP($P119,#REF!,11,FALSE)) ->  | AB119: =IF(P119="","",VLOOKUP($P119,#REF!,12,FALSE)) ->  | AC119: =IF(P119="","",VLOOKUP($P119,#REF!,13,FALSE)) ->  | AD119: =IF(P119="","",VLOOKUP($P119,#REF!,14,FALSE)) ->  | AE119: =IF(P119="","",VLOOKUP($P119,#REF!,15,FALSE)) ->  | AF119: =IF(P119="","",VLOOKUP($P119,#REF!,16,FALSE)) ->  | AG119: =IF(P119="","",VLOOKUP($P119,#REF!,17,FALSE)) ->  | AH119: W | AI119: =IF(Q119="","",VLOOKUP($Q119,'FO-DRE-04'!$A$6:$M$100,3,FALSE)) ->  | AJ119: =IF(Q119="","",VLOOKUP($Q119,'FO-DRE-04'!$A$6:$M$100,4,FALSE)) ->  | AK119: =IF(Q119="","",VLOOKUP($Q119,'FO-DRE-04'!$A$6:$M$100,5,FALSE)) ->  | AL119: =IF(Q119="","",VLOOKUP($Q119,'FO-DRE-04'!$A$6:$M$100,7,FALSE)) ->  | AM119: =IF(Q119="","",VLOOKUP($Q119,'FO-DRE-04'!$A$6:$M$100,11,FALSE)) ->  | AN119: =IF($R119="","",VLOOKUP($R119,'FO-DRE-02'!$A$6:$N$100,2,FALSE)) ->  | AO119: =IF($R119="","",VLOOKUP($R119,'FO-DRE-02'!$A$5:$J$100,3,FALSE)) ->  | AP119: =IF($R119="","",VLOOKUP($R119,'FO-DRE-02'!$A$5:$J$100,6,FALSE)) ->  | AQ119: =IF($R119="","",VLOOKUP($R119,'FO-DRE-02'!$A$5:$J$100,4,FALSE)) ->  | AR119: =IF($R119="","",VLOOKUP($R119,'FO-DRE-02'!$A$5:$J$100,5,FALSE)) ->  | AS119: =IF($R119="","",VLOOKUP($R119,'FO-DRE-02'!$A$5:$J$100,6,FALSE)) ->  | AT119: =IF($R119="","",VLOOKUP($R119,'FO-DRE-02'!$A$5:$J$100,7,FALSE)) ->  | AU119: =IF($R119="","",VLOOKUP($R119,'FO-DRE-02'!$A$5:$J$100,9,FALSE)) ->  | AV119: =IF($R119="","",VLOOKUP($R119,'FO-DRE-02'!$A$5:$M$100,11,FALSE)) ->  | AW119: =IF($R119="","",VLOOKUP($R119,'FO-DRE-02'!$A$5:$M$100,12,FALSE)) ->  | AX119: =IF($R119="","",VLOOKUP($R119,'FO-DRE-02'!$A$5:$M$100,13,FALSE)) ->  | BA119: 5000 | BD119: 110 | BF119: F/D | BG119: F/D
T120: =IF(P120="","",VLOOKUP($P120,#REF!,2,FALSE)) ->  | U120: =IF(P120="","",VLOOKUP($P120,#REF!,3,FALSE)) ->  | V120: =IF(P120="","",VLOOKUP($P120,#REF!,4,FALSE)) ->  | W120: =IF(P120="","",VLOOKUP($P120,#REF!,6,FALSE)) ->  | X120: =IF(P120="","",VLOOKUP($P120,#REF!,7,FALSE)) ->  | Y120: =IF(P120="","",VLOOKUP($P120,#REF!,8,FALSE)) ->  | Z120: =IF(P120="","",VLOOKUP($P120,#REF!,9,FALSE)) ->  | AA120: =IF(P120="","",VLOOKUP($P120,#REF!,11,FALSE)) ->  | AB120: =IF(P120="","",VLOOKUP($P120,#REF!,12,FALSE)) ->  | AC120: =IF(P120="","",VLOOKUP($P120,#REF!,13,FALSE)) ->  | AD120: =IF(P120="","",VLOOKUP($P120,#REF!,14,FALSE)) ->  | AE120: =IF(P120="","",VLOOKUP($P120,#REF!,15,FALSE)) ->  | AF120: =IF(P120="","",VLOOKUP($P120,#REF!,16,FALSE)) ->  | AG120: =IF(P120="","",VLOOKUP($P120,#REF!,17,FALSE)) ->  | AH120: W | AI120: =IF(Q120="","",VLOOKUP($Q120,'FO-DRE-04'!$A$6:$M$100,3,FALSE)) ->  | AJ120: =IF(Q120="","",VLOOKUP($Q120,'FO-DRE-04'!$A$6:$M$100,4,FALSE)) ->  | AK120: =IF(Q120="","",VLOOKUP($Q120,'FO-DRE-04'!$A$6:$M$100,5,FALSE)) ->  | AL120: =IF(Q120="","",VLOOKUP($Q120,'FO-DRE-04'!$A$6:$M$100,7,FALSE)) ->  | AM120: =IF(Q120="","",VLOOKUP($Q120,'FO-DRE-04'!$A$6:$M$100,11,FALSE)) ->  | AN120: =IF($R120="","",VLOOKUP($R120,'FO-DRE-02'!$A$6:$N$100,2,FALSE)) ->  | AO120: =IF($R120="","",VLOOKUP($R120,'FO-DRE-02'!$A$5:$J$100,3,FALSE)) ->  | AP120: =IF($R120="","",VLOOKUP($R120,'FO-DRE-02'!$A$5:$J$100,6,FALSE)) ->  | AQ120: =IF($R120="","",VLOOKUP($R120,'FO-DRE-02'!$A$5:$J$100,4,FALSE)) ->  | AR120: =IF($R120="","",VLOOKUP($R120,'FO-DRE-02'!$A$5:$J$100,5,FALSE)) ->  | AS120: =IF($R120="","",VLOOKUP($R120,'FO-DRE-02'!$A$5:$J$100,6,FALSE)) ->  | AT120: =IF($R120="","",VLOOKUP($R120,'FO-DRE-02'!$A$5:$J$100,7,FALSE)) ->  | AU120: =IF($R120="","",VLOOKUP($R120,'FO-DRE-02'!$A$5:$J$100,9,FALSE)) ->  | AV120: =IF($R120="","",VLOOKUP($R120,'FO-DRE-02'!$A$5:$M$100,11,FALSE)) ->  | AW120: =IF($R120="","",VLOOKUP($R120,'FO-DRE-02'!$A$5:$M$100,12,FALSE)) ->  | AX120: =IF($R120="","",VLOOKUP($R120,'FO-DRE-02'!$A$5:$M$100,13,FALSE)) ->  | BA120: 5000 | BD120: 111 | BF120: F/D | BG120: F/D
T121: =IF(P121="","",VLOOKUP($P121,#REF!,2,FALSE)) ->  | U121: =IF(P121="","",VLOOKUP($P121,#REF!,3,FALSE)) ->  | V121: =IF(P121="","",VLOOKUP($P121,#REF!,4,FALSE)) ->  | W121: =IF(P121="","",VLOOKUP($P121,#REF!,6,FALSE)) ->  | X121: =IF(P121="","",VLOOKUP($P121,#REF!,7,FALSE)) ->  | Y121: =IF(P121="","",VLOOKUP($P121,#REF!,8,FALSE)) ->  | Z121: =IF(P121="","",VLOOKUP($P121,#REF!,9,FALSE)) ->  | AA121: =IF(P121="","",VLOOKUP($P121,#REF!,11,FALSE)) ->  | AB121: =IF(P121="","",VLOOKUP($P121,#REF!,12,FALSE)) ->  | AC121: =IF(P121="","",VLOOKUP($P121,#REF!,13,FALSE)) ->  | AD121: =IF(P121="","",VLOOKUP($P121,#REF!,14,FALSE)) ->  | AE121: =IF(P121="","",VLOOKUP($P121,#REF!,15,FALSE)) ->  | AF121: =IF(P121="","",VLOOKUP($P121,#REF!,16,FALSE)) ->  | AG121: =IF(P121="","",VLOOKUP($P121,#REF!,17,FALSE)) ->  | AH121: W | AI121: =IF(Q121="","",VLOOKUP($Q121,'FO-DRE-04'!$A$6:$M$100,3,FALSE)) ->  | AJ121: =IF(Q121="","",VLOOKUP($Q121,'FO-DRE-04'!$A$6:$M$100,4,FALSE)) ->  | AK121: =IF(Q121="","",VLOOKUP($Q121,'FO-DRE-04'!$A$6:$M$100,5,FALSE)) ->  | AL121: =IF(Q121="","",VLOOKUP($Q121,'FO-DRE-04'!$A$6:$M$100,7,FALSE)) ->  | AM121: =IF(Q121="","",VLOOKUP($Q121,'FO-DRE-04'!$A$6:$M$100,11,FALSE)) ->  | AN121: =IF($R121="","",VLOOKUP($R121,'FO-DRE-02'!$A$6:$N$100,2,FALSE)) ->  | AO121: =IF($R121="","",VLOOKUP($R121,'FO-DRE-02'!$A$5:$J$100,3,FALSE)) ->  | AP121: =IF($R121="","",VLOOKUP($R121,'FO-DRE-02'!$A$5:$J$100,6,FALSE)) ->  | AQ121: =IF($R121="","",VLOOKUP($R121,'FO-DRE-02'!$A$5:$J$100,4,FALSE)) ->  | AR121: =IF($R121="","",VLOOKUP($R121,'FO-DRE-02'!$A$5:$J$100,5,FALSE)) ->  | AS121: =IF($R121="","",VLOOKUP($R121,'FO-DRE-02'!$A$5:$J$100,6,FALSE)) ->  | AT121: =IF($R121="","",VLOOKUP($R121,'FO-DRE-02'!$A$5:$J$100,7,FALSE)) ->  | AU121: =IF($R121="","",VLOOKUP($R121,'FO-DRE-02'!$A$5:$J$100,9,FALSE)) ->  | AV121: =IF($R121="","",VLOOKUP($R121,'FO-DRE-02'!$A$5:$M$100,11,FALSE)) ->  | AW121: =IF($R121="","",VLOOKUP($R121,'FO-DRE-02'!$A$5:$M$100,12,FALSE)) ->  | AX121: =IF($R121="","",VLOOKUP($R121,'FO-DRE-02'!$A$5:$M$100,13,FALSE)) ->  | BA121: 5000 | BD121: 112 | BF121: F/D | BG121: F/D
T122: =IF(P122="","",VLOOKUP($P122,#REF!,2,FALSE)) ->  | U122: =IF(P122="","",VLOOKUP($P122,#REF!,3,FALSE)) ->  | V122: =IF(P122="","",VLOOKUP($P122,#REF!,4,FALSE)) ->  | W122: =IF(P122="","",VLOOKUP($P122,#REF!,6,FALSE)) ->  | X122: =IF(P122="","",VLOOKUP($P122,#REF!,7,FALSE)) ->  | Y122: =IF(P122="","",VLOOKUP($P122,#REF!,8,FALSE)) ->  | Z122: =IF(P122="","",VLOOKUP($P122,#REF!,9,FALSE)) ->  | AA122: =IF(P122="","",VLOOKUP($P122,#REF!,11,FALSE)) ->  | AB122: =IF(P122="","",VLOOKUP($P122,#REF!,12,FALSE)) ->  | AC122: =IF(P122="","",VLOOKUP($P122,#REF!,13,FALSE)) ->  | AD122: =IF(P122="","",VLOOKUP($P122,#REF!,14,FALSE)) ->  | AE122: =IF(P122="","",VLOOKUP($P122,#REF!,15,FALSE)) ->  | AF122: =IF(P122="","",VLOOKUP($P122,#REF!,16,FALSE)) ->  | AG122: =IF(P122="","",VLOOKUP($P122,#REF!,17,FALSE)) ->  | AH122: W | AI122: =IF(Q122="","",VLOOKUP($Q122,'FO-DRE-04'!$A$6:$M$100,3,FALSE)) ->  | AJ122: =IF(Q122="","",VLOOKUP($Q122,'FO-DRE-04'!$A$6:$M$100,4,FALSE)) ->  | AK122: =IF(Q122="","",VLOOKUP($Q122,'FO-DRE-04'!$A$6:$M$100,5,FALSE)) ->  | AL122: =IF(Q122="","",VLOOKUP($Q122,'FO-DRE-04'!$A$6:$M$100,7,FALSE)) ->  | AM122: =IF(Q122="","",VLOOKUP($Q122,'FO-DRE-04'!$A$6:$M$100,11,FALSE)) ->  | AN122: =IF($R122="","",VLOOKUP($R122,'FO-DRE-02'!$A$6:$N$100,2,FALSE)) ->  | AO122: =IF($R122="","",VLOOKUP($R122,'FO-DRE-02'!$A$5:$J$100,3,FALSE)) ->  | AP122: =IF($R122="","",VLOOKUP($R122,'FO-DRE-02'!$A$5:$J$100,6,FALSE)) ->  | AQ122: =IF($R122="","",VLOOKUP($R122,'FO-DRE-02'!$A$5:$J$100,4,FALSE)) ->  | AR122: =IF($R122="","",VLOOKUP($R122,'FO-DRE-02'!$A$5:$J$100,5,FALSE)) ->  | AS122: =IF($R122="","",VLOOKUP($R122,'FO-DRE-02'!$A$5:$J$100,6,FALSE)) ->  | AT122: =IF($R122="","",VLOOKUP($R122,'FO-DRE-02'!$A$5:$J$100,7,FALSE)) ->  | AU122: =IF($R122="","",VLOOKUP($R122,'FO-DRE-02'!$A$5:$J$100,9,FALSE)) ->  | AV122: =IF($R122="","",VLOOKUP($R122,'FO-DRE-02'!$A$5:$M$100,11,FALSE)) ->  | AW122: =IF($R122="","",VLOOKUP($R122,'FO-DRE-02'!$A$5:$M$100,12,FALSE)) ->  | AX122: =IF($R122="","",VLOOKUP($R122,'FO-DRE-02'!$A$5:$M$100,13,FALSE)) ->  | BA122: 5000 | BD122: 113 | BF122: F/D | BG122: F/D
T123: =IF(P123="","",VLOOKUP($P123,#REF!,2,FALSE)) ->  | U123: =IF(P123="","",VLOOKUP($P123,#REF!,3,FALSE)) ->  | V123: =IF(P123="","",VLOOKUP($P123,#REF!,4,FALSE)) ->  | W123: =IF(P123="","",VLOOKUP($P123,#REF!,6,FALSE)) ->  | X123: =IF(P123="","",VLOOKUP($P123,#REF!,7,FALSE)) ->  | Y123: =IF(P123="","",VLOOKUP($P123,#REF!,8,FALSE)) ->  | Z123: =IF(P123="","",VLOOKUP($P123,#REF!,9,FALSE)) ->  | AA123: =IF(P123="","",VLOOKUP($P123,#REF!,11,FALSE)) ->  | AB123: =IF(P123="","",VLOOKUP($P123,#REF!,12,FALSE)) ->  | AC123: =IF(P123="","",VLOOKUP($P123,#REF!,13,FALSE)) ->  | AD123: =IF(P123="","",VLOOKUP($P123,#REF!,14,FALSE)) ->  | AE123: =IF(P123="","",VLOOKUP($P123,#REF!,15,FALSE)) ->  | AF123: =IF(P123="","",VLOOKUP($P123,#REF!,16,FALSE)) ->  | AG123: =IF(P123="","",VLOOKUP($P123,#REF!,17,FALSE)) ->  | AH123: W | AI123: =IF(Q123="","",VLOOKUP($Q123,'FO-DRE-04'!$A$6:$M$100,3,FALSE)) ->  | AJ123: =IF(Q123="","",VLOOKUP($Q123,'FO-DRE-04'!$A$6:$M$100,4,FALSE)) ->  | AK123: =IF(Q123="","",VLOOKUP($Q123,'FO-DRE-04'!$A$6:$M$100,5,FALSE)) ->  | AL123: =IF(Q123="","",VLOOKUP($Q123,'FO-DRE-04'!$A$6:$M$100,7,FALSE)) ->  | AM123: =IF(Q123="","",VLOOKUP($Q123,'FO-DRE-04'!$A$6:$M$100,11,FALSE)) ->  | AN123: =IF($R123="","",VLOOKUP($R123,'FO-DRE-02'!$A$6:$N$100,2,FALSE)) ->  | AO123: =IF($R123="","",VLOOKUP($R123,'FO-DRE-02'!$A$5:$J$100,3,FALSE)) ->  | AP123: =IF($R123="","",VLOOKUP($R123,'FO-DRE-02'!$A$5:$J$100,6,FALSE)) ->  | AQ123: =IF($R123="","",VLOOKUP($R123,'FO-DRE-02'!$A$5:$J$100,4,FALSE)) ->  | AR123: =IF($R123="","",VLOOKUP($R123,'FO-DRE-02'!$A$5:$J$100,5,FALSE)) ->  | AS123: =IF($R123="","",VLOOKUP($R123,'FO-DRE-02'!$A$5:$J$100,6,FALSE)) ->  | AT123: =IF($R123="","",VLOOKUP($R123,'FO-DRE-02'!$A$5:$J$100,7,FALSE)) ->  | AU123: =IF($R123="","",VLOOKUP($R123,'FO-DRE-02'!$A$5:$J$100,9,FALSE)) ->  | AV123: =IF($R123="","",VLOOKUP($R123,'FO-DRE-02'!$A$5:$M$100,11,FALSE)) ->  | AW123: =IF($R123="","",VLOOKUP($R123,'FO-DRE-02'!$A$5:$M$100,12,FALSE)) ->  | AX123: =IF($R123="","",VLOOKUP($R123,'FO-DRE-02'!$A$5:$M$100,13,FALSE)) ->  | BA123: 5000 | BD123: 114 | BF123: F/D | BG123: F/D
T124: =IF(P124="","",VLOOKUP($P124,#REF!,2,FALSE)) ->  | U124: =IF(P124="","",VLOOKUP($P124,#REF!,3,FALSE)) ->  | V124: =IF(P124="","",VLOOKUP($P124,#REF!,4,FALSE)) ->  | W124: =IF(P124="","",VLOOKUP($P124,#REF!,6,FALSE)) ->  | X124: =IF(P124="","",VLOOKUP($P124,#REF!,7,FALSE)) ->  | Y124: =IF(P124="","",VLOOKUP($P124,#REF!,8,FALSE)) ->  | Z124: =IF(P124="","",VLOOKUP($P124,#REF!,9,FALSE)) ->  | AA124: =IF(P124="","",VLOOKUP($P124,#REF!,11,FALSE)) ->  | AB124: =IF(P124="","",VLOOKUP($P124,#REF!,12,FALSE)) ->  | AC124: =IF(P124="","",VLOOKUP($P124,#REF!,13,FALSE)) ->  | AD124: =IF(P124="","",VLOOKUP($P124,#REF!,14,FALSE)) ->  | AE124: =IF(P124="","",VLOOKUP($P124,#REF!,15,FALSE)) ->  | AF124: =IF(P124="","",VLOOKUP($P124,#REF!,16,FALSE)) ->  | AG124: =IF(P124="","",VLOOKUP($P124,#REF!,17,FALSE)) ->  | AH124: W | AI124: =IF(Q124="","",VLOOKUP($Q124,'FO-DRE-04'!$A$6:$M$100,3,FALSE)) ->  | AJ124: =IF(Q124="","",VLOOKUP($Q124,'FO-DRE-04'!$A$6:$M$100,4,FALSE)) ->  | AK124: =IF(Q124="","",VLOOKUP($Q124,'FO-DRE-04'!$A$6:$M$100,5,FALSE)) ->  | AL124: =IF(Q124="","",VLOOKUP($Q124,'FO-DRE-04'!$A$6:$M$100,7,FALSE)) ->  | AM124: =IF(Q124="","",VLOOKUP($Q124,'FO-DRE-04'!$A$6:$M$100,11,FALSE)) ->  | AN124: =IF($R124="","",VLOOKUP($R124,'FO-DRE-02'!$A$6:$N$100,2,FALSE)) ->  | AO124: =IF($R124="","",VLOOKUP($R124,'FO-DRE-02'!$A$5:$J$100,3,FALSE)) ->  | AP124: =IF($R124="","",VLOOKUP($R124,'FO-DRE-02'!$A$5:$J$100,6,FALSE)) ->  | AQ124: =IF($R124="","",VLOOKUP($R124,'FO-DRE-02'!$A$5:$J$100,4,FALSE)) ->  | AR124: =IF($R124="","",VLOOKUP($R124,'FO-DRE-02'!$A$5:$J$100,5,FALSE)) ->  | AS124: =IF($R124="","",VLOOKUP($R124,'FO-DRE-02'!$A$5:$J$100,6,FALSE)) ->  | AT124: =IF($R124="","",VLOOKUP($R124,'FO-DRE-02'!$A$5:$J$100,7,FALSE)) ->  | AU124: =IF($R124="","",VLOOKUP($R124,'FO-DRE-02'!$A$5:$J$100,9,FALSE)) ->  | AV124: =IF($R124="","",VLOOKUP($R124,'FO-DRE-02'!$A$5:$M$100,11,FALSE)) ->  | AW124: =IF($R124="","",VLOOKUP($R124,'FO-DRE-02'!$A$5:$M$100,12,FALSE)) ->  | AX124: =IF($R124="","",VLOOKUP($R124,'FO-DRE-02'!$A$5:$M$100,13,FALSE)) ->  | BA124: 5000 | BD124: 115 | BF124: F/D | BG124: F/D
T125: =IF(P125="","",VLOOKUP($P125,#REF!,2,FALSE)) ->  | U125: =IF(P125="","",VLOOKUP($P125,#REF!,3,FALSE)) ->  | V125: =IF(P125="","",VLOOKUP($P125,#REF!,4,FALSE)) ->  | W125: =IF(P125="","",VLOOKUP($P125,#REF!,6,FALSE)) ->  | X125: =IF(P125="","",VLOOKUP($P125,#REF!,7,FALSE)) ->  | Y125: =IF(P125="","",VLOOKUP($P125,#REF!,8,FALSE)) ->  | Z125: =IF(P125="","",VLOOKUP($P125,#REF!,9,FALSE)) ->  | AA125: =IF(P125="","",VLOOKUP($P125,#REF!,11,FALSE)) ->  | AB125: =IF(P125="","",VLOOKUP($P125,#REF!,12,FALSE)) ->  | AC125: =IF(P125="","",VLOOKUP($P125,#REF!,13,FALSE)) ->  | AD125: =IF(P125="","",VLOOKUP($P125,#REF!,14,FALSE)) ->  | AE125: =IF(P125="","",VLOOKUP($P125,#REF!,15,FALSE)) ->  | AF125: =IF(P125="","",VLOOKUP($P125,#REF!,16,FALSE)) ->  | AG125: =IF(P125="","",VLOOKUP($P125,#REF!,17,FALSE)) ->  | AH125: W | AI125: =IF(Q125="","",VLOOKUP($Q125,'FO-DRE-04'!$A$6:$M$100,3,FALSE)) ->  | AJ125: =IF(Q125="","",VLOOKUP($Q125,'FO-DRE-04'!$A$6:$M$100,4,FALSE)) ->  | AK125: =IF(Q125="","",VLOOKUP($Q125,'FO-DRE-04'!$A$6:$M$100,5,FALSE)) ->  | AL125: =IF(Q125="","",VLOOKUP($Q125,'FO-DRE-04'!$A$6:$M$100,7,FALSE)) ->  | AM125: =IF(Q125="","",VLOOKUP($Q125,'FO-DRE-04'!$A$6:$M$100,11,FALSE)) ->  | AN125: =IF($R125="","",VLOOKUP($R125,'FO-DRE-02'!$A$6:$N$100,2,FALSE)) ->  | AO125: =IF($R125="","",VLOOKUP($R125,'FO-DRE-02'!$A$5:$J$100,3,FALSE)) ->  | AP125: =IF($R125="","",VLOOKUP($R125,'FO-DRE-02'!$A$5:$J$100,6,FALSE)) ->  | AQ125: =IF($R125="","",VLOOKUP($R125,'FO-DRE-02'!$A$5:$J$100,4,FALSE)) ->  | AR125: =IF($R125="","",VLOOKUP($R125,'FO-DRE-02'!$A$5:$J$100,5,FALSE)) ->  | AS125: =IF($R125="","",VLOOKUP($R125,'FO-DRE-02'!$A$5:$J$100,6,FALSE)) ->  | AT125: =IF($R125="","",VLOOKUP($R125,'FO-DRE-02'!$A$5:$J$100,7,FALSE)) ->  | AU125: =IF($R125="","",VLOOKUP($R125,'FO-DRE-02'!$A$5:$J$100,9,FALSE)) ->  | AV125: =IF($R125="","",VLOOKUP($R125,'FO-DRE-02'!$A$5:$M$100,11,FALSE)) ->  | AW125: =IF($R125="","",VLOOKUP($R125,'FO-DRE-02'!$A$5:$M$100,12,FALSE)) ->  | AX125: =IF($R125="","",VLOOKUP($R125,'FO-DRE-02'!$A$5:$M$100,13,FALSE)) ->  | BA125: 5000 | BD125: 116 | BF125: F/D | BG125: F/D
T126: =IF(P126="","",VLOOKUP($P126,#REF!,2,FALSE)) ->  | U126: =IF(P126="","",VLOOKUP($P126,#REF!,3,FALSE)) ->  | V126: =IF(P126="","",VLOOKUP($P126,#REF!,4,FALSE)) ->  | W126: =IF(P126="","",VLOOKUP($P126,#REF!,6,FALSE)) ->  | X126: =IF(P126="","",VLOOKUP($P126,#REF!,7,FALSE)) ->  | Y126: =IF(P126="","",VLOOKUP($P126,#REF!,8,FALSE)) ->  | Z126: =IF(P126="","",VLOOKUP($P126,#REF!,9,FALSE)) ->  | AA126: =IF(P126="","",VLOOKUP($P126,#REF!,11,FALSE)) ->  | AB126: =IF(P126="","",VLOOKUP($P126,#REF!,12,FALSE)) ->  | AC126: =IF(P126="","",VLOOKUP($P126,#REF!,13,FALSE)) ->  | AD126: =IF(P126="","",VLOOKUP($P126,#REF!,14,FALSE)) ->  | AE126: =IF(P126="","",VLOOKUP($P126,#REF!,15,FALSE)) ->  | AF126: =IF(P126="","",VLOOKUP($P126,#REF!,16,FALSE)) ->  | AG126: =IF(P126="","",VLOOKUP($P126,#REF!,17,FALSE)) ->  | AH126: W | AI126: =IF(Q126="","",VLOOKUP($Q126,'FO-DRE-04'!$A$6:$M$100,3,FALSE)) ->  | AJ126: =IF(Q126="","",VLOOKUP($Q126,'FO-DRE-04'!$A$6:$M$100,4,FALSE)) ->  | AK126: =IF(Q126="","",VLOOKUP($Q126,'FO-DRE-04'!$A$6:$M$100,5,FALSE)) ->  | AL126: =IF(Q126="","",VLOOKUP($Q126,'FO-DRE-04'!$A$6:$M$100,7,FALSE)) ->  | AM126: =IF(Q126="","",VLOOKUP($Q126,'FO-DRE-04'!$A$6:$M$100,11,FALSE)) ->  | AN126: =IF($R126="","",VLOOKUP($R126,'FO-DRE-02'!$A$6:$N$100,2,FALSE)) ->  | AO126: =IF($R126="","",VLOOKUP($R126,'FO-DRE-02'!$A$5:$J$100,3,FALSE)) ->  | AP126: =IF($R126="","",VLOOKUP($R126,'FO-DRE-02'!$A$5:$J$100,6,FALSE)) ->  | AQ126: =IF($R126="","",VLOOKUP($R126,'FO-DRE-02'!$A$5:$J$100,4,FALSE)) ->  | AR126: =IF($R126="","",VLOOKUP($R126,'FO-DRE-02'!$A$5:$J$100,5,FALSE)) ->  | AS126: =IF($R126="","",VLOOKUP($R126,'FO-DRE-02'!$A$5:$J$100,6,FALSE)) ->  | AT126: =IF($R126="","",VLOOKUP($R126,'FO-DRE-02'!$A$5:$J$100,7,FALSE)) ->  | AU126: =IF($R126="","",VLOOKUP($R126,'FO-DRE-02'!$A$5:$J$100,9,FALSE)) ->  | AV126: =IF($R126="","",VLOOKUP($R126,'FO-DRE-02'!$A$5:$M$100,11,FALSE)) ->  | AW126: =IF($R126="","",VLOOKUP($R126,'FO-DRE-02'!$A$5:$M$100,12,FALSE)) ->  | AX126: =IF($R126="","",VLOOKUP($R126,'FO-DRE-02'!$A$5:$M$100,13,FALSE)) ->  | BA126: 5000 | BD126: 117 | BF126: F/D | BG126: F/D
T127: =IF(P127="","",VLOOKUP($P127,#REF!,2,FALSE)) ->  | U127: =IF(P127="","",VLOOKUP($P127,#REF!,3,FALSE)) ->  | V127: =IF(P127="","",VLOOKUP($P127,#REF!,4,FALSE)) ->  | W127: =IF(P127="","",VLOOKUP($P127,#REF!,6,FALSE)) ->  | X127: =IF(P127="","",VLOOKUP($P127,#REF!,7,FALSE)) ->  | Y127: =IF(P127="","",VLOOKUP($P127,#REF!,8,FALSE)) ->  | Z127: =IF(P127="","",VLOOKUP($P127,#REF!,9,FALSE)) ->  | AA127: =IF(P127="","",VLOOKUP($P127,#REF!,11,FALSE)) ->  | AB127: =IF(P127="","",VLOOKUP($P127,#REF!,12,FALSE)) ->  | AC127: =IF(P127="","",VLOOKUP($P127,#REF!,13,FALSE)) ->  | AD127: =IF(P127="","",VLOOKUP($P127,#REF!,14,FALSE)) ->  | AE127: =IF(P127="","",VLOOKUP($P127,#REF!,15,FALSE)) ->  | AF127: =IF(P127="","",VLOOKUP($P127,#REF!,16,FALSE)) ->  | AG127: =IF(P127="","",VLOOKUP($P127,#REF!,17,FALSE)) ->  | AH127: W | AI127: =IF(Q127="","",VLOOKUP($Q127,'FO-DRE-04'!$A$6:$M$100,3,FALSE)) ->  | AJ127: =IF(Q127="","",VLOOKUP($Q127,'FO-DRE-04'!$A$6:$M$100,4,FALSE)) ->  | AK127: =IF(Q127="","",VLOOKUP($Q127,'FO-DRE-04'!$A$6:$M$100,5,FALSE)) ->  | AL127: =IF(Q127="","",VLOOKUP($Q127,'FO-DRE-04'!$A$6:$M$100,7,FALSE)) ->  | AM127: =IF(Q127="","",VLOOKUP($Q127,'FO-DRE-04'!$A$6:$M$100,11,FALSE)) ->  | AN127: =IF($R127="","",VLOOKUP($R127,'FO-DRE-02'!$A$6:$N$100,2,FALSE)) ->  | AO127: =IF($R127="","",VLOOKUP($R127,'FO-DRE-02'!$A$5:$J$100,3,FALSE)) ->  | AP127: =IF($R127="","",VLOOKUP($R127,'FO-DRE-02'!$A$5:$J$100,6,FALSE)) ->  | AQ127: =IF($R127="","",VLOOKUP($R127,'FO-DRE-02'!$A$5:$J$100,4,FALSE)) ->  | AR127: =IF($R127="","",VLOOKUP($R127,'FO-DRE-02'!$A$5:$J$100,5,FALSE)) ->  | AS127: =IF($R127="","",VLOOKUP($R127,'FO-DRE-02'!$A$5:$J$100,6,FALSE)) ->  | AT127: =IF($R127="","",VLOOKUP($R127,'FO-DRE-02'!$A$5:$J$100,7,FALSE)) ->  | AU127: =IF($R127="","",VLOOKUP($R127,'FO-DRE-02'!$A$5:$J$100,9,FALSE)) ->  | AV127: =IF($R127="","",VLOOKUP($R127,'FO-DRE-02'!$A$5:$M$100,11,FALSE)) ->  | AW127: =IF($R127="","",VLOOKUP($R127,'FO-DRE-02'!$A$5:$M$100,12,FALSE)) ->  | AX127: =IF($R127="","",VLOOKUP($R127,'FO-DRE-02'!$A$5:$M$100,13,FALSE)) ->  | BA127: 5000 | BD127: 118 | BF127: F/D | BG127: F/D
T128: =IF(P128="","",VLOOKUP($P128,#REF!,2,FALSE)) ->  | U128: =IF(P128="","",VLOOKUP($P128,#REF!,3,FALSE)) ->  | V128: =IF(P128="","",VLOOKUP($P128,#REF!,4,FALSE)) ->  | W128: =IF(P128="","",VLOOKUP($P128,#REF!,6,FALSE)) ->  | X128: =IF(P128="","",VLOOKUP($P128,#REF!,7,FALSE)) ->  | Y128: =IF(P128="","",VLOOKUP($P128,#REF!,8,FALSE)) ->  | Z128: =IF(P128="","",VLOOKUP($P128,#REF!,9,FALSE)) ->  | AA128: =IF(P128="","",VLOOKUP($P128,#REF!,11,FALSE)) ->  | AB128: =IF(P128="","",VLOOKUP($P128,#REF!,12,FALSE)) ->  | AC128: =IF(P128="","",VLOOKUP($P128,#REF!,13,FALSE)) ->  | AD128: =IF(P128="","",VLOOKUP($P128,#REF!,14,FALSE)) ->  | AE128: =IF(P128="","",VLOOKUP($P128,#REF!,15,FALSE)) ->  | AF128: =IF(P128="","",VLOOKUP($P128,#REF!,16,FALSE)) ->  | AG128: =IF(P128="","",VLOOKUP($P128,#REF!,17,FALSE)) ->  | AH128: W | AI128: =IF(Q128="","",VLOOKUP($Q128,'FO-DRE-04'!$A$6:$M$100,3,FALSE)) ->  | AJ128: =IF(Q128="","",VLOOKUP($Q128,'FO-DRE-04'!$A$6:$M$100,4,FALSE)) ->  | AK128: =IF(Q128="","",VLOOKUP($Q128,'FO-DRE-04'!$A$6:$M$100,5,FALSE)) ->  | AL128: =IF(Q128="","",VLOOKUP($Q128,'FO-DRE-04'!$A$6:$M$100,7,FALSE)) ->  | AM128: =IF(Q128="","",VLOOKUP($Q128,'FO-DRE-04'!$A$6:$M$100,11,FALSE)) ->  | AN128: =IF($R128="","",VLOOKUP($R128,'FO-DRE-02'!$A$6:$N$100,2,FALSE)) ->  | AO128: =IF($R128="","",VLOOKUP($R128,'FO-DRE-02'!$A$5:$J$100,3,FALSE)) ->  | AP128: =IF($R128="","",VLOOKUP($R128,'FO-DRE-02'!$A$5:$J$100,6,FALSE)) ->  | AQ128: =IF($R128="","",VLOOKUP($R128,'FO-DRE-02'!$A$5:$J$100,4,FALSE)) ->  | AR128: =IF($R128="","",VLOOKUP($R128,'FO-DRE-02'!$A$5:$J$100,5,FALSE)) ->  | AS128: =IF($R128="","",VLOOKUP($R128,'FO-DRE-02'!$A$5:$J$100,6,FALSE)) ->  | AT128: =IF($R128="","",VLOOKUP($R128,'FO-DRE-02'!$A$5:$J$100,7,FALSE)) ->  | AU128: =IF($R128="","",VLOOKUP($R128,'FO-DRE-02'!$A$5:$J$100,9,FALSE)) ->  | AV128: =IF($R128="","",VLOOKUP($R128,'FO-DRE-02'!$A$5:$M$100,11,FALSE)) ->  | AW128: =IF($R128="","",VLOOKUP($R128,'FO-DRE-02'!$A$5:$M$100,12,FALSE)) ->  | AX128: =IF($R128="","",VLOOKUP($R128,'FO-DRE-02'!$A$5:$M$100,13,FALSE)) ->  | BA128: 5000 | BD128: 119 | BF128: F/D | BG128: F/D
T129: =IF(P129="","",VLOOKUP($P129,#REF!,2,FALSE)) ->  | U129: =IF(P129="","",VLOOKUP($P129,#REF!,3,FALSE)) ->  | V129: =IF(P129="","",VLOOKUP($P129,#REF!,4,FALSE)) ->  | W129: =IF(P129="","",VLOOKUP($P129,#REF!,6,FALSE)) ->  | X129: =IF(P129="","",VLOOKUP($P129,#REF!,7,FALSE)) ->  | Y129: =IF(P129="","",VLOOKUP($P129,#REF!,8,FALSE)) ->  | Z129: =IF(P129="","",VLOOKUP($P129,#REF!,9,FALSE)) ->  | AA129: =IF(P129="","",VLOOKUP($P129,#REF!,11,FALSE)) ->  | AB129: =IF(P129="","",VLOOKUP($P129,#REF!,12,FALSE)) ->  | AC129: =IF(P129="","",VLOOKUP($P129,#REF!,13,FALSE)) ->  | AD129: =IF(P129="","",VLOOKUP($P129,#REF!,14,FALSE)) ->  | AE129: =IF(P129="","",VLOOKUP($P129,#REF!,15,FALSE)) ->  | AF129: =IF(P129="","",VLOOKUP($P129,#REF!,16,FALSE)) ->  | AG129: =IF(P129="","",VLOOKUP($P129,#REF!,17,FALSE)) ->  | AH129: W | AI129: =IF(Q129="","",VLOOKUP($Q129,'FO-DRE-04'!$A$6:$M$100,3,FALSE)) ->  | AJ129: =IF(Q129="","",VLOOKUP($Q129,'FO-DRE-04'!$A$6:$M$100,4,FALSE)) ->  | AK129: =IF(Q129="","",VLOOKUP($Q129,'FO-DRE-04'!$A$6:$M$100,5,FALSE)) ->  | AL129: =IF(Q129="","",VLOOKUP($Q129,'FO-DRE-04'!$A$6:$M$100,7,FALSE)) ->  | AM129: =IF(Q129="","",VLOOKUP($Q129,'FO-DRE-04'!$A$6:$M$100,11,FALSE)) ->  | AN129: =IF($R129="","",VLOOKUP($R129,'FO-DRE-02'!$A$6:$N$100,2,FALSE)) ->  | AO129: =IF($R129="","",VLOOKUP($R129,'FO-DRE-02'!$A$5:$J$100,3,FALSE)) ->  | AP129: =IF($R129="","",VLOOKUP($R129,'FO-DRE-02'!$A$5:$J$100,6,FALSE)) ->  | AQ129: =IF($R129="","",VLOOKUP($R129,'FO-DRE-02'!$A$5:$J$100,4,FALSE)) ->  | AR129: =IF($R129="","",VLOOKUP($R129,'FO-DRE-02'!$A$5:$J$100,5,FALSE)) ->  | AS129: =IF($R129="","",VLOOKUP($R129,'FO-DRE-02'!$A$5:$J$100,6,FALSE)) ->  | AT129: =IF($R129="","",VLOOKUP($R129,'FO-DRE-02'!$A$5:$J$100,7,FALSE)) ->  | AU129: =IF($R129="","",VLOOKUP($R129,'FO-DRE-02'!$A$5:$J$100,9,FALSE)) ->  | AV129: =IF($R129="","",VLOOKUP($R129,'FO-DRE-02'!$A$5:$M$100,11,FALSE)) ->  | AW129: =IF($R129="","",VLOOKUP($R129,'FO-DRE-02'!$A$5:$M$100,12,FALSE)) ->  | AX129: =IF($R129="","",VLOOKUP($R129,'FO-DRE-02'!$A$5:$M$100,13,FALSE)) ->  | BA129: 5000 | BD129: 120 | BF129: F/D | BG129: F/D
T130: =IF(P130="","",VLOOKUP($P130,#REF!,2,FALSE)) ->  | U130: =IF(P130="","",VLOOKUP($P130,#REF!,3,FALSE)) ->  | V130: =IF(P130="","",VLOOKUP($P130,#REF!,4,FALSE)) ->  | W130: =IF(P130="","",VLOOKUP($P130,#REF!,6,FALSE)) ->  | X130: =IF(P130="","",VLOOKUP($P130,#REF!,7,FALSE)) ->  | Y130: =IF(P130="","",VLOOKUP($P130,#REF!,8,FALSE)) ->  | Z130: =IF(P130="","",VLOOKUP($P130,#REF!,9,FALSE)) ->  | AA130: =IF(P130="","",VLOOKUP($P130,#REF!,11,FALSE)) ->  | AB130: =IF(P130="","",VLOOKUP($P130,#REF!,12,FALSE)) ->  | AC130: =IF(P130="","",VLOOKUP($P130,#REF!,13,FALSE)) ->  | AD130: =IF(P130="","",VLOOKUP($P130,#REF!,14,FALSE)) ->  | AE130: =IF(P130="","",VLOOKUP($P130,#REF!,15,FALSE)) ->  | AF130: =IF(P130="","",VLOOKUP($P130,#REF!,16,FALSE)) ->  | AG130: =IF(P130="","",VLOOKUP($P130,#REF!,17,FALSE)) ->  | AH130: W | AI130: =IF(Q130="","",VLOOKUP($Q130,'FO-DRE-04'!$A$6:$M$100,3,FALSE)) ->  | AJ130: =IF(Q130="","",VLOOKUP($Q130,'FO-DRE-04'!$A$6:$M$100,4,FALSE)) ->  | AK130: =IF(Q130="","",VLOOKUP($Q130,'FO-DRE-04'!$A$6:$M$100,5,FALSE)) ->  | AL130: =IF(Q130="","",VLOOKUP($Q130,'FO-DRE-04'!$A$6:$M$100,7,FALSE)) ->  | AM130: =IF(Q130="","",VLOOKUP($Q130,'FO-DRE-04'!$A$6:$M$100,11,FALSE)) ->  | AN130: =IF($R130="","",VLOOKUP($R130,'FO-DRE-02'!$A$6:$N$100,2,FALSE)) ->  | AO130: =IF($R130="","",VLOOKUP($R130,'FO-DRE-02'!$A$5:$J$100,3,FALSE)) ->  | AP130: =IF($R130="","",VLOOKUP($R130,'FO-DRE-02'!$A$5:$J$100,6,FALSE)) ->  | AQ130: =IF($R130="","",VLOOKUP($R130,'FO-DRE-02'!$A$5:$J$100,4,FALSE)) ->  | AR130: =IF($R130="","",VLOOKUP($R130,'FO-DRE-02'!$A$5:$J$100,5,FALSE)) ->  | AS130: =IF($R130="","",VLOOKUP($R130,'FO-DRE-02'!$A$5:$J$100,6,FALSE)) ->  | AT130: =IF($R130="","",VLOOKUP($R130,'FO-DRE-02'!$A$5:$J$100,7,FALSE)) ->  | AU130: =IF($R130="","",VLOOKUP($R130,'FO-DRE-02'!$A$5:$J$100,9,FALSE)) ->  | AV130: =IF($R130="","",VLOOKUP($R130,'FO-DRE-02'!$A$5:$M$100,11,FALSE)) ->  | AW130: =IF($R130="","",VLOOKUP($R130,'FO-DRE-02'!$A$5:$M$100,12,FALSE)) ->  | AX130: =IF($R130="","",VLOOKUP($R130,'FO-DRE-02'!$A$5:$M$100,13,FALSE)) ->  | BA130: 5000 | BD130: 121 | BF130: F/D | BG130: F/D
